{"text_format":"1","workbook":"xlsx","n_sheets":10,"sheets":["Anleitung","Input_Generell","Input_PW","PW_V1","PW_V2","PW_V3","PW_V4","PW_V5","Resultate_PW","Anhang"],"not_rendered":{"charts":2,"images":3,"macros":1,"external_links":0,"defined_names":73,"comments":9,"pivot_tables":0},"unopened":[],"bounds":{"document_bytes":16777216,"sheet_cells":100000,"rows_first":2000,"rows_last":500,"rows_between":2000,"halvings":0,"cell_chars":16384,"cell_head_chars":4096},"cells_cut":0,"cells_raw":0,"read":"whole","date_system":"1900"}

{"sheet":"Anleitung","index":0,"n_rows":25,"n_cols":4,"rows_kept":25,"cut":false,"hidden":false,"merged":[[24,1,24,8],[18,3,19,8],[20,3,20,8],[4,1,4,8],[21,1,21,8],[7,3,7,8],[8,3,8,8],[10,3,10,8],[9,3,9,8],[11,3,11,8],[14,3,15,8]]}
[null,"ANLEITUNG"]
[]
[null,"Einleitung"]
[]
[null,"Mit dem vorliegenden Excel-Tool können die Lebenszykluskosten (Definition siehe Anhang) von Fahrzeugen berechnet werden. Die enthaltenen Produktegruppen werden zukünftig ausgebaut - als erstes stehen 'Personenwagen' zur Verfügung. Das Tool wurde von der Geschäftsstelle Vorbild Energie und Klima entwickelt und unterstützt die Akteure bei der Umsetzung der gemeinsamen Massnahme 'Nr. 10 Lebenszykluskosten-Betrachtung'.\n\nDas Tool richtet sich in erster Linie an Personen im Beschaffungsprozess, kann aber auch anderen Nutzergruppen wie internen und externen Fachingenieuren dienlich sein. Bei komplexen Beschaffungen wird die Zusammenarbeit mit Fachexperten erwartet, die beim Befüllen der gefragten Daten unterstützen. Im Tabellenblatt \"Anhang\" finden Sie Quellenangaben sowie weitere Informationen zum Tool und zu verwendeten Begriffen."]
[null,"Vorgehen"]
[]
[null,null,"1)","Wählen Sie die Produktegruppe (solange keine Produktegruppe ausgewählt ist, wird alles eingeblendet).\nGeben Sie allgemeine Angaben wie Kalkulationszinssatz und Energiepreise ein, falls Sie nicht mit den Default-Werten rechnen wollen."]
[null,null,"2)","Füllen Sie die gefragen Daten zum Produkt ein."]
[null,null,null,"Bei Produktegruppen mit komplexer Eingabe (z.B. Personenwagen) ist für jede Variante ein eigenes Input-Blatt (Produkt_V1 bis Produkt_V5) verfügbar. Falls Sie die Berechnungen einsehen möchten, finden Sie diese auf dem jeweiligen Produkteblatt (gruppiert ausgeblendet, siehe Hinweis dazu unten)."]
[null,null,"3)","Vergleichen Sie die Lebenszykluskosten der Varianten."]
[]
[null,"Bedienung"]
[]
[null,null,null,"Eingabefelder und Überschreiben von Default-Werten. Wenn Default-Werte verfügbar sind, müssen keine eigenen Daten eingesetzt werden und die Default-Werte werden für die Berechnungen verwendet."]
[]
[null,"BITTE WÄHLEN",null,"Auswahlfelder: Durch Anklicken erscheint ein Dropdown."]
[]
[null,"K",null,"Kommentarfelder mit Hilfestellungen zur Dateneingabe, Quellenangaben, etc.\nKommentarfelder sind, wo möglich, am linken Rand."]
[]
[null,null,null,"Alle Berechnungen können eingesehen werden. Damit das Tool übersichtlich erscheint, sind die Berechnungen teilweise durch Gruppierung ausgeblendet. Diese können durch Klicken auf das \"+\" in den Zeilen-, respektive Spaltenüberschriften jederzeit eingeblendet werden."]
[null,"Das Excel-Tool ist ohne Passwort geschützt. Der Blattschutz kann unter \"Überprüfen -> Blattschutz aufheben\" aufgehoben werden.\nDas Tool kann grundsätzlich nach eigenen Bedürfnissen angepasst werden. Es ist jedoch zu berücksichtigen, dass dadurch Berechnungsfehler entstehen könnten. Möglicherweise muss auch der Visual Basic Code angepasst werden."]
[null,"Hinweise zum Tool"]
[]
[null,"Die Geschäftsstelle Vorbild Energie und Klima übernimmt keine Haftung für die Richtigkeit der Berechnungen."]

{"sheet":"Input_Generell","index":1,"n_rows":59,"n_cols":28,"rows_kept":59,"cut":false,"hidden":false,"merged":[[26,1,26,3],[7,19,7,20],[7,2,7,3],[7,4,7,5],[7,6,7,9],[19,4,19,5],[19,6,19,7],[19,8,19,9],[19,10,19,11],[19,2,20,3],[18,23,20,23],[18,24,20,24],[4,2,4,5],[15,10,15,11],[7,10,7,11],[15,8,15,9],[15,4,15,5],[15,2,15,3],[15,6,15,7]]}
[null,"GRUNDLAGENDATEN"]
[]
[null,"Wahl der Produktegruppe"]
[]
["K","Produktegruppe","Personenwagen"]
[]
[null,"Angaben zu den Energieträgern",null,null,null,null,null,null,null,null,null,null,null,null,"Rechenhilfe Energiepreise",null,null,null,null,null,null,null,"Rechenwerte"]
["K","Energieträger","Anteil Biogas",null,"Energiepreis [Rp./kWh]",null,"Treibhausgase [g CO2eq/kWh]",null,null,null,"Umweltbelastungsp. UBP'13 [UBP/kWh]",null,null,"K","Energieträger","Einheit","Preis","Preis in Rp./kWh",null,"Umrechnungsfaktor in kWh(Heizwert)",null,null,"Energietr.-Nr.","Anteil Biogas","Energiepreis / HT [Rp./kWh]","Niedertarif\n[Rp./kWh]","Treibhausgase\n[g CO2eq/kWh]","UBP'13 [UBP/kWh]"]
[null,null,null,"Default über-schreiben",null,"Default über-schreiben",null,null,null,"Default über-schreiben",null,"Default über-schreiben",null,null,null,null,null,null,null,null,null,null,0,0,0,0,0,0]
["K","CNG",0.2,null,{"$f":"X10*Biogaspreis+(1-X10)*Erdgaspreis","v":11.4},null,null,null,{"$f":"X10*EF_Biogas+(1-X10)*EF_Erdgas","v":207},null,{"$f":"X10*AB12+(1-X10)*AB11","v":192.2},null,null,null,{"$f":"B10","v":"CNG"},"CHF/kg",null,{"$f":"Q10*100*U10","v":0},null,"kg/kWh",{"$f":"1/13.81","v":7.2411296162201294E-2},null,1,{"$f":"IF(ISNUMBER(D10),D10,C10)","v":0.2},{"$f":"IF(ISNUMBER(F10),F10,E10)","v":11.4},null,{"$f":"IF(ISNUMBER(J10),J10,I10)","v":207},{"$f":"IF(ISNUMBER(L10),L10,K10)","v":192.2}]
[null,"   Erdgas-Anteil",null,null,{"$f":"11.4/(0.8+0.2*1.8)","v":9.8275862068965516},null,null,null,230,null,200,null,null,null,null,null,null,null,null,null,null,null,null,null,{"$f":"IF(ISNUMBER(F11),F11,E11)","v":9.8275862068965516},null,{"$f":"IF(ISNUMBER(J11),J11,I11)","v":230},{"$f":"IF(ISNUMBER(L11),L11,K11)","v":200}]
[null,"   Biogas-Anteil",null,null,{"$f":"E11*1.8","v":17.689655172413794},null,null,null,115,null,161,null,null,null,null,null,null,null,null,null,null,null,null,null,{"$f":"IF(ISNUMBER(F12),F12,E12)","v":17.689655172413794},null,{"$f":"IF(ISNUMBER(J12),J12,I12)","v":115},{"$f":"IF(ISNUMBER(L12),L12,K12)","v":161}]
[null,"Benzin",null,null,18,null,null,null,320,null,309,null,null,null,{"$f":"B13","v":"Benzin"},"CHF/Liter",null,{"$f":"Q13*100*U13","v":0},null,"Liter/kWh",{"$f":"1/8.72","v":0.1146788990825688},null,3,null,{"$f":"IF(ISNUMBER(F13),F13,E13)","v":18},null,{"$f":"IF(ISNUMBER(J13),J13,I13)","v":320},309]
[null,"Diesel",null,null,17,null,null,null,304,null,292,null,null,null,{"$f":"B14","v":"Diesel"},"CHF/Liter",null,{"$f":"Q14*100*U14","v":0},null,"Liter/kWh",{"$f":"1/9.91","v":0.10090817356205853},null,4,null,{"$f":"IF(ISNUMBER(F14),F14,E14)","v":17},null,304,292]
[null,"Weitere",null,null,"kein Default",null,null,null,"kein Default",null,"kein Default",null,null,null,null,null,null,null,null,null,null,null,11,null,{"$f":"F15","v":0},null,{"$f":"J15","v":0},{"$f":"L15","v":0}]
[null,null,"Leistungspreis [CHF/kW/Monat]",null,"Hochtarif\n[Rp./kWh]",null,"Niedertarif\n[Rp./kWh]",null,"Treibhausgase\n[g CO2eq/kWh]",null,"Umweltbelastungsp. UBP'13 [UBP/kWh]"]
["K","Strom eigene Ladestation",null,"Default über-schreiben",null,"Default über-schreiben",null,"Default über-schreiben",null,"Default über-schreiben",null,"Default über-schreiben",null,null,null,null,null,null,null,null,null,null,null,"Leistungspreis [CHF/kW/mt]"]
["K","STROMPRODUKT BITTE WÄHLEN",{"$f":"VLOOKUP($B$18,$B$42:$H$48,7,0)","v":0},null,{"$f":"VLOOKUP($B$18,$B$42:$F$48,3,0)","v":0},null,{"$f":"VLOOKUP($B$18,$B$42:$H$48,4,0)","v":0},null,{"$f":"VLOOKUP($B$18,$B$42:$H$48,5,0)","v":0},null,{"$f":"VLOOKUP($B$18,$B$42:$H$48,6,0)","v":0},null,null,null,"Strom","CHF/kWh",null,{"$f":"Q18*U18","v":0},null,"kWh/kWh",100,null,13,{"$f":"IF(ISNUMBER(D18),D18,C18)","v":0},{"$f":"IF(ISNUMBER(F18),F18,E18)","v":0},{"$f":"IF(ISNUMBER(H18),H18,G18)","v":0},{"$f":"IF(ISNUMBER(J18),J18,I18)","v":0},{"$f":"IF(ISNUMBER(L18),L18,K18)","v":0}]
[null,null,null,null,null,null,null,null,null,null,null,null,null,null,null,null,null,null,null,null,null,null,null,"Verbrauchs-unabh. Ladekosten alle Fahrz. [CHF/a]","Verbrauchs-basiert [Rp./kWh]"]
[null,null,"Verbrauchsunabh. Ladekosten alle Fahrz. [CHF/a]",null,"Verbrauchsbasiert [Rp./kWh]",null,null,null,"Treibhausgase\n[g CO2eq/kWh]",null,"Umweltbelastungsp. UBP'13 [UBP/kWh]"]
[null,"Strom externe Ladestation",null,null,null,"Default über-schreiben",null,null,null,"Default über-schreiben",null,"Default über-schreiben"]
["K","STROMPRODUKT BITTE WÄHLEN","kein Default",null,70,null,null,null,{"$f":"VLOOKUP($B$22,$B$42:$H$48,5,0)","v":0},null,{"$f":"VLOOKUP($B$22,$B$42:$H$48,6,0)","v":0},null,null,null,null,null,null,null,null,null,null,null,14,{"$f":"IF(ISNUMBER(D22),D22,C22)","v":"kein Default"},{"$f":"IF(ISNUMBER(F22),F22,E22)","v":70},null,{"$f":"IF(ISNUMBER(J22),J22,I22)","v":0},{"$f":"IF(ISNUMBER(L22),L22,K22)","v":0}]
[]
[null,"Ergänzende Angaben für Elektrofahrzeuge:",null,null,"Default über-schreiben"]
["K","Anteil eigene Ladestation",null,0.8,null,null,null,null,null,null,null,null,null,null,null,null,null,null,null,null,null,null,null,null,{"$f":"IF(ISNUMBER(E25),E25,D25)","v":0.8},{"$f":"1-Anteil_Intern","v":0.19999999999999996}]
["K","Anteil Hochtarif",null,0.5,null,null,null,null,null,null,null,null,null,null,null,null,null,null,null,null,null,null,null,null,{"$f":"IF(ISNUMBER(E26),E26,D26)","v":0.5},{"$f":"1-Anteil_HT","v":0.5}]
[null,"Wie sollen die externen Kosten von Treibhausgasemissionen (THG) in die LCC-Berechnung eingerechnet werden?",null,null,"Default über-schreiben"]
["K","BITTE WÄHLEN","CHF/tCO2eq",{"$f":"VLOOKUP(B28,B52:C55,2,0)","v":0},null,null,null,null,null,null,null,null,null,null,null,null,null,null,null,null,null,null,null,{"$f":"IF(ISNUMBER(E28),E28,D28)","v":0}]
[]
[null,"Angaben zu Zinssatz und Preissteigerungen"]
[null,null,null,null,"Default über-schreiben"]
["K","Energiepreissteigerung",null,0.01,null,null,null,null,null,null,null,null,null,null,null,null,null,null,null,null,null,null,null,{"$f":"IF(ISNUMBER(E32),E32,D32)","v":0.01}]
["K","Kalkulationszinssatz",null,2.5000000000000001E-2,null,null,null,null,null,null,null,null,null,null,null,null,null,null,null,null,null,null,null,{"$f":"IF(ISNUMBER(E33),E33,D33)","v":2.5000000000000001E-2}]
["K","Preissteigerung",null,0.01,null,null,null,null,null,null,null,null,null,null,null,null,null,null,null,null,null,null,null,{"$f":"IF(ISNUMBER(E34),E34,D34)","v":0.01}]
[]
[]
[]
[]
[null,"Auswahllisten"]
[null,"Auswahlliste Strommix und Defaultwerte"]
[null,"Stromprodukt","Energie-preis [Rp./kWh]","Hochtarif\n[Rp./kWh]","Niedertarif\n[Rp./kWh]","Treibhaus-gase [gCO2eq/ kWh]","UBP'13 [UBP/kWh]","Leistungs-preis [CHF/kW]"]
["K","STROMPRODUKT BITTE WÄHLEN",0,0,0,0,0,0]
[null,"Mix Stromprodukte aus erneuerbaren Energien",{"$f":"1.5*C44","v":13.5},{"$f":"1.5*D44","v":15},12,15,{"$f":"47.8+(438-347)","v":138.80000000000001},10]
[null,"CH-Verbrauchermix (nicht erneuerb. Strompr.) ",9,10,8,102,{"$f":"347+(438-347)","v":438},10]
[null,"ENTSO-E-Mix (Strom aus europäischem Netz)",9,10,8,524,{"$f":"548+(438-347)","v":639},10]
[null,"Photovoltaik ",{"$f":"2*C44","v":18},{"$f":"2*D44","v":20},16,96,{"$f":"174+(438-347)","v":265},10]
[null,"Wasserkraft ",{"$f":"1.5*C44","v":13.5},{"$f":"1.5*D44","v":15},12,12,{"$f":"43.8+(438-347)","v":134.80000000000001},10]
[null,"Weitere","kein Default","kein Default","kein Default","kein Default","kein Default",10]
[]
[null,"Auswahlliste Kosten Treibhausgase"]
[null,"Kostenpunkt","CHF/tCO2eq","Anzeige"]
[null,"BITTE WÄHLEN",0,"Kosten für THG: nicht gewählt"]
[null,"Keine Kosten für THG berücksichtigen",0,"Kosten für THG: nicht berücksichtigt"]
[null,"Externe Kosten Treibhausgasemissionen",121.5,"Externe Kosten Treibhausgasemissionen"]
[null,"Kompensationskosten Treibhausgase",30,"Kompensationskosten Treibhausgase"]
[]
["K","Auswahlliste Produktegruppe"]
[null,"BITTE WÄHLEN"]
[null,"Personenwagen"]

{"sheet":"Input_PW","index":2,"n_rows":18,"n_cols":4,"rows_kept":18,"cut":false,"hidden":false,"merged":[[4,2,4,7],[6,2,6,7],[5,2,5,7],[17,1,17,7]]}
[null,"DATENEINGABE PERSONENWAGEN"]
[]
[null,"Allgemeine Angaben (durch den Beschaffer einzugeben)"]
[]
[null,"Projekt"]
[null,"Unternehmen"]
[null,"Zuständig"]
[null,"Datum"]
[]
[null,"Stückzahl Personenwagen"]
[null,"Fahrleistung pro Personenwagen und Jahr",null,"km/a"]
[]
["K","Betrachtungszeit der Lebenszyklusrechnung",null,"Jahre"]
[]
[null,"Angaben des Anbieters (mit Angebot abzugeben)"]
[]
[null,"Angaben der verschiedenen Varianten werden in den Tabellenblättern PW_V1 bis PW_V5 eingegeben."]
[null,"Hinweis: Das vorliegende Tool ermöglicht Vergleiche zwischen Personenwagen mit gleichem Nutzen. Unterschiedliche durchschnittliche Anzahl Insassen bei der Nutzung können folglich nicht abgebildet werden."]

{"sheet":"PW_V1","index":3,"n_rows":134,"n_cols":79,"rows_kept":134,"cut":false,"hidden":false,"merged":[[6,2,6,3],[16,7,16,8],[30,7,30,8],[90,1,90,5],[6,11,6,12],[30,48,30,63],[16,10,17,10],[16,12,17,12],[30,10,31,10],[30,12,31,12],[16,11,17,11],[30,11,31,11]]}
[null,"DATENEINGABE PERSONENWAGEN"]
[]
[null,"Angaben des Anbieters (mit Angebot abzugeben)"]
[]
[null,"Variante","V1"]
["K","Variantenbezeichnung (kurz)",null,null,null,null,"K","Rechenhilfe Treibstoffverbrauch"]
[null,"Variantenbeschreibung",null,null,null,null,null,"Energie-träger","Menge","kWh",null,"Umrechnungsfaktor in kWh(Heizwert)"]
[null,"Personenwagen, Treibstoffart","BITTE WÄHLEN",null,null,null,null,"CNG [kg]",null,{"$f":"I8*M8","v":0},null,"kWh/kg",13.81]
["K","Treibstoffverbrauch pro 100 km und Fahrzeug",null,"kWh/100km/Fahrzeug",null,null,null,"Benzin [Liter]",null,{"$f":"I9*M9","v":0},null,"kWh/Liter",8.7200000000000006]
[null,{"$f":"\"Treibstoffverbrauch (\"&VLOOKUP(C12,C123:G128,3,0)&\")\"","v":"Treibstoffverbrauch (Energieträger)"},{"$f":"C9/100*Fahrleistung_PW/1000","v":0},"MWh/a/Fahrzeug",null,null,null,"Diesel [Liter]",null,{"$f":"I10*M10","v":0},null,"kWh/Liter",9.91]
["K","Max. Leistungsbedarf (für Laden von Elektrofahrz.)",null,"kW"]
[null,"Antrieb Nummer",{"$f":"IF(ISBLANK(C8),0,VLOOKUP(C8,$B$123:$G$128,2,0))","v":0}]
[null,"Energieträger Nummer",{"$f":"IF(ISBLANK(C8),0,VLOOKUP(C8,$B$123:$F$128,3,0))","v":0}]
[]
["K","Förderbeiträge total",null,"CHF",null,null,null,null,null,null,"Rechenwerte",null,null,null,"Berechnungen",null,null,null,null,null,null,null,null,null,null,null,null,null,null,null,null,null,null,null,null,null,null,null,null,null,null,null,null,null,null,null,null,null,"Berechnungen"]
[null,null,null,null,null,null,null,null,null,null,null,null,null,null,null,"(Re)Investition in CHF im Jahr…",null,null,null,null,null,null,null,null,null,null,null,null,null,null,null,null,null,null,null,null,null,null,null,null,null,null,null,null,null,null,null,null,"Restwert nach Abschreibung am Ende des Jahres… (Berücksichtigt Reinvestition nach Ablauf der Lebensdauer)"]
[null,null,null,null,null,null,null,null,null,null,"Lebens-\ndauer [a]","Zwischen-resultate","Jährliche Ab-schreibung [CHF/a]",null,"Jahr",0,1,2,3,4,5,6,7,8,9,10,11,12,13,14,15,16,17,18,19,20,21,22,23,24,25,26,27,28,29,30,null,null,0,1,2,3,4,5,6,7,8,9,10,11,12,13,14,15,16,17,18,19,20,21,22,23,24,25,26,27,28,29,30]
["K","Investitionskosten","Beschreibung","Investition \n(alle Fahrz.) [CHF]","Lebensdauer [a]","Default überschreiben",null,null,null,null,null,null,null,null,"Kilometer",0,{"$f":"Q17*Fahrleistung_PW","v":0},0,0,0,0,0,0,0,0,0,0,0,0,0,0,0,0,0,0,0,0,0,0,0,0,0,0,0,0,0,"Restwert am Ende der Betrachtungszeit"]
["K","Fahrzeuge",null,null,10,null,{"$f":"IF(K19<Betrachtungszeit_PW,\"Achtung: es erfolgt eine Reinvestition\",\"\")","v":""},null,null,null,{"$f":"IF(ISNUMBER(F19),F19,IF(ISNUMBER(E19),E19,0))","v":10},null,null,null,{"$f":"B19","v":"Fahrzeuge"},{"$f":"D19","v":0},{"$f":"IF(Betrachtungszeit_PW<Q$17,0,IF(AND(P$17<>0,P$17/($K19)=INT(P$17/($K19))),$D19,0))","v":0},0,0,0,0,0,0,0,0,0,0,0,0,0,0,0,0,0,0,0,0,0,0,0,0,0,0,0,0,0,{"$f":"SUMIF($AW$17:$CA$17,Betrachtungszeit_PW,AW19:CA19)","v":0},null,{"$f":"$D19","v":0},{"$f":"MAX(AW19-$M26+Q19,0)","v":0},0,0,0,0,0,0,0,0,0,0,0,0,0,0,0,0,0,0,0,0,0,0,0,0,0,0,0,0,0]
[null,"Zubehör / Infrastruktur",null,null,10,null,null,null,null,null,10,null,{"$f":"1/K20*D20","v":0},null,{"$f":"B20&\": \"&C20","v":"Zubehör / Infrastruktur: "},0,{"$f":"IF(Betrachtungszeit_PW<Q$17,0,IF(AND(P$17<>0,P$17/($K20)=INT(P$17/($K20))),$D20,0))","v":0},0,0,0,0,0,0,0,0,0,0,0,0,0,0,0,0,0,0,0,0,0,0,0,0,0,0,0,0,0,0,null,{"$f":"$D20","v":0},{"$f":"AW20-$M20+Q20","v":0},{"$f":"AX20-$M20+R20","v":0},{"$f":"AY20-$M20+S20","v":0},{"$f":"AZ20-$M20+T20","v":0},{"$f":"BA20-$M20+U20","v":0},{"$f":"BB20-$M20+V20","v":0},{"$f":"BC20-$M20+W20","v":0},{"$f":"BD20-$M20+X20","v":0},{"$f":"BE20-$M20+Y20","v":0},{"$f":"BF20-$M20+Z20","v":0},{"$f":"BG20-$M20+AA20","v":0},{"$f":"BH20-$M20+AB20","v":0},{"$f":"BI20-$M20+AC20","v":0},{"$f":"BJ20-$M20+AD20","v":0},{"$f":"BK20-$M20+AE20","v":0},{"$f":"BL20-$M20+AF20","v":0},{"$f":"BM20-$M20+AG20","v":0},{"$f":"BN20-$M20+AH20","v":0},{"$f":"BO20-$M20+AI20","v":0},{"$f":"BP20-$M20+AJ20","v":0},{"$f":"BQ20-$M20+AK20","v":0},{"$f":"BR20-$M20+AL20","v":0},{"$f":"BS20-$M20+AM20","v":0},{"$f":"BT20-$M20+AN20","v":0},{"$f":"BU20-$M20+AO20","v":0},{"$f":"BV20-$M20+AP20","v":0},{"$f":"BW20-$M20+AQ20","v":0},{"$f":"BX20-$M20+AR20","v":0},{"$f":"BY20-$M20+AS20","v":0},{"$f":"BZ20-$M20+AT20","v":0}]
[null,"Zubehör / Infrastruktur",null,null,10,null,null,null,null,null,10,null,{"$f":"1/K21*D21","v":0},null,{"$f":"B21&\": \"&C21","v":"Zubehör / Infrastruktur: "},0,{"$f":"IF(Betrachtungszeit_PW<Q$17,0,IF(AND(P$17<>0,P$17/($K21)=INT(P$17/($K21))),$D21,0))","v":0},0,0,0,0,0,0,0,0,0,0,0,0,0,0,0,0,0,0,0,0,0,0,0,0,0,0,0,0,0,0,null,{"$f":"$D21","v":0},{"$f":"AW21-$M21+Q21","v":0},{"$f":"AX21-$M21+R21","v":0},{"$f":"AY21-$M21+S21","v":0},{"$f":"AZ21-$M21+T21","v":0},{"$f":"BA21-$M21+U21","v":0},{"$f":"BB21-$M21+V21","v":0},{"$f":"BC21-$M21+W21","v":0},{"$f":"BD21-$M21+X21","v":0},{"$f":"BE21-$M21+Y21","v":0},{"$f":"BF21-$M21+Z21","v":0},{"$f":"BG21-$M21+AA21","v":0},{"$f":"BH21-$M21+AB21","v":0},{"$f":"BI21-$M21+AC21","v":0},{"$f":"BJ21-$M21+AD21","v":0},{"$f":"BK21-$M21+AE21","v":0},{"$f":"BL21-$M21+AF21","v":0},{"$f":"BM21-$M21+AG21","v":0},{"$f":"BN21-$M21+AH21","v":0},{"$f":"BO21-$M21+AI21","v":0},{"$f":"BP21-$M21+AJ21","v":0},{"$f":"BQ21-$M21+AK21","v":0},{"$f":"BR21-$M21+AL21","v":0},{"$f":"BS21-$M21+AM21","v":0},{"$f":"BT21-$M21+AN21","v":0},{"$f":"BU21-$M21+AO21","v":0},{"$f":"BV21-$M21+AP21","v":0},{"$f":"BW21-$M21+AQ21","v":0},{"$f":"BX21-$M21+AR21","v":0},{"$f":"BY21-$M21+AS21","v":0},{"$f":"BZ21-$M21+AT21","v":0}]
[null,"Zubehör / Infrastruktur",null,null,10,null,null,null,null,null,10,null,{"$f":"1/K22*D22","v":0},null,"Zubehör / Infrastruktur: ",0,{"$f":"IF(Betrachtungszeit_PW<Q$17,0,IF(AND(P$17<>0,P$17/($K22)=INT(P$17/($K22))),$D22,0))","v":0},0,0,0,0,0,0,0,0,0,0,0,0,0,0,0,0,0,0,0,0,0,0,0,0,0,0,0,0,0,0,null,0,0,0,0,0,0,0,0,0,0,0,0,0,0,0,0,0,0,0,0,0,0,0,0,0,0,0,0,0,0,0]
[null,"Zubehör / Infrastruktur",null,null,10,null,null,null,null,null,10,null,{"$f":"1/K23*D23","v":0},null,"Zubehör / Infrastruktur: ",0,{"$f":"IF(Betrachtungszeit_PW<Q$17,0,IF(AND(P$17<>0,P$17/($K23)=INT(P$17/($K23))),$D23,0))","v":0},0,0,0,0,0,0,0,0,0,0,0,0,0,0,0,0,0,0,0,0,0,0,0,0,0,0,0,0,0,0,null,0,0,0,0,0,0,0,0,0,0,0,0,0,0,0,0,0,0,0,0,0,0,0,0,0,0,0,0,0,0,0]
[null,"Zubehör / Infrastruktur",null,null,10,null,null,null,null,null,10,null,{"$f":"1/K24*D24","v":0},null,"Zubehör / Infrastruktur: ",0,{"$f":"IF(Betrachtungszeit_PW<Q$17,0,IF(AND(P$17<>0,P$17/($K24)=INT(P$17/($K24))),$D24,0))","v":0},0,0,0,0,0,0,0,0,0,0,0,0,0,0,0,0,0,0,0,0,0,0,0,0,0,0,0,0,0,0,null,0,0,0,0,0,0,0,0,0,0,0,0,0,0,0,0,0,0,0,0,0,0,0,0,0,0,0,0,0,0,0]
[null,"Investitionskosten abzügl. \nFörderbeiträge total",null,"CHF",{"$f":"D19+SUM(D20:D24)-C15","v":0},null,null,null,null,null,null,{"$f":"E26*D19","v":0},null,null,"(Re)Investition abzüglich Restwert und Fördergeld",null,null,null,null,null,null,null,null,null,null,null,null,null,null,null,null,null,null,null,null,null,null,null,null,null,null,null,null,null,null,null,"Nettobarwert"]
["K","Wertminderung der Fahrzeuge pro Jahr aufgrund Lebensdauer",null,null,{"$f":"1/K19","v":0.1},null,null,null,null,null,null,null,{"$f":"L25+Fahrleistung_PW/10000*D19*L27","v":0},null,"(Re)Investition abzüglich Fördergeld",{"$f":"E25","v":0},{"$f":"SUM(Q19:Q24)","v":0},0,0,0,0,0,0,0,0,0,0,0,0,0,0,0,0,0,0,0,0,0,0,0,0,0,0,0,0,0]
["K","Zusätzliche Wertminderung pro 10'000 km",null,null,0.02,null,null,null,null,null,null,{"$f":"IF(ISNUMBER(F27),F27,IF(ISNUMBER(E27),E27,0))","v":0.02},null,null,"Restwert",{"$f":"IF(Betrachtungszeit_PW=P17,-($L$28+$E$29),0)","v":0},0,0,0,0,0,0,0,0,0,0,0,0,0,0,0,0,0,0,0,0,0,0,0,0,0,0,0,0,0,0]
["K","Restwert Fahrzeuge am Ende der Betrachtungszeit",null,"CHF",{"$f":"AU19","v":0},null,null,null,null,null,null,{"$f":"IF(ISNUMBER(F28),F28,E28)","v":0},null,null,"Kosten inkl. Preissteigerung",{"$f":"SUM(P26:P27)*(1+Inflationsindex)^P$17","v":0},0,0,0,0,0,0,0,0,0,0,0,0,0,0,0,0,0,0,0,0,0,0,0,0,0,0,0,0,0,0]
[null,"Restwert Zubehör am Ende der Betrachtungszeit",null,"CHF",{"$f":"SUM(AU20:AU24)","v":0},null,null,null,null,null,null,null,null,null,"Barwert",{"$f":"P28*(1+Kalkulationszinssatz)^-P$17","v":0},0,0,0,0,0,0,0,0,0,0,0,0,0,0,0,0,0,0,0,0,0,0,0,0,0,0,0,0,0,0,{"$f":"SUM(P29:AT29)","v":0}]
[]
["K","Ersatzteile / Verbrauchsmaterial mit erstmaliger Investition nach Lebensdauer",null,null,null,null,null,null,null,null,"Lebens-\ndauer [a]",null,"Jährliche Ab-schreibung [CHF/a]",null,"Ersatzteile",null,null,null,null,null,null,null,null,null,null,null,null,null,null,null,null,null,null,null,null,null,null,null,null,null,null,null,null,null,null,null,null,null,"Restwert nach Abschreibung am Ende des Jahres… (Berücksichtigt Reinvestition nach Ablauf der Lebensdauer)\nErsatzteile haben erst nach Ablauf der ersten Lebensdauer einen Restwert"]
[null,"1. Ersatzteile / Verbrauchsmaterial mit Lebensdauer in Jahren",null,null,"Lebensdauer [a]",null,null,null,null,null,null,null,null,null,{"$f":"B32","v":"1. Ersatzteile / Verbrauchsmaterial mit Lebensdauer in Jahren"},null,null,null,null,null,null,null,null,null,null,null,null,null,null,null,null,null,null,null,null,null,null,null,null,null,null,null,null,null,null,null,"Restwert am Ende der Betrachtungszeit"]
[null,"Weitere Ersatzteile",null,null,10,null,null,null,null,null,{"$f":"IF(ISNUMBER(F33),F33,IF(ISNUMBER(E33),E33,0))","v":10},null,{"$f":"1/K33*D33","v":0},null,{"$f":"B33&\": \"&C33","v":"Weitere Ersatzteile: "},0,{"$f":"IF(Betrachtungszeit_PW<Q$17,0,IF(AND(P$17<>0,P$17/($K33)=INT(P$17/($K33))),$D33,0))","v":0},0,0,0,0,0,0,0,0,0,0,0,0,0,0,0,0,0,0,0,0,0,0,0,0,0,0,0,0,0,{"$f":"SUMIF($AW$17:$CA$17,Betrachtungszeit_PW,AW33:CA33)","v":0},null,0,{"$f":"IF((AW33+Q33)=0,0,AW33-$M33+Q33)","v":0},{"$f":"IF((AX33+R33)=0,0,AX33-$M33+R33)","v":0},0,0,0,0,0,0,0,0,0,0,0,0,0,0,0,0,0,0,0,0,0,0,0,0,0,0,0,0]
[null,"Weitere Ersatzteile",null,null,10,null,null,null,null,null,{"$f":"IF(ISNUMBER(F34),F34,IF(ISNUMBER(E34),E34,0))","v":10},null,{"$f":"1/K34*D34","v":0},null,{"$f":"B34&\": \"&C34","v":"Weitere Ersatzteile: "},0,{"$f":"IF(Betrachtungszeit_PW<Q$17,0,IF(AND(P$17<>0,P$17/($K34)=INT(P$17/($K34))),$D34,0))","v":0},0,0,0,0,0,0,0,0,0,0,0,0,0,0,0,0,0,0,0,0,0,0,0,0,0,0,0,0,0,{"$f":"SUMIF($AW$17:$CA$17,Betrachtungszeit_PW,AW34:CA34)","v":0},null,0,{"$f":"IF((AW34+Q34)=0,0,AW34-$M34+Q34)","v":0},{"$f":"IF((AX34+R34)=0,0,AX34-$M34+R34)","v":0},{"$f":"IF((AY34+S34)=0,0,AY34-$M34+S34)","v":0},{"$f":"IF((AZ34+T34)=0,0,AZ34-$M34+T34)","v":0},{"$f":"IF((BA34+U34)=0,0,BA34-$M34+U34)","v":0},{"$f":"IF((BB34+V34)=0,0,BB34-$M34+V34)","v":0},{"$f":"IF((BC34+W34)=0,0,BC34-$M34+W34)","v":0},{"$f":"IF((BD34+X34)=0,0,BD34-$M34+X34)","v":0},{"$f":"IF((BE34+Y34)=0,0,BE34-$M34+Y34)","v":0},{"$f":"IF((BF34+Z34)=0,0,BF34-$M34+Z34)","v":0},{"$f":"IF((BG34+AA34)=0,0,BG34-$M34+AA34)","v":0},{"$f":"IF((BH34+AB34)=0,0,BH34-$M34+AB34)","v":0},{"$f":"IF((BI34+AC34)=0,0,BI34-$M34+AC34)","v":0},{"$f":"IF((BJ34+AD34)=0,0,BJ34-$M34+AD34)","v":0},{"$f":"IF((BK34+AE34)=0,0,BK34-$M34+AE34)","v":0},{"$f":"IF((BL34+AF34)=0,0,BL34-$M34+AF34)","v":0},{"$f":"IF((BM34+AG34)=0,0,BM34-$M34+AG34)","v":0},{"$f":"IF((BN34+AH34)=0,0,BN34-$M34+AH34)","v":0},{"$f":"IF((BO34+AI34)=0,0,BO34-$M34+AI34)","v":0},{"$f":"IF((BP34+AJ34)=0,0,BP34-$M34+AJ34)","v":0},{"$f":"IF((BQ34+AK34)=0,0,BQ34-$M34+AK34)","v":0},{"$f":"IF((BR34+AL34)=0,0,BR34-$M34+AL34)","v":0},{"$f":"IF((BS34+AM34)=0,0,BS34-$M34+AM34)","v":0},{"$f":"IF((BT34+AN34)=0,0,BT34-$M34+AN34)","v":0},{"$f":"IF((BU34+AO34)=0,0,BU34-$M34+AO34)","v":0},{"$f":"IF((BV34+AP34)=0,0,BV34-$M34+AP34)","v":0},{"$f":"IF((BW34+AQ34)=0,0,BW34-$M34+AQ34)","v":0},{"$f":"IF((BX34+AR34)=0,0,BX34-$M34+AR34)","v":0},{"$f":"IF((BY34+AS34)=0,0,BY34-$M34+AS34)","v":0},{"$f":"IF((BZ34+AT34)=0,0,BZ34-$M34+AT34)","v":0}]
[null,"Weitere Ersatzteile",null,null,10,null,null,null,null,null,{"$f":"IF(ISNUMBER(F35),F35,IF(ISNUMBER(E35),E35,0))","v":10},null,{"$f":"1/K35*D35","v":0},null,"Weitere Ersatzteile: ",0,{"$f":"IF(Betrachtungszeit_PW<Q$17,0,IF(AND(P$17<>0,P$17/($K35)=INT(P$17/($K35))),$D35,0))","v":0},0,0,0,0,0,0,0,0,0,0,0,0,0,0,0,0,0,0,0,0,0,0,0,0,0,0,0,0,0,{"$f":"SUMIF($AW$17:$CA$17,Betrachtungszeit_PW,AW35:CA35)","v":0},null,0,0,0,0,0,0,0,0,0,0,0,0,0,0,0,0,0,0,0,0,0,0,0,0,0,0,0,0,0,0,0]
[null,"Weitere Ersatzteile",null,null,10,null,null,null,null,null,{"$f":"IF(ISNUMBER(F36),F36,IF(ISNUMBER(E36),E36,0))","v":10},null,{"$f":"1/K36*D36","v":0},null,"Weitere Ersatzteile: ",0,{"$f":"IF(Betrachtungszeit_PW<Q$17,0,IF(AND(P$17<>0,P$17/($K36)=INT(P$17/($K36))),$D36,0))","v":0},0,0,0,0,0,0,0,0,0,0,0,0,0,0,0,0,0,0,0,0,0,0,0,0,0,0,0,0,0,{"$f":"SUMIF($AW$17:$CA$17,Betrachtungszeit_PW,AW36:CA36)","v":0},null,0,0,0,0,0,0,0,0,0,0,0,0,0,0,0,0,0,0,0,0,0,0,0,0,0,0,0,0,0,0,0]
[null,"Weitere Ersatzteile",null,null,10,null,null,null,null,null,{"$f":"IF(ISNUMBER(F37),F37,IF(ISNUMBER(E37),E37,0))","v":10},null,{"$f":"1/K37*D37","v":0},null,"Weitere Ersatzteile: ",0,{"$f":"IF(Betrachtungszeit_PW<Q$17,0,IF(AND(P$17<>0,P$17/($K37)=INT(P$17/($K37))),$D37,0))","v":0},0,0,0,0,0,0,0,0,0,0,0,0,0,0,0,0,0,0,0,0,0,0,0,0,0,0,0,0,0,{"$f":"SUMIF($AW$17:$CA$17,Betrachtungszeit_PW,AW37:CA37)","v":0},null,0,0,0,0,0,0,0,0,0,0,0,0,0,0,0,0,0,0,0,0,0,0,0,0,0,0,0,0,0,0,0]
[null,"2. Ersatzteile / Verbrauchsmaterial mit Lebensdauer in Kilometern",null,null,"Lebensdauer [km]",null,null,null,null,null,"Lebens-dauer [km]",null,null,null,"2. Ersatzteile / Verbrauchsmaterial mit Lebensdauer in Kilometern"]
["K","Ersatz-Reifen (Set)",null,null,30000,null,null,null,null,null,{"$f":"IF(ISNUMBER(F39),F39,IF(ISNUMBER(E39),E39,0))","v":30000},null,{"$f":"1/(K39/Fahrleistung_PW)*D39","v":{"$error":"#DIV/0!"}},null,{"$f":"B39&\": \"&C39","v":"Ersatz-Reifen (Set): "},0,{"$f":"IF(Betrachtungszeit_PW*Fahrleistung_PW<Q$18,0,IF(Q$18-(COUNTIF($P39:P39,\">0\")*$K39)>$K39,$D39,0))","v":0},{"$f":"IF(Betrachtungszeit_PW*Fahrleistung_PW<R$18,0,IF(R$18-(COUNTIF($P39:Q39,\">0\")*$K39)>$K39,$D39,0))","v":0},{"$f":"IF(Betrachtungszeit_PW*Fahrleistung_PW<S$18,0,IF(S$18-(COUNTIF($P39:R39,\">0\")*$K39)>$K39,$D39,0))","v":0},{"$f":"IF(Betrachtungszeit_PW*Fahrleistung_PW<T$18,0,IF(T$18-(COUNTIF($P39:S39,\">0\")*$K39)>$K39,$D39,0))","v":0},{"$f":"IF(Betrachtungszeit_PW*Fahrleistung_PW<U$18,0,IF(U$18-(COUNTIF($P39:T39,\">0\")*$K39)>$K39,$D39,0))","v":0},{"$f":"IF(Betrachtungszeit_PW*Fahrleistung_PW<V$18,0,IF(V$18-(COUNTIF($P39:U39,\">0\")*$K39)>$K39,$D39,0))","v":0},{"$f":"IF(Betrachtungszeit_PW*Fahrleistung_PW<W$18,0,IF(W$18-(COUNTIF($P39:V39,\">0\")*$K39)>$K39,$D39,0))","v":0},{"$f":"IF(Betrachtungszeit_PW*Fahrleistung_PW<X$18,0,IF(X$18-(COUNTIF($P39:W39,\">0\")*$K39)>$K39,$D39,0))","v":0},{"$f":"IF(Betrachtungszeit_PW*Fahrleistung_PW<Y$18,0,IF(Y$18-(COUNTIF($P39:X39,\">0\")*$K39)>$K39,$D39,0))","v":0},{"$f":"IF(Betrachtungszeit_PW*Fahrleistung_PW<Z$18,0,IF(Z$18-(COUNTIF($P39:Y39,\">0\")*$K39)>$K39,$D39,0))","v":0},{"$f":"IF(Betrachtungszeit_PW*Fahrleistung_PW<AA$18,0,IF(AA$18-(COUNTIF($P39:Z39,\">0\")*$K39)>$K39,$D39,0))","v":0},{"$f":"IF(Betrachtungszeit_PW*Fahrleistung_PW<AB$18,0,IF(AB$18-(COUNTIF($P39:AA39,\">0\")*$K39)>$K39,$D39,0))","v":0},{"$f":"IF(Betrachtungszeit_PW*Fahrleistung_PW<AC$18,0,IF(AC$18-(COUNTIF($P39:AB39,\">0\")*$K39)>$K39,$D39,0))","v":0},{"$f":"IF(Betrachtungszeit_PW*Fahrleistung_PW<AD$18,0,IF(AD$18-(COUNTIF($P39:AC39,\">0\")*$K39)>$K39,$D39,0))","v":0},{"$f":"IF(Betrachtungszeit_PW*Fahrleistung_PW<AE$18,0,IF(AE$18-(COUNTIF($P39:AD39,\">0\")*$K39)>$K39,$D39,0))","v":0},{"$f":"IF(Betrachtungszeit_PW*Fahrleistung_PW<AF$18,0,IF(AF$18-(COUNTIF($P39:AE39,\">0\")*$K39)>$K39,$D39,0))","v":0},{"$f":"IF(Betrachtungszeit_PW*Fahrleistung_PW<AG$18,0,IF(AG$18-(COUNTIF($P39:AF39,\">0\")*$K39)>$K39,$D39,0))","v":0},{"$f":"IF(Betrachtungszeit_PW*Fahrleistung_PW<AH$18,0,IF(AH$18-(COUNTIF($P39:AG39,\">0\")*$K39)>$K39,$D39,0))","v":0},{"$f":"IF(Betrachtungszeit_PW*Fahrleistung_PW<AI$18,0,IF(AI$18-(COUNTIF($P39:AH39,\">0\")*$K39)>$K39,$D39,0))","v":0},{"$f":"IF(Betrachtungszeit_PW*Fahrleistung_PW<AJ$18,0,IF(AJ$18-(COUNTIF($P39:AI39,\">0\")*$K39)>$K39,$D39,0))","v":0},{"$f":"IF(Betrachtungszeit_PW*Fahrleistung_PW<AK$18,0,IF(AK$18-(COUNTIF($P39:AJ39,\">0\")*$K39)>$K39,$D39,0))","v":0},{"$f":"IF(Betrachtungszeit_PW*Fahrleistung_PW<AL$18,0,IF(AL$18-(COUNTIF($P39:AK39,\">0\")*$K39)>$K39,$D39,0))","v":0},{"$f":"IF(Betrachtungszeit_PW*Fahrleistung_PW<AM$18,0,IF(AM$18-(COUNTIF($P39:AL39,\">0\")*$K39)>$K39,$D39,0))","v":0},{"$f":"IF(Betrachtungszeit_PW*Fahrleistung_PW<AN$18,0,IF(AN$18-(COUNTIF($P39:AM39,\">0\")*$K39)>$K39,$D39,0))","v":0},{"$f":"IF(Betrachtungszeit_PW*Fahrleistung_PW<AO$18,0,IF(AO$18-(COUNTIF($P39:AN39,\">0\")*$K39)>$K39,$D39,0))","v":0},{"$f":"IF(Betrachtungszeit_PW*Fahrleistung_PW<AP$18,0,IF(AP$18-(COUNTIF($P39:AO39,\">0\")*$K39)>$K39,$D39,0))","v":0},{"$f":"IF(Betrachtungszeit_PW*Fahrleistung_PW<AQ$18,0,IF(AQ$18-(COUNTIF($P39:AP39,\">0\")*$K39)>$K39,$D39,0))","v":0},{"$f":"IF(Betrachtungszeit_PW*Fahrleistung_PW<AR$18,0,IF(AR$18-(COUNTIF($P39:AQ39,\">0\")*$K39)>$K39,$D39,0))","v":0},{"$f":"IF(Betrachtungszeit_PW*Fahrleistung_PW<AS$18,0,IF(AS$18-(COUNTIF($P39:AR39,\">0\")*$K39)>$K39,$D39,0))","v":0},{"$f":"IF(Betrachtungszeit_PW*Fahrleistung_PW<AT$18,0,IF(AT$18-(COUNTIF($P39:AS39,\">0\")*$K39)>$K39,$D39,0))","v":0},{"$f":"SUMIF($AW$17:$CA$17,Betrachtungszeit_PW,AW39:CA39)","v":0},null,0,{"$f":"IF((AW39+Q39)=0,0,AW39-$M39+Q39)","v":0},{"$f":"IF((AX39+R39)=0,0,AX39-$M39+R39)","v":0},0,0,0,0,0,0,0,0,0,0,0,0,0,0,0,0,0,0,0,0,0,0,0,0,0,0,0,0]
["K","Ersatz-Batterie bei Elektrofahrzeugen",null,null,100000,null,null,null,null,null,100000,null,{"$error":"#DIV/0!"},null,{"$f":"B40&\": \"&C40","v":"Ersatz-Batterie bei Elektrofahrzeugen: "},0,{"$f":"IF(Betrachtungszeit_PW*Fahrleistung_PW<Q$18,0,IF(Q$18-(COUNTIF($P40:P40,\">0\")*$K40)>$K40,$D40,0))","v":0},{"$f":"IF(Betrachtungszeit_PW*Fahrleistung_PW<R$18,0,IF(R$18-(COUNTIF($P40:Q40,\">0\")*$K40)>$K40,$D40,0))","v":0},{"$f":"IF(Betrachtungszeit_PW*Fahrleistung_PW<S$18,0,IF(S$18-(COUNTIF($P40:R40,\">0\")*$K40)>$K40,$D40,0))","v":0},{"$f":"IF(Betrachtungszeit_PW*Fahrleistung_PW<T$18,0,IF(T$18-(COUNTIF($P40:S40,\">0\")*$K40)>$K40,$D40,0))","v":0},{"$f":"IF(Betrachtungszeit_PW*Fahrleistung_PW<U$18,0,IF(U$18-(COUNTIF($P40:T40,\">0\")*$K40)>$K40,$D40,0))","v":0},{"$f":"IF(Betrachtungszeit_PW*Fahrleistung_PW<V$18,0,IF(V$18-(COUNTIF($P40:U40,\">0\")*$K40)>$K40,$D40,0))","v":0},{"$f":"IF(Betrachtungszeit_PW*Fahrleistung_PW<W$18,0,IF(W$18-(COUNTIF($P40:V40,\">0\")*$K40)>$K40,$D40,0))","v":0},{"$f":"IF(Betrachtungszeit_PW*Fahrleistung_PW<X$18,0,IF(X$18-(COUNTIF($P40:W40,\">0\")*$K40)>$K40,$D40,0))","v":0},{"$f":"IF(Betrachtungszeit_PW*Fahrleistung_PW<Y$18,0,IF(Y$18-(COUNTIF($P40:X40,\">0\")*$K40)>$K40,$D40,0))","v":0},{"$f":"IF(Betrachtungszeit_PW*Fahrleistung_PW<Z$18,0,IF(Z$18-(COUNTIF($P40:Y40,\">0\")*$K40)>$K40,$D40,0))","v":0},{"$f":"IF(Betrachtungszeit_PW*Fahrleistung_PW<AA$18,0,IF(AA$18-(COUNTIF($P40:Z40,\">0\")*$K40)>$K40,$D40,0))","v":0},{"$f":"IF(Betrachtungszeit_PW*Fahrleistung_PW<AB$18,0,IF(AB$18-(COUNTIF($P40:AA40,\">0\")*$K40)>$K40,$D40,0))","v":0},{"$f":"IF(Betrachtungszeit_PW*Fahrleistung_PW<AC$18,0,IF(AC$18-(COUNTIF($P40:AB40,\">0\")*$K40)>$K40,$D40,0))","v":0},{"$f":"IF(Betrachtungszeit_PW*Fahrleistung_PW<AD$18,0,IF(AD$18-(COUNTIF($P40:AC40,\">0\")*$K40)>$K40,$D40,0))","v":0},{"$f":"IF(Betrachtungszeit_PW*Fahrleistung_PW<AE$18,0,IF(AE$18-(COUNTIF($P40:AD40,\">0\")*$K40)>$K40,$D40,0))","v":0},{"$f":"IF(Betrachtungszeit_PW*Fahrleistung_PW<AF$18,0,IF(AF$18-(COUNTIF($P40:AE40,\">0\")*$K40)>$K40,$D40,0))","v":0},{"$f":"IF(Betrachtungszeit_PW*Fahrleistung_PW<AG$18,0,IF(AG$18-(COUNTIF($P40:AF40,\">0\")*$K40)>$K40,$D40,0))","v":0},{"$f":"IF(Betrachtungszeit_PW*Fahrleistung_PW<AH$18,0,IF(AH$18-(COUNTIF($P40:AG40,\">0\")*$K40)>$K40,$D40,0))","v":0},{"$f":"IF(Betrachtungszeit_PW*Fahrleistung_PW<AI$18,0,IF(AI$18-(COUNTIF($P40:AH40,\">0\")*$K40)>$K40,$D40,0))","v":0},{"$f":"IF(Betrachtungszeit_PW*Fahrleistung_PW<AJ$18,0,IF(AJ$18-(COUNTIF($P40:AI40,\">0\")*$K40)>$K40,$D40,0))","v":0},{"$f":"IF(Betrachtungszeit_PW*Fahrleistung_PW<AK$18,0,IF(AK$18-(COUNTIF($P40:AJ40,\">0\")*$K40)>$K40,$D40,0))","v":0},{"$f":"IF(Betrachtungszeit_PW*Fahrleistung_PW<AL$18,0,IF(AL$18-(COUNTIF($P40:AK40,\">0\")*$K40)>$K40,$D40,0))","v":0},{"$f":"IF(Betrachtungszeit_PW*Fahrleistung_PW<AM$18,0,IF(AM$18-(COUNTIF($P40:AL40,\">0\")*$K40)>$K40,$D40,0))","v":0},{"$f":"IF(Betrachtungszeit_PW*Fahrleistung_PW<AN$18,0,IF(AN$18-(COUNTIF($P40:AM40,\">0\")*$K40)>$K40,$D40,0))","v":0},{"$f":"IF(Betrachtungszeit_PW*Fahrleistung_PW<AO$18,0,IF(AO$18-(COUNTIF($P40:AN40,\">0\")*$K40)>$K40,$D40,0))","v":0},{"$f":"IF(Betrachtungszeit_PW*Fahrleistung_PW<AP$18,0,IF(AP$18-(COUNTIF($P40:AO40,\">0\")*$K40)>$K40,$D40,0))","v":0},{"$f":"IF(Betrachtungszeit_PW*Fahrleistung_PW<AQ$18,0,IF(AQ$18-(COUNTIF($P40:AP40,\">0\")*$K40)>$K40,$D40,0))","v":0},{"$f":"IF(Betrachtungszeit_PW*Fahrleistung_PW<AR$18,0,IF(AR$18-(COUNTIF($P40:AQ40,\">0\")*$K40)>$K40,$D40,0))","v":0},{"$f":"IF(Betrachtungszeit_PW*Fahrleistung_PW<AS$18,0,IF(AS$18-(COUNTIF($P40:AR40,\">0\")*$K40)>$K40,$D40,0))","v":0},{"$f":"IF(Betrachtungszeit_PW*Fahrleistung_PW<AT$18,0,IF(AT$18-(COUNTIF($P40:AS40,\">0\")*$K40)>$K40,$D40,0))","v":0},0,null,0,{"$f":"IF((AW40+Q40)=0,0,AW40-$M40+Q40)","v":0},0,0,0,0,0,0,0,0,0,0,0,0,0,0,0,0,0,0,0,0,0,0,0,0,0,0,0,0,0]
[null,"Weitere Ersatzteile",null,null,150000,null,null,null,null,null,150000,null,{"$error":"#DIV/0!"},null,"Weitere Ersatzteile: ",0,{"$f":"IF(Betrachtungszeit_PW*Fahrleistung_PW<Q$18,0,IF(Q$18-(COUNTIF($P41:P41,\">0\")*$K41)>$K41,$D41,0))","v":0},{"$f":"IF(Betrachtungszeit_PW*Fahrleistung_PW<R$18,0,IF(R$18-(COUNTIF($P41:Q41,\">0\")*$K41)>$K41,$D41,0))","v":0},{"$f":"IF(Betrachtungszeit_PW*Fahrleistung_PW<S$18,0,IF(S$18-(COUNTIF($P41:R41,\">0\")*$K41)>$K41,$D41,0))","v":0},{"$f":"IF(Betrachtungszeit_PW*Fahrleistung_PW<T$18,0,IF(T$18-(COUNTIF($P41:S41,\">0\")*$K41)>$K41,$D41,0))","v":0},{"$f":"IF(Betrachtungszeit_PW*Fahrleistung_PW<U$18,0,IF(U$18-(COUNTIF($P41:T41,\">0\")*$K41)>$K41,$D41,0))","v":0},{"$f":"IF(Betrachtungszeit_PW*Fahrleistung_PW<V$18,0,IF(V$18-(COUNTIF($P41:U41,\">0\")*$K41)>$K41,$D41,0))","v":0},{"$f":"IF(Betrachtungszeit_PW*Fahrleistung_PW<W$18,0,IF(W$18-(COUNTIF($P41:V41,\">0\")*$K41)>$K41,$D41,0))","v":0},{"$f":"IF(Betrachtungszeit_PW*Fahrleistung_PW<X$18,0,IF(X$18-(COUNTIF($P41:W41,\">0\")*$K41)>$K41,$D41,0))","v":0},{"$f":"IF(Betrachtungszeit_PW*Fahrleistung_PW<Y$18,0,IF(Y$18-(COUNTIF($P41:X41,\">0\")*$K41)>$K41,$D41,0))","v":0},{"$f":"IF(Betrachtungszeit_PW*Fahrleistung_PW<Z$18,0,IF(Z$18-(COUNTIF($P41:Y41,\">0\")*$K41)>$K41,$D41,0))","v":0},{"$f":"IF(Betrachtungszeit_PW*Fahrleistung_PW<AA$18,0,IF(AA$18-(COUNTIF($P41:Z41,\">0\")*$K41)>$K41,$D41,0))","v":0},{"$f":"IF(Betrachtungszeit_PW*Fahrleistung_PW<AB$18,0,IF(AB$18-(COUNTIF($P41:AA41,\">0\")*$K41)>$K41,$D41,0))","v":0},{"$f":"IF(Betrachtungszeit_PW*Fahrleistung_PW<AC$18,0,IF(AC$18-(COUNTIF($P41:AB41,\">0\")*$K41)>$K41,$D41,0))","v":0},{"$f":"IF(Betrachtungszeit_PW*Fahrleistung_PW<AD$18,0,IF(AD$18-(COUNTIF($P41:AC41,\">0\")*$K41)>$K41,$D41,0))","v":0},{"$f":"IF(Betrachtungszeit_PW*Fahrleistung_PW<AE$18,0,IF(AE$18-(COUNTIF($P41:AD41,\">0\")*$K41)>$K41,$D41,0))","v":0},{"$f":"IF(Betrachtungszeit_PW*Fahrleistung_PW<AF$18,0,IF(AF$18-(COUNTIF($P41:AE41,\">0\")*$K41)>$K41,$D41,0))","v":0},{"$f":"IF(Betrachtungszeit_PW*Fahrleistung_PW<AG$18,0,IF(AG$18-(COUNTIF($P41:AF41,\">0\")*$K41)>$K41,$D41,0))","v":0},{"$f":"IF(Betrachtungszeit_PW*Fahrleistung_PW<AH$18,0,IF(AH$18-(COUNTIF($P41:AG41,\">0\")*$K41)>$K41,$D41,0))","v":0},{"$f":"IF(Betrachtungszeit_PW*Fahrleistung_PW<AI$18,0,IF(AI$18-(COUNTIF($P41:AH41,\">0\")*$K41)>$K41,$D41,0))","v":0},{"$f":"IF(Betrachtungszeit_PW*Fahrleistung_PW<AJ$18,0,IF(AJ$18-(COUNTIF($P41:AI41,\">0\")*$K41)>$K41,$D41,0))","v":0},{"$f":"IF(Betrachtungszeit_PW*Fahrleistung_PW<AK$18,0,IF(AK$18-(COUNTIF($P41:AJ41,\">0\")*$K41)>$K41,$D41,0))","v":0},{"$f":"IF(Betrachtungszeit_PW*Fahrleistung_PW<AL$18,0,IF(AL$18-(COUNTIF($P41:AK41,\">0\")*$K41)>$K41,$D41,0))","v":0},{"$f":"IF(Betrachtungszeit_PW*Fahrleistung_PW<AM$18,0,IF(AM$18-(COUNTIF($P41:AL41,\">0\")*$K41)>$K41,$D41,0))","v":0},{"$f":"IF(Betrachtungszeit_PW*Fahrleistung_PW<AN$18,0,IF(AN$18-(COUNTIF($P41:AM41,\">0\")*$K41)>$K41,$D41,0))","v":0},{"$f":"IF(Betrachtungszeit_PW*Fahrleistung_PW<AO$18,0,IF(AO$18-(COUNTIF($P41:AN41,\">0\")*$K41)>$K41,$D41,0))","v":0},{"$f":"IF(Betrachtungszeit_PW*Fahrleistung_PW<AP$18,0,IF(AP$18-(COUNTIF($P41:AO41,\">0\")*$K41)>$K41,$D41,0))","v":0},{"$f":"IF(Betrachtungszeit_PW*Fahrleistung_PW<AQ$18,0,IF(AQ$18-(COUNTIF($P41:AP41,\">0\")*$K41)>$K41,$D41,0))","v":0},{"$f":"IF(Betrachtungszeit_PW*Fahrleistung_PW<AR$18,0,IF(AR$18-(COUNTIF($P41:AQ41,\">0\")*$K41)>$K41,$D41,0))","v":0},{"$f":"IF(Betrachtungszeit_PW*Fahrleistung_PW<AS$18,0,IF(AS$18-(COUNTIF($P41:AR41,\">0\")*$K41)>$K41,$D41,0))","v":0},{"$f":"IF(Betrachtungszeit_PW*Fahrleistung_PW<AT$18,0,IF(AT$18-(COUNTIF($P41:AS41,\">0\")*$K41)>$K41,$D41,0))","v":0},0,null,0,0,0,0,0,0,0,0,0,0,0,0,0,0,0,0,0,0,0,0,0,0,0,0,0,0,0,0,0,0,0]
[null,"Weitere Ersatzteile",null,null,150000,null,null,null,null,null,150000,null,{"$error":"#DIV/0!"},null,"Weitere Ersatzteile: ",0,{"$f":"IF(Betrachtungszeit_PW*Fahrleistung_PW<Q$18,0,IF(Q$18-(COUNTIF($P42:P42,\">0\")*$K42)>$K42,$D42,0))","v":0},{"$f":"IF(Betrachtungszeit_PW*Fahrleistung_PW<R$18,0,IF(R$18-(COUNTIF($P42:Q42,\">0\")*$K42)>$K42,$D42,0))","v":0},{"$f":"IF(Betrachtungszeit_PW*Fahrleistung_PW<S$18,0,IF(S$18-(COUNTIF($P42:R42,\">0\")*$K42)>$K42,$D42,0))","v":0},{"$f":"IF(Betrachtungszeit_PW*Fahrleistung_PW<T$18,0,IF(T$18-(COUNTIF($P42:S42,\">0\")*$K42)>$K42,$D42,0))","v":0},{"$f":"IF(Betrachtungszeit_PW*Fahrleistung_PW<U$18,0,IF(U$18-(COUNTIF($P42:T42,\">0\")*$K42)>$K42,$D42,0))","v":0},{"$f":"IF(Betrachtungszeit_PW*Fahrleistung_PW<V$18,0,IF(V$18-(COUNTIF($P42:U42,\">0\")*$K42)>$K42,$D42,0))","v":0},{"$f":"IF(Betrachtungszeit_PW*Fahrleistung_PW<W$18,0,IF(W$18-(COUNTIF($P42:V42,\">0\")*$K42)>$K42,$D42,0))","v":0},{"$f":"IF(Betrachtungszeit_PW*Fahrleistung_PW<X$18,0,IF(X$18-(COUNTIF($P42:W42,\">0\")*$K42)>$K42,$D42,0))","v":0},{"$f":"IF(Betrachtungszeit_PW*Fahrleistung_PW<Y$18,0,IF(Y$18-(COUNTIF($P42:X42,\">0\")*$K42)>$K42,$D42,0))","v":0},{"$f":"IF(Betrachtungszeit_PW*Fahrleistung_PW<Z$18,0,IF(Z$18-(COUNTIF($P42:Y42,\">0\")*$K42)>$K42,$D42,0))","v":0},{"$f":"IF(Betrachtungszeit_PW*Fahrleistung_PW<AA$18,0,IF(AA$18-(COUNTIF($P42:Z42,\">0\")*$K42)>$K42,$D42,0))","v":0},{"$f":"IF(Betrachtungszeit_PW*Fahrleistung_PW<AB$18,0,IF(AB$18-(COUNTIF($P42:AA42,\">0\")*$K42)>$K42,$D42,0))","v":0},{"$f":"IF(Betrachtungszeit_PW*Fahrleistung_PW<AC$18,0,IF(AC$18-(COUNTIF($P42:AB42,\">0\")*$K42)>$K42,$D42,0))","v":0},{"$f":"IF(Betrachtungszeit_PW*Fahrleistung_PW<AD$18,0,IF(AD$18-(COUNTIF($P42:AC42,\">0\")*$K42)>$K42,$D42,0))","v":0},{"$f":"IF(Betrachtungszeit_PW*Fahrleistung_PW<AE$18,0,IF(AE$18-(COUNTIF($P42:AD42,\">0\")*$K42)>$K42,$D42,0))","v":0},{"$f":"IF(Betrachtungszeit_PW*Fahrleistung_PW<AF$18,0,IF(AF$18-(COUNTIF($P42:AE42,\">0\")*$K42)>$K42,$D42,0))","v":0},{"$f":"IF(Betrachtungszeit_PW*Fahrleistung_PW<AG$18,0,IF(AG$18-(COUNTIF($P42:AF42,\">0\")*$K42)>$K42,$D42,0))","v":0},{"$f":"IF(Betrachtungszeit_PW*Fahrleistung_PW<AH$18,0,IF(AH$18-(COUNTIF($P42:AG42,\">0\")*$K42)>$K42,$D42,0))","v":0},{"$f":"IF(Betrachtungszeit_PW*Fahrleistung_PW<AI$18,0,IF(AI$18-(COUNTIF($P42:AH42,\">0\")*$K42)>$K42,$D42,0))","v":0},{"$f":"IF(Betrachtungszeit_PW*Fahrleistung_PW<AJ$18,0,IF(AJ$18-(COUNTIF($P42:AI42,\">0\")*$K42)>$K42,$D42,0))","v":0},{"$f":"IF(Betrachtungszeit_PW*Fahrleistung_PW<AK$18,0,IF(AK$18-(COUNTIF($P42:AJ42,\">0\")*$K42)>$K42,$D42,0))","v":0},{"$f":"IF(Betrachtungszeit_PW*Fahrleistung_PW<AL$18,0,IF(AL$18-(COUNTIF($P42:AK42,\">0\")*$K42)>$K42,$D42,0))","v":0},{"$f":"IF(Betrachtungszeit_PW*Fahrleistung_PW<AM$18,0,IF(AM$18-(COUNTIF($P42:AL42,\">0\")*$K42)>$K42,$D42,0))","v":0},{"$f":"IF(Betrachtungszeit_PW*Fahrleistung_PW<AN$18,0,IF(AN$18-(COUNTIF($P42:AM42,\">0\")*$K42)>$K42,$D42,0))","v":0},{"$f":"IF(Betrachtungszeit_PW*Fahrleistung_PW<AO$18,0,IF(AO$18-(COUNTIF($P42:AN42,\">0\")*$K42)>$K42,$D42,0))","v":0},{"$f":"IF(Betrachtungszeit_PW*Fahrleistung_PW<AP$18,0,IF(AP$18-(COUNTIF($P42:AO42,\">0\")*$K42)>$K42,$D42,0))","v":0},{"$f":"IF(Betrachtungszeit_PW*Fahrleistung_PW<AQ$18,0,IF(AQ$18-(COUNTIF($P42:AP42,\">0\")*$K42)>$K42,$D42,0))","v":0},{"$f":"IF(Betrachtungszeit_PW*Fahrleistung_PW<AR$18,0,IF(AR$18-(COUNTIF($P42:AQ42,\">0\")*$K42)>$K42,$D42,0))","v":0},{"$f":"IF(Betrachtungszeit_PW*Fahrleistung_PW<AS$18,0,IF(AS$18-(COUNTIF($P42:AR42,\">0\")*$K42)>$K42,$D42,0))","v":0},{"$f":"IF(Betrachtungszeit_PW*Fahrleistung_PW<AT$18,0,IF(AT$18-(COUNTIF($P42:AS42,\">0\")*$K42)>$K42,$D42,0))","v":0},0,null,0,0,0,0,0,0,0,0,0,0,0,0,0,0,0,0,0,0,0,0,0,0,0,0,0,0,0,0,0,0,0]
[null,"Weitere Ersatzteile",null,null,150000,null,null,null,null,null,150000,null,{"$error":"#DIV/0!"},null,"Weitere Ersatzteile: ",0,{"$f":"IF(Betrachtungszeit_PW*Fahrleistung_PW<Q$18,0,IF(Q$18-(COUNTIF($P43:P43,\">0\")*$K43)>$K43,$D43,0))","v":0},{"$f":"IF(Betrachtungszeit_PW*Fahrleistung_PW<R$18,0,IF(R$18-(COUNTIF($P43:Q43,\">0\")*$K43)>$K43,$D43,0))","v":0},{"$f":"IF(Betrachtungszeit_PW*Fahrleistung_PW<S$18,0,IF(S$18-(COUNTIF($P43:R43,\">0\")*$K43)>$K43,$D43,0))","v":0},{"$f":"IF(Betrachtungszeit_PW*Fahrleistung_PW<T$18,0,IF(T$18-(COUNTIF($P43:S43,\">0\")*$K43)>$K43,$D43,0))","v":0},{"$f":"IF(Betrachtungszeit_PW*Fahrleistung_PW<U$18,0,IF(U$18-(COUNTIF($P43:T43,\">0\")*$K43)>$K43,$D43,0))","v":0},{"$f":"IF(Betrachtungszeit_PW*Fahrleistung_PW<V$18,0,IF(V$18-(COUNTIF($P43:U43,\">0\")*$K43)>$K43,$D43,0))","v":0},{"$f":"IF(Betrachtungszeit_PW*Fahrleistung_PW<W$18,0,IF(W$18-(COUNTIF($P43:V43,\">0\")*$K43)>$K43,$D43,0))","v":0},{"$f":"IF(Betrachtungszeit_PW*Fahrleistung_PW<X$18,0,IF(X$18-(COUNTIF($P43:W43,\">0\")*$K43)>$K43,$D43,0))","v":0},{"$f":"IF(Betrachtungszeit_PW*Fahrleistung_PW<Y$18,0,IF(Y$18-(COUNTIF($P43:X43,\">0\")*$K43)>$K43,$D43,0))","v":0},{"$f":"IF(Betrachtungszeit_PW*Fahrleistung_PW<Z$18,0,IF(Z$18-(COUNTIF($P43:Y43,\">0\")*$K43)>$K43,$D43,0))","v":0},{"$f":"IF(Betrachtungszeit_PW*Fahrleistung_PW<AA$18,0,IF(AA$18-(COUNTIF($P43:Z43,\">0\")*$K43)>$K43,$D43,0))","v":0},{"$f":"IF(Betrachtungszeit_PW*Fahrleistung_PW<AB$18,0,IF(AB$18-(COUNTIF($P43:AA43,\">0\")*$K43)>$K43,$D43,0))","v":0},{"$f":"IF(Betrachtungszeit_PW*Fahrleistung_PW<AC$18,0,IF(AC$18-(COUNTIF($P43:AB43,\">0\")*$K43)>$K43,$D43,0))","v":0},{"$f":"IF(Betrachtungszeit_PW*Fahrleistung_PW<AD$18,0,IF(AD$18-(COUNTIF($P43:AC43,\">0\")*$K43)>$K43,$D43,0))","v":0},{"$f":"IF(Betrachtungszeit_PW*Fahrleistung_PW<AE$18,0,IF(AE$18-(COUNTIF($P43:AD43,\">0\")*$K43)>$K43,$D43,0))","v":0},{"$f":"IF(Betrachtungszeit_PW*Fahrleistung_PW<AF$18,0,IF(AF$18-(COUNTIF($P43:AE43,\">0\")*$K43)>$K43,$D43,0))","v":0},{"$f":"IF(Betrachtungszeit_PW*Fahrleistung_PW<AG$18,0,IF(AG$18-(COUNTIF($P43:AF43,\">0\")*$K43)>$K43,$D43,0))","v":0},{"$f":"IF(Betrachtungszeit_PW*Fahrleistung_PW<AH$18,0,IF(AH$18-(COUNTIF($P43:AG43,\">0\")*$K43)>$K43,$D43,0))","v":0},{"$f":"IF(Betrachtungszeit_PW*Fahrleistung_PW<AI$18,0,IF(AI$18-(COUNTIF($P43:AH43,\">0\")*$K43)>$K43,$D43,0))","v":0},{"$f":"IF(Betrachtungszeit_PW*Fahrleistung_PW<AJ$18,0,IF(AJ$18-(COUNTIF($P43:AI43,\">0\")*$K43)>$K43,$D43,0))","v":0},{"$f":"IF(Betrachtungszeit_PW*Fahrleistung_PW<AK$18,0,IF(AK$18-(COUNTIF($P43:AJ43,\">0\")*$K43)>$K43,$D43,0))","v":0},{"$f":"IF(Betrachtungszeit_PW*Fahrleistung_PW<AL$18,0,IF(AL$18-(COUNTIF($P43:AK43,\">0\")*$K43)>$K43,$D43,0))","v":0},{"$f":"IF(Betrachtungszeit_PW*Fahrleistung_PW<AM$18,0,IF(AM$18-(COUNTIF($P43:AL43,\">0\")*$K43)>$K43,$D43,0))","v":0},{"$f":"IF(Betrachtungszeit_PW*Fahrleistung_PW<AN$18,0,IF(AN$18-(COUNTIF($P43:AM43,\">0\")*$K43)>$K43,$D43,0))","v":0},{"$f":"IF(Betrachtungszeit_PW*Fahrleistung_PW<AO$18,0,IF(AO$18-(COUNTIF($P43:AN43,\">0\")*$K43)>$K43,$D43,0))","v":0},{"$f":"IF(Betrachtungszeit_PW*Fahrleistung_PW<AP$18,0,IF(AP$18-(COUNTIF($P43:AO43,\">0\")*$K43)>$K43,$D43,0))","v":0},{"$f":"IF(Betrachtungszeit_PW*Fahrleistung_PW<AQ$18,0,IF(AQ$18-(COUNTIF($P43:AP43,\">0\")*$K43)>$K43,$D43,0))","v":0},{"$f":"IF(Betrachtungszeit_PW*Fahrleistung_PW<AR$18,0,IF(AR$18-(COUNTIF($P43:AQ43,\">0\")*$K43)>$K43,$D43,0))","v":0},{"$f":"IF(Betrachtungszeit_PW*Fahrleistung_PW<AS$18,0,IF(AS$18-(COUNTIF($P43:AR43,\">0\")*$K43)>$K43,$D43,0))","v":0},{"$f":"IF(Betrachtungszeit_PW*Fahrleistung_PW<AT$18,0,IF(AT$18-(COUNTIF($P43:AS43,\">0\")*$K43)>$K43,$D43,0))","v":0},0,null,0,0,0,0,0,0,0,0,0,0,0,0,0,0,0,0,0,0,0,0,0,0,0,0,0,0,0,0,0,0,0]
[null,"Weitere Ersatzteile",null,null,150000,null,null,null,null,null,150000,null,{"$error":"#DIV/0!"},null,"Weitere Ersatzteile: ",0,{"$f":"IF(Betrachtungszeit_PW*Fahrleistung_PW<Q$18,0,IF(Q$18-(COUNTIF($P44:P44,\">0\")*$K44)>$K44,$D44,0))","v":0},{"$f":"IF(Betrachtungszeit_PW*Fahrleistung_PW<R$18,0,IF(R$18-(COUNTIF($P44:Q44,\">0\")*$K44)>$K44,$D44,0))","v":0},{"$f":"IF(Betrachtungszeit_PW*Fahrleistung_PW<S$18,0,IF(S$18-(COUNTIF($P44:R44,\">0\")*$K44)>$K44,$D44,0))","v":0},{"$f":"IF(Betrachtungszeit_PW*Fahrleistung_PW<T$18,0,IF(T$18-(COUNTIF($P44:S44,\">0\")*$K44)>$K44,$D44,0))","v":0},{"$f":"IF(Betrachtungszeit_PW*Fahrleistung_PW<U$18,0,IF(U$18-(COUNTIF($P44:T44,\">0\")*$K44)>$K44,$D44,0))","v":0},{"$f":"IF(Betrachtungszeit_PW*Fahrleistung_PW<V$18,0,IF(V$18-(COUNTIF($P44:U44,\">0\")*$K44)>$K44,$D44,0))","v":0},{"$f":"IF(Betrachtungszeit_PW*Fahrleistung_PW<W$18,0,IF(W$18-(COUNTIF($P44:V44,\">0\")*$K44)>$K44,$D44,0))","v":0},{"$f":"IF(Betrachtungszeit_PW*Fahrleistung_PW<X$18,0,IF(X$18-(COUNTIF($P44:W44,\">0\")*$K44)>$K44,$D44,0))","v":0},{"$f":"IF(Betrachtungszeit_PW*Fahrleistung_PW<Y$18,0,IF(Y$18-(COUNTIF($P44:X44,\">0\")*$K44)>$K44,$D44,0))","v":0},{"$f":"IF(Betrachtungszeit_PW*Fahrleistung_PW<Z$18,0,IF(Z$18-(COUNTIF($P44:Y44,\">0\")*$K44)>$K44,$D44,0))","v":0},{"$f":"IF(Betrachtungszeit_PW*Fahrleistung_PW<AA$18,0,IF(AA$18-(COUNTIF($P44:Z44,\">0\")*$K44)>$K44,$D44,0))","v":0},{"$f":"IF(Betrachtungszeit_PW*Fahrleistung_PW<AB$18,0,IF(AB$18-(COUNTIF($P44:AA44,\">0\")*$K44)>$K44,$D44,0))","v":0},{"$f":"IF(Betrachtungszeit_PW*Fahrleistung_PW<AC$18,0,IF(AC$18-(COUNTIF($P44:AB44,\">0\")*$K44)>$K44,$D44,0))","v":0},{"$f":"IF(Betrachtungszeit_PW*Fahrleistung_PW<AD$18,0,IF(AD$18-(COUNTIF($P44:AC44,\">0\")*$K44)>$K44,$D44,0))","v":0},{"$f":"IF(Betrachtungszeit_PW*Fahrleistung_PW<AE$18,0,IF(AE$18-(COUNTIF($P44:AD44,\">0\")*$K44)>$K44,$D44,0))","v":0},{"$f":"IF(Betrachtungszeit_PW*Fahrleistung_PW<AF$18,0,IF(AF$18-(COUNTIF($P44:AE44,\">0\")*$K44)>$K44,$D44,0))","v":0},{"$f":"IF(Betrachtungszeit_PW*Fahrleistung_PW<AG$18,0,IF(AG$18-(COUNTIF($P44:AF44,\">0\")*$K44)>$K44,$D44,0))","v":0},{"$f":"IF(Betrachtungszeit_PW*Fahrleistung_PW<AH$18,0,IF(AH$18-(COUNTIF($P44:AG44,\">0\")*$K44)>$K44,$D44,0))","v":0},{"$f":"IF(Betrachtungszeit_PW*Fahrleistung_PW<AI$18,0,IF(AI$18-(COUNTIF($P44:AH44,\">0\")*$K44)>$K44,$D44,0))","v":0},{"$f":"IF(Betrachtungszeit_PW*Fahrleistung_PW<AJ$18,0,IF(AJ$18-(COUNTIF($P44:AI44,\">0\")*$K44)>$K44,$D44,0))","v":0},{"$f":"IF(Betrachtungszeit_PW*Fahrleistung_PW<AK$18,0,IF(AK$18-(COUNTIF($P44:AJ44,\">0\")*$K44)>$K44,$D44,0))","v":0},{"$f":"IF(Betrachtungszeit_PW*Fahrleistung_PW<AL$18,0,IF(AL$18-(COUNTIF($P44:AK44,\">0\")*$K44)>$K44,$D44,0))","v":0},{"$f":"IF(Betrachtungszeit_PW*Fahrleistung_PW<AM$18,0,IF(AM$18-(COUNTIF($P44:AL44,\">0\")*$K44)>$K44,$D44,0))","v":0},{"$f":"IF(Betrachtungszeit_PW*Fahrleistung_PW<AN$18,0,IF(AN$18-(COUNTIF($P44:AM44,\">0\")*$K44)>$K44,$D44,0))","v":0},{"$f":"IF(Betrachtungszeit_PW*Fahrleistung_PW<AO$18,0,IF(AO$18-(COUNTIF($P44:AN44,\">0\")*$K44)>$K44,$D44,0))","v":0},{"$f":"IF(Betrachtungszeit_PW*Fahrleistung_PW<AP$18,0,IF(AP$18-(COUNTIF($P44:AO44,\">0\")*$K44)>$K44,$D44,0))","v":0},{"$f":"IF(Betrachtungszeit_PW*Fahrleistung_PW<AQ$18,0,IF(AQ$18-(COUNTIF($P44:AP44,\">0\")*$K44)>$K44,$D44,0))","v":0},{"$f":"IF(Betrachtungszeit_PW*Fahrleistung_PW<AR$18,0,IF(AR$18-(COUNTIF($P44:AQ44,\">0\")*$K44)>$K44,$D44,0))","v":0},{"$f":"IF(Betrachtungszeit_PW*Fahrleistung_PW<AS$18,0,IF(AS$18-(COUNTIF($P44:AR44,\">0\")*$K44)>$K44,$D44,0))","v":0},{"$f":"IF(Betrachtungszeit_PW*Fahrleistung_PW<AT$18,0,IF(AT$18-(COUNTIF($P44:AS44,\">0\")*$K44)>$K44,$D44,0))","v":0},0,null,0,0,0,0,0,0,0,0,0,0,0,0,0,0,0,0,0,0,0,0,0,0,0,0,0,0,0,0,0,0,0]
[null,"Weitere Ersatzteile",null,null,150000,null,null,null,null,null,150000,null,{"$error":"#DIV/0!"},null,"Weitere Ersatzteile: ",0,{"$f":"IF(Betrachtungszeit_PW*Fahrleistung_PW<Q$18,0,IF(Q$18-(COUNTIF($P45:P45,\">0\")*$K45)>$K45,$D45,0))","v":0},{"$f":"IF(Betrachtungszeit_PW*Fahrleistung_PW<R$18,0,IF(R$18-(COUNTIF($P45:Q45,\">0\")*$K45)>$K45,$D45,0))","v":0},{"$f":"IF(Betrachtungszeit_PW*Fahrleistung_PW<S$18,0,IF(S$18-(COUNTIF($P45:R45,\">0\")*$K45)>$K45,$D45,0))","v":0},{"$f":"IF(Betrachtungszeit_PW*Fahrleistung_PW<T$18,0,IF(T$18-(COUNTIF($P45:S45,\">0\")*$K45)>$K45,$D45,0))","v":0},{"$f":"IF(Betrachtungszeit_PW*Fahrleistung_PW<U$18,0,IF(U$18-(COUNTIF($P45:T45,\">0\")*$K45)>$K45,$D45,0))","v":0},{"$f":"IF(Betrachtungszeit_PW*Fahrleistung_PW<V$18,0,IF(V$18-(COUNTIF($P45:U45,\">0\")*$K45)>$K45,$D45,0))","v":0},{"$f":"IF(Betrachtungszeit_PW*Fahrleistung_PW<W$18,0,IF(W$18-(COUNTIF($P45:V45,\">0\")*$K45)>$K45,$D45,0))","v":0},{"$f":"IF(Betrachtungszeit_PW*Fahrleistung_PW<X$18,0,IF(X$18-(COUNTIF($P45:W45,\">0\")*$K45)>$K45,$D45,0))","v":0},{"$f":"IF(Betrachtungszeit_PW*Fahrleistung_PW<Y$18,0,IF(Y$18-(COUNTIF($P45:X45,\">0\")*$K45)>$K45,$D45,0))","v":0},{"$f":"IF(Betrachtungszeit_PW*Fahrleistung_PW<Z$18,0,IF(Z$18-(COUNTIF($P45:Y45,\">0\")*$K45)>$K45,$D45,0))","v":0},{"$f":"IF(Betrachtungszeit_PW*Fahrleistung_PW<AA$18,0,IF(AA$18-(COUNTIF($P45:Z45,\">0\")*$K45)>$K45,$D45,0))","v":0},{"$f":"IF(Betrachtungszeit_PW*Fahrleistung_PW<AB$18,0,IF(AB$18-(COUNTIF($P45:AA45,\">0\")*$K45)>$K45,$D45,0))","v":0},{"$f":"IF(Betrachtungszeit_PW*Fahrleistung_PW<AC$18,0,IF(AC$18-(COUNTIF($P45:AB45,\">0\")*$K45)>$K45,$D45,0))","v":0},{"$f":"IF(Betrachtungszeit_PW*Fahrleistung_PW<AD$18,0,IF(AD$18-(COUNTIF($P45:AC45,\">0\")*$K45)>$K45,$D45,0))","v":0},{"$f":"IF(Betrachtungszeit_PW*Fahrleistung_PW<AE$18,0,IF(AE$18-(COUNTIF($P45:AD45,\">0\")*$K45)>$K45,$D45,0))","v":0},{"$f":"IF(Betrachtungszeit_PW*Fahrleistung_PW<AF$18,0,IF(AF$18-(COUNTIF($P45:AE45,\">0\")*$K45)>$K45,$D45,0))","v":0},{"$f":"IF(Betrachtungszeit_PW*Fahrleistung_PW<AG$18,0,IF(AG$18-(COUNTIF($P45:AF45,\">0\")*$K45)>$K45,$D45,0))","v":0},{"$f":"IF(Betrachtungszeit_PW*Fahrleistung_PW<AH$18,0,IF(AH$18-(COUNTIF($P45:AG45,\">0\")*$K45)>$K45,$D45,0))","v":0},{"$f":"IF(Betrachtungszeit_PW*Fahrleistung_PW<AI$18,0,IF(AI$18-(COUNTIF($P45:AH45,\">0\")*$K45)>$K45,$D45,0))","v":0},{"$f":"IF(Betrachtungszeit_PW*Fahrleistung_PW<AJ$18,0,IF(AJ$18-(COUNTIF($P45:AI45,\">0\")*$K45)>$K45,$D45,0))","v":0},{"$f":"IF(Betrachtungszeit_PW*Fahrleistung_PW<AK$18,0,IF(AK$18-(COUNTIF($P45:AJ45,\">0\")*$K45)>$K45,$D45,0))","v":0},{"$f":"IF(Betrachtungszeit_PW*Fahrleistung_PW<AL$18,0,IF(AL$18-(COUNTIF($P45:AK45,\">0\")*$K45)>$K45,$D45,0))","v":0},{"$f":"IF(Betrachtungszeit_PW*Fahrleistung_PW<AM$18,0,IF(AM$18-(COUNTIF($P45:AL45,\">0\")*$K45)>$K45,$D45,0))","v":0},{"$f":"IF(Betrachtungszeit_PW*Fahrleistung_PW<AN$18,0,IF(AN$18-(COUNTIF($P45:AM45,\">0\")*$K45)>$K45,$D45,0))","v":0},{"$f":"IF(Betrachtungszeit_PW*Fahrleistung_PW<AO$18,0,IF(AO$18-(COUNTIF($P45:AN45,\">0\")*$K45)>$K45,$D45,0))","v":0},{"$f":"IF(Betrachtungszeit_PW*Fahrleistung_PW<AP$18,0,IF(AP$18-(COUNTIF($P45:AO45,\">0\")*$K45)>$K45,$D45,0))","v":0},{"$f":"IF(Betrachtungszeit_PW*Fahrleistung_PW<AQ$18,0,IF(AQ$18-(COUNTIF($P45:AP45,\">0\")*$K45)>$K45,$D45,0))","v":0},{"$f":"IF(Betrachtungszeit_PW*Fahrleistung_PW<AR$18,0,IF(AR$18-(COUNTIF($P45:AQ45,\">0\")*$K45)>$K45,$D45,0))","v":0},{"$f":"IF(Betrachtungszeit_PW*Fahrleistung_PW<AS$18,0,IF(AS$18-(COUNTIF($P45:AR45,\">0\")*$K45)>$K45,$D45,0))","v":0},{"$f":"IF(Betrachtungszeit_PW*Fahrleistung_PW<AT$18,0,IF(AT$18-(COUNTIF($P45:AS45,\">0\")*$K45)>$K45,$D45,0))","v":0},0,null,0,0,0,0,0,0,0,0,0,0,0,0,0,0,0,0,0,0,0,0,0,0,0,0,0,0,0,0,0,0,0]
[null,"Restwert Ersatzteile am Ende der Betrachtungszeit","CHF",{"$f":"SUM(AU33:AU45)","v":0},null,null,null,null,null,null,null,null,null,null,"Kosten Ersatzteile abzüglich Restwert",null,null,null,null,null,null,null,null,null,null,null,null,null,null,null,null,null,null,null,null,null,null,null,null,null,null,null,null,null,null,null,"Nettobarwert"]
[null,null,null,null,null,null,null,null,null,null,null,null,null,null,"Kosten Ersatzteile",{"$f":"SUM(P33:P37,P39:P45)","v":0},{"$f":"SUM(Q33:Q37,Q39:Q45)","v":0},0,0,0,0,0,0,0,0,0,0,0,0,0,0,0,0,0,0,0,0,0,0,0,0,0,0,0,0,0]
[null,null,null,null,null,null,null,null,null,null,null,null,null,null,"Restwert Ersatzteile",{"$f":"IF(Betrachtungszeit_PW=P17,-$D$46,0)","v":0},0,0,0,0,0,0,0,0,0,0,0,0,0,0,0,0,0,0,0,0,0,0,0,0,0,0,0,0,0,0]
[null,"Service- und Reparaturkosten","Beschreibung","Kosten \n(alle Fahrz.) [CHF/a]",null,null,null,null,null,null,null,null,null,null,"Kosten inkl. Preissteigerung",{"$f":"SUM(P47:P48)*(1+Inflationsindex)^P$17","v":0},0,0,0,0,0,0,0,0,0,0,0,0,0,0,0,0,0,0,0,0,0,0,0,0,0,0,0,0,0,0]
[null,"Servicekosten",null,null,null,null,null,null,null,null,null,null,null,null,"Barwert",{"$f":"P49*(1+Kalkulationszinssatz)^-P$17","v":0},0,0,0,0,0,0,0,0,0,0,0,0,0,0,0,0,0,0,0,0,0,0,0,0,0,0,0,0,0,0,{"$f":"SUM(P50:AT50)","v":0}]
[null,"Reperaturkosten"]
[null,"Weitere jährliche Service- und Reparaturkosten"]
[null,"Weitere jährliche Service- und Reparaturkosten"]
[null,"Weitere jährliche Service- und Reparaturkosten"]
[null,"Total",null,{"$f":"SUM(D50:D54)","v":0},null,null,null,null,null,null,null,null,null,null,"Service- und Reparaturkosten",null,null,null,null,null,null,null,null,null,null,null,null,null,null,null,null,null,null,null,null,null,null,null,null,null,null,null,null,null,null,null,"Nettobarwert"]
[null,null,null,null,null,null,null,null,null,null,null,null,null,null,"Kosten inkl. Preissteigerung",0,{"$f":"IF(Q$17<=Betrachtungszeit_PW,D55+D55*Inflationsindex,0)","v":0},{"$f":"IF(R$17<=Betrachtungszeit_PW,Q56+Q56*Inflationsindex,0)","v":0},0,0,0,0,0,0,0,0,0,0,0,0,0,0,0,0,0,0,0,0,0,0,0,0,0,0,0,0]
["K","Betriebskosten",null,null,null,null,null,null,null,null,null,null,null,null,"Barwert",0,{"$f":"Q56*(1+Kalkulationszinssatz)^-Q$17","v":0},0,0,0,0,0,0,0,0,0,0,0,0,0,0,0,0,0,0,0,0,0,0,0,0,0,0,0,0,0,{"$f":"SUM(P57:AT57)","v":0}]
[null,"Verkehrssteuer"]
[null,"Haftpflicht-Versicherung"]
[null,"Kasko-Versicherung"]
[null,"Weitere Versicherungen"]
[null,"Pannenhilfe, Assistance"]
[null,"Garagierungskosten"]
[null,"Autobahnvignette"]
[null,"Strassenbenützungsgebühren"]
[null,"Mitgliedsbeiträge"]
[null,"Nebenauslagen"]
[null,"Fahrzeugpflege"]
[null,"Weitere jährliche Betriebskosten",null,null,null,null,null,null,null,null,null,null,null,null,"Betriebskosten",null,null,null,null,null,null,null,null,null,null,null,null,null,null,null,null,null,null,null,null,null,null,null,null,null,null,null,null,null,null,null,"Nettobarwert"]
[null,"Weitere jährliche Betriebskosten",null,null,null,null,null,null,null,null,null,null,null,null,"Kosten inkl. Preissteigerung",0,{"$f":"IF(Q$17<=Betrachtungszeit_PW,D72+D72*Inflationsindex,0)","v":0},{"$f":"IF(R$17<=Betrachtungszeit_PW,Q70+Q70*Inflationsindex,0)","v":0},0,0,0,0,0,0,0,0,0,0,0,0,0,0,0,0,0,0,0,0,0,0,0,0,0,0,0,0]
[null,"Weitere jährliche Betriebskosten",null,null,null,null,null,null,null,null,null,null,null,null,"Barwert",0,{"$f":"Q70*(1+Kalkulationszinssatz)^-Q$17","v":0},0,0,0,0,0,0,0,0,0,0,0,0,0,0,0,0,0,0,0,0,0,0,0,0,0,0,0,0,0,{"$f":"SUM(P71:AT71)","v":0}]
[null,"Total",null,{"$f":"SUM(D58:D71)","v":0}]
[]
[null,"Energie- und Ladekosten",{"$f":"\"Treibstoff:\n \"&$C$8","v":"Treibstoff:\n BITTE WÄHLEN"},"Total",null,null,null,null,null,null,null,null,null,null,"Energie- und Ladekosten",null,null,null,null,null,null,null,null,null,null,null,null,null,null,null,null,null,null,null,null,null,null,null,null,null,null,null,null,null,null,null,"Nettobarwert"]
["K","Leistungskosten (eigene Ladestation)",{"$f":"IF(C13=13,C11*12,0)*VLOOKUP(C13,Input_Generell!$W$9:$AB$22,2,0)","v":0},{"$f":"SUM(C75:C75)","v":0},"CHF/a",null,null,null,null,null,null,null,null,null,"Leistungskosten (eigene Ladestation) inkl. Energiepreissteigerung",0,{"$f":"IF(Q$17<=Betrachtungszeit_PW,$D$75*(1+Energiepreissteigerung),0)","v":0},{"$f":"IF(R$17<=Betrachtungszeit_PW,Q75*(1+Energiepreissteigerung),0)","v":0},0,0,0,0,0,0,0,0,0,0,0,0,0,0,0,0,0,0,0,0,0,0,0,0,0,0,0,0]
["K","Energiekosten (eigene Ladestation)",{"$f":"IF(C13=13,Anteil_Intern*C10*Stückzahl_PW*1000*(Anteil_HT*StrompreisHT/100+Anteil_NT*StrompreisNT/100),0)","v":0},{"$f":"SUM(C76:C76)","v":0},"CHF/a",null,null,null,null,null,null,null,null,null,"Energiekosten (eigene Ladestation) inkl. Energiepreissteigerung",0,{"$f":"IF(Q$17<=Betrachtungszeit_PW,$D$76*(1+Energiepreissteigerung),0)","v":0},{"$f":"IF(R$17<=Betrachtungszeit_PW,Q76*(1+Energiepreissteigerung),0)","v":0},0,0,0,0,0,0,0,0,0,0,0,0,0,0,0,0,0,0,0,0,0,0,0,0,0,0,0,0]
[null,"Energiekosten (externes Tanken/Laden)",{"$f":"IF(C13=13,Anteil_Extern*Verbrauchsbasiert_Preis/100*C10*Stückzahl_PW*1000,VLOOKUP(C13,Input_Generell!$W$9:$AB$22,3,0)/100*C10*Stückzahl_PW*1000)","v":0},{"$f":"SUM(C77:C77)","v":0},"CHF/a",null,null,null,null,null,null,null,null,null,"Energiekosten (externes Tanken/Laden) inkl. Energiepreissteigerung",0,{"$f":"IF(Q$17<=Betrachtungszeit_PW,$D$77*(1+Energiepreissteigerung),0)","v":0},{"$f":"IF(R$17<=Betrachtungszeit_PW,Q77*(1+Energiepreissteigerung),0)","v":0},0,0,0,0,0,0,0,0,0,0,0,0,0,0,0,0,0,0,0,0,0,0,0,0,0,0,0,0]
["K","Strompreisunabhängige Ladekosten (externes Laden)",{"$f":"IF(C13=13,Input_Generell!D22,0)","v":0},{"$f":"SUM(C78:C78)","v":0},"CHF/a",null,null,null,null,null,null,null,null,null,"Strompreisunabh. Ladekosten (externes Laden) inkl. Preissteigerung",0,{"$f":"IF(Q$17<=Betrachtungszeit_PW,$D$78*(1+Inflationsindex),0)","v":0},{"$f":"IF(R$17<=Betrachtungszeit_PW,Q78*(1+Inflationsindex),0)","v":0},0,0,0,0,0,0,0,0,0,0,0,0,0,0,0,0,0,0,0,0,0,0,0,0,0,0,0,0]
[null,"Total",{"$f":"SUM(C75:C78)","v":0},{"$f":"SUM(D75:D78)","v":0},"CHF/a",null,null,null,null,null,null,null,null,null,"Barwert",0,{"$f":"SUM(Q75:Q78)*(1+Kalkulationszinssatz)^-Q$17","v":0},0,0,0,0,0,0,0,0,0,0,0,0,0,0,0,0,0,0,0,0,0,0,0,0,0,0,0,0,0,{"$f":"SUM(P79:AT79)","v":0}]
[]
[null,"Betrieb: Externe Kosten",{"$f":"\"Treibstoff:\n \"&$C$8","v":"Treibstoff:\n BITTE WÄHLEN"},"Total"]
[null,"Treibhausgasemissionen (THG)",{"$f":"C10*Stückzahl_PW*(1/1000)*IF(C13=13,Anteil_Intern*EF_Strom+Anteil_Extern*EF_Verbrauchsbasiert,VLOOKUP(C13,Input_Generell!$W$9:$AB$22,5,0))","v":0},{"$f":"SUM(C82:C82)","v":0},"tCO2eq/a",null,null,null,null,null,null,null,null,null,"Betrieb: Externe Kosten Treibhausgasemissionen",null,null,null,null,null,null,null,null,null,null,null,null,null,null,null,null,null,null,null,null,null,null,null,null,null,null,null,null,null,null,null,"Nettobarwert"]
[null,"Umweltbelastungspunkte UBP'13",{"$f":"C10*Stückzahl_PW*1000*IF(C13=13,Anteil_Intern*UBP_Strom+Anteil_Extern*UBP_Strom_Extern,VLOOKUP(C13,Input_Generell!$W$9:$AB$22,6,0))","v":0},{"$f":"SUM(C83:C83)","v":0},"UBP/a",null,null,null,null,null,null,null,null,null,"Kosten inkl. Preissteigerung",0,{"$f":"IF(Q$17<=Betrachtungszeit_PW,D84+D84*Inflationsindex,0)","v":0},{"$f":"IF(R$17<=Betrachtungszeit_PW,Q83+Q83*Inflationsindex,0)","v":0},0,0,0,0,0,0,0,0,0,0,0,0,0,0,0,0,0,0,0,0,0,0,0,0,0,0,0,0]
[null,{"$f":"VLOOKUP(Input_Generell!$B$28,Input_Generell!$B$52:$D$55,3,0)","v":"Kosten für THG: nicht gewählt"},{"$f":"C82*Kosten_THG","v":0},{"$f":"SUM(C84:C84)","v":0},"CHF/a",null,null,null,null,null,null,null,null,null,"Barwert",0,{"$f":"Q83*(1+Kalkulationszinssatz)^-Q$17","v":0},0,0,0,0,0,0,0,0,0,0,0,0,0,0,0,0,0,0,0,0,0,0,0,0,0,0,0,0,0,{"$f":"SUM(P84:AT84)","v":0}]
[]
[null,"Entsorgungskosten",null,null,null,null,null,null,null,null,null,null,null,null,"Entsorgung am Ende der Betrachtungszeit der Lebenszyklusrechnung",null,null,null,null,null,null,null,null,null,null,null,null,null,null,null,null,null,null,null,null,null,null,null,null,null,null,null,null,null,null,null,"Nettobarwert"]
["K","Entsorgungskosten",null,null,"CHF",null,null,null,null,null,null,null,null,null,"Kosten inkl. Preissteigerung",0,{"$f":"IF(Q$17=Betrachtungszeit_PW,$D$87*(1+Inflationsindex)^Q$17,0)","v":0},0,0,0,0,0,0,0,0,0,0,0,0,0,0,0,0,0,0,0,0,0,0,0,0,0,0,0,0,0]
[null,null,null,null,null,null,null,null,null,null,null,null,null,null,"Barwert",0,{"$f":"Q87*(1+Kalkulationszinssatz)^-Q$17","v":0},0,0,0,0,0,0,0,0,0,0,0,0,0,0,0,0,0,0,0,0,0,0,0,0,0,0,0,0,0,{"$f":"SUM(P88:AT88)","v":0}]
[]
[null,"Umweltrelevante Angaben Erstellung und Entsorgung der Fahrzeuge"]
[null,"Die Treibhausgas-Emissionen und Umweltbelastungspunkte, die aus der Erstellung und Entsorgung der Fahrzeuge entstehen, können nachfolgend berechnet werden. Mit Hilfe des mobitools (2017) kann die Grössenordnung der Treibhausgas-Emissionen und Umweltbelastungspunkte aus der Herstellung und Entsorgung ermittelt werden. Mobitool gibt diese Emissionen pro Kilometer aus (ausgehend von einer typischen Distanz über die Lebensdauer). Insbesondere wenn die Fahrzeuge über die Lebensdauer besonders wenig oder besonders viele Kilometer zurücklegen und/oder Fahrzeuge mit erneuerbaren Treibstoffen verglichen werden, empfiehlt sich jedoch eine genauere Abklärung. Falls aus der Erstellung und Entsorgung keine Daten einbezogen werden sollen, können die Eingabewerte leer gelassen werden. Die Vorgehensweise für die Ermittlung der Eingabewerte mit Hilfe des mobitools wird nachfolgend beschrieben.\nIm mobitool, in der Zeile des betroffenen Fahrzeugmodells:\n- Auslastung auf 1 setzen (somit werden die Werte pro Kilometer anstelle pro Personen-Kilometer ausgegeben)\n- Das 'Fahrzeuggewicht' sowie bei Elektro-Fahrzeugen das 'Batteriegewicht' und die 'Anzahl Batteriewechsel über Lebensdauer' anpassen\n- Im grauen Bereich oben links den gewünschten Indikator wählen ('Treibhausgaspotenzial' resp. 'UBP13')\n- In der Spalte 'Fahrzeugherstellung / -entsorgung' können die Werte für CO2eq resp. UBP abgelesen werden"]
[]
[null,"Erstellung und Entsorgung Fahrzeug:\nExterne Kosten","Fahrzeugherstellung / -entsorgung",null,"Total"]
[null,"Treibhausgasemissionen (THG)",null,"g CO2eq / km / Fahrz.",{"$f":"Stückzahl_PW*Betrachtungszeit_PW*Fahrleistung_PW*C94/1000000","v":0},"tCO2eq"]
[null,"Umweltbelastungspunkte UBP'13",null,"UBP / km / Fahrz.",{"$f":"Stückzahl_PW*Betrachtungszeit_PW*Fahrleistung_PW*C95","v":0},"UBP",null,null,null,null,null,null,null,null,"Erstellung / Entsorgung: Externe Kosten Treibhausgasemissionen",null,null,null,null,null,null,null,null,null,null,null,null,null,null,null,null,null,null,null,null,null,null,null,null,null,null,null,null,null,null,null,"Nettobarwert"]
["K",{"$f":"VLOOKUP(Input_Generell!$B$28,Input_Generell!$B$52:$D$55,3,0)","v":"Kosten für THG: nicht gewählt"},null,null,{"$f":"E94*Kosten_THG","v":0},"CHF",null,null,null,null,null,null,null,null,"Barwert",{"$f":"E96","v":0},null,null,null,null,null,null,null,null,null,null,null,null,null,null,null,null,null,null,null,null,null,null,null,null,null,null,null,null,null,null,{"$f":"SUM(P96:AT96)","v":0}]
[]
[]
[null,"Lebenszykluskosten"]
[null,"Kosten des Fahrzeugs über den gesamten Lebenszyklus gesehen (in Form des Nettobarwertes = Kapitalwert)."]
[null,null,null,null,null,null,null,null,null,null,null,null,null,null,"Barwerte",null,null,null,null,null,null,null,null,null,null,null,null,null,null,null,null,null,null,null,null,null,null,null,null,null,null,null,null,null,null,null,"Nettobarwert"]
["K","Anschaffungskosten (abzüglich Förderbeitrag, Restwert)",null,null,{"$f":"AU102","v":0},"CHF",null,null,null,null,null,null,null,null,{"$f":"B102","v":"Anschaffungskosten (abzüglich Förderbeitrag, Restwert)"},{"$f":"P29","v":0},0,0,0,0,0,0,0,0,0,0,0,0,0,0,0,0,0,0,0,0,0,0,0,0,0,0,0,0,0,0,0]
[null,"Kosten Ersatzteile (abzüglich Restwert)",null,null,{"$f":"AU103","v":0},"CHF",null,null,null,null,null,null,null,null,"Kosten Ersatzteile (abzüglich Restwert)",{"$f":"P50","v":0},0,0,0,0,0,0,0,0,0,0,0,0,0,0,0,0,0,0,0,0,0,0,0,0,0,0,0,0,0,0,0]
[null,"Service- und Reparaturkosten",null,null,{"$f":"AU104","v":0},"CHF",null,null,null,null,null,null,null,null,"Service- und Reparaturkosten",{"$f":"P57","v":0},0,0,0,0,0,0,0,0,0,0,0,0,0,0,0,0,0,0,0,0,0,0,0,0,0,0,0,0,0,0,0]
[null,"Betriebskosten",null,null,{"$f":"AU105","v":0},"CHF",null,null,null,null,null,null,null,null,"Betriebskosten",{"$f":"P71","v":0},0,0,0,0,0,0,0,0,0,0,0,0,0,0,0,0,0,0,0,0,0,0,0,0,0,0,0,0,0,0,0]
[null,"Energiekosten",null,null,0,"CHF",null,null,null,null,null,null,null,null,"Energiekosten",{"$f":"P79","v":0},0,0,0,0,0,0,0,0,0,0,0,0,0,0,0,0,0,0,0,0,0,0,0,0,0,0,0,0,0,0,0]
["K",{"$f":"VLOOKUP(Input_Generell!$B$28,Input_Generell!$B$52:$D$55,3,0)&\" (Betrieb und Erstellung/Entsorgung)\"","v":"Kosten für THG: nicht gewählt (Betrieb und Erstellung/Entsorgung)"},null,null,0,"CHF",null,null,null,null,null,null,null,null,"Kosten für THG: nicht gewählt (Betrieb und Erstellung/Entsorgung)",{"$f":"P84+P96","v":0},0,0,0,0,0,0,0,0,0,0,0,0,0,0,0,0,0,0,0,0,0,0,0,0,0,0,0,0,0,0,0]
[null,"Entsorgungskosten",null,null,0,"CHF",null,null,null,null,null,null,null,null,"Entsorgungskosten",{"$f":"P88","v":0},0,0,0,0,0,0,0,0,0,0,0,0,0,0,0,0,0,0,0,0,0,0,0,0,0,0,0,0,0,0,0]
[null,"Total",null,null,0,"CHF",null,null,null,null,null,null,null,null,"Total",{"$f":"SUM(P102:P108)","v":0},0,0,0,0,0,0,0,0,0,0,0,0,0,0,0,0,0,0,0,0,0,0,0,0,0,0,0,0,0,0,0]
[null,null,null,null,null,null,null,null,null,null,null,null,null,null,"Total aufsummiert",{"$f":"P109","v":0},{"$f":"P110+Q109","v":0},{"$f":"Q110+R109","v":0},{"$f":"R110+S109","v":0},0,0,0,0,0,0,0,0,0,0,0,0,0,0,0,0,0,0,0,0,0,0,0,0,0,0,{"$f":"AS110+AT109","v":0}]
[null,"Treibhausgasemissionen Erstellung/Entsorgung Fahrzeuge (Scope 3)",null,null,{"$f":"E94","v":0},"tCO2eq",null,null,null,null,null,null,null,null,"Diagramm Anzeige Betrachtungszeit",{"$f":"IF(P17=Betrachtungszeit_PW,MAX(Resultate_PW!$D$14:$H$14),0)","v":0},{"$f":"IF(Q17=Betrachtungszeit_PW,MAX(Resultate_PW!$D$14:$H$14),0)","v":0},{"$f":"IF(R17=Betrachtungszeit_PW,MAX(Resultate_PW!$D$14:$H$14),0)","v":0},{"$f":"IF(S17=Betrachtungszeit_PW,MAX(Resultate_PW!$D$14:$H$14),0)","v":0},{"$f":"IF(T17=Betrachtungszeit_PW,MAX(Resultate_PW!$D$14:$H$14),0)","v":0},{"$f":"IF(U17=Betrachtungszeit_PW,MAX(Resultate_PW!$D$14:$H$14),0)","v":0},{"$f":"IF(V17=Betrachtungszeit_PW,MAX(Resultate_PW!$D$14:$H$14),0)","v":0},{"$f":"IF(W17=Betrachtungszeit_PW,MAX(Resultate_PW!$D$14:$H$14),0)","v":0},{"$f":"IF(X17=Betrachtungszeit_PW,MAX(Resultate_PW!$D$14:$H$14),0)","v":0},{"$f":"IF(Y17=Betrachtungszeit_PW,MAX(Resultate_PW!$D$14:$H$14),0)","v":0},{"$f":"IF(Z17=Betrachtungszeit_PW,MAX(Resultate_PW!$D$14:$H$14),0)","v":0},{"$f":"IF(AA17=Betrachtungszeit_PW,MAX(Resultate_PW!$D$14:$H$14),0)","v":0},{"$f":"IF(AB17=Betrachtungszeit_PW,MAX(Resultate_PW!$D$14:$H$14),0)","v":0},{"$f":"IF(AC17=Betrachtungszeit_PW,MAX(Resultate_PW!$D$14:$H$14),0)","v":0},{"$f":"IF(AD17=Betrachtungszeit_PW,MAX(Resultate_PW!$D$14:$H$14),0)","v":0},{"$f":"IF(AE17=Betrachtungszeit_PW,MAX(Resultate_PW!$D$14:$H$14),0)","v":0},{"$f":"IF(AF17=Betrachtungszeit_PW,MAX(Resultate_PW!$D$14:$H$14),0)","v":0},{"$f":"IF(AG17=Betrachtungszeit_PW,MAX(Resultate_PW!$D$14:$H$14),0)","v":0},{"$f":"IF(AH17=Betrachtungszeit_PW,MAX(Resultate_PW!$D$14:$H$14),0)","v":0},{"$f":"IF(AI17=Betrachtungszeit_PW,MAX(Resultate_PW!$D$14:$H$14),0)","v":0},{"$f":"IF(AJ17=Betrachtungszeit_PW,MAX(Resultate_PW!$D$14:$H$14),0)","v":0},{"$f":"IF(AK17=Betrachtungszeit_PW,MAX(Resultate_PW!$D$14:$H$14),0)","v":0},{"$f":"IF(AL17=Betrachtungszeit_PW,MAX(Resultate_PW!$D$14:$H$14),0)","v":0},{"$f":"IF(AM17=Betrachtungszeit_PW,MAX(Resultate_PW!$D$14:$H$14),0)","v":0},{"$f":"IF(AN17=Betrachtungszeit_PW,MAX(Resultate_PW!$D$14:$H$14),0)","v":0},{"$f":"IF(AO17=Betrachtungszeit_PW,MAX(Resultate_PW!$D$14:$H$14),0)","v":0},{"$f":"IF(AP17=Betrachtungszeit_PW,MAX(Resultate_PW!$D$14:$H$14),0)","v":0},{"$f":"IF(AQ17=Betrachtungszeit_PW,MAX(Resultate_PW!$D$14:$H$14),0)","v":0},{"$f":"IF(AR17=Betrachtungszeit_PW,MAX(Resultate_PW!$D$14:$H$14),0)","v":0},{"$f":"IF(AS17=Betrachtungszeit_PW,MAX(Resultate_PW!$D$14:$H$14),0)","v":0},{"$f":"IF(AT17=Betrachtungszeit_PW,MAX(Resultate_PW!$D$14:$H$14),0)","v":0}]
[null,"Treibhausgasemissionen Betrieb (Scope 1 und 2)",null,null,{"$f":"Betrachtungszeit_PW*D82","v":0},"tCO2eq"]
[null,"Umweltbelastungspunkte UBP'13 Erstellung/Entsorgung Fahrzeuge",null,null,{"$f":"E95","v":0},"UBP"]
[null,"Umweltbelastungspunkte UBP'13 Betrieb",null,null,{"$f":"Betrachtungszeit_PW*D83","v":0},"UBP"]
["K","Gestehungskosten pro km",null,null,{"$f":"IF(C9=0,0,E109*100/(Stückzahl_PW*Fahrleistung_PW*Betrachtungszeit_PW))","v":0},"Rp./km"]
["K","Jahreskosten pro km",null,null,{"$f":"IF(C9=0,0,((1+Kalkulationszinssatz)^Betrachtungszeit_PW*Kalkulationszinssatz)/((1+Kalkulationszinssatz)^Betrachtungszeit_PW-1)*E109*100/(Stückzahl_PW*Fahrleistung_PW))","v":0},"Rp./km"]
[]
[]
[]
[null,"Auswahlfelder und Defaultwerte"]
[]
[null,"Auswahlfeld","Antrieb Nummer","Energieträger-Nummer","Energieträger"]
[null,"BITTE WÄHLEN",0,0,"Energieträger"]
[null,"Elektrizität",1,13,"Strom"]
[null,"CNG",3,1,{"$f":"\"CNG (\"&Input_Generell!X10*100&\"% Biogas)\"","v":"CNG (20% Biogas)"}]
[null,"Benzin",5,3,"Benzin"]
[null,"Diesel",6,4,"Diesel"]
[null,"Weiterer Antrieb",14,11,{"$f":"Input_Generell!B15","v":"Weitere"}]
[]
[]
[null,"Auswahlfeld"]
[null,"BITTE WÄHLEN"]
[null,"ja"]
[null,"nein"]

{"sheet":"PW_V2","index":4,"n_rows":134,"n_cols":79,"rows_kept":134,"cut":false,"hidden":false,"merged":[[30,48,30,63],[90,1,90,5],[6,2,6,3],[6,11,6,12],[16,7,16,8],[16,10,17,10],[16,11,17,11],[16,12,17,12],[30,7,30,8],[30,10,31,10],[30,11,31,11],[30,12,31,12]]}
[null,"DATENEINGABE PERSONENWAGEN"]
[]
[null,"Angaben des Anbieters (mit Angebot abzugeben)"]
[]
[null,"Variante","V2"]
["K","Variantenbezeichnung (kurz)",null,null,null,null,"K","Rechenhilfe Treibstoffverbrauch"]
[null,"Variantenbeschreibung",null,null,null,null,null,"Energie-träger","Menge","kWh",null,"Umrechnungsfaktor in kWh(Heizwert)"]
[null,"Personenwagen, Treibstoffart","BITTE WÄHLEN",null,null,null,null,"CNG [kg]",null,{"$f":"I8*M8","v":0},null,"kWh/kg",13.81]
["K","Treibstoffverbrauch pro 100 km und Fahrzeug",null,"kWh/100km/Fahrzeug",null,null,null,"Benzin [Liter]",null,{"$f":"I9*M9","v":0},null,"kWh/Liter",8.7200000000000006]
[null,{"$f":"\"Treibstoffverbrauch (\"&VLOOKUP(C12,C123:G128,3,0)&\")\"","v":"Treibstoffverbrauch (Energieträger)"},{"$f":"C9/100*Fahrleistung_PW/1000","v":0},"MWh/a/Fahrzeug",null,null,null,"Diesel [Liter]",null,{"$f":"I10*M10","v":0},null,"kWh/Liter",9.91]
["K","Max. Leistungsbedarf (für Laden von Elektrofahrz.)",null,"kW"]
[null,"Antrieb Nummer",{"$f":"IF(ISBLANK(C8),0,VLOOKUP(C8,$B$123:$G$128,2,0))","v":0}]
[null,"Energieträger Nummer",{"$f":"IF(ISBLANK(C8),0,VLOOKUP(C8,$B$123:$F$128,3,0))","v":0}]
[]
["K","Förderbeiträge total",null,"CHF",null,null,null,null,null,null,"Rechenwerte",null,null,null,"Berechnungen",null,null,null,null,null,null,null,null,null,null,null,null,null,null,null,null,null,null,null,null,null,null,null,null,null,null,null,null,null,null,null,null,null,"Berechnungen"]
[null,null,null,null,null,null,null,null,null,null,null,null,null,null,null,"(Re)Investition in CHF im Jahr…",null,null,null,null,null,null,null,null,null,null,null,null,null,null,null,null,null,null,null,null,null,null,null,null,null,null,null,null,null,null,null,null,"Restwert nach Abschreibung am Ende des Jahres… (Berücksichtigt Reinvestition nach Ablauf der Lebensdauer)"]
[null,null,null,null,null,null,null,null,null,null,"Lebens-\ndauer [a]","Zwischen-resultate","Jährliche Ab-schreibung [CHF/a]",null,"Jahr",0,1,2,3,4,5,6,7,8,9,10,11,12,13,14,15,16,17,18,19,20,21,22,23,24,25,26,27,28,29,30,null,null,0,1,2,3,4,5,6,7,8,9,10,11,12,13,14,15,16,17,18,19,20,21,22,23,24,25,26,27,28,29,30]
["K","Investitionskosten","Beschreibung","Investition \n(alle Fahrz.) [CHF]","Lebensdauer [a]","Default überschreiben",null,null,null,null,null,null,null,null,"Kilometer",0,{"$f":"Q17*Fahrleistung_PW","v":0},0,0,0,0,0,0,0,0,0,0,0,0,0,0,0,0,0,0,0,0,0,0,0,0,0,0,0,0,0,"Restwert am Ende der Betrachtungszeit"]
["K","Fahrzeuge",null,null,10,null,{"$f":"IF(K19<Betrachtungszeit_PW,\"Achtung: es erfolgt eine Reinvestition\",\"\")","v":""},null,null,null,{"$f":"IF(ISNUMBER(F19),F19,IF(ISNUMBER(E19),E19,0))","v":10},null,null,null,{"$f":"B19","v":"Fahrzeuge"},{"$f":"D19","v":0},{"$f":"IF(Betrachtungszeit_PW<Q$17,0,IF(AND(P$17<>0,P$17/($K19)=INT(P$17/($K19))),$D19,0))","v":0},0,0,0,0,0,0,0,0,0,0,0,0,0,0,0,0,0,0,0,0,0,0,0,0,0,0,0,0,0,{"$f":"SUMIF($AW$17:$CA$17,Betrachtungszeit_PW,AW19:CA19)","v":0},null,{"$f":"$D19","v":0},{"$f":"MAX(AW19-$M26+Q19,0)","v":0},0,0,0,0,0,0,0,0,0,0,0,0,0,0,0,0,0,0,0,0,0,0,0,0,0,0,0,0,0]
[null,"Zubehör / Infrastruktur",null,null,10,null,null,null,null,null,10,null,{"$f":"1/K20*D20","v":0},null,{"$f":"B20&\": \"&C20","v":"Zubehör / Infrastruktur: "},0,0,0,0,0,0,0,0,0,0,0,0,0,0,0,0,0,0,0,0,0,0,0,0,0,0,0,0,0,0,0,0,null,{"$f":"$D20","v":0},{"$f":"AW20-$M20+Q20","v":0},{"$f":"AX20-$M20+R20","v":0},0,0,0,0,0,0,0,0,0,0,0,0,0,0,0,0,0,0,0,0,0,0,0,0,0,0,0,0]
[null,"Zubehör / Infrastruktur",null,null,10,null,null,null,null,null,10,null,{"$f":"1/K21*D21","v":0},null,{"$f":"B21&\": \"&C21","v":"Zubehör / Infrastruktur: "},0,0,0,0,0,0,0,0,0,0,0,0,0,0,0,0,0,0,0,0,0,0,0,0,0,0,0,0,0,0,0,0,null,{"$f":"$D21","v":0},{"$f":"AW21-$M21+Q21","v":0},0,0,0,0,0,0,0,0,0,0,0,0,0,0,0,0,0,0,0,0,0,0,0,0,0,0,0,0,0]
[null,"Zubehör / Infrastruktur",null,null,10,null,null,null,null,null,10,null,{"$f":"1/K22*D22","v":0},null,"Zubehör / Infrastruktur: ",0,0,0,0,0,0,0,0,0,0,0,0,0,0,0,0,0,0,0,0,0,0,0,0,0,0,0,0,0,0,0,0,null,0,0,0,0,0,0,0,0,0,0,0,0,0,0,0,0,0,0,0,0,0,0,0,0,0,0,0,0,0,0,0]
[null,"Zubehör / Infrastruktur",null,null,10,null,null,null,null,null,10,null,{"$f":"1/K23*D23","v":0},null,"Zubehör / Infrastruktur: ",0,0,0,0,0,0,0,0,0,0,0,0,0,0,0,0,0,0,0,0,0,0,0,0,0,0,0,0,0,0,0,0,null,0,0,0,0,0,0,0,0,0,0,0,0,0,0,0,0,0,0,0,0,0,0,0,0,0,0,0,0,0,0,0]
[null,"Zubehör / Infrastruktur",null,null,10,null,null,null,null,null,10,null,{"$f":"1/K24*D24","v":0},null,"Zubehör / Infrastruktur: ",0,0,0,0,0,0,0,0,0,0,0,0,0,0,0,0,0,0,0,0,0,0,0,0,0,0,0,0,0,0,0,0,null,0,0,0,0,0,0,0,0,0,0,0,0,0,0,0,0,0,0,0,0,0,0,0,0,0,0,0,0,0,0,0]
[null,"Investitionskosten abzügl. \nFörderbeiträge total",null,"CHF",{"$f":"D19+SUM(D20:D24)-C15","v":0},null,null,null,null,null,null,{"$f":"E26*D19","v":0},null,null,"(Re)Investition abzüglich Restwert und Fördergeld",null,null,null,null,null,null,null,null,null,null,null,null,null,null,null,null,null,null,null,null,null,null,null,null,null,null,null,null,null,null,null,"Nettobarwert"]
["K","Wertminderung der Fahrzeuge pro Jahr aufgrund Lebensdauer",null,null,{"$f":"1/K19","v":0.1},null,null,null,null,null,null,null,{"$f":"L25+Fahrleistung_PW/10000*D19*L27","v":0},null,"(Re)Investition abzüglich Fördergeld",{"$f":"E25","v":0},{"$f":"SUM(Q19:Q24)","v":0},0,0,0,0,0,0,0,0,0,0,0,0,0,0,0,0,0,0,0,0,0,0,0,0,0,0,0,0,0]
["K","Zusätzliche Wertminderung pro 10'000 km",null,null,0.02,null,null,null,null,null,null,{"$f":"IF(ISNUMBER(F27),F27,IF(ISNUMBER(E27),E27,0))","v":0.02},null,null,"Restwert",{"$f":"IF(Betrachtungszeit_PW=P17,-($L$28+$E$29),0)","v":0},0,0,0,0,0,0,0,0,0,0,0,0,0,0,0,0,0,0,0,0,0,0,0,0,0,0,0,0,0,0]
["K","Restwert Fahrzeuge am Ende der Betrachtungszeit",null,"CHF",{"$f":"AU19","v":0},null,null,null,null,null,null,{"$f":"IF(ISNUMBER(F28),F28,E28)","v":0},null,null,"Kosten inkl. Preissteigerung",{"$f":"SUM(P26:P27)*(1+Inflationsindex)^P$17","v":0},0,0,0,0,0,0,0,0,0,0,0,0,0,0,0,0,0,0,0,0,0,0,0,0,0,0,0,0,0,0]
[null,"Restwert Zubehör am Ende der Betrachtungszeit",null,"CHF",{"$f":"SUM(AU20:AU24)","v":0},null,null,null,null,null,null,null,null,null,"Barwert",{"$f":"P28*(1+Kalkulationszinssatz)^-P$17","v":0},0,0,0,0,0,0,0,0,0,0,0,0,0,0,0,0,0,0,0,0,0,0,0,0,0,0,0,0,0,0,{"$f":"SUM(P29:AT29)","v":0}]
[]
["K","Ersatzteile / Verbrauchsmaterial mit erstmaliger Investition nach Lebensdauer",null,null,null,null,null,null,null,null,"Lebens-\ndauer [a]",null,"Jährliche Ab-schreibung [CHF/a]",null,"Ersatzteile",null,null,null,null,null,null,null,null,null,null,null,null,null,null,null,null,null,null,null,null,null,null,null,null,null,null,null,null,null,null,null,null,null,"Restwert nach Abschreibung am Ende des Jahres… (Berücksichtigt Reinvestition nach Ablauf der Lebensdauer)\nErsatzteile haben erst nach Ablauf der ersten Lebensdauer einen Restwert"]
[null,"1. Ersatzteile / Verbrauchsmaterial mit Lebensdauer in Jahren",null,null,"Lebensdauer [a]",null,null,null,null,null,null,null,null,null,{"$f":"B32","v":"1. Ersatzteile / Verbrauchsmaterial mit Lebensdauer in Jahren"},null,null,null,null,null,null,null,null,null,null,null,null,null,null,null,null,null,null,null,null,null,null,null,null,null,null,null,null,null,null,null,"Restwert am Ende der Betrachtungszeit"]
[null,"Weitere Ersatzteile",null,null,10,null,null,null,null,null,{"$f":"IF(ISNUMBER(F33),F33,IF(ISNUMBER(E33),E33,0))","v":10},null,{"$f":"1/K33*D33","v":0},null,{"$f":"B33&\": \"&C33","v":"Weitere Ersatzteile: "},0,{"$f":"IF(Betrachtungszeit_PW<Q$17,0,IF(AND(P$17<>0,P$17/($K33)=INT(P$17/($K33))),$D33,0))","v":0},0,0,0,0,0,0,0,0,0,0,0,0,0,0,0,0,0,0,0,0,0,0,0,0,0,0,0,0,0,{"$f":"SUMIF($AW$17:$CA$17,Betrachtungszeit_PW,AW33:CA33)","v":0},null,0,{"$f":"IF((AW33+Q33)=0,0,AW33-$M33+Q33)","v":0},{"$f":"IF((AX33+R33)=0,0,AX33-$M33+R33)","v":0},0,0,0,0,0,0,0,0,0,0,0,0,0,0,0,0,0,0,0,0,0,0,0,0,0,0,0,0]
[null,"Weitere Ersatzteile",null,null,10,null,null,null,null,null,{"$f":"IF(ISNUMBER(F34),F34,IF(ISNUMBER(E34),E34,0))","v":10},null,{"$f":"1/K34*D34","v":0},null,{"$f":"B34&\": \"&C34","v":"Weitere Ersatzteile: "},0,0,0,0,0,0,0,0,0,0,0,0,0,0,0,0,0,0,0,0,0,0,0,0,0,0,0,0,0,0,0,{"$f":"SUMIF($AW$17:$CA$17,Betrachtungszeit_PW,AW34:CA34)","v":0},null,0,{"$f":"IF((AW34+Q34)=0,0,AW34-$M34+Q34)","v":0},0,0,0,0,0,0,0,0,0,0,0,0,0,0,0,0,0,0,0,0,0,0,0,0,0,0,0,0,0]
[null,"Weitere Ersatzteile",null,null,10,null,null,null,null,null,{"$f":"IF(ISNUMBER(F35),F35,IF(ISNUMBER(E35),E35,0))","v":10},null,{"$f":"1/K35*D35","v":0},null,"Weitere Ersatzteile: ",0,0,0,0,0,0,0,0,0,0,0,0,0,0,0,0,0,0,0,0,0,0,0,0,0,0,0,0,0,0,0,{"$f":"SUMIF($AW$17:$CA$17,Betrachtungszeit_PW,AW35:CA35)","v":0},null,0,0,0,0,0,0,0,0,0,0,0,0,0,0,0,0,0,0,0,0,0,0,0,0,0,0,0,0,0,0,0]
[null,"Weitere Ersatzteile",null,null,10,null,null,null,null,null,{"$f":"IF(ISNUMBER(F36),F36,IF(ISNUMBER(E36),E36,0))","v":10},null,{"$f":"1/K36*D36","v":0},null,"Weitere Ersatzteile: ",0,0,0,0,0,0,0,0,0,0,0,0,0,0,0,0,0,0,0,0,0,0,0,0,0,0,0,0,0,0,0,{"$f":"SUMIF($AW$17:$CA$17,Betrachtungszeit_PW,AW36:CA36)","v":0},null,0,0,0,0,0,0,0,0,0,0,0,0,0,0,0,0,0,0,0,0,0,0,0,0,0,0,0,0,0,0,0]
[null,"Weitere Ersatzteile",null,null,10,null,null,null,null,null,{"$f":"IF(ISNUMBER(F37),F37,IF(ISNUMBER(E37),E37,0))","v":10},null,{"$f":"1/K37*D37","v":0},null,"Weitere Ersatzteile: ",0,0,0,0,0,0,0,0,0,0,0,0,0,0,0,0,0,0,0,0,0,0,0,0,0,0,0,0,0,0,0,{"$f":"SUMIF($AW$17:$CA$17,Betrachtungszeit_PW,AW37:CA37)","v":0},null,0,0,0,0,0,0,0,0,0,0,0,0,0,0,0,0,0,0,0,0,0,0,0,0,0,0,0,0,0,0,0]
[null,"2. Ersatzteile / Verbrauchsmaterial mit Lebensdauer in Kilometern",null,null,"Lebensdauer [km]",null,null,null,null,null,"Lebens-dauer [km]",null,null,null,"2. Ersatzteile / Verbrauchsmaterial mit Lebensdauer in Kilometern"]
["K","Ersatz-Reifen (Set)",null,null,30000,null,null,null,null,null,{"$f":"IF(ISNUMBER(F39),F39,IF(ISNUMBER(E39),E39,0))","v":30000},null,{"$f":"1/(K39/Fahrleistung_PW)*D39","v":{"$error":"#DIV/0!"}},null,{"$f":"B39&\": \"&C39","v":"Ersatz-Reifen (Set): "},0,{"$f":"IF(Betrachtungszeit_PW*Fahrleistung_PW<Q$18,0,IF(Q$18-(COUNTIF($P39:P39,\">0\")*$K39)>$K39,$D39,0))","v":0},{"$f":"IF(Betrachtungszeit_PW*Fahrleistung_PW<R$18,0,IF(R$18-(COUNTIF($P39:Q39,\">0\")*$K39)>$K39,$D39,0))","v":0},{"$f":"IF(Betrachtungszeit_PW*Fahrleistung_PW<S$18,0,IF(S$18-(COUNTIF($P39:R39,\">0\")*$K39)>$K39,$D39,0))","v":0},{"$f":"IF(Betrachtungszeit_PW*Fahrleistung_PW<T$18,0,IF(T$18-(COUNTIF($P39:S39,\">0\")*$K39)>$K39,$D39,0))","v":0},{"$f":"IF(Betrachtungszeit_PW*Fahrleistung_PW<U$18,0,IF(U$18-(COUNTIF($P39:T39,\">0\")*$K39)>$K39,$D39,0))","v":0},{"$f":"IF(Betrachtungszeit_PW*Fahrleistung_PW<V$18,0,IF(V$18-(COUNTIF($P39:U39,\">0\")*$K39)>$K39,$D39,0))","v":0},{"$f":"IF(Betrachtungszeit_PW*Fahrleistung_PW<W$18,0,IF(W$18-(COUNTIF($P39:V39,\">0\")*$K39)>$K39,$D39,0))","v":0},{"$f":"IF(Betrachtungszeit_PW*Fahrleistung_PW<X$18,0,IF(X$18-(COUNTIF($P39:W39,\">0\")*$K39)>$K39,$D39,0))","v":0},{"$f":"IF(Betrachtungszeit_PW*Fahrleistung_PW<Y$18,0,IF(Y$18-(COUNTIF($P39:X39,\">0\")*$K39)>$K39,$D39,0))","v":0},{"$f":"IF(Betrachtungszeit_PW*Fahrleistung_PW<Z$18,0,IF(Z$18-(COUNTIF($P39:Y39,\">0\")*$K39)>$K39,$D39,0))","v":0},{"$f":"IF(Betrachtungszeit_PW*Fahrleistung_PW<AA$18,0,IF(AA$18-(COUNTIF($P39:Z39,\">0\")*$K39)>$K39,$D39,0))","v":0},{"$f":"IF(Betrachtungszeit_PW*Fahrleistung_PW<AB$18,0,IF(AB$18-(COUNTIF($P39:AA39,\">0\")*$K39)>$K39,$D39,0))","v":0},{"$f":"IF(Betrachtungszeit_PW*Fahrleistung_PW<AC$18,0,IF(AC$18-(COUNTIF($P39:AB39,\">0\")*$K39)>$K39,$D39,0))","v":0},{"$f":"IF(Betrachtungszeit_PW*Fahrleistung_PW<AD$18,0,IF(AD$18-(COUNTIF($P39:AC39,\">0\")*$K39)>$K39,$D39,0))","v":0},{"$f":"IF(Betrachtungszeit_PW*Fahrleistung_PW<AE$18,0,IF(AE$18-(COUNTIF($P39:AD39,\">0\")*$K39)>$K39,$D39,0))","v":0},{"$f":"IF(Betrachtungszeit_PW*Fahrleistung_PW<AF$18,0,IF(AF$18-(COUNTIF($P39:AE39,\">0\")*$K39)>$K39,$D39,0))","v":0},{"$f":"IF(Betrachtungszeit_PW*Fahrleistung_PW<AG$18,0,IF(AG$18-(COUNTIF($P39:AF39,\">0\")*$K39)>$K39,$D39,0))","v":0},{"$f":"IF(Betrachtungszeit_PW*Fahrleistung_PW<AH$18,0,IF(AH$18-(COUNTIF($P39:AG39,\">0\")*$K39)>$K39,$D39,0))","v":0},{"$f":"IF(Betrachtungszeit_PW*Fahrleistung_PW<AI$18,0,IF(AI$18-(COUNTIF($P39:AH39,\">0\")*$K39)>$K39,$D39,0))","v":0},{"$f":"IF(Betrachtungszeit_PW*Fahrleistung_PW<AJ$18,0,IF(AJ$18-(COUNTIF($P39:AI39,\">0\")*$K39)>$K39,$D39,0))","v":0},{"$f":"IF(Betrachtungszeit_PW*Fahrleistung_PW<AK$18,0,IF(AK$18-(COUNTIF($P39:AJ39,\">0\")*$K39)>$K39,$D39,0))","v":0},{"$f":"IF(Betrachtungszeit_PW*Fahrleistung_PW<AL$18,0,IF(AL$18-(COUNTIF($P39:AK39,\">0\")*$K39)>$K39,$D39,0))","v":0},{"$f":"IF(Betrachtungszeit_PW*Fahrleistung_PW<AM$18,0,IF(AM$18-(COUNTIF($P39:AL39,\">0\")*$K39)>$K39,$D39,0))","v":0},{"$f":"IF(Betrachtungszeit_PW*Fahrleistung_PW<AN$18,0,IF(AN$18-(COUNTIF($P39:AM39,\">0\")*$K39)>$K39,$D39,0))","v":0},{"$f":"IF(Betrachtungszeit_PW*Fahrleistung_PW<AO$18,0,IF(AO$18-(COUNTIF($P39:AN39,\">0\")*$K39)>$K39,$D39,0))","v":0},{"$f":"IF(Betrachtungszeit_PW*Fahrleistung_PW<AP$18,0,IF(AP$18-(COUNTIF($P39:AO39,\">0\")*$K39)>$K39,$D39,0))","v":0},{"$f":"IF(Betrachtungszeit_PW*Fahrleistung_PW<AQ$18,0,IF(AQ$18-(COUNTIF($P39:AP39,\">0\")*$K39)>$K39,$D39,0))","v":0},{"$f":"IF(Betrachtungszeit_PW*Fahrleistung_PW<AR$18,0,IF(AR$18-(COUNTIF($P39:AQ39,\">0\")*$K39)>$K39,$D39,0))","v":0},{"$f":"IF(Betrachtungszeit_PW*Fahrleistung_PW<AS$18,0,IF(AS$18-(COUNTIF($P39:AR39,\">0\")*$K39)>$K39,$D39,0))","v":0},{"$f":"IF(Betrachtungszeit_PW*Fahrleistung_PW<AT$18,0,IF(AT$18-(COUNTIF($P39:AS39,\">0\")*$K39)>$K39,$D39,0))","v":0},{"$f":"SUMIF($AW$17:$CA$17,Betrachtungszeit_PW,AW39:CA39)","v":0},null,0,{"$f":"IF((AW39+Q39)=0,0,AW39-$M39+Q39)","v":0},{"$f":"IF((AX39+R39)=0,0,AX39-$M39+R39)","v":0},0,0,0,0,0,0,0,0,0,0,0,0,0,0,0,{"$f":"IF((BN39+AH39)=0,0,BN39-$M39+AH39)","v":0},0,0,0,0,0,0,0,0,0,0,0,0]
["K","Ersatz-Batterie bei Elektrofahrzeugen",null,null,100000,null,null,null,null,null,100000,null,{"$error":"#DIV/0!"},null,{"$f":"B40&\": \"&C40","v":"Ersatz-Batterie bei Elektrofahrzeugen: "},0,{"$f":"IF(Betrachtungszeit_PW*Fahrleistung_PW<Q$18,0,IF(Q$18-(COUNTIF($P40:P40,\">0\")*$K40)>$K40,$D40,0))","v":0},{"$f":"IF(Betrachtungszeit_PW*Fahrleistung_PW<R$18,0,IF(R$18-(COUNTIF($P40:Q40,\">0\")*$K40)>$K40,$D40,0))","v":0},{"$f":"IF(Betrachtungszeit_PW*Fahrleistung_PW<S$18,0,IF(S$18-(COUNTIF($P40:R40,\">0\")*$K40)>$K40,$D40,0))","v":0},{"$f":"IF(Betrachtungszeit_PW*Fahrleistung_PW<T$18,0,IF(T$18-(COUNTIF($P40:S40,\">0\")*$K40)>$K40,$D40,0))","v":0},{"$f":"IF(Betrachtungszeit_PW*Fahrleistung_PW<U$18,0,IF(U$18-(COUNTIF($P40:T40,\">0\")*$K40)>$K40,$D40,0))","v":0},{"$f":"IF(Betrachtungszeit_PW*Fahrleistung_PW<V$18,0,IF(V$18-(COUNTIF($P40:U40,\">0\")*$K40)>$K40,$D40,0))","v":0},{"$f":"IF(Betrachtungszeit_PW*Fahrleistung_PW<W$18,0,IF(W$18-(COUNTIF($P40:V40,\">0\")*$K40)>$K40,$D40,0))","v":0},{"$f":"IF(Betrachtungszeit_PW*Fahrleistung_PW<X$18,0,IF(X$18-(COUNTIF($P40:W40,\">0\")*$K40)>$K40,$D40,0))","v":0},{"$f":"IF(Betrachtungszeit_PW*Fahrleistung_PW<Y$18,0,IF(Y$18-(COUNTIF($P40:X40,\">0\")*$K40)>$K40,$D40,0))","v":0},{"$f":"IF(Betrachtungszeit_PW*Fahrleistung_PW<Z$18,0,IF(Z$18-(COUNTIF($P40:Y40,\">0\")*$K40)>$K40,$D40,0))","v":0},{"$f":"IF(Betrachtungszeit_PW*Fahrleistung_PW<AA$18,0,IF(AA$18-(COUNTIF($P40:Z40,\">0\")*$K40)>$K40,$D40,0))","v":0},{"$f":"IF(Betrachtungszeit_PW*Fahrleistung_PW<AB$18,0,IF(AB$18-(COUNTIF($P40:AA40,\">0\")*$K40)>$K40,$D40,0))","v":0},{"$f":"IF(Betrachtungszeit_PW*Fahrleistung_PW<AC$18,0,IF(AC$18-(COUNTIF($P40:AB40,\">0\")*$K40)>$K40,$D40,0))","v":0},{"$f":"IF(Betrachtungszeit_PW*Fahrleistung_PW<AD$18,0,IF(AD$18-(COUNTIF($P40:AC40,\">0\")*$K40)>$K40,$D40,0))","v":0},{"$f":"IF(Betrachtungszeit_PW*Fahrleistung_PW<AE$18,0,IF(AE$18-(COUNTIF($P40:AD40,\">0\")*$K40)>$K40,$D40,0))","v":0},{"$f":"IF(Betrachtungszeit_PW*Fahrleistung_PW<AF$18,0,IF(AF$18-(COUNTIF($P40:AE40,\">0\")*$K40)>$K40,$D40,0))","v":0},{"$f":"IF(Betrachtungszeit_PW*Fahrleistung_PW<AG$18,0,IF(AG$18-(COUNTIF($P40:AF40,\">0\")*$K40)>$K40,$D40,0))","v":0},{"$f":"IF(Betrachtungszeit_PW*Fahrleistung_PW<AH$18,0,IF(AH$18-(COUNTIF($P40:AG40,\">0\")*$K40)>$K40,$D40,0))","v":0},{"$f":"IF(Betrachtungszeit_PW*Fahrleistung_PW<AI$18,0,IF(AI$18-(COUNTIF($P40:AH40,\">0\")*$K40)>$K40,$D40,0))","v":0},{"$f":"IF(Betrachtungszeit_PW*Fahrleistung_PW<AJ$18,0,IF(AJ$18-(COUNTIF($P40:AI40,\">0\")*$K40)>$K40,$D40,0))","v":0},{"$f":"IF(Betrachtungszeit_PW*Fahrleistung_PW<AK$18,0,IF(AK$18-(COUNTIF($P40:AJ40,\">0\")*$K40)>$K40,$D40,0))","v":0},{"$f":"IF(Betrachtungszeit_PW*Fahrleistung_PW<AL$18,0,IF(AL$18-(COUNTIF($P40:AK40,\">0\")*$K40)>$K40,$D40,0))","v":0},{"$f":"IF(Betrachtungszeit_PW*Fahrleistung_PW<AM$18,0,IF(AM$18-(COUNTIF($P40:AL40,\">0\")*$K40)>$K40,$D40,0))","v":0},{"$f":"IF(Betrachtungszeit_PW*Fahrleistung_PW<AN$18,0,IF(AN$18-(COUNTIF($P40:AM40,\">0\")*$K40)>$K40,$D40,0))","v":0},{"$f":"IF(Betrachtungszeit_PW*Fahrleistung_PW<AO$18,0,IF(AO$18-(COUNTIF($P40:AN40,\">0\")*$K40)>$K40,$D40,0))","v":0},{"$f":"IF(Betrachtungszeit_PW*Fahrleistung_PW<AP$18,0,IF(AP$18-(COUNTIF($P40:AO40,\">0\")*$K40)>$K40,$D40,0))","v":0},{"$f":"IF(Betrachtungszeit_PW*Fahrleistung_PW<AQ$18,0,IF(AQ$18-(COUNTIF($P40:AP40,\">0\")*$K40)>$K40,$D40,0))","v":0},{"$f":"IF(Betrachtungszeit_PW*Fahrleistung_PW<AR$18,0,IF(AR$18-(COUNTIF($P40:AQ40,\">0\")*$K40)>$K40,$D40,0))","v":0},{"$f":"IF(Betrachtungszeit_PW*Fahrleistung_PW<AS$18,0,IF(AS$18-(COUNTIF($P40:AR40,\">0\")*$K40)>$K40,$D40,0))","v":0},{"$f":"IF(Betrachtungszeit_PW*Fahrleistung_PW<AT$18,0,IF(AT$18-(COUNTIF($P40:AS40,\">0\")*$K40)>$K40,$D40,0))","v":0},0,null,0,{"$f":"IF((AW40+Q40)=0,0,AW40-$M40+Q40)","v":0},0,0,0,0,0,0,0,0,0,0,0,0,0,0,0,0,0,0,0,0,0,0,0,0,0,0,0,0,0]
[null,"Weitere Ersatzteile",null,null,150000,null,null,null,null,null,150000,null,{"$error":"#DIV/0!"},null,"Weitere Ersatzteile: ",0,{"$f":"IF(Betrachtungszeit_PW*Fahrleistung_PW<Q$18,0,IF(Q$18-(COUNTIF($P41:P41,\">0\")*$K41)>$K41,$D41,0))","v":0},{"$f":"IF(Betrachtungszeit_PW*Fahrleistung_PW<R$18,0,IF(R$18-(COUNTIF($P41:Q41,\">0\")*$K41)>$K41,$D41,0))","v":0},{"$f":"IF(Betrachtungszeit_PW*Fahrleistung_PW<S$18,0,IF(S$18-(COUNTIF($P41:R41,\">0\")*$K41)>$K41,$D41,0))","v":0},{"$f":"IF(Betrachtungszeit_PW*Fahrleistung_PW<T$18,0,IF(T$18-(COUNTIF($P41:S41,\">0\")*$K41)>$K41,$D41,0))","v":0},{"$f":"IF(Betrachtungszeit_PW*Fahrleistung_PW<U$18,0,IF(U$18-(COUNTIF($P41:T41,\">0\")*$K41)>$K41,$D41,0))","v":0},{"$f":"IF(Betrachtungszeit_PW*Fahrleistung_PW<V$18,0,IF(V$18-(COUNTIF($P41:U41,\">0\")*$K41)>$K41,$D41,0))","v":0},{"$f":"IF(Betrachtungszeit_PW*Fahrleistung_PW<W$18,0,IF(W$18-(COUNTIF($P41:V41,\">0\")*$K41)>$K41,$D41,0))","v":0},{"$f":"IF(Betrachtungszeit_PW*Fahrleistung_PW<X$18,0,IF(X$18-(COUNTIF($P41:W41,\">0\")*$K41)>$K41,$D41,0))","v":0},{"$f":"IF(Betrachtungszeit_PW*Fahrleistung_PW<Y$18,0,IF(Y$18-(COUNTIF($P41:X41,\">0\")*$K41)>$K41,$D41,0))","v":0},{"$f":"IF(Betrachtungszeit_PW*Fahrleistung_PW<Z$18,0,IF(Z$18-(COUNTIF($P41:Y41,\">0\")*$K41)>$K41,$D41,0))","v":0},{"$f":"IF(Betrachtungszeit_PW*Fahrleistung_PW<AA$18,0,IF(AA$18-(COUNTIF($P41:Z41,\">0\")*$K41)>$K41,$D41,0))","v":0},{"$f":"IF(Betrachtungszeit_PW*Fahrleistung_PW<AB$18,0,IF(AB$18-(COUNTIF($P41:AA41,\">0\")*$K41)>$K41,$D41,0))","v":0},{"$f":"IF(Betrachtungszeit_PW*Fahrleistung_PW<AC$18,0,IF(AC$18-(COUNTIF($P41:AB41,\">0\")*$K41)>$K41,$D41,0))","v":0},{"$f":"IF(Betrachtungszeit_PW*Fahrleistung_PW<AD$18,0,IF(AD$18-(COUNTIF($P41:AC41,\">0\")*$K41)>$K41,$D41,0))","v":0},{"$f":"IF(Betrachtungszeit_PW*Fahrleistung_PW<AE$18,0,IF(AE$18-(COUNTIF($P41:AD41,\">0\")*$K41)>$K41,$D41,0))","v":0},{"$f":"IF(Betrachtungszeit_PW*Fahrleistung_PW<AF$18,0,IF(AF$18-(COUNTIF($P41:AE41,\">0\")*$K41)>$K41,$D41,0))","v":0},{"$f":"IF(Betrachtungszeit_PW*Fahrleistung_PW<AG$18,0,IF(AG$18-(COUNTIF($P41:AF41,\">0\")*$K41)>$K41,$D41,0))","v":0},{"$f":"IF(Betrachtungszeit_PW*Fahrleistung_PW<AH$18,0,IF(AH$18-(COUNTIF($P41:AG41,\">0\")*$K41)>$K41,$D41,0))","v":0},{"$f":"IF(Betrachtungszeit_PW*Fahrleistung_PW<AI$18,0,IF(AI$18-(COUNTIF($P41:AH41,\">0\")*$K41)>$K41,$D41,0))","v":0},{"$f":"IF(Betrachtungszeit_PW*Fahrleistung_PW<AJ$18,0,IF(AJ$18-(COUNTIF($P41:AI41,\">0\")*$K41)>$K41,$D41,0))","v":0},{"$f":"IF(Betrachtungszeit_PW*Fahrleistung_PW<AK$18,0,IF(AK$18-(COUNTIF($P41:AJ41,\">0\")*$K41)>$K41,$D41,0))","v":0},{"$f":"IF(Betrachtungszeit_PW*Fahrleistung_PW<AL$18,0,IF(AL$18-(COUNTIF($P41:AK41,\">0\")*$K41)>$K41,$D41,0))","v":0},{"$f":"IF(Betrachtungszeit_PW*Fahrleistung_PW<AM$18,0,IF(AM$18-(COUNTIF($P41:AL41,\">0\")*$K41)>$K41,$D41,0))","v":0},{"$f":"IF(Betrachtungszeit_PW*Fahrleistung_PW<AN$18,0,IF(AN$18-(COUNTIF($P41:AM41,\">0\")*$K41)>$K41,$D41,0))","v":0},{"$f":"IF(Betrachtungszeit_PW*Fahrleistung_PW<AO$18,0,IF(AO$18-(COUNTIF($P41:AN41,\">0\")*$K41)>$K41,$D41,0))","v":0},{"$f":"IF(Betrachtungszeit_PW*Fahrleistung_PW<AP$18,0,IF(AP$18-(COUNTIF($P41:AO41,\">0\")*$K41)>$K41,$D41,0))","v":0},{"$f":"IF(Betrachtungszeit_PW*Fahrleistung_PW<AQ$18,0,IF(AQ$18-(COUNTIF($P41:AP41,\">0\")*$K41)>$K41,$D41,0))","v":0},{"$f":"IF(Betrachtungszeit_PW*Fahrleistung_PW<AR$18,0,IF(AR$18-(COUNTIF($P41:AQ41,\">0\")*$K41)>$K41,$D41,0))","v":0},{"$f":"IF(Betrachtungszeit_PW*Fahrleistung_PW<AS$18,0,IF(AS$18-(COUNTIF($P41:AR41,\">0\")*$K41)>$K41,$D41,0))","v":0},{"$f":"IF(Betrachtungszeit_PW*Fahrleistung_PW<AT$18,0,IF(AT$18-(COUNTIF($P41:AS41,\">0\")*$K41)>$K41,$D41,0))","v":0},0,null,0,0,0,0,0,0,0,0,0,0,0,0,0,0,0,0,0,0,0,0,0,0,0,0,0,0,0,0,0,0,0]
[null,"Weitere Ersatzteile",null,null,150000,null,null,null,null,null,150000,null,{"$error":"#DIV/0!"},null,"Weitere Ersatzteile: ",0,{"$f":"IF(Betrachtungszeit_PW*Fahrleistung_PW<Q$18,0,IF(Q$18-(COUNTIF($P42:P42,\">0\")*$K42)>$K42,$D42,0))","v":0},{"$f":"IF(Betrachtungszeit_PW*Fahrleistung_PW<R$18,0,IF(R$18-(COUNTIF($P42:Q42,\">0\")*$K42)>$K42,$D42,0))","v":0},{"$f":"IF(Betrachtungszeit_PW*Fahrleistung_PW<S$18,0,IF(S$18-(COUNTIF($P42:R42,\">0\")*$K42)>$K42,$D42,0))","v":0},{"$f":"IF(Betrachtungszeit_PW*Fahrleistung_PW<T$18,0,IF(T$18-(COUNTIF($P42:S42,\">0\")*$K42)>$K42,$D42,0))","v":0},{"$f":"IF(Betrachtungszeit_PW*Fahrleistung_PW<U$18,0,IF(U$18-(COUNTIF($P42:T42,\">0\")*$K42)>$K42,$D42,0))","v":0},{"$f":"IF(Betrachtungszeit_PW*Fahrleistung_PW<V$18,0,IF(V$18-(COUNTIF($P42:U42,\">0\")*$K42)>$K42,$D42,0))","v":0},{"$f":"IF(Betrachtungszeit_PW*Fahrleistung_PW<W$18,0,IF(W$18-(COUNTIF($P42:V42,\">0\")*$K42)>$K42,$D42,0))","v":0},{"$f":"IF(Betrachtungszeit_PW*Fahrleistung_PW<X$18,0,IF(X$18-(COUNTIF($P42:W42,\">0\")*$K42)>$K42,$D42,0))","v":0},{"$f":"IF(Betrachtungszeit_PW*Fahrleistung_PW<Y$18,0,IF(Y$18-(COUNTIF($P42:X42,\">0\")*$K42)>$K42,$D42,0))","v":0},{"$f":"IF(Betrachtungszeit_PW*Fahrleistung_PW<Z$18,0,IF(Z$18-(COUNTIF($P42:Y42,\">0\")*$K42)>$K42,$D42,0))","v":0},{"$f":"IF(Betrachtungszeit_PW*Fahrleistung_PW<AA$18,0,IF(AA$18-(COUNTIF($P42:Z42,\">0\")*$K42)>$K42,$D42,0))","v":0},{"$f":"IF(Betrachtungszeit_PW*Fahrleistung_PW<AB$18,0,IF(AB$18-(COUNTIF($P42:AA42,\">0\")*$K42)>$K42,$D42,0))","v":0},{"$f":"IF(Betrachtungszeit_PW*Fahrleistung_PW<AC$18,0,IF(AC$18-(COUNTIF($P42:AB42,\">0\")*$K42)>$K42,$D42,0))","v":0},{"$f":"IF(Betrachtungszeit_PW*Fahrleistung_PW<AD$18,0,IF(AD$18-(COUNTIF($P42:AC42,\">0\")*$K42)>$K42,$D42,0))","v":0},{"$f":"IF(Betrachtungszeit_PW*Fahrleistung_PW<AE$18,0,IF(AE$18-(COUNTIF($P42:AD42,\">0\")*$K42)>$K42,$D42,0))","v":0},{"$f":"IF(Betrachtungszeit_PW*Fahrleistung_PW<AF$18,0,IF(AF$18-(COUNTIF($P42:AE42,\">0\")*$K42)>$K42,$D42,0))","v":0},{"$f":"IF(Betrachtungszeit_PW*Fahrleistung_PW<AG$18,0,IF(AG$18-(COUNTIF($P42:AF42,\">0\")*$K42)>$K42,$D42,0))","v":0},{"$f":"IF(Betrachtungszeit_PW*Fahrleistung_PW<AH$18,0,IF(AH$18-(COUNTIF($P42:AG42,\">0\")*$K42)>$K42,$D42,0))","v":0},{"$f":"IF(Betrachtungszeit_PW*Fahrleistung_PW<AI$18,0,IF(AI$18-(COUNTIF($P42:AH42,\">0\")*$K42)>$K42,$D42,0))","v":0},{"$f":"IF(Betrachtungszeit_PW*Fahrleistung_PW<AJ$18,0,IF(AJ$18-(COUNTIF($P42:AI42,\">0\")*$K42)>$K42,$D42,0))","v":0},{"$f":"IF(Betrachtungszeit_PW*Fahrleistung_PW<AK$18,0,IF(AK$18-(COUNTIF($P42:AJ42,\">0\")*$K42)>$K42,$D42,0))","v":0},{"$f":"IF(Betrachtungszeit_PW*Fahrleistung_PW<AL$18,0,IF(AL$18-(COUNTIF($P42:AK42,\">0\")*$K42)>$K42,$D42,0))","v":0},{"$f":"IF(Betrachtungszeit_PW*Fahrleistung_PW<AM$18,0,IF(AM$18-(COUNTIF($P42:AL42,\">0\")*$K42)>$K42,$D42,0))","v":0},{"$f":"IF(Betrachtungszeit_PW*Fahrleistung_PW<AN$18,0,IF(AN$18-(COUNTIF($P42:AM42,\">0\")*$K42)>$K42,$D42,0))","v":0},{"$f":"IF(Betrachtungszeit_PW*Fahrleistung_PW<AO$18,0,IF(AO$18-(COUNTIF($P42:AN42,\">0\")*$K42)>$K42,$D42,0))","v":0},{"$f":"IF(Betrachtungszeit_PW*Fahrleistung_PW<AP$18,0,IF(AP$18-(COUNTIF($P42:AO42,\">0\")*$K42)>$K42,$D42,0))","v":0},{"$f":"IF(Betrachtungszeit_PW*Fahrleistung_PW<AQ$18,0,IF(AQ$18-(COUNTIF($P42:AP42,\">0\")*$K42)>$K42,$D42,0))","v":0},{"$f":"IF(Betrachtungszeit_PW*Fahrleistung_PW<AR$18,0,IF(AR$18-(COUNTIF($P42:AQ42,\">0\")*$K42)>$K42,$D42,0))","v":0},{"$f":"IF(Betrachtungszeit_PW*Fahrleistung_PW<AS$18,0,IF(AS$18-(COUNTIF($P42:AR42,\">0\")*$K42)>$K42,$D42,0))","v":0},{"$f":"IF(Betrachtungszeit_PW*Fahrleistung_PW<AT$18,0,IF(AT$18-(COUNTIF($P42:AS42,\">0\")*$K42)>$K42,$D42,0))","v":0},0,null,0,0,0,0,0,0,0,0,0,0,0,0,0,0,0,0,0,0,0,0,0,0,0,0,0,0,0,0,0,0,0]
[null,"Weitere Ersatzteile",null,null,150000,null,null,null,null,null,150000,null,{"$error":"#DIV/0!"},null,"Weitere Ersatzteile: ",0,{"$f":"IF(Betrachtungszeit_PW*Fahrleistung_PW<Q$18,0,IF(Q$18-(COUNTIF($P43:P43,\">0\")*$K43)>$K43,$D43,0))","v":0},{"$f":"IF(Betrachtungszeit_PW*Fahrleistung_PW<R$18,0,IF(R$18-(COUNTIF($P43:Q43,\">0\")*$K43)>$K43,$D43,0))","v":0},{"$f":"IF(Betrachtungszeit_PW*Fahrleistung_PW<S$18,0,IF(S$18-(COUNTIF($P43:R43,\">0\")*$K43)>$K43,$D43,0))","v":0},{"$f":"IF(Betrachtungszeit_PW*Fahrleistung_PW<T$18,0,IF(T$18-(COUNTIF($P43:S43,\">0\")*$K43)>$K43,$D43,0))","v":0},{"$f":"IF(Betrachtungszeit_PW*Fahrleistung_PW<U$18,0,IF(U$18-(COUNTIF($P43:T43,\">0\")*$K43)>$K43,$D43,0))","v":0},{"$f":"IF(Betrachtungszeit_PW*Fahrleistung_PW<V$18,0,IF(V$18-(COUNTIF($P43:U43,\">0\")*$K43)>$K43,$D43,0))","v":0},{"$f":"IF(Betrachtungszeit_PW*Fahrleistung_PW<W$18,0,IF(W$18-(COUNTIF($P43:V43,\">0\")*$K43)>$K43,$D43,0))","v":0},{"$f":"IF(Betrachtungszeit_PW*Fahrleistung_PW<X$18,0,IF(X$18-(COUNTIF($P43:W43,\">0\")*$K43)>$K43,$D43,0))","v":0},{"$f":"IF(Betrachtungszeit_PW*Fahrleistung_PW<Y$18,0,IF(Y$18-(COUNTIF($P43:X43,\">0\")*$K43)>$K43,$D43,0))","v":0},{"$f":"IF(Betrachtungszeit_PW*Fahrleistung_PW<Z$18,0,IF(Z$18-(COUNTIF($P43:Y43,\">0\")*$K43)>$K43,$D43,0))","v":0},{"$f":"IF(Betrachtungszeit_PW*Fahrleistung_PW<AA$18,0,IF(AA$18-(COUNTIF($P43:Z43,\">0\")*$K43)>$K43,$D43,0))","v":0},{"$f":"IF(Betrachtungszeit_PW*Fahrleistung_PW<AB$18,0,IF(AB$18-(COUNTIF($P43:AA43,\">0\")*$K43)>$K43,$D43,0))","v":0},{"$f":"IF(Betrachtungszeit_PW*Fahrleistung_PW<AC$18,0,IF(AC$18-(COUNTIF($P43:AB43,\">0\")*$K43)>$K43,$D43,0))","v":0},{"$f":"IF(Betrachtungszeit_PW*Fahrleistung_PW<AD$18,0,IF(AD$18-(COUNTIF($P43:AC43,\">0\")*$K43)>$K43,$D43,0))","v":0},{"$f":"IF(Betrachtungszeit_PW*Fahrleistung_PW<AE$18,0,IF(AE$18-(COUNTIF($P43:AD43,\">0\")*$K43)>$K43,$D43,0))","v":0},{"$f":"IF(Betrachtungszeit_PW*Fahrleistung_PW<AF$18,0,IF(AF$18-(COUNTIF($P43:AE43,\">0\")*$K43)>$K43,$D43,0))","v":0},{"$f":"IF(Betrachtungszeit_PW*Fahrleistung_PW<AG$18,0,IF(AG$18-(COUNTIF($P43:AF43,\">0\")*$K43)>$K43,$D43,0))","v":0},{"$f":"IF(Betrachtungszeit_PW*Fahrleistung_PW<AH$18,0,IF(AH$18-(COUNTIF($P43:AG43,\">0\")*$K43)>$K43,$D43,0))","v":0},{"$f":"IF(Betrachtungszeit_PW*Fahrleistung_PW<AI$18,0,IF(AI$18-(COUNTIF($P43:AH43,\">0\")*$K43)>$K43,$D43,0))","v":0},{"$f":"IF(Betrachtungszeit_PW*Fahrleistung_PW<AJ$18,0,IF(AJ$18-(COUNTIF($P43:AI43,\">0\")*$K43)>$K43,$D43,0))","v":0},{"$f":"IF(Betrachtungszeit_PW*Fahrleistung_PW<AK$18,0,IF(AK$18-(COUNTIF($P43:AJ43,\">0\")*$K43)>$K43,$D43,0))","v":0},{"$f":"IF(Betrachtungszeit_PW*Fahrleistung_PW<AL$18,0,IF(AL$18-(COUNTIF($P43:AK43,\">0\")*$K43)>$K43,$D43,0))","v":0},{"$f":"IF(Betrachtungszeit_PW*Fahrleistung_PW<AM$18,0,IF(AM$18-(COUNTIF($P43:AL43,\">0\")*$K43)>$K43,$D43,0))","v":0},{"$f":"IF(Betrachtungszeit_PW*Fahrleistung_PW<AN$18,0,IF(AN$18-(COUNTIF($P43:AM43,\">0\")*$K43)>$K43,$D43,0))","v":0},{"$f":"IF(Betrachtungszeit_PW*Fahrleistung_PW<AO$18,0,IF(AO$18-(COUNTIF($P43:AN43,\">0\")*$K43)>$K43,$D43,0))","v":0},{"$f":"IF(Betrachtungszeit_PW*Fahrleistung_PW<AP$18,0,IF(AP$18-(COUNTIF($P43:AO43,\">0\")*$K43)>$K43,$D43,0))","v":0},{"$f":"IF(Betrachtungszeit_PW*Fahrleistung_PW<AQ$18,0,IF(AQ$18-(COUNTIF($P43:AP43,\">0\")*$K43)>$K43,$D43,0))","v":0},{"$f":"IF(Betrachtungszeit_PW*Fahrleistung_PW<AR$18,0,IF(AR$18-(COUNTIF($P43:AQ43,\">0\")*$K43)>$K43,$D43,0))","v":0},{"$f":"IF(Betrachtungszeit_PW*Fahrleistung_PW<AS$18,0,IF(AS$18-(COUNTIF($P43:AR43,\">0\")*$K43)>$K43,$D43,0))","v":0},{"$f":"IF(Betrachtungszeit_PW*Fahrleistung_PW<AT$18,0,IF(AT$18-(COUNTIF($P43:AS43,\">0\")*$K43)>$K43,$D43,0))","v":0},0,null,0,0,0,0,0,0,0,0,0,0,0,0,0,0,0,0,0,0,0,0,0,0,0,0,0,0,0,0,0,0,0]
[null,"Weitere Ersatzteile",null,null,150000,null,null,null,null,null,150000,null,{"$error":"#DIV/0!"},null,"Weitere Ersatzteile: ",0,{"$f":"IF(Betrachtungszeit_PW*Fahrleistung_PW<Q$18,0,IF(Q$18-(COUNTIF($P44:P44,\">0\")*$K44)>$K44,$D44,0))","v":0},{"$f":"IF(Betrachtungszeit_PW*Fahrleistung_PW<R$18,0,IF(R$18-(COUNTIF($P44:Q44,\">0\")*$K44)>$K44,$D44,0))","v":0},{"$f":"IF(Betrachtungszeit_PW*Fahrleistung_PW<S$18,0,IF(S$18-(COUNTIF($P44:R44,\">0\")*$K44)>$K44,$D44,0))","v":0},{"$f":"IF(Betrachtungszeit_PW*Fahrleistung_PW<T$18,0,IF(T$18-(COUNTIF($P44:S44,\">0\")*$K44)>$K44,$D44,0))","v":0},{"$f":"IF(Betrachtungszeit_PW*Fahrleistung_PW<U$18,0,IF(U$18-(COUNTIF($P44:T44,\">0\")*$K44)>$K44,$D44,0))","v":0},{"$f":"IF(Betrachtungszeit_PW*Fahrleistung_PW<V$18,0,IF(V$18-(COUNTIF($P44:U44,\">0\")*$K44)>$K44,$D44,0))","v":0},{"$f":"IF(Betrachtungszeit_PW*Fahrleistung_PW<W$18,0,IF(W$18-(COUNTIF($P44:V44,\">0\")*$K44)>$K44,$D44,0))","v":0},{"$f":"IF(Betrachtungszeit_PW*Fahrleistung_PW<X$18,0,IF(X$18-(COUNTIF($P44:W44,\">0\")*$K44)>$K44,$D44,0))","v":0},{"$f":"IF(Betrachtungszeit_PW*Fahrleistung_PW<Y$18,0,IF(Y$18-(COUNTIF($P44:X44,\">0\")*$K44)>$K44,$D44,0))","v":0},{"$f":"IF(Betrachtungszeit_PW*Fahrleistung_PW<Z$18,0,IF(Z$18-(COUNTIF($P44:Y44,\">0\")*$K44)>$K44,$D44,0))","v":0},{"$f":"IF(Betrachtungszeit_PW*Fahrleistung_PW<AA$18,0,IF(AA$18-(COUNTIF($P44:Z44,\">0\")*$K44)>$K44,$D44,0))","v":0},{"$f":"IF(Betrachtungszeit_PW*Fahrleistung_PW<AB$18,0,IF(AB$18-(COUNTIF($P44:AA44,\">0\")*$K44)>$K44,$D44,0))","v":0},{"$f":"IF(Betrachtungszeit_PW*Fahrleistung_PW<AC$18,0,IF(AC$18-(COUNTIF($P44:AB44,\">0\")*$K44)>$K44,$D44,0))","v":0},{"$f":"IF(Betrachtungszeit_PW*Fahrleistung_PW<AD$18,0,IF(AD$18-(COUNTIF($P44:AC44,\">0\")*$K44)>$K44,$D44,0))","v":0},{"$f":"IF(Betrachtungszeit_PW*Fahrleistung_PW<AE$18,0,IF(AE$18-(COUNTIF($P44:AD44,\">0\")*$K44)>$K44,$D44,0))","v":0},{"$f":"IF(Betrachtungszeit_PW*Fahrleistung_PW<AF$18,0,IF(AF$18-(COUNTIF($P44:AE44,\">0\")*$K44)>$K44,$D44,0))","v":0},{"$f":"IF(Betrachtungszeit_PW*Fahrleistung_PW<AG$18,0,IF(AG$18-(COUNTIF($P44:AF44,\">0\")*$K44)>$K44,$D44,0))","v":0},{"$f":"IF(Betrachtungszeit_PW*Fahrleistung_PW<AH$18,0,IF(AH$18-(COUNTIF($P44:AG44,\">0\")*$K44)>$K44,$D44,0))","v":0},{"$f":"IF(Betrachtungszeit_PW*Fahrleistung_PW<AI$18,0,IF(AI$18-(COUNTIF($P44:AH44,\">0\")*$K44)>$K44,$D44,0))","v":0},{"$f":"IF(Betrachtungszeit_PW*Fahrleistung_PW<AJ$18,0,IF(AJ$18-(COUNTIF($P44:AI44,\">0\")*$K44)>$K44,$D44,0))","v":0},{"$f":"IF(Betrachtungszeit_PW*Fahrleistung_PW<AK$18,0,IF(AK$18-(COUNTIF($P44:AJ44,\">0\")*$K44)>$K44,$D44,0))","v":0},{"$f":"IF(Betrachtungszeit_PW*Fahrleistung_PW<AL$18,0,IF(AL$18-(COUNTIF($P44:AK44,\">0\")*$K44)>$K44,$D44,0))","v":0},{"$f":"IF(Betrachtungszeit_PW*Fahrleistung_PW<AM$18,0,IF(AM$18-(COUNTIF($P44:AL44,\">0\")*$K44)>$K44,$D44,0))","v":0},{"$f":"IF(Betrachtungszeit_PW*Fahrleistung_PW<AN$18,0,IF(AN$18-(COUNTIF($P44:AM44,\">0\")*$K44)>$K44,$D44,0))","v":0},{"$f":"IF(Betrachtungszeit_PW*Fahrleistung_PW<AO$18,0,IF(AO$18-(COUNTIF($P44:AN44,\">0\")*$K44)>$K44,$D44,0))","v":0},{"$f":"IF(Betrachtungszeit_PW*Fahrleistung_PW<AP$18,0,IF(AP$18-(COUNTIF($P44:AO44,\">0\")*$K44)>$K44,$D44,0))","v":0},{"$f":"IF(Betrachtungszeit_PW*Fahrleistung_PW<AQ$18,0,IF(AQ$18-(COUNTIF($P44:AP44,\">0\")*$K44)>$K44,$D44,0))","v":0},{"$f":"IF(Betrachtungszeit_PW*Fahrleistung_PW<AR$18,0,IF(AR$18-(COUNTIF($P44:AQ44,\">0\")*$K44)>$K44,$D44,0))","v":0},{"$f":"IF(Betrachtungszeit_PW*Fahrleistung_PW<AS$18,0,IF(AS$18-(COUNTIF($P44:AR44,\">0\")*$K44)>$K44,$D44,0))","v":0},{"$f":"IF(Betrachtungszeit_PW*Fahrleistung_PW<AT$18,0,IF(AT$18-(COUNTIF($P44:AS44,\">0\")*$K44)>$K44,$D44,0))","v":0},0,null,0,0,0,0,0,0,0,0,0,0,0,0,0,0,0,0,0,0,0,0,0,0,0,0,0,0,0,0,0,0,0]
[null,"Weitere Ersatzteile",null,null,150000,null,null,null,null,null,150000,null,{"$error":"#DIV/0!"},null,"Weitere Ersatzteile: ",0,{"$f":"IF(Betrachtungszeit_PW*Fahrleistung_PW<Q$18,0,IF(Q$18-(COUNTIF($P45:P45,\">0\")*$K45)>$K45,$D45,0))","v":0},{"$f":"IF(Betrachtungszeit_PW*Fahrleistung_PW<R$18,0,IF(R$18-(COUNTIF($P45:Q45,\">0\")*$K45)>$K45,$D45,0))","v":0},{"$f":"IF(Betrachtungszeit_PW*Fahrleistung_PW<S$18,0,IF(S$18-(COUNTIF($P45:R45,\">0\")*$K45)>$K45,$D45,0))","v":0},{"$f":"IF(Betrachtungszeit_PW*Fahrleistung_PW<T$18,0,IF(T$18-(COUNTIF($P45:S45,\">0\")*$K45)>$K45,$D45,0))","v":0},{"$f":"IF(Betrachtungszeit_PW*Fahrleistung_PW<U$18,0,IF(U$18-(COUNTIF($P45:T45,\">0\")*$K45)>$K45,$D45,0))","v":0},{"$f":"IF(Betrachtungszeit_PW*Fahrleistung_PW<V$18,0,IF(V$18-(COUNTIF($P45:U45,\">0\")*$K45)>$K45,$D45,0))","v":0},{"$f":"IF(Betrachtungszeit_PW*Fahrleistung_PW<W$18,0,IF(W$18-(COUNTIF($P45:V45,\">0\")*$K45)>$K45,$D45,0))","v":0},{"$f":"IF(Betrachtungszeit_PW*Fahrleistung_PW<X$18,0,IF(X$18-(COUNTIF($P45:W45,\">0\")*$K45)>$K45,$D45,0))","v":0},{"$f":"IF(Betrachtungszeit_PW*Fahrleistung_PW<Y$18,0,IF(Y$18-(COUNTIF($P45:X45,\">0\")*$K45)>$K45,$D45,0))","v":0},{"$f":"IF(Betrachtungszeit_PW*Fahrleistung_PW<Z$18,0,IF(Z$18-(COUNTIF($P45:Y45,\">0\")*$K45)>$K45,$D45,0))","v":0},{"$f":"IF(Betrachtungszeit_PW*Fahrleistung_PW<AA$18,0,IF(AA$18-(COUNTIF($P45:Z45,\">0\")*$K45)>$K45,$D45,0))","v":0},{"$f":"IF(Betrachtungszeit_PW*Fahrleistung_PW<AB$18,0,IF(AB$18-(COUNTIF($P45:AA45,\">0\")*$K45)>$K45,$D45,0))","v":0},{"$f":"IF(Betrachtungszeit_PW*Fahrleistung_PW<AC$18,0,IF(AC$18-(COUNTIF($P45:AB45,\">0\")*$K45)>$K45,$D45,0))","v":0},{"$f":"IF(Betrachtungszeit_PW*Fahrleistung_PW<AD$18,0,IF(AD$18-(COUNTIF($P45:AC45,\">0\")*$K45)>$K45,$D45,0))","v":0},{"$f":"IF(Betrachtungszeit_PW*Fahrleistung_PW<AE$18,0,IF(AE$18-(COUNTIF($P45:AD45,\">0\")*$K45)>$K45,$D45,0))","v":0},{"$f":"IF(Betrachtungszeit_PW*Fahrleistung_PW<AF$18,0,IF(AF$18-(COUNTIF($P45:AE45,\">0\")*$K45)>$K45,$D45,0))","v":0},{"$f":"IF(Betrachtungszeit_PW*Fahrleistung_PW<AG$18,0,IF(AG$18-(COUNTIF($P45:AF45,\">0\")*$K45)>$K45,$D45,0))","v":0},{"$f":"IF(Betrachtungszeit_PW*Fahrleistung_PW<AH$18,0,IF(AH$18-(COUNTIF($P45:AG45,\">0\")*$K45)>$K45,$D45,0))","v":0},{"$f":"IF(Betrachtungszeit_PW*Fahrleistung_PW<AI$18,0,IF(AI$18-(COUNTIF($P45:AH45,\">0\")*$K45)>$K45,$D45,0))","v":0},{"$f":"IF(Betrachtungszeit_PW*Fahrleistung_PW<AJ$18,0,IF(AJ$18-(COUNTIF($P45:AI45,\">0\")*$K45)>$K45,$D45,0))","v":0},{"$f":"IF(Betrachtungszeit_PW*Fahrleistung_PW<AK$18,0,IF(AK$18-(COUNTIF($P45:AJ45,\">0\")*$K45)>$K45,$D45,0))","v":0},{"$f":"IF(Betrachtungszeit_PW*Fahrleistung_PW<AL$18,0,IF(AL$18-(COUNTIF($P45:AK45,\">0\")*$K45)>$K45,$D45,0))","v":0},{"$f":"IF(Betrachtungszeit_PW*Fahrleistung_PW<AM$18,0,IF(AM$18-(COUNTIF($P45:AL45,\">0\")*$K45)>$K45,$D45,0))","v":0},{"$f":"IF(Betrachtungszeit_PW*Fahrleistung_PW<AN$18,0,IF(AN$18-(COUNTIF($P45:AM45,\">0\")*$K45)>$K45,$D45,0))","v":0},{"$f":"IF(Betrachtungszeit_PW*Fahrleistung_PW<AO$18,0,IF(AO$18-(COUNTIF($P45:AN45,\">0\")*$K45)>$K45,$D45,0))","v":0},{"$f":"IF(Betrachtungszeit_PW*Fahrleistung_PW<AP$18,0,IF(AP$18-(COUNTIF($P45:AO45,\">0\")*$K45)>$K45,$D45,0))","v":0},{"$f":"IF(Betrachtungszeit_PW*Fahrleistung_PW<AQ$18,0,IF(AQ$18-(COUNTIF($P45:AP45,\">0\")*$K45)>$K45,$D45,0))","v":0},{"$f":"IF(Betrachtungszeit_PW*Fahrleistung_PW<AR$18,0,IF(AR$18-(COUNTIF($P45:AQ45,\">0\")*$K45)>$K45,$D45,0))","v":0},{"$f":"IF(Betrachtungszeit_PW*Fahrleistung_PW<AS$18,0,IF(AS$18-(COUNTIF($P45:AR45,\">0\")*$K45)>$K45,$D45,0))","v":0},{"$f":"IF(Betrachtungszeit_PW*Fahrleistung_PW<AT$18,0,IF(AT$18-(COUNTIF($P45:AS45,\">0\")*$K45)>$K45,$D45,0))","v":0},0,null,0,0,0,0,0,0,0,0,0,0,0,0,0,0,0,0,0,0,0,0,0,0,0,0,0,0,0,0,0,0,0]
[null,"Restwert Ersatzteile am Ende der Betrachtungszeit","CHF",{"$f":"SUM(AU33:AU45)","v":0},null,null,null,null,null,null,null,null,null,null,"Kosten Ersatzteile abzüglich Restwert",null,null,null,null,null,null,null,null,null,null,null,null,null,null,null,null,null,null,null,null,null,null,null,null,null,null,null,null,null,null,null,"Nettobarwert"]
[null,null,null,null,null,null,null,null,null,null,null,null,null,null,"Kosten Ersatzteile",{"$f":"SUM(P33:P37,P39:P45)","v":0},{"$f":"SUM(Q33:Q37,Q39:Q45)","v":0},0,0,0,0,0,0,0,0,0,0,0,0,0,0,0,0,0,0,0,0,0,0,0,0,0,0,0,0,0]
[null,null,null,null,null,null,null,null,null,null,null,null,null,null,"Restwert Ersatzteile",{"$f":"IF(Betrachtungszeit_PW=P17,-$D$46,0)","v":0},0,0,0,0,0,0,0,0,0,0,0,0,0,0,0,0,0,0,0,0,0,0,0,0,0,0,0,0,0,0]
[null,"Service- und Reparaturkosten","Beschreibung","Kosten \n(alle Fahrz.) [CHF/a]",null,null,null,null,null,null,null,null,null,null,"Kosten inkl. Preissteigerung",{"$f":"SUM(P47:P48)*(1+Inflationsindex)^P$17","v":0},0,0,0,0,0,0,0,0,0,0,0,0,0,0,0,0,0,0,0,0,0,0,0,0,0,0,0,0,0,0]
[null,"Servicekosten",null,null,null,null,null,null,null,null,null,null,null,null,"Barwert",{"$f":"P49*(1+Kalkulationszinssatz)^-P$17","v":0},0,0,0,0,0,0,0,0,0,0,0,0,0,0,0,0,0,0,0,0,0,0,0,0,0,0,0,0,0,0,{"$f":"SUM(P50:AT50)","v":0}]
[null,"Reperaturkosten"]
[null,"Weitere jährliche Service- und Reparaturkosten"]
[null,"Weitere jährliche Service- und Reparaturkosten"]
[null,"Weitere jährliche Service- und Reparaturkosten"]
[null,"Total",null,{"$f":"SUM(D50:D54)","v":0},null,null,null,null,null,null,null,null,null,null,"Service- und Reparaturkosten",null,null,null,null,null,null,null,null,null,null,null,null,null,null,null,null,null,null,null,null,null,null,null,null,null,null,null,null,null,null,null,"Nettobarwert"]
[null,null,null,null,null,null,null,null,null,null,null,null,null,null,"Kosten inkl. Preissteigerung",0,{"$f":"IF(Q$17<=Betrachtungszeit_PW,D55+D55*Inflationsindex,0)","v":0},{"$f":"IF(R$17<=Betrachtungszeit_PW,Q56+Q56*Inflationsindex,0)","v":0},0,0,0,0,0,0,0,0,0,0,0,0,0,0,0,0,0,0,0,0,0,0,0,0,0,0,0,0]
["K","Betriebskosten",null,null,null,null,null,null,null,null,null,null,null,null,"Barwert",0,{"$f":"Q56*(1+Kalkulationszinssatz)^-Q$17","v":0},0,0,0,0,0,0,0,0,0,0,0,0,0,0,0,0,0,0,0,0,0,0,0,0,0,0,0,0,0,{"$f":"SUM(P57:AT57)","v":0}]
[null,"Verkehrssteuer"]
[null,"Haftpflicht-Versicherung"]
[null,"Kasko-Versicherung"]
[null,"Weitere Versicherungen"]
[null,"Pannenhilfe, Assistance"]
[null,"Garagierungskosten"]
[null,"Autobahnvignette"]
[null,"Strassenbenützungsgebühren"]
[null,"Mitgliedsbeiträge"]
[null,"Nebenauslagen"]
[null,"Fahrzeugpflege"]
[null,"Weitere jährliche Betriebskosten",null,null,null,null,null,null,null,null,null,null,null,null,"Betriebskosten",null,null,null,null,null,null,null,null,null,null,null,null,null,null,null,null,null,null,null,null,null,null,null,null,null,null,null,null,null,null,null,"Nettobarwert"]
[null,"Weitere jährliche Betriebskosten",null,null,null,null,null,null,null,null,null,null,null,null,"Kosten inkl. Preissteigerung",0,{"$f":"IF(Q$17<=Betrachtungszeit_PW,D72+D72*Inflationsindex,0)","v":0},{"$f":"IF(R$17<=Betrachtungszeit_PW,Q70+Q70*Inflationsindex,0)","v":0},0,0,0,0,0,0,0,0,0,0,0,0,0,0,0,0,0,0,0,0,0,0,0,0,0,0,0,0]
[null,"Weitere jährliche Betriebskosten",null,null,null,null,null,null,null,null,null,null,null,null,"Barwert",0,{"$f":"Q70*(1+Kalkulationszinssatz)^-Q$17","v":0},0,0,0,0,0,0,0,0,0,0,0,0,0,0,0,0,0,0,0,0,0,0,0,0,0,0,0,0,0,{"$f":"SUM(P71:AT71)","v":0}]
[null,"Total",null,{"$f":"SUM(D58:D71)","v":0}]
[]
[null,"Energie- und Ladekosten",{"$f":"\"Treibstoff:\n \"&$C$8","v":"Treibstoff:\n BITTE WÄHLEN"},"Total",null,null,null,null,null,null,null,null,null,null,"Energie- und Ladekosten",null,null,null,null,null,null,null,null,null,null,null,null,null,null,null,null,null,null,null,null,null,null,null,null,null,null,null,null,null,null,null,"Nettobarwert"]
["K","Leistungskosten (eigene Ladestation)",{"$f":"IF(C13=13,C11*12,0)*VLOOKUP(C13,Input_Generell!$W$9:$AB$22,2,0)","v":0},{"$f":"SUM(C75:C75)","v":0},"CHF/a",null,null,null,null,null,null,null,null,null,"Leistungskosten (eigene Ladestation) inkl. Energiepreissteigerung",0,{"$f":"IF(Q$17<=Betrachtungszeit_PW,$D$75*(1+Energiepreissteigerung),0)","v":0},{"$f":"IF(R$17<=Betrachtungszeit_PW,Q75*(1+Energiepreissteigerung),0)","v":0},0,0,0,0,0,0,0,0,0,0,0,0,0,0,0,0,0,0,0,0,0,0,0,0,0,0,0,0]
["K","Energiekosten (eigene Ladestation)",{"$f":"IF(C13=13,Anteil_Intern*C10*Stückzahl_PW*1000*(Anteil_HT*StrompreisHT/100+Anteil_NT*StrompreisNT/100),0)","v":0},{"$f":"SUM(C76:C76)","v":0},"CHF/a",null,null,null,null,null,null,null,null,null,"Energiekosten (eigene Ladestation) inkl. Energiepreissteigerung",0,{"$f":"IF(Q$17<=Betrachtungszeit_PW,$D$76*(1+Energiepreissteigerung),0)","v":0},{"$f":"IF(R$17<=Betrachtungszeit_PW,Q76*(1+Energiepreissteigerung),0)","v":0},0,0,0,0,0,0,0,0,0,0,0,0,0,0,0,0,0,0,0,0,0,0,0,0,0,0,0,0]
[null,"Energiekosten (externes Tanken/Laden)",{"$f":"IF(C13=13,Anteil_Extern*Verbrauchsbasiert_Preis/100*C10*Stückzahl_PW*1000,VLOOKUP(C13,Input_Generell!$W$9:$AB$22,3,0)/100*C10*Stückzahl_PW*1000)","v":0},{"$f":"SUM(C77:C77)","v":0},"CHF/a",null,null,null,null,null,null,null,null,null,"Energiekosten (externes Tanken/Laden) inkl. Energiepreissteigerung",0,{"$f":"IF(Q$17<=Betrachtungszeit_PW,$D$77*(1+Energiepreissteigerung),0)","v":0},{"$f":"IF(R$17<=Betrachtungszeit_PW,Q77*(1+Energiepreissteigerung),0)","v":0},0,0,0,0,0,0,0,0,0,0,0,0,0,0,0,0,0,0,0,0,0,0,0,0,0,0,0,0]
["K","Strompreisunabhängige Ladekosten (externes Laden)",{"$f":"IF(C13=13,Input_Generell!D22,0)","v":0},{"$f":"SUM(C78:C78)","v":0},"CHF/a",null,null,null,null,null,null,null,null,null,"Strompreisunabh. Ladekosten (externes Laden) inkl. Preissteigerung",0,{"$f":"IF(Q$17<=Betrachtungszeit_PW,$D$78*(1+Inflationsindex),0)","v":0},{"$f":"IF(R$17<=Betrachtungszeit_PW,Q78*(1+Inflationsindex),0)","v":0},0,0,0,0,0,0,0,0,0,0,0,0,0,0,0,0,0,0,0,0,0,0,0,0,0,0,0,0]
[null,"Total",{"$f":"SUM(C75:C78)","v":0},{"$f":"SUM(D75:D78)","v":0},"CHF/a",null,null,null,null,null,null,null,null,null,"Barwert",0,{"$f":"SUM(Q75:Q78)*(1+Kalkulationszinssatz)^-Q$17","v":0},0,0,0,0,0,0,0,0,0,0,0,0,0,0,0,0,0,0,0,0,0,0,0,0,0,0,0,0,0,{"$f":"SUM(P79:AT79)","v":0}]
[]
[null,"Betrieb: Externe Kosten",{"$f":"\"Treibstoff:\n \"&$C$8","v":"Treibstoff:\n BITTE WÄHLEN"},"Total"]
[null,"Treibhausgasemissionen (THG)",{"$f":"C10*Stückzahl_PW*(1/1000)*IF(C13=13,Anteil_Intern*EF_Strom+Anteil_Extern*EF_Verbrauchsbasiert,VLOOKUP(C13,Input_Generell!$W$9:$AB$22,5,0))","v":0},{"$f":"SUM(C82:C82)","v":0},"tCO2eq/a",null,null,null,null,null,null,null,null,null,"Betrieb: Externe Kosten Treibhausgasemissionen",null,null,null,null,null,null,null,null,null,null,null,null,null,null,null,null,null,null,null,null,null,null,null,null,null,null,null,null,null,null,null,"Nettobarwert"]
[null,"Umweltbelastungspunkte UBP'13",{"$f":"C10*Stückzahl_PW*1000*IF(C13=13,Anteil_Intern*UBP_Strom+Anteil_Extern*UBP_Strom_Extern,VLOOKUP(C13,Input_Generell!$W$9:$AB$22,6,0))","v":0},{"$f":"SUM(C83:C83)","v":0},"UBP/a",null,null,null,null,null,null,null,null,null,"Kosten inkl. Preissteigerung",0,{"$f":"IF(Q$17<=Betrachtungszeit_PW,D84+D84*Inflationsindex,0)","v":0},{"$f":"IF(R$17<=Betrachtungszeit_PW,Q83+Q83*Inflationsindex,0)","v":0},0,0,0,0,0,0,0,0,0,0,0,0,0,0,0,0,0,0,0,0,0,0,0,0,0,0,0,0]
[null,{"$f":"VLOOKUP(Input_Generell!$B$28,Input_Generell!$B$52:$D$55,3,0)","v":"Kosten für THG: nicht gewählt"},{"$f":"C82*Kosten_THG","v":0},{"$f":"SUM(C84:C84)","v":0},"CHF/a",null,null,null,null,null,null,null,null,null,"Barwert",0,{"$f":"Q83*(1+Kalkulationszinssatz)^-Q$17","v":0},0,0,0,0,0,0,0,0,0,0,0,0,0,0,0,0,0,0,0,0,0,0,0,0,0,0,0,0,0,{"$f":"SUM(P84:AT84)","v":0}]
[]
[null,"Entsorgungskosten",null,null,null,null,null,null,null,null,null,null,null,null,"Entsorgung am Ende der Betrachtungszeit der Lebenszyklusrechnung",null,null,null,null,null,null,null,null,null,null,null,null,null,null,null,null,null,null,null,null,null,null,null,null,null,null,null,null,null,null,null,"Nettobarwert"]
["K","Entsorgungskosten",null,null,"CHF",null,null,null,null,null,null,null,null,null,"Kosten inkl. Preissteigerung",0,{"$f":"IF(Q$17=Betrachtungszeit_PW,$D$87*(1+Inflationsindex)^Q$17,0)","v":0},0,0,0,0,0,0,0,0,0,0,0,0,0,0,0,0,0,0,0,0,0,0,0,0,0,0,0,0,0]
[null,null,null,null,null,null,null,null,null,null,null,null,null,null,"Barwert",0,{"$f":"Q87*(1+Kalkulationszinssatz)^-Q$17","v":0},0,0,0,0,0,0,0,0,0,0,0,0,0,0,0,0,0,0,0,0,0,0,0,0,0,0,0,0,0,{"$f":"SUM(P88:AT88)","v":0}]
[]
[null,"Umweltrelevante Angaben Erstellung und Entsorgung der Fahrzeuge"]
[null,"Die Treibhausgas-Emissionen und Umweltbelastungspunkte, die aus der Erstellung und Entsorgung der Fahrzeuge entstehen, können nachfolgend berechnet werden. Mit Hilfe des mobitools (2017) kann die Grössenordnung der Treibhausgas-Emissionen und Umweltbelastungspunkte aus der Herstellung und Entsorgung ermittelt werden. Mobitool gibt diese Emissionen pro Kilometer aus (ausgehend von einer typischen Distanz über die Lebensdauer). Insbesondere wenn die Fahrzeuge über die Lebensdauer besonders wenig oder besonders viele Kilometer zurücklegen und/oder Fahrzeuge mit erneuerbaren Treibstoffen verglichen werden, empfiehlt sich jedoch eine genauere Abklärung. Falls aus der Erstellung und Entsorgung keine Daten einbezogen werden sollen, können die Eingabewerte leer gelassen werden. Die Vorgehensweise für die Ermittlung der Eingabewerte mit Hilfe des mobitools wird nachfolgend beschrieben.\nIm mobitool, in der Zeile des betroffenen Fahrzeugmodells:\n- Auslastung auf 1 setzen (somit werden die Werte pro Kilometer anstelle pro Personen-Kilometer ausgegeben)\n- Das 'Fahrzeuggewicht' sowie bei Elektro-Fahrzeugen das 'Batteriegewicht' und die 'Anzahl Batteriewechsel über Lebensdauer' anpassen\n- Im grauen Bereich oben links den gewünschten Indikator wählen ('Treibhausgaspotenzial' resp. 'UBP13')\n- In der Spalte 'Fahrzeugherstellung / -entsorgung' können die Werte für CO2eq resp. UBP abgelesen werden"]
[]
[null,"Erstellung und Entsorgung Fahrzeug:\nExterne Kosten","Fahrzeugherstellung / -entsorgung",null,"Total"]
[null,"Treibhausgasemissionen (THG)",null,"g CO2eq / km / Fahrz.",{"$f":"Stückzahl_PW*Betrachtungszeit_PW*Fahrleistung_PW*C94/1000000","v":0},"tCO2eq"]
[null,"Umweltbelastungspunkte UBP'13",null,"UBP / km / Fahrz.",{"$f":"Stückzahl_PW*Betrachtungszeit_PW*Fahrleistung_PW*C95","v":0},"UBP",null,null,null,null,null,null,null,null,"Erstellung / Entsorgung: Externe Kosten Treibhausgasemissionen",null,null,null,null,null,null,null,null,null,null,null,null,null,null,null,null,null,null,null,null,null,null,null,null,null,null,null,null,null,null,null,"Nettobarwert"]
["K",{"$f":"VLOOKUP(Input_Generell!$B$28,Input_Generell!$B$52:$D$55,3,0)","v":"Kosten für THG: nicht gewählt"},null,null,{"$f":"E94*Kosten_THG","v":0},"CHF",null,null,null,null,null,null,null,null,"Barwert",{"$f":"E96","v":0},null,null,null,null,null,null,null,null,null,null,null,null,null,null,null,null,null,null,null,null,null,null,null,null,null,null,null,null,null,null,{"$f":"SUM(P96:AT96)","v":0}]
[]
[]
[null,"Lebenszykluskosten"]
[null,"Kosten des Fahrzeugs über den gesamten Lebenszyklus gesehen (in Form des Nettobarwertes = Kapitalwert)."]
[null,null,null,null,null,null,null,null,null,null,null,null,null,null,"Barwerte",null,null,null,null,null,null,null,null,null,null,null,null,null,null,null,null,null,null,null,null,null,null,null,null,null,null,null,null,null,null,null,"Nettobarwert"]
["K","Anschaffungskosten (abzüglich Förderbeitrag, Restwert)",null,null,{"$f":"AU102","v":0},"CHF",null,null,null,null,null,null,null,null,{"$f":"B102","v":"Anschaffungskosten (abzüglich Förderbeitrag, Restwert)"},{"$f":"P29","v":0},0,0,0,0,0,0,0,0,0,0,0,0,0,0,0,0,0,0,0,0,0,0,0,0,0,0,0,0,0,0,0]
[null,"Kosten Ersatzteile (abzüglich Restwert)",null,null,{"$f":"AU103","v":0},"CHF",null,null,null,null,null,null,null,null,"Kosten Ersatzteile (abzüglich Restwert)",{"$f":"P50","v":0},0,0,0,0,0,0,0,0,0,0,0,0,0,0,0,0,0,0,0,0,0,0,0,0,0,0,0,0,0,0,0]
[null,"Service- und Reparaturkosten",null,null,{"$f":"AU104","v":0},"CHF",null,null,null,null,null,null,null,null,"Service- und Reparaturkosten",{"$f":"P57","v":0},0,0,0,0,0,0,0,0,0,0,0,0,0,0,0,0,0,0,0,0,0,0,0,0,0,0,0,0,0,0,0]
[null,"Betriebskosten",null,null,{"$f":"AU105","v":0},"CHF",null,null,null,null,null,null,null,null,"Betriebskosten",{"$f":"P71","v":0},0,0,0,0,0,0,0,0,0,0,0,0,0,0,0,0,0,0,0,0,0,0,0,0,0,0,0,0,0,0,0]
[null,"Energiekosten",null,null,0,"CHF",null,null,null,null,null,null,null,null,"Energiekosten",{"$f":"P79","v":0},0,0,0,0,0,0,0,0,0,0,0,0,0,0,0,0,0,0,0,0,0,0,0,0,0,0,0,0,0,0,0]
["K",{"$f":"VLOOKUP(Input_Generell!$B$28,Input_Generell!$B$52:$D$55,3,0)&\" (Betrieb und Erstellung/Entsorgung)\"","v":"Kosten für THG: nicht gewählt (Betrieb und Erstellung/Entsorgung)"},null,null,0,"CHF",null,null,null,null,null,null,null,null,"Kosten für THG: nicht gewählt (Betrieb und Erstellung/Entsorgung)",{"$f":"P84+P96","v":0},0,0,0,0,0,0,0,0,0,0,0,0,0,0,0,0,0,0,0,0,0,0,0,0,0,0,0,0,0,0,0]
[null,"Entsorgungskosten",null,null,0,"CHF",null,null,null,null,null,null,null,null,"Entsorgungskosten",{"$f":"P88","v":0},0,0,0,0,0,0,0,0,0,0,0,0,0,0,0,0,0,0,0,0,0,0,0,0,0,0,0,0,0,0,0]
[null,"Total",null,null,0,"CHF",null,null,null,null,null,null,null,null,"Total",{"$f":"SUM(P102:P108)","v":0},0,0,0,0,0,0,0,0,0,0,0,0,0,0,0,0,0,0,0,0,0,0,0,0,0,0,0,0,0,0,0]
[null,null,null,null,null,null,null,null,null,null,null,null,null,null,"Total aufsummiert",{"$f":"P109","v":0},{"$f":"P110+Q109","v":0},{"$f":"Q110+R109","v":0},{"$f":"R110+S109","v":0},0,0,0,0,0,0,0,0,0,0,0,0,0,0,0,0,0,0,0,0,0,0,0,0,0,0,{"$f":"AS110+AT109","v":0}]
[null,"Treibhausgasemissionen Erstellung/Entsorgung Fahrzeuge (Scope 3)",null,null,{"$f":"E94","v":0},"tCO2eq",null,null,null,null,null,null,null,null,"Diagramm Anzeige Betrachtungszeit",{"$f":"IF(P17=Betrachtungszeit_PW,MAX(Resultate_PW!$D$14:$H$14),0)","v":0},{"$f":"IF(Q17=Betrachtungszeit_PW,MAX(Resultate_PW!$D$14:$H$14),0)","v":0},{"$f":"IF(R17=Betrachtungszeit_PW,MAX(Resultate_PW!$D$14:$H$14),0)","v":0},{"$f":"IF(S17=Betrachtungszeit_PW,MAX(Resultate_PW!$D$14:$H$14),0)","v":0},{"$f":"IF(T17=Betrachtungszeit_PW,MAX(Resultate_PW!$D$14:$H$14),0)","v":0},{"$f":"IF(U17=Betrachtungszeit_PW,MAX(Resultate_PW!$D$14:$H$14),0)","v":0},{"$f":"IF(V17=Betrachtungszeit_PW,MAX(Resultate_PW!$D$14:$H$14),0)","v":0},{"$f":"IF(W17=Betrachtungszeit_PW,MAX(Resultate_PW!$D$14:$H$14),0)","v":0},{"$f":"IF(X17=Betrachtungszeit_PW,MAX(Resultate_PW!$D$14:$H$14),0)","v":0},{"$f":"IF(Y17=Betrachtungszeit_PW,MAX(Resultate_PW!$D$14:$H$14),0)","v":0},{"$f":"IF(Z17=Betrachtungszeit_PW,MAX(Resultate_PW!$D$14:$H$14),0)","v":0},{"$f":"IF(AA17=Betrachtungszeit_PW,MAX(Resultate_PW!$D$14:$H$14),0)","v":0},{"$f":"IF(AB17=Betrachtungszeit_PW,MAX(Resultate_PW!$D$14:$H$14),0)","v":0},{"$f":"IF(AC17=Betrachtungszeit_PW,MAX(Resultate_PW!$D$14:$H$14),0)","v":0},{"$f":"IF(AD17=Betrachtungszeit_PW,MAX(Resultate_PW!$D$14:$H$14),0)","v":0},{"$f":"IF(AE17=Betrachtungszeit_PW,MAX(Resultate_PW!$D$14:$H$14),0)","v":0},{"$f":"IF(AF17=Betrachtungszeit_PW,MAX(Resultate_PW!$D$14:$H$14),0)","v":0},{"$f":"IF(AG17=Betrachtungszeit_PW,MAX(Resultate_PW!$D$14:$H$14),0)","v":0},{"$f":"IF(AH17=Betrachtungszeit_PW,MAX(Resultate_PW!$D$14:$H$14),0)","v":0},{"$f":"IF(AI17=Betrachtungszeit_PW,MAX(Resultate_PW!$D$14:$H$14),0)","v":0},{"$f":"IF(AJ17=Betrachtungszeit_PW,MAX(Resultate_PW!$D$14:$H$14),0)","v":0},{"$f":"IF(AK17=Betrachtungszeit_PW,MAX(Resultate_PW!$D$14:$H$14),0)","v":0},{"$f":"IF(AL17=Betrachtungszeit_PW,MAX(Resultate_PW!$D$14:$H$14),0)","v":0},{"$f":"IF(AM17=Betrachtungszeit_PW,MAX(Resultate_PW!$D$14:$H$14),0)","v":0},{"$f":"IF(AN17=Betrachtungszeit_PW,MAX(Resultate_PW!$D$14:$H$14),0)","v":0},{"$f":"IF(AO17=Betrachtungszeit_PW,MAX(Resultate_PW!$D$14:$H$14),0)","v":0},{"$f":"IF(AP17=Betrachtungszeit_PW,MAX(Resultate_PW!$D$14:$H$14),0)","v":0},{"$f":"IF(AQ17=Betrachtungszeit_PW,MAX(Resultate_PW!$D$14:$H$14),0)","v":0},{"$f":"IF(AR17=Betrachtungszeit_PW,MAX(Resultate_PW!$D$14:$H$14),0)","v":0},{"$f":"IF(AS17=Betrachtungszeit_PW,MAX(Resultate_PW!$D$14:$H$14),0)","v":0},{"$f":"IF(AT17=Betrachtungszeit_PW,MAX(Resultate_PW!$D$14:$H$14),0)","v":0}]
[null,"Treibhausgasemissionen Betrieb (Scope 1 und 2)",null,null,{"$f":"Betrachtungszeit_PW*D82","v":0},"tCO2eq"]
[null,"Umweltbelastungspunkte UBP'13 Erstellung/Entsorgung Fahrzeuge",null,null,{"$f":"E95","v":0},"UBP"]
[null,"Umweltbelastungspunkte UBP'13 Betrieb",null,null,{"$f":"Betrachtungszeit_PW*D83","v":0},"UBP"]
["K","Gestehungskosten pro km",null,null,{"$f":"IF(C9=0,0,E109*100/(Stückzahl_PW*Fahrleistung_PW*Betrachtungszeit_PW))","v":0},"Rp./km"]
["K","Jahreskosten pro km",null,null,{"$f":"IF(C9=0,0,((1+Kalkulationszinssatz)^Betrachtungszeit_PW*Kalkulationszinssatz)/((1+Kalkulationszinssatz)^Betrachtungszeit_PW-1)*E109*100/(Stückzahl_PW*Fahrleistung_PW))","v":0},"Rp./km"]
[]
[]
[]
[null,"Auswahlfelder und Defaultwerte"]
[]
[null,"Auswahlfeld","Antrieb Nummer","Energieträger-Nummer","Energieträger"]
[null,"BITTE WÄHLEN",0,0,"Energieträger"]
[null,"Elektrizität",1,13,"Strom"]
[null,"CNG",3,1,{"$f":"\"CNG (\"&Input_Generell!X10*100&\"% Biogas)\"","v":"CNG (20% Biogas)"}]
[null,"Benzin",5,3,"Benzin"]
[null,"Diesel",6,4,"Diesel"]
[null,"Weiterer Antrieb",14,11,{"$f":"Input_Generell!B15","v":"Weitere"}]
[]
[]
[null,"Auswahlfeld"]
[null,"BITTE WÄHLEN"]
[null,"ja"]
[null,"nein"]

{"sheet":"PW_V3","index":5,"n_rows":134,"n_cols":79,"rows_kept":134,"cut":false,"hidden":false,"merged":[[30,48,30,63],[90,1,90,5],[6,2,6,3],[6,11,6,12],[16,7,16,8],[16,10,17,10],[16,11,17,11],[16,12,17,12],[30,7,30,8],[30,10,31,10],[30,11,31,11],[30,12,31,12]]}
[null,"DATENEINGABE PERSONENWAGEN"]
[]
[null,"Angaben des Anbieters (mit Angebot abzugeben)"]
[]
[null,"Variante","V3"]
["K","Variantenbezeichnung (kurz)",null,null,null,null,"K","Rechenhilfe Treibstoffverbrauch"]
[null,"Variantenbeschreibung",null,null,null,null,null,"Energie-träger","Menge","kWh",null,"Umrechnungsfaktor in kWh(Heizwert)"]
[null,"Personenwagen, Treibstoffart","BITTE WÄHLEN",null,null,null,null,"CNG [kg]",null,{"$f":"I8*M8","v":0},null,"kWh/kg",13.81]
["K","Treibstoffverbrauch pro 100 km und Fahrzeug",null,"kWh/100km/Fahrzeug",null,null,null,"Benzin [Liter]",null,{"$f":"I9*M9","v":0},null,"kWh/Liter",8.7200000000000006]
[null,{"$f":"\"Treibstoffverbrauch (\"&VLOOKUP(C12,C123:G128,3,0)&\")\"","v":"Treibstoffverbrauch (Energieträger)"},{"$f":"C9/100*Fahrleistung_PW/1000","v":0},"MWh/a/Fahrzeug",null,null,null,"Diesel [Liter]",null,{"$f":"I10*M10","v":0},null,"kWh/Liter",9.91]
["K","Max. Leistungsbedarf (für Laden von Elektrofahrz.)",null,"kW"]
[null,"Antrieb Nummer",{"$f":"IF(ISBLANK(C8),0,VLOOKUP(C8,$B$123:$G$128,2,0))","v":0}]
[null,"Energieträger Nummer",{"$f":"IF(ISBLANK(C8),0,VLOOKUP(C8,$B$123:$F$128,3,0))","v":0}]
[]
["K","Förderbeiträge total",null,"CHF",null,null,null,null,null,null,"Rechenwerte",null,null,null,"Berechnungen",null,null,null,null,null,null,null,null,null,null,null,null,null,null,null,null,null,null,null,null,null,null,null,null,null,null,null,null,null,null,null,null,null,"Berechnungen"]
[null,null,null,null,null,null,null,null,null,null,null,null,null,null,null,"(Re)Investition in CHF im Jahr…",null,null,null,null,null,null,null,null,null,null,null,null,null,null,null,null,null,null,null,null,null,null,null,null,null,null,null,null,null,null,null,null,"Restwert nach Abschreibung am Ende des Jahres… (Berücksichtigt Reinvestition nach Ablauf der Lebensdauer)"]
[null,null,null,null,null,null,null,null,null,null,"Lebens-\ndauer [a]","Zwischen-resultate","Jährliche Ab-schreibung [CHF/a]",null,"Jahr",0,1,2,3,4,5,6,7,8,9,10,11,12,13,14,15,16,17,18,19,20,21,22,23,24,25,26,27,28,29,30,null,null,0,1,2,3,4,5,6,7,8,9,10,11,12,13,14,15,16,17,18,19,20,21,22,23,24,25,26,27,28,29,30]
["K","Investitionskosten","Beschreibung","Investition \n(alle Fahrz.) [CHF]","Lebensdauer [a]","Default überschreiben",null,null,null,null,null,null,null,null,"Kilometer",0,{"$f":"Q17*Fahrleistung_PW","v":0},0,0,0,0,0,0,0,0,0,0,0,0,0,0,0,0,0,0,0,0,0,0,0,0,0,0,0,0,0,"Restwert am Ende der Betrachtungszeit"]
["K","Fahrzeuge",null,null,10,null,{"$f":"IF(K19<Betrachtungszeit_PW,\"Achtung: es erfolgt eine Reinvestition\",\"\")","v":""},null,null,null,{"$f":"IF(ISNUMBER(F19),F19,IF(ISNUMBER(E19),E19,0))","v":10},null,null,null,{"$f":"B19","v":"Fahrzeuge"},{"$f":"D19","v":0},{"$f":"IF(Betrachtungszeit_PW<Q$17,0,IF(AND(P$17<>0,P$17/($K19)=INT(P$17/($K19))),$D19,0))","v":0},0,0,0,0,0,0,0,0,0,0,0,0,0,0,0,0,0,0,0,0,0,0,0,0,0,0,0,0,0,{"$f":"SUMIF($AW$17:$CA$17,Betrachtungszeit_PW,AW19:CA19)","v":0},null,{"$f":"$D19","v":0},{"$f":"MAX(AW19-$M26+Q19,0)","v":0},0,0,0,0,0,0,0,0,0,0,0,0,0,0,0,0,0,0,0,0,0,0,0,0,0,0,0,0,0]
[null,"Zubehör / Infrastruktur",null,null,10,null,null,null,null,null,10,null,{"$f":"1/K20*D20","v":0},null,{"$f":"B20&\": \"&C20","v":"Zubehör / Infrastruktur: "},0,0,0,0,0,0,0,0,0,0,0,0,0,0,0,0,0,0,0,0,0,0,0,0,0,0,0,0,0,0,0,0,null,{"$f":"$D20","v":0},{"$f":"AW20-$M20+Q20","v":0},{"$f":"AX20-$M20+R20","v":0},0,0,0,0,0,0,0,0,0,0,0,0,0,0,0,0,0,0,0,0,0,0,0,0,0,0,0,0]
[null,"Zubehör / Infrastruktur",null,null,10,null,null,null,null,null,10,null,{"$f":"1/K21*D21","v":0},null,{"$f":"B21&\": \"&C21","v":"Zubehör / Infrastruktur: "},0,0,0,0,0,0,0,0,0,0,0,0,0,0,0,0,0,0,0,0,0,0,0,0,0,0,0,0,0,0,0,0,null,{"$f":"$D21","v":0},{"$f":"AW21-$M21+Q21","v":0},0,0,0,0,0,0,0,0,0,0,0,0,0,0,0,0,0,0,0,0,0,0,0,0,0,0,0,0,0]
[null,"Zubehör / Infrastruktur",null,null,10,null,null,null,null,null,10,null,{"$f":"1/K22*D22","v":0},null,"Zubehör / Infrastruktur: ",0,0,0,0,0,0,0,0,0,0,0,0,0,0,0,0,0,0,0,0,0,0,0,0,0,0,0,0,0,0,0,0,null,0,0,0,0,0,0,0,0,0,0,0,0,0,0,0,0,0,0,0,0,0,0,0,0,0,0,0,0,0,0,0]
[null,"Zubehör / Infrastruktur",null,null,10,null,null,null,null,null,10,null,{"$f":"1/K23*D23","v":0},null,"Zubehör / Infrastruktur: ",0,0,0,0,0,0,0,0,0,0,0,0,0,0,0,0,0,0,0,0,0,0,0,0,0,0,0,0,0,0,0,0,null,0,0,0,0,0,0,0,0,0,0,0,0,0,0,0,0,0,0,0,0,0,0,0,0,0,0,0,0,0,0,0]
[null,"Zubehör / Infrastruktur",null,null,10,null,null,null,null,null,10,null,{"$f":"1/K24*D24","v":0},null,"Zubehör / Infrastruktur: ",0,0,0,0,0,0,0,0,0,0,0,0,0,0,0,0,0,0,0,0,0,0,0,0,0,0,0,0,0,0,0,0,null,0,0,0,0,0,0,0,0,0,0,0,0,0,0,0,0,0,0,0,0,0,0,0,0,0,0,0,0,0,0,0]
[null,"Investitionskosten abzügl. \nFörderbeiträge total",null,"CHF",{"$f":"D19+SUM(D20:D24)-C15","v":0},null,null,null,null,null,null,{"$f":"E26*D19","v":0},null,null,"(Re)Investition abzüglich Restwert und Fördergeld",null,null,null,null,null,null,null,null,null,null,null,null,null,null,null,null,null,null,null,null,null,null,null,null,null,null,null,null,null,null,null,"Nettobarwert"]
["K","Wertminderung der Fahrzeuge pro Jahr aufgrund Lebensdauer",null,null,{"$f":"1/K19","v":0.1},null,null,null,null,null,null,null,{"$f":"L25+Fahrleistung_PW/10000*D19*L27","v":0},null,"(Re)Investition abzüglich Fördergeld",{"$f":"E25","v":0},{"$f":"SUM(Q19:Q24)","v":0},0,0,0,0,0,0,0,0,0,0,0,0,0,0,0,0,0,0,0,0,0,0,0,0,0,0,0,0,0]
["K","Zusätzliche Wertminderung pro 10'000 km",null,null,0.02,null,null,null,null,null,null,{"$f":"IF(ISNUMBER(F27),F27,IF(ISNUMBER(E27),E27,0))","v":0.02},null,null,"Restwert",{"$f":"IF(Betrachtungszeit_PW=P17,-($L$28+$E$29),0)","v":0},0,0,0,0,0,0,0,0,0,0,0,0,0,0,0,0,0,0,0,0,0,0,0,0,0,0,0,0,0,0]
["K","Restwert Fahrzeuge am Ende der Betrachtungszeit",null,"CHF",{"$f":"AU19","v":0},null,null,null,null,null,null,{"$f":"IF(ISNUMBER(F28),F28,E28)","v":0},null,null,"Kosten inkl. Preissteigerung",{"$f":"SUM(P26:P27)*(1+Inflationsindex)^P$17","v":0},0,0,0,0,0,0,0,0,0,0,0,0,0,0,0,0,0,0,0,0,0,0,0,0,0,0,0,0,0,0]
[null,"Restwert Zubehör am Ende der Betrachtungszeit",null,"CHF",{"$f":"SUM(AU20:AU24)","v":0},null,null,null,null,null,null,null,null,null,"Barwert",{"$f":"P28*(1+Kalkulationszinssatz)^-P$17","v":0},0,0,0,0,0,0,0,0,0,0,0,0,0,0,0,0,0,0,0,0,0,0,0,0,0,0,0,0,0,0,{"$f":"SUM(P29:AT29)","v":0}]
[]
["K","Ersatzteile / Verbrauchsmaterial mit erstmaliger Investition nach Lebensdauer",null,null,null,null,null,null,null,null,"Lebens-\ndauer [a]",null,"Jährliche Ab-schreibung [CHF/a]",null,"Ersatzteile",null,null,null,null,null,null,null,null,null,null,null,null,null,null,null,null,null,null,null,null,null,null,null,null,null,null,null,null,null,null,null,null,null,"Restwert nach Abschreibung am Ende des Jahres… (Berücksichtigt Reinvestition nach Ablauf der Lebensdauer)\nErsatzteile haben erst nach Ablauf der ersten Lebensdauer einen Restwert"]
[null,"1. Ersatzteile / Verbrauchsmaterial mit Lebensdauer in Jahren",null,null,"Lebensdauer [a]",null,null,null,null,null,null,null,null,null,{"$f":"B32","v":"1. Ersatzteile / Verbrauchsmaterial mit Lebensdauer in Jahren"},null,null,null,null,null,null,null,null,null,null,null,null,null,null,null,null,null,null,null,null,null,null,null,null,null,null,null,null,null,null,null,"Restwert am Ende der Betrachtungszeit"]
[null,"Weitere Ersatzteile",null,null,10,null,null,null,null,null,{"$f":"IF(ISNUMBER(F33),F33,IF(ISNUMBER(E33),E33,0))","v":10},null,{"$f":"1/K33*D33","v":0},null,{"$f":"B33&\": \"&C33","v":"Weitere Ersatzteile: "},0,{"$f":"IF(Betrachtungszeit_PW<Q$17,0,IF(AND(P$17<>0,P$17/($K33)=INT(P$17/($K33))),$D33,0))","v":0},0,0,0,0,0,0,0,0,0,0,0,0,0,0,0,0,0,0,0,0,0,0,0,0,0,0,0,0,0,{"$f":"SUMIF($AW$17:$CA$17,Betrachtungszeit_PW,AW33:CA33)","v":0},null,0,{"$f":"IF((AW33+Q33)=0,0,AW33-$M33+Q33)","v":0},{"$f":"IF((AX33+R33)=0,0,AX33-$M33+R33)","v":0},0,0,0,0,0,0,0,0,0,0,0,0,0,0,0,0,0,0,0,0,0,0,0,0,0,0,0,0]
[null,"Weitere Ersatzteile",null,null,10,null,null,null,null,null,{"$f":"IF(ISNUMBER(F34),F34,IF(ISNUMBER(E34),E34,0))","v":10},null,{"$f":"1/K34*D34","v":0},null,{"$f":"B34&\": \"&C34","v":"Weitere Ersatzteile: "},0,0,0,0,0,0,0,0,0,0,0,0,0,0,0,0,0,0,0,0,0,0,0,0,0,0,0,0,0,0,0,{"$f":"SUMIF($AW$17:$CA$17,Betrachtungszeit_PW,AW34:CA34)","v":0},null,0,{"$f":"IF((AW34+Q34)=0,0,AW34-$M34+Q34)","v":0},0,0,0,0,0,0,0,0,0,0,0,0,0,0,0,0,0,0,0,0,0,0,0,0,0,0,0,0,0]
[null,"Weitere Ersatzteile",null,null,10,null,null,null,null,null,{"$f":"IF(ISNUMBER(F35),F35,IF(ISNUMBER(E35),E35,0))","v":10},null,{"$f":"1/K35*D35","v":0},null,"Weitere Ersatzteile: ",0,0,0,0,0,0,0,0,0,0,0,0,0,0,0,0,0,0,0,0,0,0,0,0,0,0,0,0,0,0,0,{"$f":"SUMIF($AW$17:$CA$17,Betrachtungszeit_PW,AW35:CA35)","v":0},null,0,0,0,0,0,0,0,0,0,0,0,0,0,0,0,0,0,0,0,0,0,0,0,0,0,0,0,0,0,0,0]
[null,"Weitere Ersatzteile",null,null,10,null,null,null,null,null,{"$f":"IF(ISNUMBER(F36),F36,IF(ISNUMBER(E36),E36,0))","v":10},null,{"$f":"1/K36*D36","v":0},null,"Weitere Ersatzteile: ",0,0,0,0,0,0,0,0,0,0,0,0,0,0,0,0,0,0,0,0,0,0,0,0,0,0,0,0,0,0,0,{"$f":"SUMIF($AW$17:$CA$17,Betrachtungszeit_PW,AW36:CA36)","v":0},null,0,0,0,0,0,0,0,0,0,0,0,0,0,0,0,0,0,0,0,0,0,0,0,0,0,0,0,0,0,0,0]
[null,"Weitere Ersatzteile",null,null,10,null,null,null,null,null,{"$f":"IF(ISNUMBER(F37),F37,IF(ISNUMBER(E37),E37,0))","v":10},null,{"$f":"1/K37*D37","v":0},null,"Weitere Ersatzteile: ",0,0,0,0,0,0,0,0,0,0,0,0,0,0,0,0,0,0,0,0,0,0,0,0,0,0,0,0,0,0,0,{"$f":"SUMIF($AW$17:$CA$17,Betrachtungszeit_PW,AW37:CA37)","v":0},null,0,0,0,0,0,0,0,0,0,0,0,0,0,0,0,0,0,0,0,0,0,0,0,0,0,0,0,0,0,0,0]
[null,"2. Ersatzteile / Verbrauchsmaterial mit Lebensdauer in Kilometern",null,null,"Lebensdauer [km]",null,null,null,null,null,"Lebens-dauer [km]",null,null,null,"2. Ersatzteile / Verbrauchsmaterial mit Lebensdauer in Kilometern"]
["K","Ersatz-Reifen (Set)",null,null,30000,null,null,null,null,null,{"$f":"IF(ISNUMBER(F39),F39,IF(ISNUMBER(E39),E39,0))","v":30000},null,{"$f":"1/(K39/Fahrleistung_PW)*D39","v":{"$error":"#DIV/0!"}},null,{"$f":"B39&\": \"&C39","v":"Ersatz-Reifen (Set): "},0,{"$f":"IF(Betrachtungszeit_PW*Fahrleistung_PW<Q$18,0,IF(Q$18-(COUNTIF($P39:P39,\">0\")*$K39)>$K39,$D39,0))","v":0},{"$f":"IF(Betrachtungszeit_PW*Fahrleistung_PW<R$18,0,IF(R$18-(COUNTIF($P39:Q39,\">0\")*$K39)>$K39,$D39,0))","v":0},{"$f":"IF(Betrachtungszeit_PW*Fahrleistung_PW<S$18,0,IF(S$18-(COUNTIF($P39:R39,\">0\")*$K39)>$K39,$D39,0))","v":0},{"$f":"IF(Betrachtungszeit_PW*Fahrleistung_PW<T$18,0,IF(T$18-(COUNTIF($P39:S39,\">0\")*$K39)>$K39,$D39,0))","v":0},{"$f":"IF(Betrachtungszeit_PW*Fahrleistung_PW<U$18,0,IF(U$18-(COUNTIF($P39:T39,\">0\")*$K39)>$K39,$D39,0))","v":0},{"$f":"IF(Betrachtungszeit_PW*Fahrleistung_PW<V$18,0,IF(V$18-(COUNTIF($P39:U39,\">0\")*$K39)>$K39,$D39,0))","v":0},{"$f":"IF(Betrachtungszeit_PW*Fahrleistung_PW<W$18,0,IF(W$18-(COUNTIF($P39:V39,\">0\")*$K39)>$K39,$D39,0))","v":0},{"$f":"IF(Betrachtungszeit_PW*Fahrleistung_PW<X$18,0,IF(X$18-(COUNTIF($P39:W39,\">0\")*$K39)>$K39,$D39,0))","v":0},{"$f":"IF(Betrachtungszeit_PW*Fahrleistung_PW<Y$18,0,IF(Y$18-(COUNTIF($P39:X39,\">0\")*$K39)>$K39,$D39,0))","v":0},{"$f":"IF(Betrachtungszeit_PW*Fahrleistung_PW<Z$18,0,IF(Z$18-(COUNTIF($P39:Y39,\">0\")*$K39)>$K39,$D39,0))","v":0},{"$f":"IF(Betrachtungszeit_PW*Fahrleistung_PW<AA$18,0,IF(AA$18-(COUNTIF($P39:Z39,\">0\")*$K39)>$K39,$D39,0))","v":0},{"$f":"IF(Betrachtungszeit_PW*Fahrleistung_PW<AB$18,0,IF(AB$18-(COUNTIF($P39:AA39,\">0\")*$K39)>$K39,$D39,0))","v":0},{"$f":"IF(Betrachtungszeit_PW*Fahrleistung_PW<AC$18,0,IF(AC$18-(COUNTIF($P39:AB39,\">0\")*$K39)>$K39,$D39,0))","v":0},{"$f":"IF(Betrachtungszeit_PW*Fahrleistung_PW<AD$18,0,IF(AD$18-(COUNTIF($P39:AC39,\">0\")*$K39)>$K39,$D39,0))","v":0},{"$f":"IF(Betrachtungszeit_PW*Fahrleistung_PW<AE$18,0,IF(AE$18-(COUNTIF($P39:AD39,\">0\")*$K39)>$K39,$D39,0))","v":0},{"$f":"IF(Betrachtungszeit_PW*Fahrleistung_PW<AF$18,0,IF(AF$18-(COUNTIF($P39:AE39,\">0\")*$K39)>$K39,$D39,0))","v":0},{"$f":"IF(Betrachtungszeit_PW*Fahrleistung_PW<AG$18,0,IF(AG$18-(COUNTIF($P39:AF39,\">0\")*$K39)>$K39,$D39,0))","v":0},{"$f":"IF(Betrachtungszeit_PW*Fahrleistung_PW<AH$18,0,IF(AH$18-(COUNTIF($P39:AG39,\">0\")*$K39)>$K39,$D39,0))","v":0},{"$f":"IF(Betrachtungszeit_PW*Fahrleistung_PW<AI$18,0,IF(AI$18-(COUNTIF($P39:AH39,\">0\")*$K39)>$K39,$D39,0))","v":0},{"$f":"IF(Betrachtungszeit_PW*Fahrleistung_PW<AJ$18,0,IF(AJ$18-(COUNTIF($P39:AI39,\">0\")*$K39)>$K39,$D39,0))","v":0},{"$f":"IF(Betrachtungszeit_PW*Fahrleistung_PW<AK$18,0,IF(AK$18-(COUNTIF($P39:AJ39,\">0\")*$K39)>$K39,$D39,0))","v":0},{"$f":"IF(Betrachtungszeit_PW*Fahrleistung_PW<AL$18,0,IF(AL$18-(COUNTIF($P39:AK39,\">0\")*$K39)>$K39,$D39,0))","v":0},{"$f":"IF(Betrachtungszeit_PW*Fahrleistung_PW<AM$18,0,IF(AM$18-(COUNTIF($P39:AL39,\">0\")*$K39)>$K39,$D39,0))","v":0},{"$f":"IF(Betrachtungszeit_PW*Fahrleistung_PW<AN$18,0,IF(AN$18-(COUNTIF($P39:AM39,\">0\")*$K39)>$K39,$D39,0))","v":0},{"$f":"IF(Betrachtungszeit_PW*Fahrleistung_PW<AO$18,0,IF(AO$18-(COUNTIF($P39:AN39,\">0\")*$K39)>$K39,$D39,0))","v":0},{"$f":"IF(Betrachtungszeit_PW*Fahrleistung_PW<AP$18,0,IF(AP$18-(COUNTIF($P39:AO39,\">0\")*$K39)>$K39,$D39,0))","v":0},{"$f":"IF(Betrachtungszeit_PW*Fahrleistung_PW<AQ$18,0,IF(AQ$18-(COUNTIF($P39:AP39,\">0\")*$K39)>$K39,$D39,0))","v":0},{"$f":"IF(Betrachtungszeit_PW*Fahrleistung_PW<AR$18,0,IF(AR$18-(COUNTIF($P39:AQ39,\">0\")*$K39)>$K39,$D39,0))","v":0},{"$f":"IF(Betrachtungszeit_PW*Fahrleistung_PW<AS$18,0,IF(AS$18-(COUNTIF($P39:AR39,\">0\")*$K39)>$K39,$D39,0))","v":0},{"$f":"IF(Betrachtungszeit_PW*Fahrleistung_PW<AT$18,0,IF(AT$18-(COUNTIF($P39:AS39,\">0\")*$K39)>$K39,$D39,0))","v":0},{"$f":"SUMIF($AW$17:$CA$17,Betrachtungszeit_PW,AW39:CA39)","v":0},null,0,{"$f":"IF((AW39+Q39)=0,0,AW39-$M39+Q39)","v":0},{"$f":"IF((AX39+R39)=0,0,AX39-$M39+R39)","v":0},0,0,0,0,0,0,0,0,0,0,0,0,0,0,0,{"$f":"IF((BN39+AH39)=0,0,BN39-$M39+AH39)","v":0},0,0,0,0,0,0,0,0,0,0,0,0]
["K","Ersatz-Batterie bei Elektrofahrzeugen",null,null,100000,null,null,null,null,null,100000,null,{"$error":"#DIV/0!"},null,{"$f":"B40&\": \"&C40","v":"Ersatz-Batterie bei Elektrofahrzeugen: "},0,{"$f":"IF(Betrachtungszeit_PW*Fahrleistung_PW<Q$18,0,IF(Q$18-(COUNTIF($P40:P40,\">0\")*$K40)>$K40,$D40,0))","v":0},{"$f":"IF(Betrachtungszeit_PW*Fahrleistung_PW<R$18,0,IF(R$18-(COUNTIF($P40:Q40,\">0\")*$K40)>$K40,$D40,0))","v":0},{"$f":"IF(Betrachtungszeit_PW*Fahrleistung_PW<S$18,0,IF(S$18-(COUNTIF($P40:R40,\">0\")*$K40)>$K40,$D40,0))","v":0},{"$f":"IF(Betrachtungszeit_PW*Fahrleistung_PW<T$18,0,IF(T$18-(COUNTIF($P40:S40,\">0\")*$K40)>$K40,$D40,0))","v":0},{"$f":"IF(Betrachtungszeit_PW*Fahrleistung_PW<U$18,0,IF(U$18-(COUNTIF($P40:T40,\">0\")*$K40)>$K40,$D40,0))","v":0},{"$f":"IF(Betrachtungszeit_PW*Fahrleistung_PW<V$18,0,IF(V$18-(COUNTIF($P40:U40,\">0\")*$K40)>$K40,$D40,0))","v":0},{"$f":"IF(Betrachtungszeit_PW*Fahrleistung_PW<W$18,0,IF(W$18-(COUNTIF($P40:V40,\">0\")*$K40)>$K40,$D40,0))","v":0},{"$f":"IF(Betrachtungszeit_PW*Fahrleistung_PW<X$18,0,IF(X$18-(COUNTIF($P40:W40,\">0\")*$K40)>$K40,$D40,0))","v":0},{"$f":"IF(Betrachtungszeit_PW*Fahrleistung_PW<Y$18,0,IF(Y$18-(COUNTIF($P40:X40,\">0\")*$K40)>$K40,$D40,0))","v":0},{"$f":"IF(Betrachtungszeit_PW*Fahrleistung_PW<Z$18,0,IF(Z$18-(COUNTIF($P40:Y40,\">0\")*$K40)>$K40,$D40,0))","v":0},{"$f":"IF(Betrachtungszeit_PW*Fahrleistung_PW<AA$18,0,IF(AA$18-(COUNTIF($P40:Z40,\">0\")*$K40)>$K40,$D40,0))","v":0},{"$f":"IF(Betrachtungszeit_PW*Fahrleistung_PW<AB$18,0,IF(AB$18-(COUNTIF($P40:AA40,\">0\")*$K40)>$K40,$D40,0))","v":0},{"$f":"IF(Betrachtungszeit_PW*Fahrleistung_PW<AC$18,0,IF(AC$18-(COUNTIF($P40:AB40,\">0\")*$K40)>$K40,$D40,0))","v":0},{"$f":"IF(Betrachtungszeit_PW*Fahrleistung_PW<AD$18,0,IF(AD$18-(COUNTIF($P40:AC40,\">0\")*$K40)>$K40,$D40,0))","v":0},{"$f":"IF(Betrachtungszeit_PW*Fahrleistung_PW<AE$18,0,IF(AE$18-(COUNTIF($P40:AD40,\">0\")*$K40)>$K40,$D40,0))","v":0},{"$f":"IF(Betrachtungszeit_PW*Fahrleistung_PW<AF$18,0,IF(AF$18-(COUNTIF($P40:AE40,\">0\")*$K40)>$K40,$D40,0))","v":0},{"$f":"IF(Betrachtungszeit_PW*Fahrleistung_PW<AG$18,0,IF(AG$18-(COUNTIF($P40:AF40,\">0\")*$K40)>$K40,$D40,0))","v":0},{"$f":"IF(Betrachtungszeit_PW*Fahrleistung_PW<AH$18,0,IF(AH$18-(COUNTIF($P40:AG40,\">0\")*$K40)>$K40,$D40,0))","v":0},{"$f":"IF(Betrachtungszeit_PW*Fahrleistung_PW<AI$18,0,IF(AI$18-(COUNTIF($P40:AH40,\">0\")*$K40)>$K40,$D40,0))","v":0},{"$f":"IF(Betrachtungszeit_PW*Fahrleistung_PW<AJ$18,0,IF(AJ$18-(COUNTIF($P40:AI40,\">0\")*$K40)>$K40,$D40,0))","v":0},{"$f":"IF(Betrachtungszeit_PW*Fahrleistung_PW<AK$18,0,IF(AK$18-(COUNTIF($P40:AJ40,\">0\")*$K40)>$K40,$D40,0))","v":0},{"$f":"IF(Betrachtungszeit_PW*Fahrleistung_PW<AL$18,0,IF(AL$18-(COUNTIF($P40:AK40,\">0\")*$K40)>$K40,$D40,0))","v":0},{"$f":"IF(Betrachtungszeit_PW*Fahrleistung_PW<AM$18,0,IF(AM$18-(COUNTIF($P40:AL40,\">0\")*$K40)>$K40,$D40,0))","v":0},{"$f":"IF(Betrachtungszeit_PW*Fahrleistung_PW<AN$18,0,IF(AN$18-(COUNTIF($P40:AM40,\">0\")*$K40)>$K40,$D40,0))","v":0},{"$f":"IF(Betrachtungszeit_PW*Fahrleistung_PW<AO$18,0,IF(AO$18-(COUNTIF($P40:AN40,\">0\")*$K40)>$K40,$D40,0))","v":0},{"$f":"IF(Betrachtungszeit_PW*Fahrleistung_PW<AP$18,0,IF(AP$18-(COUNTIF($P40:AO40,\">0\")*$K40)>$K40,$D40,0))","v":0},{"$f":"IF(Betrachtungszeit_PW*Fahrleistung_PW<AQ$18,0,IF(AQ$18-(COUNTIF($P40:AP40,\">0\")*$K40)>$K40,$D40,0))","v":0},{"$f":"IF(Betrachtungszeit_PW*Fahrleistung_PW<AR$18,0,IF(AR$18-(COUNTIF($P40:AQ40,\">0\")*$K40)>$K40,$D40,0))","v":0},{"$f":"IF(Betrachtungszeit_PW*Fahrleistung_PW<AS$18,0,IF(AS$18-(COUNTIF($P40:AR40,\">0\")*$K40)>$K40,$D40,0))","v":0},{"$f":"IF(Betrachtungszeit_PW*Fahrleistung_PW<AT$18,0,IF(AT$18-(COUNTIF($P40:AS40,\">0\")*$K40)>$K40,$D40,0))","v":0},0,null,0,{"$f":"IF((AW40+Q40)=0,0,AW40-$M40+Q40)","v":0},0,0,0,0,0,0,0,0,0,0,0,0,0,0,0,0,0,0,0,0,0,0,0,0,0,0,0,0,0]
[null,"Weitere Ersatzteile",null,null,150000,null,null,null,null,null,150000,null,{"$error":"#DIV/0!"},null,"Weitere Ersatzteile: ",0,{"$f":"IF(Betrachtungszeit_PW*Fahrleistung_PW<Q$18,0,IF(Q$18-(COUNTIF($P41:P41,\">0\")*$K41)>$K41,$D41,0))","v":0},{"$f":"IF(Betrachtungszeit_PW*Fahrleistung_PW<R$18,0,IF(R$18-(COUNTIF($P41:Q41,\">0\")*$K41)>$K41,$D41,0))","v":0},{"$f":"IF(Betrachtungszeit_PW*Fahrleistung_PW<S$18,0,IF(S$18-(COUNTIF($P41:R41,\">0\")*$K41)>$K41,$D41,0))","v":0},{"$f":"IF(Betrachtungszeit_PW*Fahrleistung_PW<T$18,0,IF(T$18-(COUNTIF($P41:S41,\">0\")*$K41)>$K41,$D41,0))","v":0},{"$f":"IF(Betrachtungszeit_PW*Fahrleistung_PW<U$18,0,IF(U$18-(COUNTIF($P41:T41,\">0\")*$K41)>$K41,$D41,0))","v":0},{"$f":"IF(Betrachtungszeit_PW*Fahrleistung_PW<V$18,0,IF(V$18-(COUNTIF($P41:U41,\">0\")*$K41)>$K41,$D41,0))","v":0},{"$f":"IF(Betrachtungszeit_PW*Fahrleistung_PW<W$18,0,IF(W$18-(COUNTIF($P41:V41,\">0\")*$K41)>$K41,$D41,0))","v":0},{"$f":"IF(Betrachtungszeit_PW*Fahrleistung_PW<X$18,0,IF(X$18-(COUNTIF($P41:W41,\">0\")*$K41)>$K41,$D41,0))","v":0},{"$f":"IF(Betrachtungszeit_PW*Fahrleistung_PW<Y$18,0,IF(Y$18-(COUNTIF($P41:X41,\">0\")*$K41)>$K41,$D41,0))","v":0},{"$f":"IF(Betrachtungszeit_PW*Fahrleistung_PW<Z$18,0,IF(Z$18-(COUNTIF($P41:Y41,\">0\")*$K41)>$K41,$D41,0))","v":0},{"$f":"IF(Betrachtungszeit_PW*Fahrleistung_PW<AA$18,0,IF(AA$18-(COUNTIF($P41:Z41,\">0\")*$K41)>$K41,$D41,0))","v":0},{"$f":"IF(Betrachtungszeit_PW*Fahrleistung_PW<AB$18,0,IF(AB$18-(COUNTIF($P41:AA41,\">0\")*$K41)>$K41,$D41,0))","v":0},{"$f":"IF(Betrachtungszeit_PW*Fahrleistung_PW<AC$18,0,IF(AC$18-(COUNTIF($P41:AB41,\">0\")*$K41)>$K41,$D41,0))","v":0},{"$f":"IF(Betrachtungszeit_PW*Fahrleistung_PW<AD$18,0,IF(AD$18-(COUNTIF($P41:AC41,\">0\")*$K41)>$K41,$D41,0))","v":0},{"$f":"IF(Betrachtungszeit_PW*Fahrleistung_PW<AE$18,0,IF(AE$18-(COUNTIF($P41:AD41,\">0\")*$K41)>$K41,$D41,0))","v":0},{"$f":"IF(Betrachtungszeit_PW*Fahrleistung_PW<AF$18,0,IF(AF$18-(COUNTIF($P41:AE41,\">0\")*$K41)>$K41,$D41,0))","v":0},{"$f":"IF(Betrachtungszeit_PW*Fahrleistung_PW<AG$18,0,IF(AG$18-(COUNTIF($P41:AF41,\">0\")*$K41)>$K41,$D41,0))","v":0},{"$f":"IF(Betrachtungszeit_PW*Fahrleistung_PW<AH$18,0,IF(AH$18-(COUNTIF($P41:AG41,\">0\")*$K41)>$K41,$D41,0))","v":0},{"$f":"IF(Betrachtungszeit_PW*Fahrleistung_PW<AI$18,0,IF(AI$18-(COUNTIF($P41:AH41,\">0\")*$K41)>$K41,$D41,0))","v":0},{"$f":"IF(Betrachtungszeit_PW*Fahrleistung_PW<AJ$18,0,IF(AJ$18-(COUNTIF($P41:AI41,\">0\")*$K41)>$K41,$D41,0))","v":0},{"$f":"IF(Betrachtungszeit_PW*Fahrleistung_PW<AK$18,0,IF(AK$18-(COUNTIF($P41:AJ41,\">0\")*$K41)>$K41,$D41,0))","v":0},{"$f":"IF(Betrachtungszeit_PW*Fahrleistung_PW<AL$18,0,IF(AL$18-(COUNTIF($P41:AK41,\">0\")*$K41)>$K41,$D41,0))","v":0},{"$f":"IF(Betrachtungszeit_PW*Fahrleistung_PW<AM$18,0,IF(AM$18-(COUNTIF($P41:AL41,\">0\")*$K41)>$K41,$D41,0))","v":0},{"$f":"IF(Betrachtungszeit_PW*Fahrleistung_PW<AN$18,0,IF(AN$18-(COUNTIF($P41:AM41,\">0\")*$K41)>$K41,$D41,0))","v":0},{"$f":"IF(Betrachtungszeit_PW*Fahrleistung_PW<AO$18,0,IF(AO$18-(COUNTIF($P41:AN41,\">0\")*$K41)>$K41,$D41,0))","v":0},{"$f":"IF(Betrachtungszeit_PW*Fahrleistung_PW<AP$18,0,IF(AP$18-(COUNTIF($P41:AO41,\">0\")*$K41)>$K41,$D41,0))","v":0},{"$f":"IF(Betrachtungszeit_PW*Fahrleistung_PW<AQ$18,0,IF(AQ$18-(COUNTIF($P41:AP41,\">0\")*$K41)>$K41,$D41,0))","v":0},{"$f":"IF(Betrachtungszeit_PW*Fahrleistung_PW<AR$18,0,IF(AR$18-(COUNTIF($P41:AQ41,\">0\")*$K41)>$K41,$D41,0))","v":0},{"$f":"IF(Betrachtungszeit_PW*Fahrleistung_PW<AS$18,0,IF(AS$18-(COUNTIF($P41:AR41,\">0\")*$K41)>$K41,$D41,0))","v":0},{"$f":"IF(Betrachtungszeit_PW*Fahrleistung_PW<AT$18,0,IF(AT$18-(COUNTIF($P41:AS41,\">0\")*$K41)>$K41,$D41,0))","v":0},0,null,0,0,0,0,0,0,0,0,0,0,0,0,0,0,0,0,0,0,0,0,0,0,0,0,0,0,0,0,0,0,0]
[null,"Weitere Ersatzteile",null,null,150000,null,null,null,null,null,150000,null,{"$error":"#DIV/0!"},null,"Weitere Ersatzteile: ",0,{"$f":"IF(Betrachtungszeit_PW*Fahrleistung_PW<Q$18,0,IF(Q$18-(COUNTIF($P42:P42,\">0\")*$K42)>$K42,$D42,0))","v":0},{"$f":"IF(Betrachtungszeit_PW*Fahrleistung_PW<R$18,0,IF(R$18-(COUNTIF($P42:Q42,\">0\")*$K42)>$K42,$D42,0))","v":0},{"$f":"IF(Betrachtungszeit_PW*Fahrleistung_PW<S$18,0,IF(S$18-(COUNTIF($P42:R42,\">0\")*$K42)>$K42,$D42,0))","v":0},{"$f":"IF(Betrachtungszeit_PW*Fahrleistung_PW<T$18,0,IF(T$18-(COUNTIF($P42:S42,\">0\")*$K42)>$K42,$D42,0))","v":0},{"$f":"IF(Betrachtungszeit_PW*Fahrleistung_PW<U$18,0,IF(U$18-(COUNTIF($P42:T42,\">0\")*$K42)>$K42,$D42,0))","v":0},{"$f":"IF(Betrachtungszeit_PW*Fahrleistung_PW<V$18,0,IF(V$18-(COUNTIF($P42:U42,\">0\")*$K42)>$K42,$D42,0))","v":0},{"$f":"IF(Betrachtungszeit_PW*Fahrleistung_PW<W$18,0,IF(W$18-(COUNTIF($P42:V42,\">0\")*$K42)>$K42,$D42,0))","v":0},{"$f":"IF(Betrachtungszeit_PW*Fahrleistung_PW<X$18,0,IF(X$18-(COUNTIF($P42:W42,\">0\")*$K42)>$K42,$D42,0))","v":0},{"$f":"IF(Betrachtungszeit_PW*Fahrleistung_PW<Y$18,0,IF(Y$18-(COUNTIF($P42:X42,\">0\")*$K42)>$K42,$D42,0))","v":0},{"$f":"IF(Betrachtungszeit_PW*Fahrleistung_PW<Z$18,0,IF(Z$18-(COUNTIF($P42:Y42,\">0\")*$K42)>$K42,$D42,0))","v":0},{"$f":"IF(Betrachtungszeit_PW*Fahrleistung_PW<AA$18,0,IF(AA$18-(COUNTIF($P42:Z42,\">0\")*$K42)>$K42,$D42,0))","v":0},{"$f":"IF(Betrachtungszeit_PW*Fahrleistung_PW<AB$18,0,IF(AB$18-(COUNTIF($P42:AA42,\">0\")*$K42)>$K42,$D42,0))","v":0},{"$f":"IF(Betrachtungszeit_PW*Fahrleistung_PW<AC$18,0,IF(AC$18-(COUNTIF($P42:AB42,\">0\")*$K42)>$K42,$D42,0))","v":0},{"$f":"IF(Betrachtungszeit_PW*Fahrleistung_PW<AD$18,0,IF(AD$18-(COUNTIF($P42:AC42,\">0\")*$K42)>$K42,$D42,0))","v":0},{"$f":"IF(Betrachtungszeit_PW*Fahrleistung_PW<AE$18,0,IF(AE$18-(COUNTIF($P42:AD42,\">0\")*$K42)>$K42,$D42,0))","v":0},{"$f":"IF(Betrachtungszeit_PW*Fahrleistung_PW<AF$18,0,IF(AF$18-(COUNTIF($P42:AE42,\">0\")*$K42)>$K42,$D42,0))","v":0},{"$f":"IF(Betrachtungszeit_PW*Fahrleistung_PW<AG$18,0,IF(AG$18-(COUNTIF($P42:AF42,\">0\")*$K42)>$K42,$D42,0))","v":0},{"$f":"IF(Betrachtungszeit_PW*Fahrleistung_PW<AH$18,0,IF(AH$18-(COUNTIF($P42:AG42,\">0\")*$K42)>$K42,$D42,0))","v":0},{"$f":"IF(Betrachtungszeit_PW*Fahrleistung_PW<AI$18,0,IF(AI$18-(COUNTIF($P42:AH42,\">0\")*$K42)>$K42,$D42,0))","v":0},{"$f":"IF(Betrachtungszeit_PW*Fahrleistung_PW<AJ$18,0,IF(AJ$18-(COUNTIF($P42:AI42,\">0\")*$K42)>$K42,$D42,0))","v":0},{"$f":"IF(Betrachtungszeit_PW*Fahrleistung_PW<AK$18,0,IF(AK$18-(COUNTIF($P42:AJ42,\">0\")*$K42)>$K42,$D42,0))","v":0},{"$f":"IF(Betrachtungszeit_PW*Fahrleistung_PW<AL$18,0,IF(AL$18-(COUNTIF($P42:AK42,\">0\")*$K42)>$K42,$D42,0))","v":0},{"$f":"IF(Betrachtungszeit_PW*Fahrleistung_PW<AM$18,0,IF(AM$18-(COUNTIF($P42:AL42,\">0\")*$K42)>$K42,$D42,0))","v":0},{"$f":"IF(Betrachtungszeit_PW*Fahrleistung_PW<AN$18,0,IF(AN$18-(COUNTIF($P42:AM42,\">0\")*$K42)>$K42,$D42,0))","v":0},{"$f":"IF(Betrachtungszeit_PW*Fahrleistung_PW<AO$18,0,IF(AO$18-(COUNTIF($P42:AN42,\">0\")*$K42)>$K42,$D42,0))","v":0},{"$f":"IF(Betrachtungszeit_PW*Fahrleistung_PW<AP$18,0,IF(AP$18-(COUNTIF($P42:AO42,\">0\")*$K42)>$K42,$D42,0))","v":0},{"$f":"IF(Betrachtungszeit_PW*Fahrleistung_PW<AQ$18,0,IF(AQ$18-(COUNTIF($P42:AP42,\">0\")*$K42)>$K42,$D42,0))","v":0},{"$f":"IF(Betrachtungszeit_PW*Fahrleistung_PW<AR$18,0,IF(AR$18-(COUNTIF($P42:AQ42,\">0\")*$K42)>$K42,$D42,0))","v":0},{"$f":"IF(Betrachtungszeit_PW*Fahrleistung_PW<AS$18,0,IF(AS$18-(COUNTIF($P42:AR42,\">0\")*$K42)>$K42,$D42,0))","v":0},{"$f":"IF(Betrachtungszeit_PW*Fahrleistung_PW<AT$18,0,IF(AT$18-(COUNTIF($P42:AS42,\">0\")*$K42)>$K42,$D42,0))","v":0},0,null,0,0,0,0,0,0,0,0,0,0,0,0,0,0,0,0,0,0,0,0,0,0,0,0,0,0,0,0,0,0,0]
[null,"Weitere Ersatzteile",null,null,150000,null,null,null,null,null,150000,null,{"$error":"#DIV/0!"},null,"Weitere Ersatzteile: ",0,{"$f":"IF(Betrachtungszeit_PW*Fahrleistung_PW<Q$18,0,IF(Q$18-(COUNTIF($P43:P43,\">0\")*$K43)>$K43,$D43,0))","v":0},{"$f":"IF(Betrachtungszeit_PW*Fahrleistung_PW<R$18,0,IF(R$18-(COUNTIF($P43:Q43,\">0\")*$K43)>$K43,$D43,0))","v":0},{"$f":"IF(Betrachtungszeit_PW*Fahrleistung_PW<S$18,0,IF(S$18-(COUNTIF($P43:R43,\">0\")*$K43)>$K43,$D43,0))","v":0},{"$f":"IF(Betrachtungszeit_PW*Fahrleistung_PW<T$18,0,IF(T$18-(COUNTIF($P43:S43,\">0\")*$K43)>$K43,$D43,0))","v":0},{"$f":"IF(Betrachtungszeit_PW*Fahrleistung_PW<U$18,0,IF(U$18-(COUNTIF($P43:T43,\">0\")*$K43)>$K43,$D43,0))","v":0},{"$f":"IF(Betrachtungszeit_PW*Fahrleistung_PW<V$18,0,IF(V$18-(COUNTIF($P43:U43,\">0\")*$K43)>$K43,$D43,0))","v":0},{"$f":"IF(Betrachtungszeit_PW*Fahrleistung_PW<W$18,0,IF(W$18-(COUNTIF($P43:V43,\">0\")*$K43)>$K43,$D43,0))","v":0},{"$f":"IF(Betrachtungszeit_PW*Fahrleistung_PW<X$18,0,IF(X$18-(COUNTIF($P43:W43,\">0\")*$K43)>$K43,$D43,0))","v":0},{"$f":"IF(Betrachtungszeit_PW*Fahrleistung_PW<Y$18,0,IF(Y$18-(COUNTIF($P43:X43,\">0\")*$K43)>$K43,$D43,0))","v":0},{"$f":"IF(Betrachtungszeit_PW*Fahrleistung_PW<Z$18,0,IF(Z$18-(COUNTIF($P43:Y43,\">0\")*$K43)>$K43,$D43,0))","v":0},{"$f":"IF(Betrachtungszeit_PW*Fahrleistung_PW<AA$18,0,IF(AA$18-(COUNTIF($P43:Z43,\">0\")*$K43)>$K43,$D43,0))","v":0},{"$f":"IF(Betrachtungszeit_PW*Fahrleistung_PW<AB$18,0,IF(AB$18-(COUNTIF($P43:AA43,\">0\")*$K43)>$K43,$D43,0))","v":0},{"$f":"IF(Betrachtungszeit_PW*Fahrleistung_PW<AC$18,0,IF(AC$18-(COUNTIF($P43:AB43,\">0\")*$K43)>$K43,$D43,0))","v":0},{"$f":"IF(Betrachtungszeit_PW*Fahrleistung_PW<AD$18,0,IF(AD$18-(COUNTIF($P43:AC43,\">0\")*$K43)>$K43,$D43,0))","v":0},{"$f":"IF(Betrachtungszeit_PW*Fahrleistung_PW<AE$18,0,IF(AE$18-(COUNTIF($P43:AD43,\">0\")*$K43)>$K43,$D43,0))","v":0},{"$f":"IF(Betrachtungszeit_PW*Fahrleistung_PW<AF$18,0,IF(AF$18-(COUNTIF($P43:AE43,\">0\")*$K43)>$K43,$D43,0))","v":0},{"$f":"IF(Betrachtungszeit_PW*Fahrleistung_PW<AG$18,0,IF(AG$18-(COUNTIF($P43:AF43,\">0\")*$K43)>$K43,$D43,0))","v":0},{"$f":"IF(Betrachtungszeit_PW*Fahrleistung_PW<AH$18,0,IF(AH$18-(COUNTIF($P43:AG43,\">0\")*$K43)>$K43,$D43,0))","v":0},{"$f":"IF(Betrachtungszeit_PW*Fahrleistung_PW<AI$18,0,IF(AI$18-(COUNTIF($P43:AH43,\">0\")*$K43)>$K43,$D43,0))","v":0},{"$f":"IF(Betrachtungszeit_PW*Fahrleistung_PW<AJ$18,0,IF(AJ$18-(COUNTIF($P43:AI43,\">0\")*$K43)>$K43,$D43,0))","v":0},{"$f":"IF(Betrachtungszeit_PW*Fahrleistung_PW<AK$18,0,IF(AK$18-(COUNTIF($P43:AJ43,\">0\")*$K43)>$K43,$D43,0))","v":0},{"$f":"IF(Betrachtungszeit_PW*Fahrleistung_PW<AL$18,0,IF(AL$18-(COUNTIF($P43:AK43,\">0\")*$K43)>$K43,$D43,0))","v":0},{"$f":"IF(Betrachtungszeit_PW*Fahrleistung_PW<AM$18,0,IF(AM$18-(COUNTIF($P43:AL43,\">0\")*$K43)>$K43,$D43,0))","v":0},{"$f":"IF(Betrachtungszeit_PW*Fahrleistung_PW<AN$18,0,IF(AN$18-(COUNTIF($P43:AM43,\">0\")*$K43)>$K43,$D43,0))","v":0},{"$f":"IF(Betrachtungszeit_PW*Fahrleistung_PW<AO$18,0,IF(AO$18-(COUNTIF($P43:AN43,\">0\")*$K43)>$K43,$D43,0))","v":0},{"$f":"IF(Betrachtungszeit_PW*Fahrleistung_PW<AP$18,0,IF(AP$18-(COUNTIF($P43:AO43,\">0\")*$K43)>$K43,$D43,0))","v":0},{"$f":"IF(Betrachtungszeit_PW*Fahrleistung_PW<AQ$18,0,IF(AQ$18-(COUNTIF($P43:AP43,\">0\")*$K43)>$K43,$D43,0))","v":0},{"$f":"IF(Betrachtungszeit_PW*Fahrleistung_PW<AR$18,0,IF(AR$18-(COUNTIF($P43:AQ43,\">0\")*$K43)>$K43,$D43,0))","v":0},{"$f":"IF(Betrachtungszeit_PW*Fahrleistung_PW<AS$18,0,IF(AS$18-(COUNTIF($P43:AR43,\">0\")*$K43)>$K43,$D43,0))","v":0},{"$f":"IF(Betrachtungszeit_PW*Fahrleistung_PW<AT$18,0,IF(AT$18-(COUNTIF($P43:AS43,\">0\")*$K43)>$K43,$D43,0))","v":0},0,null,0,0,0,0,0,0,0,0,0,0,0,0,0,0,0,0,0,0,0,0,0,0,0,0,0,0,0,0,0,0,0]
[null,"Weitere Ersatzteile",null,null,150000,null,null,null,null,null,150000,null,{"$error":"#DIV/0!"},null,"Weitere Ersatzteile: ",0,{"$f":"IF(Betrachtungszeit_PW*Fahrleistung_PW<Q$18,0,IF(Q$18-(COUNTIF($P44:P44,\">0\")*$K44)>$K44,$D44,0))","v":0},{"$f":"IF(Betrachtungszeit_PW*Fahrleistung_PW<R$18,0,IF(R$18-(COUNTIF($P44:Q44,\">0\")*$K44)>$K44,$D44,0))","v":0},{"$f":"IF(Betrachtungszeit_PW*Fahrleistung_PW<S$18,0,IF(S$18-(COUNTIF($P44:R44,\">0\")*$K44)>$K44,$D44,0))","v":0},{"$f":"IF(Betrachtungszeit_PW*Fahrleistung_PW<T$18,0,IF(T$18-(COUNTIF($P44:S44,\">0\")*$K44)>$K44,$D44,0))","v":0},{"$f":"IF(Betrachtungszeit_PW*Fahrleistung_PW<U$18,0,IF(U$18-(COUNTIF($P44:T44,\">0\")*$K44)>$K44,$D44,0))","v":0},{"$f":"IF(Betrachtungszeit_PW*Fahrleistung_PW<V$18,0,IF(V$18-(COUNTIF($P44:U44,\">0\")*$K44)>$K44,$D44,0))","v":0},{"$f":"IF(Betrachtungszeit_PW*Fahrleistung_PW<W$18,0,IF(W$18-(COUNTIF($P44:V44,\">0\")*$K44)>$K44,$D44,0))","v":0},{"$f":"IF(Betrachtungszeit_PW*Fahrleistung_PW<X$18,0,IF(X$18-(COUNTIF($P44:W44,\">0\")*$K44)>$K44,$D44,0))","v":0},{"$f":"IF(Betrachtungszeit_PW*Fahrleistung_PW<Y$18,0,IF(Y$18-(COUNTIF($P44:X44,\">0\")*$K44)>$K44,$D44,0))","v":0},{"$f":"IF(Betrachtungszeit_PW*Fahrleistung_PW<Z$18,0,IF(Z$18-(COUNTIF($P44:Y44,\">0\")*$K44)>$K44,$D44,0))","v":0},{"$f":"IF(Betrachtungszeit_PW*Fahrleistung_PW<AA$18,0,IF(AA$18-(COUNTIF($P44:Z44,\">0\")*$K44)>$K44,$D44,0))","v":0},{"$f":"IF(Betrachtungszeit_PW*Fahrleistung_PW<AB$18,0,IF(AB$18-(COUNTIF($P44:AA44,\">0\")*$K44)>$K44,$D44,0))","v":0},{"$f":"IF(Betrachtungszeit_PW*Fahrleistung_PW<AC$18,0,IF(AC$18-(COUNTIF($P44:AB44,\">0\")*$K44)>$K44,$D44,0))","v":0},{"$f":"IF(Betrachtungszeit_PW*Fahrleistung_PW<AD$18,0,IF(AD$18-(COUNTIF($P44:AC44,\">0\")*$K44)>$K44,$D44,0))","v":0},{"$f":"IF(Betrachtungszeit_PW*Fahrleistung_PW<AE$18,0,IF(AE$18-(COUNTIF($P44:AD44,\">0\")*$K44)>$K44,$D44,0))","v":0},{"$f":"IF(Betrachtungszeit_PW*Fahrleistung_PW<AF$18,0,IF(AF$18-(COUNTIF($P44:AE44,\">0\")*$K44)>$K44,$D44,0))","v":0},{"$f":"IF(Betrachtungszeit_PW*Fahrleistung_PW<AG$18,0,IF(AG$18-(COUNTIF($P44:AF44,\">0\")*$K44)>$K44,$D44,0))","v":0},{"$f":"IF(Betrachtungszeit_PW*Fahrleistung_PW<AH$18,0,IF(AH$18-(COUNTIF($P44:AG44,\">0\")*$K44)>$K44,$D44,0))","v":0},{"$f":"IF(Betrachtungszeit_PW*Fahrleistung_PW<AI$18,0,IF(AI$18-(COUNTIF($P44:AH44,\">0\")*$K44)>$K44,$D44,0))","v":0},{"$f":"IF(Betrachtungszeit_PW*Fahrleistung_PW<AJ$18,0,IF(AJ$18-(COUNTIF($P44:AI44,\">0\")*$K44)>$K44,$D44,0))","v":0},{"$f":"IF(Betrachtungszeit_PW*Fahrleistung_PW<AK$18,0,IF(AK$18-(COUNTIF($P44:AJ44,\">0\")*$K44)>$K44,$D44,0))","v":0},{"$f":"IF(Betrachtungszeit_PW*Fahrleistung_PW<AL$18,0,IF(AL$18-(COUNTIF($P44:AK44,\">0\")*$K44)>$K44,$D44,0))","v":0},{"$f":"IF(Betrachtungszeit_PW*Fahrleistung_PW<AM$18,0,IF(AM$18-(COUNTIF($P44:AL44,\">0\")*$K44)>$K44,$D44,0))","v":0},{"$f":"IF(Betrachtungszeit_PW*Fahrleistung_PW<AN$18,0,IF(AN$18-(COUNTIF($P44:AM44,\">0\")*$K44)>$K44,$D44,0))","v":0},{"$f":"IF(Betrachtungszeit_PW*Fahrleistung_PW<AO$18,0,IF(AO$18-(COUNTIF($P44:AN44,\">0\")*$K44)>$K44,$D44,0))","v":0},{"$f":"IF(Betrachtungszeit_PW*Fahrleistung_PW<AP$18,0,IF(AP$18-(COUNTIF($P44:AO44,\">0\")*$K44)>$K44,$D44,0))","v":0},{"$f":"IF(Betrachtungszeit_PW*Fahrleistung_PW<AQ$18,0,IF(AQ$18-(COUNTIF($P44:AP44,\">0\")*$K44)>$K44,$D44,0))","v":0},{"$f":"IF(Betrachtungszeit_PW*Fahrleistung_PW<AR$18,0,IF(AR$18-(COUNTIF($P44:AQ44,\">0\")*$K44)>$K44,$D44,0))","v":0},{"$f":"IF(Betrachtungszeit_PW*Fahrleistung_PW<AS$18,0,IF(AS$18-(COUNTIF($P44:AR44,\">0\")*$K44)>$K44,$D44,0))","v":0},{"$f":"IF(Betrachtungszeit_PW*Fahrleistung_PW<AT$18,0,IF(AT$18-(COUNTIF($P44:AS44,\">0\")*$K44)>$K44,$D44,0))","v":0},0,null,0,0,0,0,0,0,0,0,0,0,0,0,0,0,0,0,0,0,0,0,0,0,0,0,0,0,0,0,0,0,0]
[null,"Weitere Ersatzteile",null,null,150000,null,null,null,null,null,150000,null,{"$error":"#DIV/0!"},null,"Weitere Ersatzteile: ",0,{"$f":"IF(Betrachtungszeit_PW*Fahrleistung_PW<Q$18,0,IF(Q$18-(COUNTIF($P45:P45,\">0\")*$K45)>$K45,$D45,0))","v":0},{"$f":"IF(Betrachtungszeit_PW*Fahrleistung_PW<R$18,0,IF(R$18-(COUNTIF($P45:Q45,\">0\")*$K45)>$K45,$D45,0))","v":0},{"$f":"IF(Betrachtungszeit_PW*Fahrleistung_PW<S$18,0,IF(S$18-(COUNTIF($P45:R45,\">0\")*$K45)>$K45,$D45,0))","v":0},{"$f":"IF(Betrachtungszeit_PW*Fahrleistung_PW<T$18,0,IF(T$18-(COUNTIF($P45:S45,\">0\")*$K45)>$K45,$D45,0))","v":0},{"$f":"IF(Betrachtungszeit_PW*Fahrleistung_PW<U$18,0,IF(U$18-(COUNTIF($P45:T45,\">0\")*$K45)>$K45,$D45,0))","v":0},{"$f":"IF(Betrachtungszeit_PW*Fahrleistung_PW<V$18,0,IF(V$18-(COUNTIF($P45:U45,\">0\")*$K45)>$K45,$D45,0))","v":0},{"$f":"IF(Betrachtungszeit_PW*Fahrleistung_PW<W$18,0,IF(W$18-(COUNTIF($P45:V45,\">0\")*$K45)>$K45,$D45,0))","v":0},{"$f":"IF(Betrachtungszeit_PW*Fahrleistung_PW<X$18,0,IF(X$18-(COUNTIF($P45:W45,\">0\")*$K45)>$K45,$D45,0))","v":0},{"$f":"IF(Betrachtungszeit_PW*Fahrleistung_PW<Y$18,0,IF(Y$18-(COUNTIF($P45:X45,\">0\")*$K45)>$K45,$D45,0))","v":0},{"$f":"IF(Betrachtungszeit_PW*Fahrleistung_PW<Z$18,0,IF(Z$18-(COUNTIF($P45:Y45,\">0\")*$K45)>$K45,$D45,0))","v":0},{"$f":"IF(Betrachtungszeit_PW*Fahrleistung_PW<AA$18,0,IF(AA$18-(COUNTIF($P45:Z45,\">0\")*$K45)>$K45,$D45,0))","v":0},{"$f":"IF(Betrachtungszeit_PW*Fahrleistung_PW<AB$18,0,IF(AB$18-(COUNTIF($P45:AA45,\">0\")*$K45)>$K45,$D45,0))","v":0},{"$f":"IF(Betrachtungszeit_PW*Fahrleistung_PW<AC$18,0,IF(AC$18-(COUNTIF($P45:AB45,\">0\")*$K45)>$K45,$D45,0))","v":0},{"$f":"IF(Betrachtungszeit_PW*Fahrleistung_PW<AD$18,0,IF(AD$18-(COUNTIF($P45:AC45,\">0\")*$K45)>$K45,$D45,0))","v":0},{"$f":"IF(Betrachtungszeit_PW*Fahrleistung_PW<AE$18,0,IF(AE$18-(COUNTIF($P45:AD45,\">0\")*$K45)>$K45,$D45,0))","v":0},{"$f":"IF(Betrachtungszeit_PW*Fahrleistung_PW<AF$18,0,IF(AF$18-(COUNTIF($P45:AE45,\">0\")*$K45)>$K45,$D45,0))","v":0},{"$f":"IF(Betrachtungszeit_PW*Fahrleistung_PW<AG$18,0,IF(AG$18-(COUNTIF($P45:AF45,\">0\")*$K45)>$K45,$D45,0))","v":0},{"$f":"IF(Betrachtungszeit_PW*Fahrleistung_PW<AH$18,0,IF(AH$18-(COUNTIF($P45:AG45,\">0\")*$K45)>$K45,$D45,0))","v":0},{"$f":"IF(Betrachtungszeit_PW*Fahrleistung_PW<AI$18,0,IF(AI$18-(COUNTIF($P45:AH45,\">0\")*$K45)>$K45,$D45,0))","v":0},{"$f":"IF(Betrachtungszeit_PW*Fahrleistung_PW<AJ$18,0,IF(AJ$18-(COUNTIF($P45:AI45,\">0\")*$K45)>$K45,$D45,0))","v":0},{"$f":"IF(Betrachtungszeit_PW*Fahrleistung_PW<AK$18,0,IF(AK$18-(COUNTIF($P45:AJ45,\">0\")*$K45)>$K45,$D45,0))","v":0},{"$f":"IF(Betrachtungszeit_PW*Fahrleistung_PW<AL$18,0,IF(AL$18-(COUNTIF($P45:AK45,\">0\")*$K45)>$K45,$D45,0))","v":0},{"$f":"IF(Betrachtungszeit_PW*Fahrleistung_PW<AM$18,0,IF(AM$18-(COUNTIF($P45:AL45,\">0\")*$K45)>$K45,$D45,0))","v":0},{"$f":"IF(Betrachtungszeit_PW*Fahrleistung_PW<AN$18,0,IF(AN$18-(COUNTIF($P45:AM45,\">0\")*$K45)>$K45,$D45,0))","v":0},{"$f":"IF(Betrachtungszeit_PW*Fahrleistung_PW<AO$18,0,IF(AO$18-(COUNTIF($P45:AN45,\">0\")*$K45)>$K45,$D45,0))","v":0},{"$f":"IF(Betrachtungszeit_PW*Fahrleistung_PW<AP$18,0,IF(AP$18-(COUNTIF($P45:AO45,\">0\")*$K45)>$K45,$D45,0))","v":0},{"$f":"IF(Betrachtungszeit_PW*Fahrleistung_PW<AQ$18,0,IF(AQ$18-(COUNTIF($P45:AP45,\">0\")*$K45)>$K45,$D45,0))","v":0},{"$f":"IF(Betrachtungszeit_PW*Fahrleistung_PW<AR$18,0,IF(AR$18-(COUNTIF($P45:AQ45,\">0\")*$K45)>$K45,$D45,0))","v":0},{"$f":"IF(Betrachtungszeit_PW*Fahrleistung_PW<AS$18,0,IF(AS$18-(COUNTIF($P45:AR45,\">0\")*$K45)>$K45,$D45,0))","v":0},{"$f":"IF(Betrachtungszeit_PW*Fahrleistung_PW<AT$18,0,IF(AT$18-(COUNTIF($P45:AS45,\">0\")*$K45)>$K45,$D45,0))","v":0},0,null,0,0,0,0,0,0,0,0,0,0,0,0,0,0,0,0,0,0,0,0,0,0,0,0,0,0,0,0,0,0,0]
[null,"Restwert Ersatzteile am Ende der Betrachtungszeit","CHF",{"$f":"SUM(AU33:AU45)","v":0},null,null,null,null,null,null,null,null,null,null,"Kosten Ersatzteile abzüglich Restwert",null,null,null,null,null,null,null,null,null,null,null,null,null,null,null,null,null,null,null,null,null,null,null,null,null,null,null,null,null,null,null,"Nettobarwert"]
[null,null,null,null,null,null,null,null,null,null,null,null,null,null,"Kosten Ersatzteile",{"$f":"SUM(P33:P37,P39:P45)","v":0},{"$f":"SUM(Q33:Q37,Q39:Q45)","v":0},0,0,0,0,0,0,0,0,0,0,0,0,0,0,0,0,0,0,0,0,0,0,0,0,0,0,0,0,0]
[null,null,null,null,null,null,null,null,null,null,null,null,null,null,"Restwert Ersatzteile",{"$f":"IF(Betrachtungszeit_PW=P17,-$D$46,0)","v":0},0,0,0,0,0,0,0,0,0,0,0,0,0,0,0,0,0,0,0,0,0,0,0,0,0,0,0,0,0,0]
[null,"Service- und Reparaturkosten","Beschreibung","Kosten \n(alle Fahrz.) [CHF/a]",null,null,null,null,null,null,null,null,null,null,"Kosten inkl. Preissteigerung",{"$f":"SUM(P47:P48)*(1+Inflationsindex)^P$17","v":0},0,0,0,0,0,0,0,0,0,0,0,0,0,0,0,0,0,0,0,0,0,0,0,0,0,0,0,0,0,0]
[null,"Servicekosten",null,null,null,null,null,null,null,null,null,null,null,null,"Barwert",{"$f":"P49*(1+Kalkulationszinssatz)^-P$17","v":0},0,0,0,0,0,0,0,0,0,0,0,0,0,0,0,0,0,0,0,0,0,0,0,0,0,0,0,0,0,0,{"$f":"SUM(P50:AT50)","v":0}]
[null,"Reperaturkosten"]
[null,"Weitere jährliche Service- und Reparaturkosten"]
[null,"Weitere jährliche Service- und Reparaturkosten"]
[null,"Weitere jährliche Service- und Reparaturkosten"]
[null,"Total",null,{"$f":"SUM(D50:D54)","v":0},null,null,null,null,null,null,null,null,null,null,"Service- und Reparaturkosten",null,null,null,null,null,null,null,null,null,null,null,null,null,null,null,null,null,null,null,null,null,null,null,null,null,null,null,null,null,null,null,"Nettobarwert"]
[null,null,null,null,null,null,null,null,null,null,null,null,null,null,"Kosten inkl. Preissteigerung",0,{"$f":"IF(Q$17<=Betrachtungszeit_PW,D55+D55*Inflationsindex,0)","v":0},{"$f":"IF(R$17<=Betrachtungszeit_PW,Q56+Q56*Inflationsindex,0)","v":0},0,0,0,0,0,0,0,0,0,0,0,0,0,0,0,0,0,0,0,0,0,0,0,0,0,0,0,0]
["K","Betriebskosten",null,null,null,null,null,null,null,null,null,null,null,null,"Barwert",0,{"$f":"Q56*(1+Kalkulationszinssatz)^-Q$17","v":0},0,0,0,0,0,0,0,0,0,0,0,0,0,0,0,0,0,0,0,0,0,0,0,0,0,0,0,0,0,{"$f":"SUM(P57:AT57)","v":0}]
[null,"Verkehrssteuer"]
[null,"Haftpflicht-Versicherung"]
[null,"Kasko-Versicherung"]
[null,"Weitere Versicherungen"]
[null,"Pannenhilfe, Assistance"]
[null,"Garagierungskosten"]
[null,"Autobahnvignette"]
[null,"Strassenbenützungsgebühren"]
[null,"Mitgliedsbeiträge"]
[null,"Nebenauslagen"]
[null,"Fahrzeugpflege"]
[null,"Weitere jährliche Betriebskosten",null,null,null,null,null,null,null,null,null,null,null,null,"Betriebskosten",null,null,null,null,null,null,null,null,null,null,null,null,null,null,null,null,null,null,null,null,null,null,null,null,null,null,null,null,null,null,null,"Nettobarwert"]
[null,"Weitere jährliche Betriebskosten",null,null,null,null,null,null,null,null,null,null,null,null,"Kosten inkl. Preissteigerung",0,{"$f":"IF(Q$17<=Betrachtungszeit_PW,D72+D72*Inflationsindex,0)","v":0},{"$f":"IF(R$17<=Betrachtungszeit_PW,Q70+Q70*Inflationsindex,0)","v":0},0,0,0,0,0,0,0,0,0,0,0,0,0,0,0,0,0,0,0,0,0,0,0,0,0,0,0,0]
[null,"Weitere jährliche Betriebskosten",null,null,null,null,null,null,null,null,null,null,null,null,"Barwert",0,{"$f":"Q70*(1+Kalkulationszinssatz)^-Q$17","v":0},0,0,0,0,0,0,0,0,0,0,0,0,0,0,0,0,0,0,0,0,0,0,0,0,0,0,0,0,0,{"$f":"SUM(P71:AT71)","v":0}]
[null,"Total",null,{"$f":"SUM(D58:D71)","v":0}]
[]
[null,"Energie- und Ladekosten",{"$f":"\"Treibstoff:\n \"&$C$8","v":"Treibstoff:\n BITTE WÄHLEN"},"Total",null,null,null,null,null,null,null,null,null,null,"Energie- und Ladekosten",null,null,null,null,null,null,null,null,null,null,null,null,null,null,null,null,null,null,null,null,null,null,null,null,null,null,null,null,null,null,null,"Nettobarwert"]
["K","Leistungskosten (eigene Ladestation)",{"$f":"IF(C13=13,C11*12,0)*VLOOKUP(C13,Input_Generell!$W$9:$AB$22,2,0)","v":0},{"$f":"SUM(C75:C75)","v":0},"CHF/a",null,null,null,null,null,null,null,null,null,"Leistungskosten (eigene Ladestation) inkl. Energiepreissteigerung",0,{"$f":"IF(Q$17<=Betrachtungszeit_PW,$D$75*(1+Energiepreissteigerung),0)","v":0},{"$f":"IF(R$17<=Betrachtungszeit_PW,Q75*(1+Energiepreissteigerung),0)","v":0},0,0,0,0,0,0,0,0,0,0,0,0,0,0,0,0,0,0,0,0,0,0,0,0,0,0,0,0]
["K","Energiekosten (eigene Ladestation)",{"$f":"IF(C13=13,Anteil_Intern*C10*Stückzahl_PW*1000*(Anteil_HT*StrompreisHT/100+Anteil_NT*StrompreisNT/100),0)","v":0},{"$f":"SUM(C76:C76)","v":0},"CHF/a",null,null,null,null,null,null,null,null,null,"Energiekosten (eigene Ladestation) inkl. Energiepreissteigerung",0,{"$f":"IF(Q$17<=Betrachtungszeit_PW,$D$76*(1+Energiepreissteigerung),0)","v":0},{"$f":"IF(R$17<=Betrachtungszeit_PW,Q76*(1+Energiepreissteigerung),0)","v":0},0,0,0,0,0,0,0,0,0,0,0,0,0,0,0,0,0,0,0,0,0,0,0,0,0,0,0,0]
[null,"Energiekosten (externes Tanken/Laden)",{"$f":"IF(C13=13,Anteil_Extern*Verbrauchsbasiert_Preis/100*C10*Stückzahl_PW*1000,VLOOKUP(C13,Input_Generell!$W$9:$AB$22,3,0)/100*C10*Stückzahl_PW*1000)","v":0},{"$f":"SUM(C77:C77)","v":0},"CHF/a",null,null,null,null,null,null,null,null,null,"Energiekosten (externes Tanken/Laden) inkl. Energiepreissteigerung",0,{"$f":"IF(Q$17<=Betrachtungszeit_PW,$D$77*(1+Energiepreissteigerung),0)","v":0},{"$f":"IF(R$17<=Betrachtungszeit_PW,Q77*(1+Energiepreissteigerung),0)","v":0},0,0,0,0,0,0,0,0,0,0,0,0,0,0,0,0,0,0,0,0,0,0,0,0,0,0,0,0]
["K","Strompreisunabhängige Ladekosten (externes Laden)",{"$f":"IF(C13=13,Input_Generell!D22,0)","v":0},{"$f":"SUM(C78:C78)","v":0},"CHF/a",null,null,null,null,null,null,null,null,null,"Strompreisunabh. Ladekosten (externes Laden) inkl. Preissteigerung",0,{"$f":"IF(Q$17<=Betrachtungszeit_PW,$D$78*(1+Inflationsindex),0)","v":0},{"$f":"IF(R$17<=Betrachtungszeit_PW,Q78*(1+Inflationsindex),0)","v":0},0,0,0,0,0,0,0,0,0,0,0,0,0,0,0,0,0,0,0,0,0,0,0,0,0,0,0,0]
[null,"Total",{"$f":"SUM(C75:C78)","v":0},{"$f":"SUM(D75:D78)","v":0},"CHF/a",null,null,null,null,null,null,null,null,null,"Barwert",0,{"$f":"SUM(Q75:Q78)*(1+Kalkulationszinssatz)^-Q$17","v":0},0,0,0,0,0,0,0,0,0,0,0,0,0,0,0,0,0,0,0,0,0,0,0,0,0,0,0,0,0,{"$f":"SUM(P79:AT79)","v":0}]
[]
[null,"Betrieb: Externe Kosten",{"$f":"\"Treibstoff:\n \"&$C$8","v":"Treibstoff:\n BITTE WÄHLEN"},"Total"]
[null,"Treibhausgasemissionen (THG)",{"$f":"C10*Stückzahl_PW*(1/1000)*IF(C13=13,Anteil_Intern*EF_Strom+Anteil_Extern*EF_Verbrauchsbasiert,VLOOKUP(C13,Input_Generell!$W$9:$AB$22,5,0))","v":0},{"$f":"SUM(C82:C82)","v":0},"tCO2eq/a",null,null,null,null,null,null,null,null,null,"Betrieb: Externe Kosten Treibhausgasemissionen",null,null,null,null,null,null,null,null,null,null,null,null,null,null,null,null,null,null,null,null,null,null,null,null,null,null,null,null,null,null,null,"Nettobarwert"]
[null,"Umweltbelastungspunkte UBP'13",{"$f":"C10*Stückzahl_PW*1000*IF(C13=13,Anteil_Intern*UBP_Strom+Anteil_Extern*UBP_Strom_Extern,VLOOKUP(C13,Input_Generell!$W$9:$AB$22,6,0))","v":0},{"$f":"SUM(C83:C83)","v":0},"UBP/a",null,null,null,null,null,null,null,null,null,"Kosten inkl. Preissteigerung",0,{"$f":"IF(Q$17<=Betrachtungszeit_PW,D84+D84*Inflationsindex,0)","v":0},{"$f":"IF(R$17<=Betrachtungszeit_PW,Q83+Q83*Inflationsindex,0)","v":0},0,0,0,0,0,0,0,0,0,0,0,0,0,0,0,0,0,0,0,0,0,0,0,0,0,0,0,0]
[null,{"$f":"VLOOKUP(Input_Generell!$B$28,Input_Generell!$B$52:$D$55,3,0)","v":"Kosten für THG: nicht gewählt"},{"$f":"C82*Kosten_THG","v":0},{"$f":"SUM(C84:C84)","v":0},"CHF/a",null,null,null,null,null,null,null,null,null,"Barwert",0,{"$f":"Q83*(1+Kalkulationszinssatz)^-Q$17","v":0},0,0,0,0,0,0,0,0,0,0,0,0,0,0,0,0,0,0,0,0,0,0,0,0,0,0,0,0,0,{"$f":"SUM(P84:AT84)","v":0}]
[]
[null,"Entsorgungskosten",null,null,null,null,null,null,null,null,null,null,null,null,"Entsorgung am Ende der Betrachtungszeit der Lebenszyklusrechnung",null,null,null,null,null,null,null,null,null,null,null,null,null,null,null,null,null,null,null,null,null,null,null,null,null,null,null,null,null,null,null,"Nettobarwert"]
["K","Entsorgungskosten",null,null,"CHF",null,null,null,null,null,null,null,null,null,"Kosten inkl. Preissteigerung",0,{"$f":"IF(Q$17=Betrachtungszeit_PW,$D$87*(1+Inflationsindex)^Q$17,0)","v":0},0,0,0,0,0,0,0,0,0,0,0,0,0,0,0,0,0,0,0,0,0,0,0,0,0,0,0,0,0]
[null,null,null,null,null,null,null,null,null,null,null,null,null,null,"Barwert",0,{"$f":"Q87*(1+Kalkulationszinssatz)^-Q$17","v":0},0,0,0,0,0,0,0,0,0,0,0,0,0,0,0,0,0,0,0,0,0,0,0,0,0,0,0,0,0,{"$f":"SUM(P88:AT88)","v":0}]
[]
[null,"Umweltrelevante Angaben Erstellung und Entsorgung der Fahrzeuge"]
[null,"Die Treibhausgas-Emissionen und Umweltbelastungspunkte, die aus der Erstellung und Entsorgung der Fahrzeuge entstehen, können nachfolgend berechnet werden. Mit Hilfe des mobitools (2017) kann die Grössenordnung der Treibhausgas-Emissionen und Umweltbelastungspunkte aus der Herstellung und Entsorgung ermittelt werden. Mobitool gibt diese Emissionen pro Kilometer aus (ausgehend von einer typischen Distanz über die Lebensdauer). Insbesondere wenn die Fahrzeuge über die Lebensdauer besonders wenig oder besonders viele Kilometer zurücklegen und/oder Fahrzeuge mit erneuerbaren Treibstoffen verglichen werden, empfiehlt sich jedoch eine genauere Abklärung. Falls aus der Erstellung und Entsorgung keine Daten einbezogen werden sollen, können die Eingabewerte leer gelassen werden. Die Vorgehensweise für die Ermittlung der Eingabewerte mit Hilfe des mobitools wird nachfolgend beschrieben.\nIm mobitool, in der Zeile des betroffenen Fahrzeugmodells:\n- Auslastung auf 1 setzen (somit werden die Werte pro Kilometer anstelle pro Personen-Kilometer ausgegeben)\n- Das 'Fahrzeuggewicht' sowie bei Elektro-Fahrzeugen das 'Batteriegewicht' und die 'Anzahl Batteriewechsel über Lebensdauer' anpassen\n- Im grauen Bereich oben links den gewünschten Indikator wählen ('Treibhausgaspotenzial' resp. 'UBP13')\n- In der Spalte 'Fahrzeugherstellung / -entsorgung' können die Werte für CO2eq resp. UBP abgelesen werden"]
[]
[null,"Erstellung und Entsorgung Fahrzeug:\nExterne Kosten","Fahrzeugherstellung / -entsorgung",null,"Total"]
[null,"Treibhausgasemissionen (THG)",null,"g CO2eq / km / Fahrz.",{"$f":"Stückzahl_PW*Betrachtungszeit_PW*Fahrleistung_PW*C94/1000000","v":0},"tCO2eq"]
[null,"Umweltbelastungspunkte UBP'13",null,"UBP / km / Fahrz.",{"$f":"Stückzahl_PW*Betrachtungszeit_PW*Fahrleistung_PW*C95","v":0},"UBP",null,null,null,null,null,null,null,null,"Erstellung / Entsorgung: Externe Kosten Treibhausgasemissionen",null,null,null,null,null,null,null,null,null,null,null,null,null,null,null,null,null,null,null,null,null,null,null,null,null,null,null,null,null,null,null,"Nettobarwert"]
["K",{"$f":"VLOOKUP(Input_Generell!$B$28,Input_Generell!$B$52:$D$55,3,0)","v":"Kosten für THG: nicht gewählt"},null,null,{"$f":"E94*Kosten_THG","v":0},"CHF",null,null,null,null,null,null,null,null,"Barwert",{"$f":"E96","v":0},null,null,null,null,null,null,null,null,null,null,null,null,null,null,null,null,null,null,null,null,null,null,null,null,null,null,null,null,null,null,{"$f":"SUM(P96:AT96)","v":0}]
[]
[]
[null,"Lebenszykluskosten"]
[null,"Kosten des Fahrzeugs über den gesamten Lebenszyklus gesehen (in Form des Nettobarwertes = Kapitalwert)."]
[null,null,null,null,null,null,null,null,null,null,null,null,null,null,"Barwerte",null,null,null,null,null,null,null,null,null,null,null,null,null,null,null,null,null,null,null,null,null,null,null,null,null,null,null,null,null,null,null,"Nettobarwert"]
["K","Anschaffungskosten (abzüglich Förderbeitrag, Restwert)",null,null,{"$f":"AU102","v":0},"CHF",null,null,null,null,null,null,null,null,{"$f":"B102","v":"Anschaffungskosten (abzüglich Förderbeitrag, Restwert)"},{"$f":"P29","v":0},0,0,0,0,0,0,0,0,0,0,0,0,0,0,0,0,0,0,0,0,0,0,0,0,0,0,0,0,0,0,0]
[null,"Kosten Ersatzteile (abzüglich Restwert)",null,null,{"$f":"AU103","v":0},"CHF",null,null,null,null,null,null,null,null,"Kosten Ersatzteile (abzüglich Restwert)",{"$f":"P50","v":0},0,0,0,0,0,0,0,0,0,0,0,0,0,0,0,0,0,0,0,0,0,0,0,0,0,0,0,0,0,0,0]
[null,"Service- und Reparaturkosten",null,null,{"$f":"AU104","v":0},"CHF",null,null,null,null,null,null,null,null,"Service- und Reparaturkosten",{"$f":"P57","v":0},0,0,0,0,0,0,0,0,0,0,0,0,0,0,0,0,0,0,0,0,0,0,0,0,0,0,0,0,0,0,0]
[null,"Betriebskosten",null,null,{"$f":"AU105","v":0},"CHF",null,null,null,null,null,null,null,null,"Betriebskosten",{"$f":"P71","v":0},0,0,0,0,0,0,0,0,0,0,0,0,0,0,0,0,0,0,0,0,0,0,0,0,0,0,0,0,0,0,0]
[null,"Energiekosten",null,null,0,"CHF",null,null,null,null,null,null,null,null,"Energiekosten",{"$f":"P79","v":0},0,0,0,0,0,0,0,0,0,0,0,0,0,0,0,0,0,0,0,0,0,0,0,0,0,0,0,0,0,0,0]
["K",{"$f":"VLOOKUP(Input_Generell!$B$28,Input_Generell!$B$52:$D$55,3,0)&\" (Betrieb und Erstellung/Entsorgung)\"","v":"Kosten für THG: nicht gewählt (Betrieb und Erstellung/Entsorgung)"},null,null,0,"CHF",null,null,null,null,null,null,null,null,"Kosten für THG: nicht gewählt (Betrieb und Erstellung/Entsorgung)",{"$f":"P84+P96","v":0},0,0,0,0,0,0,0,0,0,0,0,0,0,0,0,0,0,0,0,0,0,0,0,0,0,0,0,0,0,0,0]
[null,"Entsorgungskosten",null,null,0,"CHF",null,null,null,null,null,null,null,null,"Entsorgungskosten",{"$f":"P88","v":0},0,0,0,0,0,0,0,0,0,0,0,0,0,0,0,0,0,0,0,0,0,0,0,0,0,0,0,0,0,0,0]
[null,"Total",null,null,0,"CHF",null,null,null,null,null,null,null,null,"Total",{"$f":"SUM(P102:P108)","v":0},0,0,0,0,0,0,0,0,0,0,0,0,0,0,0,0,0,0,0,0,0,0,0,0,0,0,0,0,0,0,0]
[null,null,null,null,null,null,null,null,null,null,null,null,null,null,"Total aufsummiert",{"$f":"P109","v":0},{"$f":"P110+Q109","v":0},{"$f":"Q110+R109","v":0},{"$f":"R110+S109","v":0},0,0,0,0,0,0,0,0,0,0,0,0,0,0,0,0,0,0,0,0,0,0,0,0,0,0,{"$f":"AS110+AT109","v":0}]
[null,"Treibhausgasemissionen Erstellung/Entsorgung Fahrzeuge (Scope 3)",null,null,{"$f":"E94","v":0},"tCO2eq",null,null,null,null,null,null,null,null,"Diagramm Anzeige Betrachtungszeit",{"$f":"IF(P17=Betrachtungszeit_PW,MAX(Resultate_PW!$D$14:$H$14),0)","v":0},{"$f":"IF(Q17=Betrachtungszeit_PW,MAX(Resultate_PW!$D$14:$H$14),0)","v":0},{"$f":"IF(R17=Betrachtungszeit_PW,MAX(Resultate_PW!$D$14:$H$14),0)","v":0},{"$f":"IF(S17=Betrachtungszeit_PW,MAX(Resultate_PW!$D$14:$H$14),0)","v":0},{"$f":"IF(T17=Betrachtungszeit_PW,MAX(Resultate_PW!$D$14:$H$14),0)","v":0},{"$f":"IF(U17=Betrachtungszeit_PW,MAX(Resultate_PW!$D$14:$H$14),0)","v":0},{"$f":"IF(V17=Betrachtungszeit_PW,MAX(Resultate_PW!$D$14:$H$14),0)","v":0},{"$f":"IF(W17=Betrachtungszeit_PW,MAX(Resultate_PW!$D$14:$H$14),0)","v":0},{"$f":"IF(X17=Betrachtungszeit_PW,MAX(Resultate_PW!$D$14:$H$14),0)","v":0},{"$f":"IF(Y17=Betrachtungszeit_PW,MAX(Resultate_PW!$D$14:$H$14),0)","v":0},{"$f":"IF(Z17=Betrachtungszeit_PW,MAX(Resultate_PW!$D$14:$H$14),0)","v":0},{"$f":"IF(AA17=Betrachtungszeit_PW,MAX(Resultate_PW!$D$14:$H$14),0)","v":0},{"$f":"IF(AB17=Betrachtungszeit_PW,MAX(Resultate_PW!$D$14:$H$14),0)","v":0},{"$f":"IF(AC17=Betrachtungszeit_PW,MAX(Resultate_PW!$D$14:$H$14),0)","v":0},{"$f":"IF(AD17=Betrachtungszeit_PW,MAX(Resultate_PW!$D$14:$H$14),0)","v":0},{"$f":"IF(AE17=Betrachtungszeit_PW,MAX(Resultate_PW!$D$14:$H$14),0)","v":0},{"$f":"IF(AF17=Betrachtungszeit_PW,MAX(Resultate_PW!$D$14:$H$14),0)","v":0},{"$f":"IF(AG17=Betrachtungszeit_PW,MAX(Resultate_PW!$D$14:$H$14),0)","v":0},{"$f":"IF(AH17=Betrachtungszeit_PW,MAX(Resultate_PW!$D$14:$H$14),0)","v":0},{"$f":"IF(AI17=Betrachtungszeit_PW,MAX(Resultate_PW!$D$14:$H$14),0)","v":0},{"$f":"IF(AJ17=Betrachtungszeit_PW,MAX(Resultate_PW!$D$14:$H$14),0)","v":0},{"$f":"IF(AK17=Betrachtungszeit_PW,MAX(Resultate_PW!$D$14:$H$14),0)","v":0},{"$f":"IF(AL17=Betrachtungszeit_PW,MAX(Resultate_PW!$D$14:$H$14),0)","v":0},{"$f":"IF(AM17=Betrachtungszeit_PW,MAX(Resultate_PW!$D$14:$H$14),0)","v":0},{"$f":"IF(AN17=Betrachtungszeit_PW,MAX(Resultate_PW!$D$14:$H$14),0)","v":0},{"$f":"IF(AO17=Betrachtungszeit_PW,MAX(Resultate_PW!$D$14:$H$14),0)","v":0},{"$f":"IF(AP17=Betrachtungszeit_PW,MAX(Resultate_PW!$D$14:$H$14),0)","v":0},{"$f":"IF(AQ17=Betrachtungszeit_PW,MAX(Resultate_PW!$D$14:$H$14),0)","v":0},{"$f":"IF(AR17=Betrachtungszeit_PW,MAX(Resultate_PW!$D$14:$H$14),0)","v":0},{"$f":"IF(AS17=Betrachtungszeit_PW,MAX(Resultate_PW!$D$14:$H$14),0)","v":0},{"$f":"IF(AT17=Betrachtungszeit_PW,MAX(Resultate_PW!$D$14:$H$14),0)","v":0}]
[null,"Treibhausgasemissionen Betrieb (Scope 1 und 2)",null,null,{"$f":"Betrachtungszeit_PW*D82","v":0},"tCO2eq"]
[null,"Umweltbelastungspunkte UBP'13 Erstellung/Entsorgung Fahrzeuge",null,null,{"$f":"E95","v":0},"UBP"]
[null,"Umweltbelastungspunkte UBP'13 Betrieb",null,null,{"$f":"Betrachtungszeit_PW*D83","v":0},"UBP"]
["K","Gestehungskosten pro km",null,null,{"$f":"IF(C9=0,0,E109*100/(Stückzahl_PW*Fahrleistung_PW*Betrachtungszeit_PW))","v":0},"Rp./km"]
["K","Jahreskosten pro km",null,null,{"$f":"IF(C9=0,0,((1+Kalkulationszinssatz)^Betrachtungszeit_PW*Kalkulationszinssatz)/((1+Kalkulationszinssatz)^Betrachtungszeit_PW-1)*E109*100/(Stückzahl_PW*Fahrleistung_PW))","v":0},"Rp./km"]
[]
[]
[]
[null,"Auswahlfelder und Defaultwerte"]
[]
[null,"Auswahlfeld","Antrieb Nummer","Energieträger-Nummer","Energieträger"]
[null,"BITTE WÄHLEN",0,0,"Energieträger"]
[null,"Elektrizität",1,13,"Strom"]
[null,"CNG",3,1,{"$f":"\"CNG (\"&Input_Generell!X10*100&\"% Biogas)\"","v":"CNG (20% Biogas)"}]
[null,"Benzin",5,3,"Benzin"]
[null,"Diesel",6,4,"Diesel"]
[null,"Weiterer Antrieb",14,11,{"$f":"Input_Generell!B15","v":"Weitere"}]
[]
[]
[null,"Auswahlfeld"]
[null,"BITTE WÄHLEN"]
[null,"ja"]
[null,"nein"]

{"sheet":"PW_V4","index":6,"n_rows":134,"n_cols":79,"rows_kept":134,"cut":false,"hidden":false,"merged":[[30,48,30,63],[90,1,90,5],[6,2,6,3],[6,11,6,12],[16,7,16,8],[16,10,17,10],[16,11,17,11],[16,12,17,12],[30,7,30,8],[30,10,31,10],[30,11,31,11],[30,12,31,12]]}
[null,"DATENEINGABE PERSONENWAGEN"]
[]
[null,"Angaben des Anbieters (mit Angebot abzugeben)"]
[]
[null,"Variante","V4"]
["K","Variantenbezeichnung (kurz)",null,null,null,null,"K","Rechenhilfe Treibstoffverbrauch"]
[null,"Variantenbeschreibung",null,null,null,null,null,"Energie-träger","Menge","kWh",null,"Umrechnungsfaktor in kWh(Heizwert)"]
[null,"Personenwagen, Treibstoffart","BITTE WÄHLEN",null,null,null,null,"CNG [kg]",null,{"$f":"I8*M8","v":0},null,"kWh/kg",13.81]
["K","Treibstoffverbrauch pro 100 km und Fahrzeug",null,"kWh/100km/Fahrzeug",null,null,null,"Benzin [Liter]",null,{"$f":"I9*M9","v":0},null,"kWh/Liter",8.7200000000000006]
[null,{"$f":"\"Treibstoffverbrauch (\"&VLOOKUP(C12,C123:G128,3,0)&\")\"","v":"Treibstoffverbrauch (Energieträger)"},{"$f":"C9/100*Fahrleistung_PW/1000","v":0},"MWh/a/Fahrzeug",null,null,null,"Diesel [Liter]",null,{"$f":"I10*M10","v":0},null,"kWh/Liter",9.91]
["K","Max. Leistungsbedarf (für Laden von Elektrofahrz.)",null,"kW"]
[null,"Antrieb Nummer",{"$f":"IF(ISBLANK(C8),0,VLOOKUP(C8,$B$123:$G$128,2,0))","v":0}]
[null,"Energieträger Nummer",{"$f":"IF(ISBLANK(C8),0,VLOOKUP(C8,$B$123:$F$128,3,0))","v":0}]
[]
["K","Förderbeiträge total",null,"CHF",null,null,null,null,null,null,"Rechenwerte",null,null,null,"Berechnungen",null,null,null,null,null,null,null,null,null,null,null,null,null,null,null,null,null,null,null,null,null,null,null,null,null,null,null,null,null,null,null,null,null,"Berechnungen"]
[null,null,null,null,null,null,null,null,null,null,null,null,null,null,null,"(Re)Investition in CHF im Jahr…",null,null,null,null,null,null,null,null,null,null,null,null,null,null,null,null,null,null,null,null,null,null,null,null,null,null,null,null,null,null,null,null,"Restwert nach Abschreibung am Ende des Jahres… (Berücksichtigt Reinvestition nach Ablauf der Lebensdauer)"]
[null,null,null,null,null,null,null,null,null,null,"Lebens-\ndauer [a]","Zwischen-resultate","Jährliche Ab-schreibung [CHF/a]",null,"Jahr",0,1,2,3,4,5,6,7,8,9,10,11,12,13,14,15,16,17,18,19,20,21,22,23,24,25,26,27,28,29,30,null,null,0,1,2,3,4,5,6,7,8,9,10,11,12,13,14,15,16,17,18,19,20,21,22,23,24,25,26,27,28,29,30]
["K","Investitionskosten","Beschreibung","Investition \n(alle Fahrz.) [CHF]","Lebensdauer [a]","Default überschreiben",null,null,null,null,null,null,null,null,"Kilometer",0,{"$f":"Q17*Fahrleistung_PW","v":0},0,0,0,0,0,0,0,0,0,0,0,0,0,0,0,0,0,0,0,0,0,0,0,0,0,0,0,0,0,"Restwert am Ende der Betrachtungszeit"]
["K","Fahrzeuge",null,null,10,null,{"$f":"IF(K19<Betrachtungszeit_PW,\"Achtung: es erfolgt eine Reinvestition\",\"\")","v":""},null,null,null,{"$f":"IF(ISNUMBER(F19),F19,IF(ISNUMBER(E19),E19,0))","v":10},null,null,null,{"$f":"B19","v":"Fahrzeuge"},{"$f":"D19","v":0},{"$f":"IF(Betrachtungszeit_PW<Q$17,0,IF(AND(P$17<>0,P$17/($K19)=INT(P$17/($K19))),$D19,0))","v":0},0,0,0,0,0,0,0,0,0,0,0,0,0,0,0,0,0,0,0,0,0,0,0,0,0,0,0,0,0,{"$f":"SUMIF($AW$17:$CA$17,Betrachtungszeit_PW,AW19:CA19)","v":0},null,{"$f":"$D19","v":0},{"$f":"MAX(AW19-$M26+Q19,0)","v":0},0,0,0,0,0,0,0,0,0,0,0,0,0,0,0,0,0,0,0,0,0,0,0,0,0,0,0,0,0]
[null,"Zubehör / Infrastruktur",null,null,10,null,null,null,null,null,10,null,{"$f":"1/K20*D20","v":0},null,{"$f":"B20&\": \"&C20","v":"Zubehör / Infrastruktur: "},0,0,0,0,0,0,0,0,0,0,0,0,0,0,0,0,0,0,0,0,0,0,0,0,0,0,0,0,0,0,0,0,null,{"$f":"$D20","v":0},{"$f":"AW20-$M20+Q20","v":0},{"$f":"AX20-$M20+R20","v":0},0,0,0,0,0,0,0,0,0,0,0,0,0,0,0,0,0,0,0,0,0,0,0,0,0,0,0,0]
[null,"Zubehör / Infrastruktur",null,null,10,null,null,null,null,null,10,null,{"$f":"1/K21*D21","v":0},null,{"$f":"B21&\": \"&C21","v":"Zubehör / Infrastruktur: "},0,0,0,0,0,0,0,0,0,0,0,0,0,0,0,0,0,0,0,0,0,0,0,0,0,0,0,0,0,0,0,0,null,{"$f":"$D21","v":0},{"$f":"AW21-$M21+Q21","v":0},0,0,0,0,0,0,0,0,0,0,0,0,0,0,0,0,0,0,0,0,0,0,0,0,0,0,0,0,0]
[null,"Zubehör / Infrastruktur",null,null,10,null,null,null,null,null,10,null,{"$f":"1/K22*D22","v":0},null,"Zubehör / Infrastruktur: ",0,0,0,0,0,0,0,0,0,0,0,0,0,0,0,0,0,0,0,0,0,0,0,0,0,0,0,0,0,0,0,0,null,0,0,0,0,0,0,0,0,0,0,0,0,0,0,0,0,0,0,0,0,0,0,0,0,0,0,0,0,0,0,0]
[null,"Zubehör / Infrastruktur",null,null,10,null,null,null,null,null,10,null,{"$f":"1/K23*D23","v":0},null,"Zubehör / Infrastruktur: ",0,0,0,0,0,0,0,0,0,0,0,0,0,0,0,0,0,0,0,0,0,0,0,0,0,0,0,0,0,0,0,0,null,0,0,0,0,0,0,0,0,0,0,0,0,0,0,0,0,0,0,0,0,0,0,0,0,0,0,0,0,0,0,0]
[null,"Zubehör / Infrastruktur",null,null,10,null,null,null,null,null,10,null,{"$f":"1/K24*D24","v":0},null,"Zubehör / Infrastruktur: ",0,0,0,0,0,0,0,0,0,0,0,0,0,0,0,0,0,0,0,0,0,0,0,0,0,0,0,0,0,0,0,0,null,0,0,0,0,0,0,0,0,0,0,0,0,0,0,0,0,0,0,0,0,0,0,0,0,0,0,0,0,0,0,0]
[null,"Investitionskosten abzügl. \nFörderbeiträge total",null,"CHF",{"$f":"D19+SUM(D20:D24)-C15","v":0},null,null,null,null,null,null,{"$f":"E26*D19","v":0},null,null,"(Re)Investition abzüglich Restwert und Fördergeld",null,null,null,null,null,null,null,null,null,null,null,null,null,null,null,null,null,null,null,null,null,null,null,null,null,null,null,null,null,null,null,"Nettobarwert"]
["K","Wertminderung der Fahrzeuge pro Jahr aufgrund Lebensdauer",null,null,{"$f":"1/K19","v":0.1},null,null,null,null,null,null,null,{"$f":"L25+Fahrleistung_PW/10000*D19*L27","v":0},null,"(Re)Investition abzüglich Fördergeld",{"$f":"E25","v":0},{"$f":"SUM(Q19:Q24)","v":0},0,0,0,0,0,0,0,0,0,0,0,0,0,0,0,0,0,0,0,0,0,0,0,0,0,0,0,0,0]
["K","Zusätzliche Wertminderung pro 10'000 km",null,null,0.02,null,null,null,null,null,null,{"$f":"IF(ISNUMBER(F27),F27,IF(ISNUMBER(E27),E27,0))","v":0.02},null,null,"Restwert",{"$f":"IF(Betrachtungszeit_PW=P17,-($L$28+$E$29),0)","v":0},0,0,0,0,0,0,0,0,0,0,0,0,0,0,0,0,0,0,0,0,0,0,0,0,0,0,0,0,0,0]
["K","Restwert Fahrzeuge am Ende der Betrachtungszeit",null,"CHF",{"$f":"AU19","v":0},null,null,null,null,null,null,{"$f":"IF(ISNUMBER(F28),F28,E28)","v":0},null,null,"Kosten inkl. Preissteigerung",{"$f":"SUM(P26:P27)*(1+Inflationsindex)^P$17","v":0},0,0,0,0,0,0,0,0,0,0,0,0,0,0,0,0,0,0,0,0,0,0,0,0,0,0,0,0,0,0]
[null,"Restwert Zubehör am Ende der Betrachtungszeit",null,"CHF",{"$f":"SUM(AU20:AU24)","v":0},null,null,null,null,null,null,null,null,null,"Barwert",{"$f":"P28*(1+Kalkulationszinssatz)^-P$17","v":0},0,0,0,0,0,0,0,0,0,0,0,0,0,0,0,0,0,0,0,0,0,0,0,0,0,0,0,0,0,0,{"$f":"SUM(P29:AT29)","v":0}]
[]
["K","Ersatzteile / Verbrauchsmaterial mit erstmaliger Investition nach Lebensdauer",null,null,null,null,null,null,null,null,"Lebens-\ndauer [a]",null,"Jährliche Ab-schreibung [CHF/a]",null,"Ersatzteile",null,null,null,null,null,null,null,null,null,null,null,null,null,null,null,null,null,null,null,null,null,null,null,null,null,null,null,null,null,null,null,null,null,"Restwert nach Abschreibung am Ende des Jahres… (Berücksichtigt Reinvestition nach Ablauf der Lebensdauer)\nErsatzteile haben erst nach Ablauf der ersten Lebensdauer einen Restwert"]
[null,"1. Ersatzteile / Verbrauchsmaterial mit Lebensdauer in Jahren",null,null,"Lebensdauer [a]",null,null,null,null,null,null,null,null,null,{"$f":"B32","v":"1. Ersatzteile / Verbrauchsmaterial mit Lebensdauer in Jahren"},null,null,null,null,null,null,null,null,null,null,null,null,null,null,null,null,null,null,null,null,null,null,null,null,null,null,null,null,null,null,null,"Restwert am Ende der Betrachtungszeit"]
[null,"Weitere Ersatzteile",null,null,10,null,null,null,null,null,{"$f":"IF(ISNUMBER(F33),F33,IF(ISNUMBER(E33),E33,0))","v":10},null,{"$f":"1/K33*D33","v":0},null,{"$f":"B33&\": \"&C33","v":"Weitere Ersatzteile: "},0,{"$f":"IF(Betrachtungszeit_PW<Q$17,0,IF(AND(P$17<>0,P$17/($K33)=INT(P$17/($K33))),$D33,0))","v":0},0,0,0,0,0,0,0,0,0,0,0,0,0,0,0,0,0,0,0,0,0,0,0,0,0,0,0,0,0,{"$f":"SUMIF($AW$17:$CA$17,Betrachtungszeit_PW,AW33:CA33)","v":0},null,0,{"$f":"IF((AW33+Q33)=0,0,AW33-$M33+Q33)","v":0},{"$f":"IF((AX33+R33)=0,0,AX33-$M33+R33)","v":0},0,0,0,0,0,0,0,0,0,0,0,0,0,0,0,0,0,0,0,0,0,0,0,0,0,0,0,0]
[null,"Weitere Ersatzteile",null,null,10,null,null,null,null,null,{"$f":"IF(ISNUMBER(F34),F34,IF(ISNUMBER(E34),E34,0))","v":10},null,{"$f":"1/K34*D34","v":0},null,{"$f":"B34&\": \"&C34","v":"Weitere Ersatzteile: "},0,0,0,0,0,0,0,0,0,0,0,0,0,0,0,0,0,0,0,0,0,0,0,0,0,0,0,0,0,0,0,{"$f":"SUMIF($AW$17:$CA$17,Betrachtungszeit_PW,AW34:CA34)","v":0},null,0,{"$f":"IF((AW34+Q34)=0,0,AW34-$M34+Q34)","v":0},0,0,0,0,0,0,0,0,0,0,0,0,0,0,0,0,0,0,0,0,0,0,0,0,0,0,0,0,0]
[null,"Weitere Ersatzteile",null,null,10,null,null,null,null,null,{"$f":"IF(ISNUMBER(F35),F35,IF(ISNUMBER(E35),E35,0))","v":10},null,{"$f":"1/K35*D35","v":0},null,"Weitere Ersatzteile: ",0,0,0,0,0,0,0,0,0,0,0,0,0,0,0,0,0,0,0,0,0,0,0,0,0,0,0,0,0,0,0,{"$f":"SUMIF($AW$17:$CA$17,Betrachtungszeit_PW,AW35:CA35)","v":0},null,0,0,0,0,0,0,0,0,0,0,0,0,0,0,0,0,0,0,0,0,0,0,0,0,0,0,0,0,0,0,0]
[null,"Weitere Ersatzteile",null,null,10,null,null,null,null,null,{"$f":"IF(ISNUMBER(F36),F36,IF(ISNUMBER(E36),E36,0))","v":10},null,{"$f":"1/K36*D36","v":0},null,"Weitere Ersatzteile: ",0,0,0,0,0,0,0,0,0,0,0,0,0,0,0,0,0,0,0,0,0,0,0,0,0,0,0,0,0,0,0,{"$f":"SUMIF($AW$17:$CA$17,Betrachtungszeit_PW,AW36:CA36)","v":0},null,0,0,0,0,0,0,0,0,0,0,0,0,0,0,0,0,0,0,0,0,0,0,0,0,0,0,0,0,0,0,0]
[null,"Weitere Ersatzteile",null,null,10,null,null,null,null,null,{"$f":"IF(ISNUMBER(F37),F37,IF(ISNUMBER(E37),E37,0))","v":10},null,{"$f":"1/K37*D37","v":0},null,"Weitere Ersatzteile: ",0,0,0,0,0,0,0,0,0,0,0,0,0,0,0,0,0,0,0,0,0,0,0,0,0,0,0,0,0,0,0,{"$f":"SUMIF($AW$17:$CA$17,Betrachtungszeit_PW,AW37:CA37)","v":0},null,0,0,0,0,0,0,0,0,0,0,0,0,0,0,0,0,0,0,0,0,0,0,0,0,0,0,0,0,0,0,0]
[null,"2. Ersatzteile / Verbrauchsmaterial mit Lebensdauer in Kilometern",null,null,"Lebensdauer [km]",null,null,null,null,null,"Lebens-dauer [km]",null,null,null,"2. Ersatzteile / Verbrauchsmaterial mit Lebensdauer in Kilometern"]
["K","Ersatz-Reifen (Set)",null,null,30000,null,null,null,null,null,{"$f":"IF(ISNUMBER(F39),F39,IF(ISNUMBER(E39),E39,0))","v":30000},null,{"$f":"1/(K39/Fahrleistung_PW)*D39","v":{"$error":"#DIV/0!"}},null,{"$f":"B39&\": \"&C39","v":"Ersatz-Reifen (Set): "},0,{"$f":"IF(Betrachtungszeit_PW*Fahrleistung_PW<Q$18,0,IF(Q$18-(COUNTIF($P39:P39,\">0\")*$K39)>$K39,$D39,0))","v":0},{"$f":"IF(Betrachtungszeit_PW*Fahrleistung_PW<R$18,0,IF(R$18-(COUNTIF($P39:Q39,\">0\")*$K39)>$K39,$D39,0))","v":0},{"$f":"IF(Betrachtungszeit_PW*Fahrleistung_PW<S$18,0,IF(S$18-(COUNTIF($P39:R39,\">0\")*$K39)>$K39,$D39,0))","v":0},{"$f":"IF(Betrachtungszeit_PW*Fahrleistung_PW<T$18,0,IF(T$18-(COUNTIF($P39:S39,\">0\")*$K39)>$K39,$D39,0))","v":0},{"$f":"IF(Betrachtungszeit_PW*Fahrleistung_PW<U$18,0,IF(U$18-(COUNTIF($P39:T39,\">0\")*$K39)>$K39,$D39,0))","v":0},{"$f":"IF(Betrachtungszeit_PW*Fahrleistung_PW<V$18,0,IF(V$18-(COUNTIF($P39:U39,\">0\")*$K39)>$K39,$D39,0))","v":0},{"$f":"IF(Betrachtungszeit_PW*Fahrleistung_PW<W$18,0,IF(W$18-(COUNTIF($P39:V39,\">0\")*$K39)>$K39,$D39,0))","v":0},{"$f":"IF(Betrachtungszeit_PW*Fahrleistung_PW<X$18,0,IF(X$18-(COUNTIF($P39:W39,\">0\")*$K39)>$K39,$D39,0))","v":0},{"$f":"IF(Betrachtungszeit_PW*Fahrleistung_PW<Y$18,0,IF(Y$18-(COUNTIF($P39:X39,\">0\")*$K39)>$K39,$D39,0))","v":0},{"$f":"IF(Betrachtungszeit_PW*Fahrleistung_PW<Z$18,0,IF(Z$18-(COUNTIF($P39:Y39,\">0\")*$K39)>$K39,$D39,0))","v":0},{"$f":"IF(Betrachtungszeit_PW*Fahrleistung_PW<AA$18,0,IF(AA$18-(COUNTIF($P39:Z39,\">0\")*$K39)>$K39,$D39,0))","v":0},{"$f":"IF(Betrachtungszeit_PW*Fahrleistung_PW<AB$18,0,IF(AB$18-(COUNTIF($P39:AA39,\">0\")*$K39)>$K39,$D39,0))","v":0},{"$f":"IF(Betrachtungszeit_PW*Fahrleistung_PW<AC$18,0,IF(AC$18-(COUNTIF($P39:AB39,\">0\")*$K39)>$K39,$D39,0))","v":0},{"$f":"IF(Betrachtungszeit_PW*Fahrleistung_PW<AD$18,0,IF(AD$18-(COUNTIF($P39:AC39,\">0\")*$K39)>$K39,$D39,0))","v":0},{"$f":"IF(Betrachtungszeit_PW*Fahrleistung_PW<AE$18,0,IF(AE$18-(COUNTIF($P39:AD39,\">0\")*$K39)>$K39,$D39,0))","v":0},{"$f":"IF(Betrachtungszeit_PW*Fahrleistung_PW<AF$18,0,IF(AF$18-(COUNTIF($P39:AE39,\">0\")*$K39)>$K39,$D39,0))","v":0},{"$f":"IF(Betrachtungszeit_PW*Fahrleistung_PW<AG$18,0,IF(AG$18-(COUNTIF($P39:AF39,\">0\")*$K39)>$K39,$D39,0))","v":0},{"$f":"IF(Betrachtungszeit_PW*Fahrleistung_PW<AH$18,0,IF(AH$18-(COUNTIF($P39:AG39,\">0\")*$K39)>$K39,$D39,0))","v":0},{"$f":"IF(Betrachtungszeit_PW*Fahrleistung_PW<AI$18,0,IF(AI$18-(COUNTIF($P39:AH39,\">0\")*$K39)>$K39,$D39,0))","v":0},{"$f":"IF(Betrachtungszeit_PW*Fahrleistung_PW<AJ$18,0,IF(AJ$18-(COUNTIF($P39:AI39,\">0\")*$K39)>$K39,$D39,0))","v":0},{"$f":"IF(Betrachtungszeit_PW*Fahrleistung_PW<AK$18,0,IF(AK$18-(COUNTIF($P39:AJ39,\">0\")*$K39)>$K39,$D39,0))","v":0},{"$f":"IF(Betrachtungszeit_PW*Fahrleistung_PW<AL$18,0,IF(AL$18-(COUNTIF($P39:AK39,\">0\")*$K39)>$K39,$D39,0))","v":0},{"$f":"IF(Betrachtungszeit_PW*Fahrleistung_PW<AM$18,0,IF(AM$18-(COUNTIF($P39:AL39,\">0\")*$K39)>$K39,$D39,0))","v":0},{"$f":"IF(Betrachtungszeit_PW*Fahrleistung_PW<AN$18,0,IF(AN$18-(COUNTIF($P39:AM39,\">0\")*$K39)>$K39,$D39,0))","v":0},{"$f":"IF(Betrachtungszeit_PW*Fahrleistung_PW<AO$18,0,IF(AO$18-(COUNTIF($P39:AN39,\">0\")*$K39)>$K39,$D39,0))","v":0},{"$f":"IF(Betrachtungszeit_PW*Fahrleistung_PW<AP$18,0,IF(AP$18-(COUNTIF($P39:AO39,\">0\")*$K39)>$K39,$D39,0))","v":0},{"$f":"IF(Betrachtungszeit_PW*Fahrleistung_PW<AQ$18,0,IF(AQ$18-(COUNTIF($P39:AP39,\">0\")*$K39)>$K39,$D39,0))","v":0},{"$f":"IF(Betrachtungszeit_PW*Fahrleistung_PW<AR$18,0,IF(AR$18-(COUNTIF($P39:AQ39,\">0\")*$K39)>$K39,$D39,0))","v":0},{"$f":"IF(Betrachtungszeit_PW*Fahrleistung_PW<AS$18,0,IF(AS$18-(COUNTIF($P39:AR39,\">0\")*$K39)>$K39,$D39,0))","v":0},{"$f":"IF(Betrachtungszeit_PW*Fahrleistung_PW<AT$18,0,IF(AT$18-(COUNTIF($P39:AS39,\">0\")*$K39)>$K39,$D39,0))","v":0},{"$f":"SUMIF($AW$17:$CA$17,Betrachtungszeit_PW,AW39:CA39)","v":0},null,0,{"$f":"IF((AW39+Q39)=0,0,AW39-$M39+Q39)","v":0},{"$f":"IF((AX39+R39)=0,0,AX39-$M39+R39)","v":0},0,0,0,0,0,0,0,0,0,0,0,0,0,0,0,{"$f":"IF((BN39+AH39)=0,0,BN39-$M39+AH39)","v":0},0,0,0,0,0,0,0,0,0,0,0,0]
["K","Ersatz-Batterie bei Elektrofahrzeugen",null,null,100000,null,null,null,null,null,100000,null,{"$error":"#DIV/0!"},null,{"$f":"B40&\": \"&C40","v":"Ersatz-Batterie bei Elektrofahrzeugen: "},0,{"$f":"IF(Betrachtungszeit_PW*Fahrleistung_PW<Q$18,0,IF(Q$18-(COUNTIF($P40:P40,\">0\")*$K40)>$K40,$D40,0))","v":0},{"$f":"IF(Betrachtungszeit_PW*Fahrleistung_PW<R$18,0,IF(R$18-(COUNTIF($P40:Q40,\">0\")*$K40)>$K40,$D40,0))","v":0},{"$f":"IF(Betrachtungszeit_PW*Fahrleistung_PW<S$18,0,IF(S$18-(COUNTIF($P40:R40,\">0\")*$K40)>$K40,$D40,0))","v":0},{"$f":"IF(Betrachtungszeit_PW*Fahrleistung_PW<T$18,0,IF(T$18-(COUNTIF($P40:S40,\">0\")*$K40)>$K40,$D40,0))","v":0},{"$f":"IF(Betrachtungszeit_PW*Fahrleistung_PW<U$18,0,IF(U$18-(COUNTIF($P40:T40,\">0\")*$K40)>$K40,$D40,0))","v":0},{"$f":"IF(Betrachtungszeit_PW*Fahrleistung_PW<V$18,0,IF(V$18-(COUNTIF($P40:U40,\">0\")*$K40)>$K40,$D40,0))","v":0},{"$f":"IF(Betrachtungszeit_PW*Fahrleistung_PW<W$18,0,IF(W$18-(COUNTIF($P40:V40,\">0\")*$K40)>$K40,$D40,0))","v":0},{"$f":"IF(Betrachtungszeit_PW*Fahrleistung_PW<X$18,0,IF(X$18-(COUNTIF($P40:W40,\">0\")*$K40)>$K40,$D40,0))","v":0},{"$f":"IF(Betrachtungszeit_PW*Fahrleistung_PW<Y$18,0,IF(Y$18-(COUNTIF($P40:X40,\">0\")*$K40)>$K40,$D40,0))","v":0},{"$f":"IF(Betrachtungszeit_PW*Fahrleistung_PW<Z$18,0,IF(Z$18-(COUNTIF($P40:Y40,\">0\")*$K40)>$K40,$D40,0))","v":0},{"$f":"IF(Betrachtungszeit_PW*Fahrleistung_PW<AA$18,0,IF(AA$18-(COUNTIF($P40:Z40,\">0\")*$K40)>$K40,$D40,0))","v":0},{"$f":"IF(Betrachtungszeit_PW*Fahrleistung_PW<AB$18,0,IF(AB$18-(COUNTIF($P40:AA40,\">0\")*$K40)>$K40,$D40,0))","v":0},{"$f":"IF(Betrachtungszeit_PW*Fahrleistung_PW<AC$18,0,IF(AC$18-(COUNTIF($P40:AB40,\">0\")*$K40)>$K40,$D40,0))","v":0},{"$f":"IF(Betrachtungszeit_PW*Fahrleistung_PW<AD$18,0,IF(AD$18-(COUNTIF($P40:AC40,\">0\")*$K40)>$K40,$D40,0))","v":0},{"$f":"IF(Betrachtungszeit_PW*Fahrleistung_PW<AE$18,0,IF(AE$18-(COUNTIF($P40:AD40,\">0\")*$K40)>$K40,$D40,0))","v":0},{"$f":"IF(Betrachtungszeit_PW*Fahrleistung_PW<AF$18,0,IF(AF$18-(COUNTIF($P40:AE40,\">0\")*$K40)>$K40,$D40,0))","v":0},{"$f":"IF(Betrachtungszeit_PW*Fahrleistung_PW<AG$18,0,IF(AG$18-(COUNTIF($P40:AF40,\">0\")*$K40)>$K40,$D40,0))","v":0},{"$f":"IF(Betrachtungszeit_PW*Fahrleistung_PW<AH$18,0,IF(AH$18-(COUNTIF($P40:AG40,\">0\")*$K40)>$K40,$D40,0))","v":0},{"$f":"IF(Betrachtungszeit_PW*Fahrleistung_PW<AI$18,0,IF(AI$18-(COUNTIF($P40:AH40,\">0\")*$K40)>$K40,$D40,0))","v":0},{"$f":"IF(Betrachtungszeit_PW*Fahrleistung_PW<AJ$18,0,IF(AJ$18-(COUNTIF($P40:AI40,\">0\")*$K40)>$K40,$D40,0))","v":0},{"$f":"IF(Betrachtungszeit_PW*Fahrleistung_PW<AK$18,0,IF(AK$18-(COUNTIF($P40:AJ40,\">0\")*$K40)>$K40,$D40,0))","v":0},{"$f":"IF(Betrachtungszeit_PW*Fahrleistung_PW<AL$18,0,IF(AL$18-(COUNTIF($P40:AK40,\">0\")*$K40)>$K40,$D40,0))","v":0},{"$f":"IF(Betrachtungszeit_PW*Fahrleistung_PW<AM$18,0,IF(AM$18-(COUNTIF($P40:AL40,\">0\")*$K40)>$K40,$D40,0))","v":0},{"$f":"IF(Betrachtungszeit_PW*Fahrleistung_PW<AN$18,0,IF(AN$18-(COUNTIF($P40:AM40,\">0\")*$K40)>$K40,$D40,0))","v":0},{"$f":"IF(Betrachtungszeit_PW*Fahrleistung_PW<AO$18,0,IF(AO$18-(COUNTIF($P40:AN40,\">0\")*$K40)>$K40,$D40,0))","v":0},{"$f":"IF(Betrachtungszeit_PW*Fahrleistung_PW<AP$18,0,IF(AP$18-(COUNTIF($P40:AO40,\">0\")*$K40)>$K40,$D40,0))","v":0},{"$f":"IF(Betrachtungszeit_PW*Fahrleistung_PW<AQ$18,0,IF(AQ$18-(COUNTIF($P40:AP40,\">0\")*$K40)>$K40,$D40,0))","v":0},{"$f":"IF(Betrachtungszeit_PW*Fahrleistung_PW<AR$18,0,IF(AR$18-(COUNTIF($P40:AQ40,\">0\")*$K40)>$K40,$D40,0))","v":0},{"$f":"IF(Betrachtungszeit_PW*Fahrleistung_PW<AS$18,0,IF(AS$18-(COUNTIF($P40:AR40,\">0\")*$K40)>$K40,$D40,0))","v":0},{"$f":"IF(Betrachtungszeit_PW*Fahrleistung_PW<AT$18,0,IF(AT$18-(COUNTIF($P40:AS40,\">0\")*$K40)>$K40,$D40,0))","v":0},0,null,0,{"$f":"IF((AW40+Q40)=0,0,AW40-$M40+Q40)","v":0},0,0,0,0,0,0,0,0,0,0,0,0,0,0,0,0,0,0,0,0,0,0,0,0,0,0,0,0,0]
[null,"Weitere Ersatzteile",null,null,150000,null,null,null,null,null,150000,null,{"$error":"#DIV/0!"},null,"Weitere Ersatzteile: ",0,{"$f":"IF(Betrachtungszeit_PW*Fahrleistung_PW<Q$18,0,IF(Q$18-(COUNTIF($P41:P41,\">0\")*$K41)>$K41,$D41,0))","v":0},{"$f":"IF(Betrachtungszeit_PW*Fahrleistung_PW<R$18,0,IF(R$18-(COUNTIF($P41:Q41,\">0\")*$K41)>$K41,$D41,0))","v":0},{"$f":"IF(Betrachtungszeit_PW*Fahrleistung_PW<S$18,0,IF(S$18-(COUNTIF($P41:R41,\">0\")*$K41)>$K41,$D41,0))","v":0},{"$f":"IF(Betrachtungszeit_PW*Fahrleistung_PW<T$18,0,IF(T$18-(COUNTIF($P41:S41,\">0\")*$K41)>$K41,$D41,0))","v":0},{"$f":"IF(Betrachtungszeit_PW*Fahrleistung_PW<U$18,0,IF(U$18-(COUNTIF($P41:T41,\">0\")*$K41)>$K41,$D41,0))","v":0},{"$f":"IF(Betrachtungszeit_PW*Fahrleistung_PW<V$18,0,IF(V$18-(COUNTIF($P41:U41,\">0\")*$K41)>$K41,$D41,0))","v":0},{"$f":"IF(Betrachtungszeit_PW*Fahrleistung_PW<W$18,0,IF(W$18-(COUNTIF($P41:V41,\">0\")*$K41)>$K41,$D41,0))","v":0},{"$f":"IF(Betrachtungszeit_PW*Fahrleistung_PW<X$18,0,IF(X$18-(COUNTIF($P41:W41,\">0\")*$K41)>$K41,$D41,0))","v":0},{"$f":"IF(Betrachtungszeit_PW*Fahrleistung_PW<Y$18,0,IF(Y$18-(COUNTIF($P41:X41,\">0\")*$K41)>$K41,$D41,0))","v":0},{"$f":"IF(Betrachtungszeit_PW*Fahrleistung_PW<Z$18,0,IF(Z$18-(COUNTIF($P41:Y41,\">0\")*$K41)>$K41,$D41,0))","v":0},{"$f":"IF(Betrachtungszeit_PW*Fahrleistung_PW<AA$18,0,IF(AA$18-(COUNTIF($P41:Z41,\">0\")*$K41)>$K41,$D41,0))","v":0},{"$f":"IF(Betrachtungszeit_PW*Fahrleistung_PW<AB$18,0,IF(AB$18-(COUNTIF($P41:AA41,\">0\")*$K41)>$K41,$D41,0))","v":0},{"$f":"IF(Betrachtungszeit_PW*Fahrleistung_PW<AC$18,0,IF(AC$18-(COUNTIF($P41:AB41,\">0\")*$K41)>$K41,$D41,0))","v":0},{"$f":"IF(Betrachtungszeit_PW*Fahrleistung_PW<AD$18,0,IF(AD$18-(COUNTIF($P41:AC41,\">0\")*$K41)>$K41,$D41,0))","v":0},{"$f":"IF(Betrachtungszeit_PW*Fahrleistung_PW<AE$18,0,IF(AE$18-(COUNTIF($P41:AD41,\">0\")*$K41)>$K41,$D41,0))","v":0},{"$f":"IF(Betrachtungszeit_PW*Fahrleistung_PW<AF$18,0,IF(AF$18-(COUNTIF($P41:AE41,\">0\")*$K41)>$K41,$D41,0))","v":0},{"$f":"IF(Betrachtungszeit_PW*Fahrleistung_PW<AG$18,0,IF(AG$18-(COUNTIF($P41:AF41,\">0\")*$K41)>$K41,$D41,0))","v":0},{"$f":"IF(Betrachtungszeit_PW*Fahrleistung_PW<AH$18,0,IF(AH$18-(COUNTIF($P41:AG41,\">0\")*$K41)>$K41,$D41,0))","v":0},{"$f":"IF(Betrachtungszeit_PW*Fahrleistung_PW<AI$18,0,IF(AI$18-(COUNTIF($P41:AH41,\">0\")*$K41)>$K41,$D41,0))","v":0},{"$f":"IF(Betrachtungszeit_PW*Fahrleistung_PW<AJ$18,0,IF(AJ$18-(COUNTIF($P41:AI41,\">0\")*$K41)>$K41,$D41,0))","v":0},{"$f":"IF(Betrachtungszeit_PW*Fahrleistung_PW<AK$18,0,IF(AK$18-(COUNTIF($P41:AJ41,\">0\")*$K41)>$K41,$D41,0))","v":0},{"$f":"IF(Betrachtungszeit_PW*Fahrleistung_PW<AL$18,0,IF(AL$18-(COUNTIF($P41:AK41,\">0\")*$K41)>$K41,$D41,0))","v":0},{"$f":"IF(Betrachtungszeit_PW*Fahrleistung_PW<AM$18,0,IF(AM$18-(COUNTIF($P41:AL41,\">0\")*$K41)>$K41,$D41,0))","v":0},{"$f":"IF(Betrachtungszeit_PW*Fahrleistung_PW<AN$18,0,IF(AN$18-(COUNTIF($P41:AM41,\">0\")*$K41)>$K41,$D41,0))","v":0},{"$f":"IF(Betrachtungszeit_PW*Fahrleistung_PW<AO$18,0,IF(AO$18-(COUNTIF($P41:AN41,\">0\")*$K41)>$K41,$D41,0))","v":0},{"$f":"IF(Betrachtungszeit_PW*Fahrleistung_PW<AP$18,0,IF(AP$18-(COUNTIF($P41:AO41,\">0\")*$K41)>$K41,$D41,0))","v":0},{"$f":"IF(Betrachtungszeit_PW*Fahrleistung_PW<AQ$18,0,IF(AQ$18-(COUNTIF($P41:AP41,\">0\")*$K41)>$K41,$D41,0))","v":0},{"$f":"IF(Betrachtungszeit_PW*Fahrleistung_PW<AR$18,0,IF(AR$18-(COUNTIF($P41:AQ41,\">0\")*$K41)>$K41,$D41,0))","v":0},{"$f":"IF(Betrachtungszeit_PW*Fahrleistung_PW<AS$18,0,IF(AS$18-(COUNTIF($P41:AR41,\">0\")*$K41)>$K41,$D41,0))","v":0},{"$f":"IF(Betrachtungszeit_PW*Fahrleistung_PW<AT$18,0,IF(AT$18-(COUNTIF($P41:AS41,\">0\")*$K41)>$K41,$D41,0))","v":0},0,null,0,0,0,0,0,0,0,0,0,0,0,0,0,0,0,0,0,0,0,0,0,0,0,0,0,0,0,0,0,0,0]
[null,"Weitere Ersatzteile",null,null,150000,null,null,null,null,null,150000,null,{"$error":"#DIV/0!"},null,"Weitere Ersatzteile: ",0,{"$f":"IF(Betrachtungszeit_PW*Fahrleistung_PW<Q$18,0,IF(Q$18-(COUNTIF($P42:P42,\">0\")*$K42)>$K42,$D42,0))","v":0},{"$f":"IF(Betrachtungszeit_PW*Fahrleistung_PW<R$18,0,IF(R$18-(COUNTIF($P42:Q42,\">0\")*$K42)>$K42,$D42,0))","v":0},{"$f":"IF(Betrachtungszeit_PW*Fahrleistung_PW<S$18,0,IF(S$18-(COUNTIF($P42:R42,\">0\")*$K42)>$K42,$D42,0))","v":0},{"$f":"IF(Betrachtungszeit_PW*Fahrleistung_PW<T$18,0,IF(T$18-(COUNTIF($P42:S42,\">0\")*$K42)>$K42,$D42,0))","v":0},{"$f":"IF(Betrachtungszeit_PW*Fahrleistung_PW<U$18,0,IF(U$18-(COUNTIF($P42:T42,\">0\")*$K42)>$K42,$D42,0))","v":0},{"$f":"IF(Betrachtungszeit_PW*Fahrleistung_PW<V$18,0,IF(V$18-(COUNTIF($P42:U42,\">0\")*$K42)>$K42,$D42,0))","v":0},{"$f":"IF(Betrachtungszeit_PW*Fahrleistung_PW<W$18,0,IF(W$18-(COUNTIF($P42:V42,\">0\")*$K42)>$K42,$D42,0))","v":0},{"$f":"IF(Betrachtungszeit_PW*Fahrleistung_PW<X$18,0,IF(X$18-(COUNTIF($P42:W42,\">0\")*$K42)>$K42,$D42,0))","v":0},{"$f":"IF(Betrachtungszeit_PW*Fahrleistung_PW<Y$18,0,IF(Y$18-(COUNTIF($P42:X42,\">0\")*$K42)>$K42,$D42,0))","v":0},{"$f":"IF(Betrachtungszeit_PW*Fahrleistung_PW<Z$18,0,IF(Z$18-(COUNTIF($P42:Y42,\">0\")*$K42)>$K42,$D42,0))","v":0},{"$f":"IF(Betrachtungszeit_PW*Fahrleistung_PW<AA$18,0,IF(AA$18-(COUNTIF($P42:Z42,\">0\")*$K42)>$K42,$D42,0))","v":0},{"$f":"IF(Betrachtungszeit_PW*Fahrleistung_PW<AB$18,0,IF(AB$18-(COUNTIF($P42:AA42,\">0\")*$K42)>$K42,$D42,0))","v":0},{"$f":"IF(Betrachtungszeit_PW*Fahrleistung_PW<AC$18,0,IF(AC$18-(COUNTIF($P42:AB42,\">0\")*$K42)>$K42,$D42,0))","v":0},{"$f":"IF(Betrachtungszeit_PW*Fahrleistung_PW<AD$18,0,IF(AD$18-(COUNTIF($P42:AC42,\">0\")*$K42)>$K42,$D42,0))","v":0},{"$f":"IF(Betrachtungszeit_PW*Fahrleistung_PW<AE$18,0,IF(AE$18-(COUNTIF($P42:AD42,\">0\")*$K42)>$K42,$D42,0))","v":0},{"$f":"IF(Betrachtungszeit_PW*Fahrleistung_PW<AF$18,0,IF(AF$18-(COUNTIF($P42:AE42,\">0\")*$K42)>$K42,$D42,0))","v":0},{"$f":"IF(Betrachtungszeit_PW*Fahrleistung_PW<AG$18,0,IF(AG$18-(COUNTIF($P42:AF42,\">0\")*$K42)>$K42,$D42,0))","v":0},{"$f":"IF(Betrachtungszeit_PW*Fahrleistung_PW<AH$18,0,IF(AH$18-(COUNTIF($P42:AG42,\">0\")*$K42)>$K42,$D42,0))","v":0},{"$f":"IF(Betrachtungszeit_PW*Fahrleistung_PW<AI$18,0,IF(AI$18-(COUNTIF($P42:AH42,\">0\")*$K42)>$K42,$D42,0))","v":0},{"$f":"IF(Betrachtungszeit_PW*Fahrleistung_PW<AJ$18,0,IF(AJ$18-(COUNTIF($P42:AI42,\">0\")*$K42)>$K42,$D42,0))","v":0},{"$f":"IF(Betrachtungszeit_PW*Fahrleistung_PW<AK$18,0,IF(AK$18-(COUNTIF($P42:AJ42,\">0\")*$K42)>$K42,$D42,0))","v":0},{"$f":"IF(Betrachtungszeit_PW*Fahrleistung_PW<AL$18,0,IF(AL$18-(COUNTIF($P42:AK42,\">0\")*$K42)>$K42,$D42,0))","v":0},{"$f":"IF(Betrachtungszeit_PW*Fahrleistung_PW<AM$18,0,IF(AM$18-(COUNTIF($P42:AL42,\">0\")*$K42)>$K42,$D42,0))","v":0},{"$f":"IF(Betrachtungszeit_PW*Fahrleistung_PW<AN$18,0,IF(AN$18-(COUNTIF($P42:AM42,\">0\")*$K42)>$K42,$D42,0))","v":0},{"$f":"IF(Betrachtungszeit_PW*Fahrleistung_PW<AO$18,0,IF(AO$18-(COUNTIF($P42:AN42,\">0\")*$K42)>$K42,$D42,0))","v":0},{"$f":"IF(Betrachtungszeit_PW*Fahrleistung_PW<AP$18,0,IF(AP$18-(COUNTIF($P42:AO42,\">0\")*$K42)>$K42,$D42,0))","v":0},{"$f":"IF(Betrachtungszeit_PW*Fahrleistung_PW<AQ$18,0,IF(AQ$18-(COUNTIF($P42:AP42,\">0\")*$K42)>$K42,$D42,0))","v":0},{"$f":"IF(Betrachtungszeit_PW*Fahrleistung_PW<AR$18,0,IF(AR$18-(COUNTIF($P42:AQ42,\">0\")*$K42)>$K42,$D42,0))","v":0},{"$f":"IF(Betrachtungszeit_PW*Fahrleistung_PW<AS$18,0,IF(AS$18-(COUNTIF($P42:AR42,\">0\")*$K42)>$K42,$D42,0))","v":0},{"$f":"IF(Betrachtungszeit_PW*Fahrleistung_PW<AT$18,0,IF(AT$18-(COUNTIF($P42:AS42,\">0\")*$K42)>$K42,$D42,0))","v":0},0,null,0,0,0,0,0,0,0,0,0,0,0,0,0,0,0,0,0,0,0,0,0,0,0,0,0,0,0,0,0,0,0]
[null,"Weitere Ersatzteile",null,null,150000,null,null,null,null,null,150000,null,{"$error":"#DIV/0!"},null,"Weitere Ersatzteile: ",0,{"$f":"IF(Betrachtungszeit_PW*Fahrleistung_PW<Q$18,0,IF(Q$18-(COUNTIF($P43:P43,\">0\")*$K43)>$K43,$D43,0))","v":0},{"$f":"IF(Betrachtungszeit_PW*Fahrleistung_PW<R$18,0,IF(R$18-(COUNTIF($P43:Q43,\">0\")*$K43)>$K43,$D43,0))","v":0},{"$f":"IF(Betrachtungszeit_PW*Fahrleistung_PW<S$18,0,IF(S$18-(COUNTIF($P43:R43,\">0\")*$K43)>$K43,$D43,0))","v":0},{"$f":"IF(Betrachtungszeit_PW*Fahrleistung_PW<T$18,0,IF(T$18-(COUNTIF($P43:S43,\">0\")*$K43)>$K43,$D43,0))","v":0},{"$f":"IF(Betrachtungszeit_PW*Fahrleistung_PW<U$18,0,IF(U$18-(COUNTIF($P43:T43,\">0\")*$K43)>$K43,$D43,0))","v":0},{"$f":"IF(Betrachtungszeit_PW*Fahrleistung_PW<V$18,0,IF(V$18-(COUNTIF($P43:U43,\">0\")*$K43)>$K43,$D43,0))","v":0},{"$f":"IF(Betrachtungszeit_PW*Fahrleistung_PW<W$18,0,IF(W$18-(COUNTIF($P43:V43,\">0\")*$K43)>$K43,$D43,0))","v":0},{"$f":"IF(Betrachtungszeit_PW*Fahrleistung_PW<X$18,0,IF(X$18-(COUNTIF($P43:W43,\">0\")*$K43)>$K43,$D43,0))","v":0},{"$f":"IF(Betrachtungszeit_PW*Fahrleistung_PW<Y$18,0,IF(Y$18-(COUNTIF($P43:X43,\">0\")*$K43)>$K43,$D43,0))","v":0},{"$f":"IF(Betrachtungszeit_PW*Fahrleistung_PW<Z$18,0,IF(Z$18-(COUNTIF($P43:Y43,\">0\")*$K43)>$K43,$D43,0))","v":0},{"$f":"IF(Betrachtungszeit_PW*Fahrleistung_PW<AA$18,0,IF(AA$18-(COUNTIF($P43:Z43,\">0\")*$K43)>$K43,$D43,0))","v":0},{"$f":"IF(Betrachtungszeit_PW*Fahrleistung_PW<AB$18,0,IF(AB$18-(COUNTIF($P43:AA43,\">0\")*$K43)>$K43,$D43,0))","v":0},{"$f":"IF(Betrachtungszeit_PW*Fahrleistung_PW<AC$18,0,IF(AC$18-(COUNTIF($P43:AB43,\">0\")*$K43)>$K43,$D43,0))","v":0},{"$f":"IF(Betrachtungszeit_PW*Fahrleistung_PW<AD$18,0,IF(AD$18-(COUNTIF($P43:AC43,\">0\")*$K43)>$K43,$D43,0))","v":0},{"$f":"IF(Betrachtungszeit_PW*Fahrleistung_PW<AE$18,0,IF(AE$18-(COUNTIF($P43:AD43,\">0\")*$K43)>$K43,$D43,0))","v":0},{"$f":"IF(Betrachtungszeit_PW*Fahrleistung_PW<AF$18,0,IF(AF$18-(COUNTIF($P43:AE43,\">0\")*$K43)>$K43,$D43,0))","v":0},{"$f":"IF(Betrachtungszeit_PW*Fahrleistung_PW<AG$18,0,IF(AG$18-(COUNTIF($P43:AF43,\">0\")*$K43)>$K43,$D43,0))","v":0},{"$f":"IF(Betrachtungszeit_PW*Fahrleistung_PW<AH$18,0,IF(AH$18-(COUNTIF($P43:AG43,\">0\")*$K43)>$K43,$D43,0))","v":0},{"$f":"IF(Betrachtungszeit_PW*Fahrleistung_PW<AI$18,0,IF(AI$18-(COUNTIF($P43:AH43,\">0\")*$K43)>$K43,$D43,0))","v":0},{"$f":"IF(Betrachtungszeit_PW*Fahrleistung_PW<AJ$18,0,IF(AJ$18-(COUNTIF($P43:AI43,\">0\")*$K43)>$K43,$D43,0))","v":0},{"$f":"IF(Betrachtungszeit_PW*Fahrleistung_PW<AK$18,0,IF(AK$18-(COUNTIF($P43:AJ43,\">0\")*$K43)>$K43,$D43,0))","v":0},{"$f":"IF(Betrachtungszeit_PW*Fahrleistung_PW<AL$18,0,IF(AL$18-(COUNTIF($P43:AK43,\">0\")*$K43)>$K43,$D43,0))","v":0},{"$f":"IF(Betrachtungszeit_PW*Fahrleistung_PW<AM$18,0,IF(AM$18-(COUNTIF($P43:AL43,\">0\")*$K43)>$K43,$D43,0))","v":0},{"$f":"IF(Betrachtungszeit_PW*Fahrleistung_PW<AN$18,0,IF(AN$18-(COUNTIF($P43:AM43,\">0\")*$K43)>$K43,$D43,0))","v":0},{"$f":"IF(Betrachtungszeit_PW*Fahrleistung_PW<AO$18,0,IF(AO$18-(COUNTIF($P43:AN43,\">0\")*$K43)>$K43,$D43,0))","v":0},{"$f":"IF(Betrachtungszeit_PW*Fahrleistung_PW<AP$18,0,IF(AP$18-(COUNTIF($P43:AO43,\">0\")*$K43)>$K43,$D43,0))","v":0},{"$f":"IF(Betrachtungszeit_PW*Fahrleistung_PW<AQ$18,0,IF(AQ$18-(COUNTIF($P43:AP43,\">0\")*$K43)>$K43,$D43,0))","v":0},{"$f":"IF(Betrachtungszeit_PW*Fahrleistung_PW<AR$18,0,IF(AR$18-(COUNTIF($P43:AQ43,\">0\")*$K43)>$K43,$D43,0))","v":0},{"$f":"IF(Betrachtungszeit_PW*Fahrleistung_PW<AS$18,0,IF(AS$18-(COUNTIF($P43:AR43,\">0\")*$K43)>$K43,$D43,0))","v":0},{"$f":"IF(Betrachtungszeit_PW*Fahrleistung_PW<AT$18,0,IF(AT$18-(COUNTIF($P43:AS43,\">0\")*$K43)>$K43,$D43,0))","v":0},0,null,0,0,0,0,0,0,0,0,0,0,0,0,0,0,0,0,0,0,0,0,0,0,0,0,0,0,0,0,0,0,0]
[null,"Weitere Ersatzteile",null,null,150000,null,null,null,null,null,150000,null,{"$error":"#DIV/0!"},null,"Weitere Ersatzteile: ",0,{"$f":"IF(Betrachtungszeit_PW*Fahrleistung_PW<Q$18,0,IF(Q$18-(COUNTIF($P44:P44,\">0\")*$K44)>$K44,$D44,0))","v":0},{"$f":"IF(Betrachtungszeit_PW*Fahrleistung_PW<R$18,0,IF(R$18-(COUNTIF($P44:Q44,\">0\")*$K44)>$K44,$D44,0))","v":0},{"$f":"IF(Betrachtungszeit_PW*Fahrleistung_PW<S$18,0,IF(S$18-(COUNTIF($P44:R44,\">0\")*$K44)>$K44,$D44,0))","v":0},{"$f":"IF(Betrachtungszeit_PW*Fahrleistung_PW<T$18,0,IF(T$18-(COUNTIF($P44:S44,\">0\")*$K44)>$K44,$D44,0))","v":0},{"$f":"IF(Betrachtungszeit_PW*Fahrleistung_PW<U$18,0,IF(U$18-(COUNTIF($P44:T44,\">0\")*$K44)>$K44,$D44,0))","v":0},{"$f":"IF(Betrachtungszeit_PW*Fahrleistung_PW<V$18,0,IF(V$18-(COUNTIF($P44:U44,\">0\")*$K44)>$K44,$D44,0))","v":0},{"$f":"IF(Betrachtungszeit_PW*Fahrleistung_PW<W$18,0,IF(W$18-(COUNTIF($P44:V44,\">0\")*$K44)>$K44,$D44,0))","v":0},{"$f":"IF(Betrachtungszeit_PW*Fahrleistung_PW<X$18,0,IF(X$18-(COUNTIF($P44:W44,\">0\")*$K44)>$K44,$D44,0))","v":0},{"$f":"IF(Betrachtungszeit_PW*Fahrleistung_PW<Y$18,0,IF(Y$18-(COUNTIF($P44:X44,\">0\")*$K44)>$K44,$D44,0))","v":0},{"$f":"IF(Betrachtungszeit_PW*Fahrleistung_PW<Z$18,0,IF(Z$18-(COUNTIF($P44:Y44,\">0\")*$K44)>$K44,$D44,0))","v":0},{"$f":"IF(Betrachtungszeit_PW*Fahrleistung_PW<AA$18,0,IF(AA$18-(COUNTIF($P44:Z44,\">0\")*$K44)>$K44,$D44,0))","v":0},{"$f":"IF(Betrachtungszeit_PW*Fahrleistung_PW<AB$18,0,IF(AB$18-(COUNTIF($P44:AA44,\">0\")*$K44)>$K44,$D44,0))","v":0},{"$f":"IF(Betrachtungszeit_PW*Fahrleistung_PW<AC$18,0,IF(AC$18-(COUNTIF($P44:AB44,\">0\")*$K44)>$K44,$D44,0))","v":0},{"$f":"IF(Betrachtungszeit_PW*Fahrleistung_PW<AD$18,0,IF(AD$18-(COUNTIF($P44:AC44,\">0\")*$K44)>$K44,$D44,0))","v":0},{"$f":"IF(Betrachtungszeit_PW*Fahrleistung_PW<AE$18,0,IF(AE$18-(COUNTIF($P44:AD44,\">0\")*$K44)>$K44,$D44,0))","v":0},{"$f":"IF(Betrachtungszeit_PW*Fahrleistung_PW<AF$18,0,IF(AF$18-(COUNTIF($P44:AE44,\">0\")*$K44)>$K44,$D44,0))","v":0},{"$f":"IF(Betrachtungszeit_PW*Fahrleistung_PW<AG$18,0,IF(AG$18-(COUNTIF($P44:AF44,\">0\")*$K44)>$K44,$D44,0))","v":0},{"$f":"IF(Betrachtungszeit_PW*Fahrleistung_PW<AH$18,0,IF(AH$18-(COUNTIF($P44:AG44,\">0\")*$K44)>$K44,$D44,0))","v":0},{"$f":"IF(Betrachtungszeit_PW*Fahrleistung_PW<AI$18,0,IF(AI$18-(COUNTIF($P44:AH44,\">0\")*$K44)>$K44,$D44,0))","v":0},{"$f":"IF(Betrachtungszeit_PW*Fahrleistung_PW<AJ$18,0,IF(AJ$18-(COUNTIF($P44:AI44,\">0\")*$K44)>$K44,$D44,0))","v":0},{"$f":"IF(Betrachtungszeit_PW*Fahrleistung_PW<AK$18,0,IF(AK$18-(COUNTIF($P44:AJ44,\">0\")*$K44)>$K44,$D44,0))","v":0},{"$f":"IF(Betrachtungszeit_PW*Fahrleistung_PW<AL$18,0,IF(AL$18-(COUNTIF($P44:AK44,\">0\")*$K44)>$K44,$D44,0))","v":0},{"$f":"IF(Betrachtungszeit_PW*Fahrleistung_PW<AM$18,0,IF(AM$18-(COUNTIF($P44:AL44,\">0\")*$K44)>$K44,$D44,0))","v":0},{"$f":"IF(Betrachtungszeit_PW*Fahrleistung_PW<AN$18,0,IF(AN$18-(COUNTIF($P44:AM44,\">0\")*$K44)>$K44,$D44,0))","v":0},{"$f":"IF(Betrachtungszeit_PW*Fahrleistung_PW<AO$18,0,IF(AO$18-(COUNTIF($P44:AN44,\">0\")*$K44)>$K44,$D44,0))","v":0},{"$f":"IF(Betrachtungszeit_PW*Fahrleistung_PW<AP$18,0,IF(AP$18-(COUNTIF($P44:AO44,\">0\")*$K44)>$K44,$D44,0))","v":0},{"$f":"IF(Betrachtungszeit_PW*Fahrleistung_PW<AQ$18,0,IF(AQ$18-(COUNTIF($P44:AP44,\">0\")*$K44)>$K44,$D44,0))","v":0},{"$f":"IF(Betrachtungszeit_PW*Fahrleistung_PW<AR$18,0,IF(AR$18-(COUNTIF($P44:AQ44,\">0\")*$K44)>$K44,$D44,0))","v":0},{"$f":"IF(Betrachtungszeit_PW*Fahrleistung_PW<AS$18,0,IF(AS$18-(COUNTIF($P44:AR44,\">0\")*$K44)>$K44,$D44,0))","v":0},{"$f":"IF(Betrachtungszeit_PW*Fahrleistung_PW<AT$18,0,IF(AT$18-(COUNTIF($P44:AS44,\">0\")*$K44)>$K44,$D44,0))","v":0},0,null,0,0,0,0,0,0,0,0,0,0,0,0,0,0,0,0,0,0,0,0,0,0,0,0,0,0,0,0,0,0,0]
[null,"Weitere Ersatzteile",null,null,150000,null,null,null,null,null,150000,null,{"$error":"#DIV/0!"},null,"Weitere Ersatzteile: ",0,{"$f":"IF(Betrachtungszeit_PW*Fahrleistung_PW<Q$18,0,IF(Q$18-(COUNTIF($P45:P45,\">0\")*$K45)>$K45,$D45,0))","v":0},{"$f":"IF(Betrachtungszeit_PW*Fahrleistung_PW<R$18,0,IF(R$18-(COUNTIF($P45:Q45,\">0\")*$K45)>$K45,$D45,0))","v":0},{"$f":"IF(Betrachtungszeit_PW*Fahrleistung_PW<S$18,0,IF(S$18-(COUNTIF($P45:R45,\">0\")*$K45)>$K45,$D45,0))","v":0},{"$f":"IF(Betrachtungszeit_PW*Fahrleistung_PW<T$18,0,IF(T$18-(COUNTIF($P45:S45,\">0\")*$K45)>$K45,$D45,0))","v":0},{"$f":"IF(Betrachtungszeit_PW*Fahrleistung_PW<U$18,0,IF(U$18-(COUNTIF($P45:T45,\">0\")*$K45)>$K45,$D45,0))","v":0},{"$f":"IF(Betrachtungszeit_PW*Fahrleistung_PW<V$18,0,IF(V$18-(COUNTIF($P45:U45,\">0\")*$K45)>$K45,$D45,0))","v":0},{"$f":"IF(Betrachtungszeit_PW*Fahrleistung_PW<W$18,0,IF(W$18-(COUNTIF($P45:V45,\">0\")*$K45)>$K45,$D45,0))","v":0},{"$f":"IF(Betrachtungszeit_PW*Fahrleistung_PW<X$18,0,IF(X$18-(COUNTIF($P45:W45,\">0\")*$K45)>$K45,$D45,0))","v":0},{"$f":"IF(Betrachtungszeit_PW*Fahrleistung_PW<Y$18,0,IF(Y$18-(COUNTIF($P45:X45,\">0\")*$K45)>$K45,$D45,0))","v":0},{"$f":"IF(Betrachtungszeit_PW*Fahrleistung_PW<Z$18,0,IF(Z$18-(COUNTIF($P45:Y45,\">0\")*$K45)>$K45,$D45,0))","v":0},{"$f":"IF(Betrachtungszeit_PW*Fahrleistung_PW<AA$18,0,IF(AA$18-(COUNTIF($P45:Z45,\">0\")*$K45)>$K45,$D45,0))","v":0},{"$f":"IF(Betrachtungszeit_PW*Fahrleistung_PW<AB$18,0,IF(AB$18-(COUNTIF($P45:AA45,\">0\")*$K45)>$K45,$D45,0))","v":0},{"$f":"IF(Betrachtungszeit_PW*Fahrleistung_PW<AC$18,0,IF(AC$18-(COUNTIF($P45:AB45,\">0\")*$K45)>$K45,$D45,0))","v":0},{"$f":"IF(Betrachtungszeit_PW*Fahrleistung_PW<AD$18,0,IF(AD$18-(COUNTIF($P45:AC45,\">0\")*$K45)>$K45,$D45,0))","v":0},{"$f":"IF(Betrachtungszeit_PW*Fahrleistung_PW<AE$18,0,IF(AE$18-(COUNTIF($P45:AD45,\">0\")*$K45)>$K45,$D45,0))","v":0},{"$f":"IF(Betrachtungszeit_PW*Fahrleistung_PW<AF$18,0,IF(AF$18-(COUNTIF($P45:AE45,\">0\")*$K45)>$K45,$D45,0))","v":0},{"$f":"IF(Betrachtungszeit_PW*Fahrleistung_PW<AG$18,0,IF(AG$18-(COUNTIF($P45:AF45,\">0\")*$K45)>$K45,$D45,0))","v":0},{"$f":"IF(Betrachtungszeit_PW*Fahrleistung_PW<AH$18,0,IF(AH$18-(COUNTIF($P45:AG45,\">0\")*$K45)>$K45,$D45,0))","v":0},{"$f":"IF(Betrachtungszeit_PW*Fahrleistung_PW<AI$18,0,IF(AI$18-(COUNTIF($P45:AH45,\">0\")*$K45)>$K45,$D45,0))","v":0},{"$f":"IF(Betrachtungszeit_PW*Fahrleistung_PW<AJ$18,0,IF(AJ$18-(COUNTIF($P45:AI45,\">0\")*$K45)>$K45,$D45,0))","v":0},{"$f":"IF(Betrachtungszeit_PW*Fahrleistung_PW<AK$18,0,IF(AK$18-(COUNTIF($P45:AJ45,\">0\")*$K45)>$K45,$D45,0))","v":0},{"$f":"IF(Betrachtungszeit_PW*Fahrleistung_PW<AL$18,0,IF(AL$18-(COUNTIF($P45:AK45,\">0\")*$K45)>$K45,$D45,0))","v":0},{"$f":"IF(Betrachtungszeit_PW*Fahrleistung_PW<AM$18,0,IF(AM$18-(COUNTIF($P45:AL45,\">0\")*$K45)>$K45,$D45,0))","v":0},{"$f":"IF(Betrachtungszeit_PW*Fahrleistung_PW<AN$18,0,IF(AN$18-(COUNTIF($P45:AM45,\">0\")*$K45)>$K45,$D45,0))","v":0},{"$f":"IF(Betrachtungszeit_PW*Fahrleistung_PW<AO$18,0,IF(AO$18-(COUNTIF($P45:AN45,\">0\")*$K45)>$K45,$D45,0))","v":0},{"$f":"IF(Betrachtungszeit_PW*Fahrleistung_PW<AP$18,0,IF(AP$18-(COUNTIF($P45:AO45,\">0\")*$K45)>$K45,$D45,0))","v":0},{"$f":"IF(Betrachtungszeit_PW*Fahrleistung_PW<AQ$18,0,IF(AQ$18-(COUNTIF($P45:AP45,\">0\")*$K45)>$K45,$D45,0))","v":0},{"$f":"IF(Betrachtungszeit_PW*Fahrleistung_PW<AR$18,0,IF(AR$18-(COUNTIF($P45:AQ45,\">0\")*$K45)>$K45,$D45,0))","v":0},{"$f":"IF(Betrachtungszeit_PW*Fahrleistung_PW<AS$18,0,IF(AS$18-(COUNTIF($P45:AR45,\">0\")*$K45)>$K45,$D45,0))","v":0},{"$f":"IF(Betrachtungszeit_PW*Fahrleistung_PW<AT$18,0,IF(AT$18-(COUNTIF($P45:AS45,\">0\")*$K45)>$K45,$D45,0))","v":0},0,null,0,0,0,0,0,0,0,0,0,0,0,0,0,0,0,0,0,0,0,0,0,0,0,0,0,0,0,0,0,0,0]
[null,"Restwert Ersatzteile am Ende der Betrachtungszeit","CHF",{"$f":"SUM(AU33:AU45)","v":0},null,null,null,null,null,null,null,null,null,null,"Kosten Ersatzteile abzüglich Restwert",null,null,null,null,null,null,null,null,null,null,null,null,null,null,null,null,null,null,null,null,null,null,null,null,null,null,null,null,null,null,null,"Nettobarwert"]
[null,null,null,null,null,null,null,null,null,null,null,null,null,null,"Kosten Ersatzteile",{"$f":"SUM(P33:P37,P39:P45)","v":0},{"$f":"SUM(Q33:Q37,Q39:Q45)","v":0},0,0,0,0,0,0,0,0,0,0,0,0,0,0,0,0,0,0,0,0,0,0,0,0,0,0,0,0,0]
[null,null,null,null,null,null,null,null,null,null,null,null,null,null,"Restwert Ersatzteile",{"$f":"IF(Betrachtungszeit_PW=P17,-$D$46,0)","v":0},0,0,0,0,0,0,0,0,0,0,0,0,0,0,0,0,0,0,0,0,0,0,0,0,0,0,0,0,0,0]
[null,"Service- und Reparaturkosten","Beschreibung","Kosten \n(alle Fahrz.) [CHF/a]",null,null,null,null,null,null,null,null,null,null,"Kosten inkl. Preissteigerung",{"$f":"SUM(P47:P48)*(1+Inflationsindex)^P$17","v":0},0,0,0,0,0,0,0,0,0,0,0,0,0,0,0,0,0,0,0,0,0,0,0,0,0,0,0,0,0,0]
[null,"Servicekosten",null,null,null,null,null,null,null,null,null,null,null,null,"Barwert",{"$f":"P49*(1+Kalkulationszinssatz)^-P$17","v":0},0,0,0,0,0,0,0,0,0,0,0,0,0,0,0,0,0,0,0,0,0,0,0,0,0,0,0,0,0,0,{"$f":"SUM(P50:AT50)","v":0}]
[null,"Reperaturkosten"]
[null,"Weitere jährliche Service- und Reparaturkosten"]
[null,"Weitere jährliche Service- und Reparaturkosten"]
[null,"Weitere jährliche Service- und Reparaturkosten"]
[null,"Total",null,{"$f":"SUM(D50:D54)","v":0},null,null,null,null,null,null,null,null,null,null,"Service- und Reparaturkosten",null,null,null,null,null,null,null,null,null,null,null,null,null,null,null,null,null,null,null,null,null,null,null,null,null,null,null,null,null,null,null,"Nettobarwert"]
[null,null,null,null,null,null,null,null,null,null,null,null,null,null,"Kosten inkl. Preissteigerung",0,{"$f":"IF(Q$17<=Betrachtungszeit_PW,D55+D55*Inflationsindex,0)","v":0},{"$f":"IF(R$17<=Betrachtungszeit_PW,Q56+Q56*Inflationsindex,0)","v":0},0,0,0,0,0,0,0,0,0,0,0,0,0,0,0,0,0,0,0,0,0,0,0,0,0,0,0,0]
["K","Betriebskosten",null,null,null,null,null,null,null,null,null,null,null,null,"Barwert",0,{"$f":"Q56*(1+Kalkulationszinssatz)^-Q$17","v":0},0,0,0,0,0,0,0,0,0,0,0,0,0,0,0,0,0,0,0,0,0,0,0,0,0,0,0,0,0,{"$f":"SUM(P57:AT57)","v":0}]
[null,"Verkehrssteuer"]
[null,"Haftpflicht-Versicherung"]
[null,"Kasko-Versicherung"]
[null,"Weitere Versicherungen"]
[null,"Pannenhilfe, Assistance"]
[null,"Garagierungskosten"]
[null,"Autobahnvignette"]
[null,"Strassenbenützungsgebühren"]
[null,"Mitgliedsbeiträge"]
[null,"Nebenauslagen"]
[null,"Fahrzeugpflege"]
[null,"Weitere jährliche Betriebskosten",null,null,null,null,null,null,null,null,null,null,null,null,"Betriebskosten",null,null,null,null,null,null,null,null,null,null,null,null,null,null,null,null,null,null,null,null,null,null,null,null,null,null,null,null,null,null,null,"Nettobarwert"]
[null,"Weitere jährliche Betriebskosten",null,null,null,null,null,null,null,null,null,null,null,null,"Kosten inkl. Preissteigerung",0,{"$f":"IF(Q$17<=Betrachtungszeit_PW,D72+D72*Inflationsindex,0)","v":0},{"$f":"IF(R$17<=Betrachtungszeit_PW,Q70+Q70*Inflationsindex,0)","v":0},0,0,0,0,0,0,0,0,0,0,0,0,0,0,0,0,0,0,0,0,0,0,0,0,0,0,0,0]
[null,"Weitere jährliche Betriebskosten",null,null,null,null,null,null,null,null,null,null,null,null,"Barwert",0,{"$f":"Q70*(1+Kalkulationszinssatz)^-Q$17","v":0},0,0,0,0,0,0,0,0,0,0,0,0,0,0,0,0,0,0,0,0,0,0,0,0,0,0,0,0,0,{"$f":"SUM(P71:AT71)","v":0}]
[null,"Total",null,{"$f":"SUM(D58:D71)","v":0}]
[]
[null,"Energie- und Ladekosten",{"$f":"\"Treibstoff:\n \"&$C$8","v":"Treibstoff:\n BITTE WÄHLEN"},"Total",null,null,null,null,null,null,null,null,null,null,"Energie- und Ladekosten",null,null,null,null,null,null,null,null,null,null,null,null,null,null,null,null,null,null,null,null,null,null,null,null,null,null,null,null,null,null,null,"Nettobarwert"]
["K","Leistungskosten (eigene Ladestation)",{"$f":"IF(C13=13,C11*12,0)*VLOOKUP(C13,Input_Generell!$W$9:$AB$22,2,0)","v":0},{"$f":"SUM(C75:C75)","v":0},"CHF/a",null,null,null,null,null,null,null,null,null,"Leistungskosten (eigene Ladestation) inkl. Energiepreissteigerung",0,{"$f":"IF(Q$17<=Betrachtungszeit_PW,$D$75*(1+Energiepreissteigerung),0)","v":0},{"$f":"IF(R$17<=Betrachtungszeit_PW,Q75*(1+Energiepreissteigerung),0)","v":0},0,0,0,0,0,0,0,0,0,0,0,0,0,0,0,0,0,0,0,0,0,0,0,0,0,0,0,0]
["K","Energiekosten (eigene Ladestation)",{"$f":"IF(C13=13,Anteil_Intern*C10*Stückzahl_PW*1000*(Anteil_HT*StrompreisHT/100+Anteil_NT*StrompreisNT/100),0)","v":0},{"$f":"SUM(C76:C76)","v":0},"CHF/a",null,null,null,null,null,null,null,null,null,"Energiekosten (eigene Ladestation) inkl. Energiepreissteigerung",0,{"$f":"IF(Q$17<=Betrachtungszeit_PW,$D$76*(1+Energiepreissteigerung),0)","v":0},{"$f":"IF(R$17<=Betrachtungszeit_PW,Q76*(1+Energiepreissteigerung),0)","v":0},0,0,0,0,0,0,0,0,0,0,0,0,0,0,0,0,0,0,0,0,0,0,0,0,0,0,0,0]
[null,"Energiekosten (externes Tanken/Laden)",{"$f":"IF(C13=13,Anteil_Extern*Verbrauchsbasiert_Preis/100*C10*Stückzahl_PW*1000,VLOOKUP(C13,Input_Generell!$W$9:$AB$22,3,0)/100*C10*Stückzahl_PW*1000)","v":0},{"$f":"SUM(C77:C77)","v":0},"CHF/a",null,null,null,null,null,null,null,null,null,"Energiekosten (externes Tanken/Laden) inkl. Energiepreissteigerung",0,{"$f":"IF(Q$17<=Betrachtungszeit_PW,$D$77*(1+Energiepreissteigerung),0)","v":0},{"$f":"IF(R$17<=Betrachtungszeit_PW,Q77*(1+Energiepreissteigerung),0)","v":0},0,0,0,0,0,0,0,0,0,0,0,0,0,0,0,0,0,0,0,0,0,0,0,0,0,0,0,0]
["K","Strompreisunabhängige Ladekosten (externes Laden)",{"$f":"IF(C13=13,Input_Generell!D22,0)","v":0},{"$f":"SUM(C78:C78)","v":0},"CHF/a",null,null,null,null,null,null,null,null,null,"Strompreisunabh. Ladekosten (externes Laden) inkl. Preissteigerung",0,{"$f":"IF(Q$17<=Betrachtungszeit_PW,$D$78*(1+Inflationsindex),0)","v":0},{"$f":"IF(R$17<=Betrachtungszeit_PW,Q78*(1+Inflationsindex),0)","v":0},0,0,0,0,0,0,0,0,0,0,0,0,0,0,0,0,0,0,0,0,0,0,0,0,0,0,0,0]
[null,"Total",{"$f":"SUM(C75:C78)","v":0},{"$f":"SUM(D75:D78)","v":0},"CHF/a",null,null,null,null,null,null,null,null,null,"Barwert",0,{"$f":"SUM(Q75:Q78)*(1+Kalkulationszinssatz)^-Q$17","v":0},0,0,0,0,0,0,0,0,0,0,0,0,0,0,0,0,0,0,0,0,0,0,0,0,0,0,0,0,0,{"$f":"SUM(P79:AT79)","v":0}]
[]
[null,"Betrieb: Externe Kosten",{"$f":"\"Treibstoff:\n \"&$C$8","v":"Treibstoff:\n BITTE WÄHLEN"},"Total"]
[null,"Treibhausgasemissionen (THG)",{"$f":"C10*Stückzahl_PW*(1/1000)*IF(C13=13,Anteil_Intern*EF_Strom+Anteil_Extern*EF_Verbrauchsbasiert,VLOOKUP(C13,Input_Generell!$W$9:$AB$22,5,0))","v":0},{"$f":"SUM(C82:C82)","v":0},"tCO2eq/a",null,null,null,null,null,null,null,null,null,"Betrieb: Externe Kosten Treibhausgasemissionen",null,null,null,null,null,null,null,null,null,null,null,null,null,null,null,null,null,null,null,null,null,null,null,null,null,null,null,null,null,null,null,"Nettobarwert"]
[null,"Umweltbelastungspunkte UBP'13",{"$f":"C10*Stückzahl_PW*1000*IF(C13=13,Anteil_Intern*UBP_Strom+Anteil_Extern*UBP_Strom_Extern,VLOOKUP(C13,Input_Generell!$W$9:$AB$22,6,0))","v":0},{"$f":"SUM(C83:C83)","v":0},"UBP/a",null,null,null,null,null,null,null,null,null,"Kosten inkl. Preissteigerung",0,{"$f":"IF(Q$17<=Betrachtungszeit_PW,D84+D84*Inflationsindex,0)","v":0},{"$f":"IF(R$17<=Betrachtungszeit_PW,Q83+Q83*Inflationsindex,0)","v":0},0,0,0,0,0,0,0,0,0,0,0,0,0,0,0,0,0,0,0,0,0,0,0,0,0,0,0,0]
[null,{"$f":"VLOOKUP(Input_Generell!$B$28,Input_Generell!$B$52:$D$55,3,0)","v":"Kosten für THG: nicht gewählt"},{"$f":"C82*Kosten_THG","v":0},{"$f":"SUM(C84:C84)","v":0},"CHF/a",null,null,null,null,null,null,null,null,null,"Barwert",0,{"$f":"Q83*(1+Kalkulationszinssatz)^-Q$17","v":0},0,0,0,0,0,0,0,0,0,0,0,0,0,0,0,0,0,0,0,0,0,0,0,0,0,0,0,0,0,{"$f":"SUM(P84:AT84)","v":0}]
[]
[null,"Entsorgungskosten",null,null,null,null,null,null,null,null,null,null,null,null,"Entsorgung am Ende der Betrachtungszeit der Lebenszyklusrechnung",null,null,null,null,null,null,null,null,null,null,null,null,null,null,null,null,null,null,null,null,null,null,null,null,null,null,null,null,null,null,null,"Nettobarwert"]
["K","Entsorgungskosten",null,null,"CHF",null,null,null,null,null,null,null,null,null,"Kosten inkl. Preissteigerung",0,{"$f":"IF(Q$17=Betrachtungszeit_PW,$D$87*(1+Inflationsindex)^Q$17,0)","v":0},0,0,0,0,0,0,0,0,0,0,0,0,0,0,0,0,0,0,0,0,0,0,0,0,0,0,0,0,0]
[null,null,null,null,null,null,null,null,null,null,null,null,null,null,"Barwert",0,{"$f":"Q87*(1+Kalkulationszinssatz)^-Q$17","v":0},0,0,0,0,0,0,0,0,0,0,0,0,0,0,0,0,0,0,0,0,0,0,0,0,0,0,0,0,0,{"$f":"SUM(P88:AT88)","v":0}]
[]
[null,"Umweltrelevante Angaben Erstellung und Entsorgung der Fahrzeuge"]
[null,"Die Treibhausgas-Emissionen und Umweltbelastungspunkte, die aus der Erstellung und Entsorgung der Fahrzeuge entstehen, können nachfolgend berechnet werden. Mit Hilfe des mobitools (2017) kann die Grössenordnung der Treibhausgas-Emissionen und Umweltbelastungspunkte aus der Herstellung und Entsorgung ermittelt werden. Mobitool gibt diese Emissionen pro Kilometer aus (ausgehend von einer typischen Distanz über die Lebensdauer). Insbesondere wenn die Fahrzeuge über die Lebensdauer besonders wenig oder besonders viele Kilometer zurücklegen und/oder Fahrzeuge mit erneuerbaren Treibstoffen verglichen werden, empfiehlt sich jedoch eine genauere Abklärung. Falls aus der Erstellung und Entsorgung keine Daten einbezogen werden sollen, können die Eingabewerte leer gelassen werden. Die Vorgehensweise für die Ermittlung der Eingabewerte mit Hilfe des mobitools wird nachfolgend beschrieben.\nIm mobitool, in der Zeile des betroffenen Fahrzeugmodells:\n- Auslastung auf 1 setzen (somit werden die Werte pro Kilometer anstelle pro Personen-Kilometer ausgegeben)\n- Das 'Fahrzeuggewicht' sowie bei Elektro-Fahrzeugen das 'Batteriegewicht' und die 'Anzahl Batteriewechsel über Lebensdauer' anpassen\n- Im grauen Bereich oben links den gewünschten Indikator wählen ('Treibhausgaspotenzial' resp. 'UBP13')\n- In der Spalte 'Fahrzeugherstellung / -entsorgung' können die Werte für CO2eq resp. UBP abgelesen werden"]
[]
[null,"Erstellung und Entsorgung Fahrzeug:\nExterne Kosten","Fahrzeugherstellung / -entsorgung",null,"Total"]
[null,"Treibhausgasemissionen (THG)",null,"g CO2eq / km / Fahrz.",{"$f":"Stückzahl_PW*Betrachtungszeit_PW*Fahrleistung_PW*C94/1000000","v":0},"tCO2eq"]
[null,"Umweltbelastungspunkte UBP'13",null,"UBP / km / Fahrz.",{"$f":"Stückzahl_PW*Betrachtungszeit_PW*Fahrleistung_PW*C95","v":0},"UBP",null,null,null,null,null,null,null,null,"Erstellung / Entsorgung: Externe Kosten Treibhausgasemissionen",null,null,null,null,null,null,null,null,null,null,null,null,null,null,null,null,null,null,null,null,null,null,null,null,null,null,null,null,null,null,null,"Nettobarwert"]
["K",{"$f":"VLOOKUP(Input_Generell!$B$28,Input_Generell!$B$52:$D$55,3,0)","v":"Kosten für THG: nicht gewählt"},null,null,{"$f":"E94*Kosten_THG","v":0},"CHF",null,null,null,null,null,null,null,null,"Barwert",{"$f":"E96","v":0},null,null,null,null,null,null,null,null,null,null,null,null,null,null,null,null,null,null,null,null,null,null,null,null,null,null,null,null,null,null,{"$f":"SUM(P96:AT96)","v":0}]
[]
[]
[null,"Lebenszykluskosten"]
[null,"Kosten des Fahrzeugs über den gesamten Lebenszyklus gesehen (in Form des Nettobarwertes = Kapitalwert)."]
[null,null,null,null,null,null,null,null,null,null,null,null,null,null,"Barwerte",null,null,null,null,null,null,null,null,null,null,null,null,null,null,null,null,null,null,null,null,null,null,null,null,null,null,null,null,null,null,null,"Nettobarwert"]
["K","Anschaffungskosten (abzüglich Förderbeitrag, Restwert)",null,null,{"$f":"AU102","v":0},"CHF",null,null,null,null,null,null,null,null,{"$f":"B102","v":"Anschaffungskosten (abzüglich Förderbeitrag, Restwert)"},{"$f":"P29","v":0},0,0,0,0,0,0,0,0,0,0,0,0,0,0,0,0,0,0,0,0,0,0,0,0,0,0,0,0,0,0,0]
[null,"Kosten Ersatzteile (abzüglich Restwert)",null,null,{"$f":"AU103","v":0},"CHF",null,null,null,null,null,null,null,null,"Kosten Ersatzteile (abzüglich Restwert)",{"$f":"P50","v":0},0,0,0,0,0,0,0,0,0,0,0,0,0,0,0,0,0,0,0,0,0,0,0,0,0,0,0,0,0,0,0]
[null,"Service- und Reparaturkosten",null,null,{"$f":"AU104","v":0},"CHF",null,null,null,null,null,null,null,null,"Service- und Reparaturkosten",{"$f":"P57","v":0},0,0,0,0,0,0,0,0,0,0,0,0,0,0,0,0,0,0,0,0,0,0,0,0,0,0,0,0,0,0,0]
[null,"Betriebskosten",null,null,{"$f":"AU105","v":0},"CHF",null,null,null,null,null,null,null,null,"Betriebskosten",{"$f":"P71","v":0},0,0,0,0,0,0,0,0,0,0,0,0,0,0,0,0,0,0,0,0,0,0,0,0,0,0,0,0,0,0,0]
[null,"Energiekosten",null,null,0,"CHF",null,null,null,null,null,null,null,null,"Energiekosten",{"$f":"P79","v":0},0,0,0,0,0,0,0,0,0,0,0,0,0,0,0,0,0,0,0,0,0,0,0,0,0,0,0,0,0,0,0]
["K",{"$f":"VLOOKUP(Input_Generell!$B$28,Input_Generell!$B$52:$D$55,3,0)&\" (Betrieb und Erstellung/Entsorgung)\"","v":"Kosten für THG: nicht gewählt (Betrieb und Erstellung/Entsorgung)"},null,null,0,"CHF",null,null,null,null,null,null,null,null,"Kosten für THG: nicht gewählt (Betrieb und Erstellung/Entsorgung)",{"$f":"P84+P96","v":0},0,0,0,0,0,0,0,0,0,0,0,0,0,0,0,0,0,0,0,0,0,0,0,0,0,0,0,0,0,0,0]
[null,"Entsorgungskosten",null,null,0,"CHF",null,null,null,null,null,null,null,null,"Entsorgungskosten",{"$f":"P88","v":0},0,0,0,0,0,0,0,0,0,0,0,0,0,0,0,0,0,0,0,0,0,0,0,0,0,0,0,0,0,0,0]
[null,"Total",null,null,0,"CHF",null,null,null,null,null,null,null,null,"Total",{"$f":"SUM(P102:P108)","v":0},0,0,0,0,0,0,0,0,0,0,0,0,0,0,0,0,0,0,0,0,0,0,0,0,0,0,0,0,0,0,0]
[null,null,null,null,null,null,null,null,null,null,null,null,null,null,"Total aufsummiert",{"$f":"P109","v":0},{"$f":"P110+Q109","v":0},{"$f":"Q110+R109","v":0},{"$f":"R110+S109","v":0},0,0,0,0,0,0,0,0,0,0,0,0,0,0,0,0,0,0,0,0,0,0,0,0,0,0,{"$f":"AS110+AT109","v":0}]
[null,"Treibhausgasemissionen Erstellung/Entsorgung Fahrzeuge (Scope 3)",null,null,{"$f":"E94","v":0},"tCO2eq",null,null,null,null,null,null,null,null,"Diagramm Anzeige Betrachtungszeit",{"$f":"IF(P17=Betrachtungszeit_PW,MAX(Resultate_PW!$D$14:$H$14),0)","v":0},{"$f":"IF(Q17=Betrachtungszeit_PW,MAX(Resultate_PW!$D$14:$H$14),0)","v":0},{"$f":"IF(R17=Betrachtungszeit_PW,MAX(Resultate_PW!$D$14:$H$14),0)","v":0},{"$f":"IF(S17=Betrachtungszeit_PW,MAX(Resultate_PW!$D$14:$H$14),0)","v":0},{"$f":"IF(T17=Betrachtungszeit_PW,MAX(Resultate_PW!$D$14:$H$14),0)","v":0},{"$f":"IF(U17=Betrachtungszeit_PW,MAX(Resultate_PW!$D$14:$H$14),0)","v":0},{"$f":"IF(V17=Betrachtungszeit_PW,MAX(Resultate_PW!$D$14:$H$14),0)","v":0},{"$f":"IF(W17=Betrachtungszeit_PW,MAX(Resultate_PW!$D$14:$H$14),0)","v":0},{"$f":"IF(X17=Betrachtungszeit_PW,MAX(Resultate_PW!$D$14:$H$14),0)","v":0},{"$f":"IF(Y17=Betrachtungszeit_PW,MAX(Resultate_PW!$D$14:$H$14),0)","v":0},{"$f":"IF(Z17=Betrachtungszeit_PW,MAX(Resultate_PW!$D$14:$H$14),0)","v":0},{"$f":"IF(AA17=Betrachtungszeit_PW,MAX(Resultate_PW!$D$14:$H$14),0)","v":0},{"$f":"IF(AB17=Betrachtungszeit_PW,MAX(Resultate_PW!$D$14:$H$14),0)","v":0},{"$f":"IF(AC17=Betrachtungszeit_PW,MAX(Resultate_PW!$D$14:$H$14),0)","v":0},{"$f":"IF(AD17=Betrachtungszeit_PW,MAX(Resultate_PW!$D$14:$H$14),0)","v":0},{"$f":"IF(AE17=Betrachtungszeit_PW,MAX(Resultate_PW!$D$14:$H$14),0)","v":0},{"$f":"IF(AF17=Betrachtungszeit_PW,MAX(Resultate_PW!$D$14:$H$14),0)","v":0},{"$f":"IF(AG17=Betrachtungszeit_PW,MAX(Resultate_PW!$D$14:$H$14),0)","v":0},{"$f":"IF(AH17=Betrachtungszeit_PW,MAX(Resultate_PW!$D$14:$H$14),0)","v":0},{"$f":"IF(AI17=Betrachtungszeit_PW,MAX(Resultate_PW!$D$14:$H$14),0)","v":0},{"$f":"IF(AJ17=Betrachtungszeit_PW,MAX(Resultate_PW!$D$14:$H$14),0)","v":0},{"$f":"IF(AK17=Betrachtungszeit_PW,MAX(Resultate_PW!$D$14:$H$14),0)","v":0},{"$f":"IF(AL17=Betrachtungszeit_PW,MAX(Resultate_PW!$D$14:$H$14),0)","v":0},{"$f":"IF(AM17=Betrachtungszeit_PW,MAX(Resultate_PW!$D$14:$H$14),0)","v":0},{"$f":"IF(AN17=Betrachtungszeit_PW,MAX(Resultate_PW!$D$14:$H$14),0)","v":0},{"$f":"IF(AO17=Betrachtungszeit_PW,MAX(Resultate_PW!$D$14:$H$14),0)","v":0},{"$f":"IF(AP17=Betrachtungszeit_PW,MAX(Resultate_PW!$D$14:$H$14),0)","v":0},{"$f":"IF(AQ17=Betrachtungszeit_PW,MAX(Resultate_PW!$D$14:$H$14),0)","v":0},{"$f":"IF(AR17=Betrachtungszeit_PW,MAX(Resultate_PW!$D$14:$H$14),0)","v":0},{"$f":"IF(AS17=Betrachtungszeit_PW,MAX(Resultate_PW!$D$14:$H$14),0)","v":0},{"$f":"IF(AT17=Betrachtungszeit_PW,MAX(Resultate_PW!$D$14:$H$14),0)","v":0}]
[null,"Treibhausgasemissionen Betrieb (Scope 1 und 2)",null,null,{"$f":"Betrachtungszeit_PW*D82","v":0},"tCO2eq"]
[null,"Umweltbelastungspunkte UBP'13 Erstellung/Entsorgung Fahrzeuge",null,null,{"$f":"E95","v":0},"UBP"]
[null,"Umweltbelastungspunkte UBP'13 Betrieb",null,null,{"$f":"Betrachtungszeit_PW*D83","v":0},"UBP"]
["K","Gestehungskosten pro km",null,null,{"$f":"IF(C9=0,0,E109*100/(Stückzahl_PW*Fahrleistung_PW*Betrachtungszeit_PW))","v":0},"Rp./km"]
["K","Jahreskosten pro km",null,null,{"$f":"IF(C9=0,0,((1+Kalkulationszinssatz)^Betrachtungszeit_PW*Kalkulationszinssatz)/((1+Kalkulationszinssatz)^Betrachtungszeit_PW-1)*E109*100/(Stückzahl_PW*Fahrleistung_PW))","v":0},"Rp./km"]
[]
[]
[]
[null,"Auswahlfelder und Defaultwerte"]
[]
[null,"Auswahlfeld","Antrieb Nummer","Energieträger-Nummer","Energieträger"]
[null,"BITTE WÄHLEN",0,0,"Energieträger"]
[null,"Elektrizität",1,13,"Strom"]
[null,"CNG",3,1,{"$f":"\"CNG (\"&Input_Generell!X10*100&\"% Biogas)\"","v":"CNG (20% Biogas)"}]
[null,"Benzin",5,3,"Benzin"]
[null,"Diesel",6,4,"Diesel"]
[null,"Weiterer Antrieb",14,11,{"$f":"Input_Generell!B15","v":"Weitere"}]
[]
[]
[null,"Auswahlfeld"]
[null,"BITTE WÄHLEN"]
[null,"ja"]
[null,"nein"]

{"sheet":"PW_V5","index":7,"n_rows":134,"n_cols":79,"rows_kept":134,"cut":false,"hidden":false,"merged":[[30,48,30,63],[90,1,90,5],[6,2,6,3],[6,11,6,12],[16,7,16,8],[16,10,17,10],[16,11,17,11],[16,12,17,12],[30,7,30,8],[30,10,31,10],[30,11,31,11],[30,12,31,12]]}
[null,"DATENEINGABE PERSONENWAGEN"]
[]
[null,"Angaben des Anbieters (mit Angebot abzugeben)"]
[]
[null,"Variante","V5"]
["K","Variantenbezeichnung (kurz)",null,null,null,null,"K","Rechenhilfe Treibstoffverbrauch"]
[null,"Variantenbeschreibung",null,null,null,null,null,"Energie-träger","Menge","kWh",null,"Umrechnungsfaktor in kWh(Heizwert)"]
[null,"Personenwagen, Treibstoffart","BITTE WÄHLEN",null,null,null,null,"CNG [kg]",null,{"$f":"I8*M8","v":0},null,"kWh/kg",13.81]
["K","Treibstoffverbrauch pro 100 km und Fahrzeug",null,"kWh/100km/Fahrzeug",null,null,null,"Benzin [Liter]",null,{"$f":"I9*M9","v":0},null,"kWh/Liter",8.7200000000000006]
[null,{"$f":"\"Treibstoffverbrauch (\"&VLOOKUP(C12,C123:G128,3,0)&\")\"","v":"Treibstoffverbrauch (Energieträger)"},{"$f":"C9/100*Fahrleistung_PW/1000","v":0},"MWh/a/Fahrzeug",null,null,null,"Diesel [Liter]",null,{"$f":"I10*M10","v":0},null,"kWh/Liter",9.91]
["K","Max. Leistungsbedarf (für Laden von Elektrofahrz.)",null,"kW"]
[null,"Antrieb Nummer",{"$f":"IF(ISBLANK(C8),0,VLOOKUP(C8,$B$123:$G$128,2,0))","v":0}]
[null,"Energieträger Nummer",{"$f":"IF(ISBLANK(C8),0,VLOOKUP(C8,$B$123:$F$128,3,0))","v":0}]
[]
["K","Förderbeiträge total",null,"CHF",null,null,null,null,null,null,"Rechenwerte",null,null,null,"Berechnungen",null,null,null,null,null,null,null,null,null,null,null,null,null,null,null,null,null,null,null,null,null,null,null,null,null,null,null,null,null,null,null,null,null,"Berechnungen"]
[null,null,null,null,null,null,null,null,null,null,null,null,null,null,null,"(Re)Investition in CHF im Jahr…",null,null,null,null,null,null,null,null,null,null,null,null,null,null,null,null,null,null,null,null,null,null,null,null,null,null,null,null,null,null,null,null,"Restwert nach Abschreibung am Ende des Jahres… (Berücksichtigt Reinvestition nach Ablauf der Lebensdauer)"]
[null,null,null,null,null,null,null,null,null,null,"Lebens-\ndauer [a]","Zwischen-resultate","Jährliche Ab-schreibung [CHF/a]",null,"Jahr",0,1,2,3,4,5,6,7,8,9,10,11,12,13,14,15,16,17,18,19,20,21,22,23,24,25,26,27,28,29,30,null,null,0,1,2,3,4,5,6,7,8,9,10,11,12,13,14,15,16,17,18,19,20,21,22,23,24,25,26,27,28,29,30]
["K","Investitionskosten","Beschreibung","Investition \n(alle Fahrz.) [CHF]","Lebensdauer [a]","Default überschreiben",null,null,null,null,null,null,null,null,"Kilometer",0,{"$f":"Q17*Fahrleistung_PW","v":0},0,0,0,0,0,0,0,0,0,0,0,0,0,0,0,0,0,0,0,0,0,0,0,0,0,0,0,0,0,"Restwert am Ende der Betrachtungszeit"]
["K","Fahrzeuge",null,null,10,null,{"$f":"IF(K19<Betrachtungszeit_PW,\"Achtung: es erfolgt eine Reinvestition\",\"\")","v":""},null,null,null,{"$f":"IF(ISNUMBER(F19),F19,IF(ISNUMBER(E19),E19,0))","v":10},null,null,null,{"$f":"B19","v":"Fahrzeuge"},{"$f":"D19","v":0},{"$f":"IF(Betrachtungszeit_PW<Q$17,0,IF(AND(P$17<>0,P$17/($K19)=INT(P$17/($K19))),$D19,0))","v":0},0,0,0,0,0,0,0,0,0,0,0,0,0,0,0,0,0,0,0,0,0,0,0,0,0,0,0,0,0,{"$f":"SUMIF($AW$17:$CA$17,Betrachtungszeit_PW,AW19:CA19)","v":0},null,{"$f":"$D19","v":0},{"$f":"MAX(AW19-$M26+Q19,0)","v":0},0,0,0,0,0,0,0,0,0,0,0,0,0,0,0,0,0,0,0,0,0,0,0,0,0,0,0,0,0]
[null,"Zubehör / Infrastruktur",null,null,10,null,null,null,null,null,10,null,{"$f":"1/K20*D20","v":0},null,{"$f":"B20&\": \"&C20","v":"Zubehör / Infrastruktur: "},0,0,0,0,0,0,0,0,0,0,0,0,0,0,0,0,0,0,0,0,0,0,0,0,0,0,0,0,0,0,0,0,null,{"$f":"$D20","v":0},{"$f":"AW20-$M20+Q20","v":0},{"$f":"AX20-$M20+R20","v":0},0,0,0,0,0,0,0,0,0,0,0,0,0,0,0,0,0,0,0,0,0,0,0,0,0,0,0,0]
[null,"Zubehör / Infrastruktur",null,null,10,null,null,null,null,null,10,null,{"$f":"1/K21*D21","v":0},null,{"$f":"B21&\": \"&C21","v":"Zubehör / Infrastruktur: "},0,0,0,0,0,0,0,0,0,0,0,0,0,0,0,0,0,0,0,0,0,0,0,0,0,0,0,0,0,0,0,0,null,{"$f":"$D21","v":0},{"$f":"AW21-$M21+Q21","v":0},0,0,0,0,0,0,0,0,0,0,0,0,0,0,0,0,0,0,0,0,0,0,0,0,0,0,0,0,0]
[null,"Zubehör / Infrastruktur",null,null,10,null,null,null,null,null,10,null,{"$f":"1/K22*D22","v":0},null,"Zubehör / Infrastruktur: ",0,0,0,0,0,0,0,0,0,0,0,0,0,0,0,0,0,0,0,0,0,0,0,0,0,0,0,0,0,0,0,0,null,0,0,0,0,0,0,0,0,0,0,0,0,0,0,0,0,0,0,0,0,0,0,0,0,0,0,0,0,0,0,0]
[null,"Zubehör / Infrastruktur",null,null,10,null,null,null,null,null,10,null,{"$f":"1/K23*D23","v":0},null,"Zubehör / Infrastruktur: ",0,0,0,0,0,0,0,0,0,0,0,0,0,0,0,0,0,0,0,0,0,0,0,0,0,0,0,0,0,0,0,0,null,0,0,0,0,0,0,0,0,0,0,0,0,0,0,0,0,0,0,0,0,0,0,0,0,0,0,0,0,0,0,0]
[null,"Zubehör / Infrastruktur",null,null,10,null,null,null,null,null,10,null,{"$f":"1/K24*D24","v":0},null,"Zubehör / Infrastruktur: ",0,0,0,0,0,0,0,0,0,0,0,0,0,0,0,0,0,0,0,0,0,0,0,0,0,0,0,0,0,0,0,0,null,0,0,0,0,0,0,0,0,0,0,0,0,0,0,0,0,0,0,0,0,0,0,0,0,0,0,0,0,0,0,0]
[null,"Investitionskosten abzügl. \nFörderbeiträge total",null,"CHF",{"$f":"D19+SUM(D20:D24)-C15","v":0},null,null,null,null,null,null,{"$f":"E26*D19","v":0},null,null,"(Re)Investition abzüglich Restwert und Fördergeld",null,null,null,null,null,null,null,null,null,null,null,null,null,null,null,null,null,null,null,null,null,null,null,null,null,null,null,null,null,null,null,"Nettobarwert"]
["K","Wertminderung der Fahrzeuge pro Jahr aufgrund Lebensdauer",null,null,{"$f":"1/K19","v":0.1},null,null,null,null,null,null,null,{"$f":"L25+Fahrleistung_PW/10000*D19*L27","v":0},null,"(Re)Investition abzüglich Fördergeld",{"$f":"E25","v":0},{"$f":"SUM(Q19:Q24)","v":0},0,0,0,0,0,0,0,0,0,0,0,0,0,0,0,0,0,0,0,0,0,0,0,0,0,0,0,0,0]
["K","Zusätzliche Wertminderung pro 10'000 km",null,null,0.02,null,null,null,null,null,null,{"$f":"IF(ISNUMBER(F27),F27,IF(ISNUMBER(E27),E27,0))","v":0.02},null,null,"Restwert",{"$f":"IF(Betrachtungszeit_PW=P17,-($L$28+$E$29),0)","v":0},0,0,0,0,0,0,0,0,0,0,0,0,0,0,0,0,0,0,0,0,0,0,0,0,0,0,0,0,0,0]
["K","Restwert Fahrzeuge am Ende der Betrachtungszeit",null,"CHF",{"$f":"AU19","v":0},null,null,null,null,null,null,{"$f":"IF(ISNUMBER(F28),F28,E28)","v":0},null,null,"Kosten inkl. Preissteigerung",{"$f":"SUM(P26:P27)*(1+Inflationsindex)^P$17","v":0},0,0,0,0,0,0,0,0,0,0,0,0,0,0,0,0,0,0,0,0,0,0,0,0,0,0,0,0,0,0]
[null,"Restwert Zubehör am Ende der Betrachtungszeit",null,"CHF",{"$f":"SUM(AU20:AU24)","v":0},null,null,null,null,null,null,null,null,null,"Barwert",{"$f":"P28*(1+Kalkulationszinssatz)^-P$17","v":0},0,0,0,0,0,0,0,0,0,0,0,0,0,0,0,0,0,0,0,0,0,0,0,0,0,0,0,0,0,0,{"$f":"SUM(P29:AT29)","v":0}]
[]
["K","Ersatzteile / Verbrauchsmaterial mit erstmaliger Investition nach Lebensdauer",null,null,null,null,null,null,null,null,"Lebens-\ndauer [a]",null,"Jährliche Ab-schreibung [CHF/a]",null,"Ersatzteile",null,null,null,null,null,null,null,null,null,null,null,null,null,null,null,null,null,null,null,null,null,null,null,null,null,null,null,null,null,null,null,null,null,"Restwert nach Abschreibung am Ende des Jahres… (Berücksichtigt Reinvestition nach Ablauf der Lebensdauer)\nErsatzteile haben erst nach Ablauf der ersten Lebensdauer einen Restwert"]
[null,"1. Ersatzteile / Verbrauchsmaterial mit Lebensdauer in Jahren",null,null,"Lebensdauer [a]",null,null,null,null,null,null,null,null,null,{"$f":"B32","v":"1. Ersatzteile / Verbrauchsmaterial mit Lebensdauer in Jahren"},null,null,null,null,null,null,null,null,null,null,null,null,null,null,null,null,null,null,null,null,null,null,null,null,null,null,null,null,null,null,null,"Restwert am Ende der Betrachtungszeit"]
[null,"Weitere Ersatzteile",null,null,10,null,null,null,null,null,{"$f":"IF(ISNUMBER(F33),F33,IF(ISNUMBER(E33),E33,0))","v":10},null,{"$f":"1/K33*D33","v":0},null,{"$f":"B33&\": \"&C33","v":"Weitere Ersatzteile: "},0,{"$f":"IF(Betrachtungszeit_PW<Q$17,0,IF(AND(P$17<>0,P$17/($K33)=INT(P$17/($K33))),$D33,0))","v":0},0,0,0,0,0,0,0,0,0,0,0,0,0,0,0,0,0,0,0,0,0,0,0,0,0,0,0,0,0,{"$f":"SUMIF($AW$17:$CA$17,Betrachtungszeit_PW,AW33:CA33)","v":0},null,0,{"$f":"IF((AW33+Q33)=0,0,AW33-$M33+Q33)","v":0},{"$f":"IF((AX33+R33)=0,0,AX33-$M33+R33)","v":0},0,0,0,0,0,0,0,0,0,0,0,0,0,0,0,0,0,0,0,0,0,0,0,0,0,0,0,0]
[null,"Weitere Ersatzteile",null,null,10,null,null,null,null,null,{"$f":"IF(ISNUMBER(F34),F34,IF(ISNUMBER(E34),E34,0))","v":10},null,{"$f":"1/K34*D34","v":0},null,{"$f":"B34&\": \"&C34","v":"Weitere Ersatzteile: "},0,0,0,0,0,0,0,0,0,0,0,0,0,0,0,0,0,0,0,0,0,0,0,0,0,0,0,0,0,0,0,{"$f":"SUMIF($AW$17:$CA$17,Betrachtungszeit_PW,AW34:CA34)","v":0},null,0,{"$f":"IF((AW34+Q34)=0,0,AW34-$M34+Q34)","v":0},0,0,0,0,0,0,0,0,0,0,0,0,0,0,0,0,0,0,0,0,0,0,0,0,0,0,0,0,0]
[null,"Weitere Ersatzteile",null,null,10,null,null,null,null,null,{"$f":"IF(ISNUMBER(F35),F35,IF(ISNUMBER(E35),E35,0))","v":10},null,{"$f":"1/K35*D35","v":0},null,"Weitere Ersatzteile: ",0,0,0,0,0,0,0,0,0,0,0,0,0,0,0,0,0,0,0,0,0,0,0,0,0,0,0,0,0,0,0,{"$f":"SUMIF($AW$17:$CA$17,Betrachtungszeit_PW,AW35:CA35)","v":0},null,0,0,0,0,0,0,0,0,0,0,0,0,0,0,0,0,0,0,0,0,0,0,0,0,0,0,0,0,0,0,0]
[null,"Weitere Ersatzteile",null,null,10,null,null,null,null,null,{"$f":"IF(ISNUMBER(F36),F36,IF(ISNUMBER(E36),E36,0))","v":10},null,{"$f":"1/K36*D36","v":0},null,"Weitere Ersatzteile: ",0,0,0,0,0,0,0,0,0,0,0,0,0,0,0,0,0,0,0,0,0,0,0,0,0,0,0,0,0,0,0,{"$f":"SUMIF($AW$17:$CA$17,Betrachtungszeit_PW,AW36:CA36)","v":0},null,0,0,0,0,0,0,0,0,0,0,0,0,0,0,0,0,0,0,0,0,0,0,0,0,0,0,0,0,0,0,0]
[null,"Weitere Ersatzteile",null,null,10,null,null,null,null,null,{"$f":"IF(ISNUMBER(F37),F37,IF(ISNUMBER(E37),E37,0))","v":10},null,{"$f":"1/K37*D37","v":0},null,"Weitere Ersatzteile: ",0,0,0,0,0,0,0,0,0,0,0,0,0,0,0,0,0,0,0,0,0,0,0,0,0,0,0,0,0,0,0,{"$f":"SUMIF($AW$17:$CA$17,Betrachtungszeit_PW,AW37:CA37)","v":0},null,0,0,0,0,0,0,0,0,0,0,0,0,0,0,0,0,0,0,0,0,0,0,0,0,0,0,0,0,0,0,0]
[null,"2. Ersatzteile / Verbrauchsmaterial mit Lebensdauer in Kilometern",null,null,"Lebensdauer [km]",null,null,null,null,null,"Lebens-dauer [km]",null,null,null,"2. Ersatzteile / Verbrauchsmaterial mit Lebensdauer in Kilometern"]
["K","Ersatz-Reifen (Set)",null,null,30000,null,null,null,null,null,{"$f":"IF(ISNUMBER(F39),F39,IF(ISNUMBER(E39),E39,0))","v":30000},null,{"$f":"1/(K39/Fahrleistung_PW)*D39","v":{"$error":"#DIV/0!"}},null,{"$f":"B39&\": \"&C39","v":"Ersatz-Reifen (Set): "},0,{"$f":"IF(Betrachtungszeit_PW*Fahrleistung_PW<Q$18,0,IF(Q$18-(COUNTIF($P39:P39,\">0\")*$K39)>$K39,$D39,0))","v":0},{"$f":"IF(Betrachtungszeit_PW*Fahrleistung_PW<R$18,0,IF(R$18-(COUNTIF($P39:Q39,\">0\")*$K39)>$K39,$D39,0))","v":0},{"$f":"IF(Betrachtungszeit_PW*Fahrleistung_PW<S$18,0,IF(S$18-(COUNTIF($P39:R39,\">0\")*$K39)>$K39,$D39,0))","v":0},{"$f":"IF(Betrachtungszeit_PW*Fahrleistung_PW<T$18,0,IF(T$18-(COUNTIF($P39:S39,\">0\")*$K39)>$K39,$D39,0))","v":0},{"$f":"IF(Betrachtungszeit_PW*Fahrleistung_PW<U$18,0,IF(U$18-(COUNTIF($P39:T39,\">0\")*$K39)>$K39,$D39,0))","v":0},{"$f":"IF(Betrachtungszeit_PW*Fahrleistung_PW<V$18,0,IF(V$18-(COUNTIF($P39:U39,\">0\")*$K39)>$K39,$D39,0))","v":0},{"$f":"IF(Betrachtungszeit_PW*Fahrleistung_PW<W$18,0,IF(W$18-(COUNTIF($P39:V39,\">0\")*$K39)>$K39,$D39,0))","v":0},{"$f":"IF(Betrachtungszeit_PW*Fahrleistung_PW<X$18,0,IF(X$18-(COUNTIF($P39:W39,\">0\")*$K39)>$K39,$D39,0))","v":0},{"$f":"IF(Betrachtungszeit_PW*Fahrleistung_PW<Y$18,0,IF(Y$18-(COUNTIF($P39:X39,\">0\")*$K39)>$K39,$D39,0))","v":0},{"$f":"IF(Betrachtungszeit_PW*Fahrleistung_PW<Z$18,0,IF(Z$18-(COUNTIF($P39:Y39,\">0\")*$K39)>$K39,$D39,0))","v":0},{"$f":"IF(Betrachtungszeit_PW*Fahrleistung_PW<AA$18,0,IF(AA$18-(COUNTIF($P39:Z39,\">0\")*$K39)>$K39,$D39,0))","v":0},{"$f":"IF(Betrachtungszeit_PW*Fahrleistung_PW<AB$18,0,IF(AB$18-(COUNTIF($P39:AA39,\">0\")*$K39)>$K39,$D39,0))","v":0},{"$f":"IF(Betrachtungszeit_PW*Fahrleistung_PW<AC$18,0,IF(AC$18-(COUNTIF($P39:AB39,\">0\")*$K39)>$K39,$D39,0))","v":0},{"$f":"IF(Betrachtungszeit_PW*Fahrleistung_PW<AD$18,0,IF(AD$18-(COUNTIF($P39:AC39,\">0\")*$K39)>$K39,$D39,0))","v":0},{"$f":"IF(Betrachtungszeit_PW*Fahrleistung_PW<AE$18,0,IF(AE$18-(COUNTIF($P39:AD39,\">0\")*$K39)>$K39,$D39,0))","v":0},{"$f":"IF(Betrachtungszeit_PW*Fahrleistung_PW<AF$18,0,IF(AF$18-(COUNTIF($P39:AE39,\">0\")*$K39)>$K39,$D39,0))","v":0},{"$f":"IF(Betrachtungszeit_PW*Fahrleistung_PW<AG$18,0,IF(AG$18-(COUNTIF($P39:AF39,\">0\")*$K39)>$K39,$D39,0))","v":0},{"$f":"IF(Betrachtungszeit_PW*Fahrleistung_PW<AH$18,0,IF(AH$18-(COUNTIF($P39:AG39,\">0\")*$K39)>$K39,$D39,0))","v":0},{"$f":"IF(Betrachtungszeit_PW*Fahrleistung_PW<AI$18,0,IF(AI$18-(COUNTIF($P39:AH39,\">0\")*$K39)>$K39,$D39,0))","v":0},{"$f":"IF(Betrachtungszeit_PW*Fahrleistung_PW<AJ$18,0,IF(AJ$18-(COUNTIF($P39:AI39,\">0\")*$K39)>$K39,$D39,0))","v":0},{"$f":"IF(Betrachtungszeit_PW*Fahrleistung_PW<AK$18,0,IF(AK$18-(COUNTIF($P39:AJ39,\">0\")*$K39)>$K39,$D39,0))","v":0},{"$f":"IF(Betrachtungszeit_PW*Fahrleistung_PW<AL$18,0,IF(AL$18-(COUNTIF($P39:AK39,\">0\")*$K39)>$K39,$D39,0))","v":0},{"$f":"IF(Betrachtungszeit_PW*Fahrleistung_PW<AM$18,0,IF(AM$18-(COUNTIF($P39:AL39,\">0\")*$K39)>$K39,$D39,0))","v":0},{"$f":"IF(Betrachtungszeit_PW*Fahrleistung_PW<AN$18,0,IF(AN$18-(COUNTIF($P39:AM39,\">0\")*$K39)>$K39,$D39,0))","v":0},{"$f":"IF(Betrachtungszeit_PW*Fahrleistung_PW<AO$18,0,IF(AO$18-(COUNTIF($P39:AN39,\">0\")*$K39)>$K39,$D39,0))","v":0},{"$f":"IF(Betrachtungszeit_PW*Fahrleistung_PW<AP$18,0,IF(AP$18-(COUNTIF($P39:AO39,\">0\")*$K39)>$K39,$D39,0))","v":0},{"$f":"IF(Betrachtungszeit_PW*Fahrleistung_PW<AQ$18,0,IF(AQ$18-(COUNTIF($P39:AP39,\">0\")*$K39)>$K39,$D39,0))","v":0},{"$f":"IF(Betrachtungszeit_PW*Fahrleistung_PW<AR$18,0,IF(AR$18-(COUNTIF($P39:AQ39,\">0\")*$K39)>$K39,$D39,0))","v":0},{"$f":"IF(Betrachtungszeit_PW*Fahrleistung_PW<AS$18,0,IF(AS$18-(COUNTIF($P39:AR39,\">0\")*$K39)>$K39,$D39,0))","v":0},{"$f":"IF(Betrachtungszeit_PW*Fahrleistung_PW<AT$18,0,IF(AT$18-(COUNTIF($P39:AS39,\">0\")*$K39)>$K39,$D39,0))","v":0},{"$f":"SUMIF($AW$17:$CA$17,Betrachtungszeit_PW,AW39:CA39)","v":0},null,0,{"$f":"IF((AW39+Q39)=0,0,AW39-$M39+Q39)","v":0},{"$f":"IF((AX39+R39)=0,0,AX39-$M39+R39)","v":0},0,0,0,0,0,0,0,0,0,0,0,0,0,0,0,{"$f":"IF((BN39+AH39)=0,0,BN39-$M39+AH39)","v":0},0,0,0,0,0,0,0,0,0,0,0,0]
["K","Ersatz-Batterie bei Elektrofahrzeugen",null,null,100000,null,null,null,null,null,100000,null,{"$error":"#DIV/0!"},null,{"$f":"B40&\": \"&C40","v":"Ersatz-Batterie bei Elektrofahrzeugen: "},0,{"$f":"IF(Betrachtungszeit_PW*Fahrleistung_PW<Q$18,0,IF(Q$18-(COUNTIF($P40:P40,\">0\")*$K40)>$K40,$D40,0))","v":0},{"$f":"IF(Betrachtungszeit_PW*Fahrleistung_PW<R$18,0,IF(R$18-(COUNTIF($P40:Q40,\">0\")*$K40)>$K40,$D40,0))","v":0},{"$f":"IF(Betrachtungszeit_PW*Fahrleistung_PW<S$18,0,IF(S$18-(COUNTIF($P40:R40,\">0\")*$K40)>$K40,$D40,0))","v":0},{"$f":"IF(Betrachtungszeit_PW*Fahrleistung_PW<T$18,0,IF(T$18-(COUNTIF($P40:S40,\">0\")*$K40)>$K40,$D40,0))","v":0},{"$f":"IF(Betrachtungszeit_PW*Fahrleistung_PW<U$18,0,IF(U$18-(COUNTIF($P40:T40,\">0\")*$K40)>$K40,$D40,0))","v":0},{"$f":"IF(Betrachtungszeit_PW*Fahrleistung_PW<V$18,0,IF(V$18-(COUNTIF($P40:U40,\">0\")*$K40)>$K40,$D40,0))","v":0},{"$f":"IF(Betrachtungszeit_PW*Fahrleistung_PW<W$18,0,IF(W$18-(COUNTIF($P40:V40,\">0\")*$K40)>$K40,$D40,0))","v":0},{"$f":"IF(Betrachtungszeit_PW*Fahrleistung_PW<X$18,0,IF(X$18-(COUNTIF($P40:W40,\">0\")*$K40)>$K40,$D40,0))","v":0},{"$f":"IF(Betrachtungszeit_PW*Fahrleistung_PW<Y$18,0,IF(Y$18-(COUNTIF($P40:X40,\">0\")*$K40)>$K40,$D40,0))","v":0},{"$f":"IF(Betrachtungszeit_PW*Fahrleistung_PW<Z$18,0,IF(Z$18-(COUNTIF($P40:Y40,\">0\")*$K40)>$K40,$D40,0))","v":0},{"$f":"IF(Betrachtungszeit_PW*Fahrleistung_PW<AA$18,0,IF(AA$18-(COUNTIF($P40:Z40,\">0\")*$K40)>$K40,$D40,0))","v":0},{"$f":"IF(Betrachtungszeit_PW*Fahrleistung_PW<AB$18,0,IF(AB$18-(COUNTIF($P40:AA40,\">0\")*$K40)>$K40,$D40,0))","v":0},{"$f":"IF(Betrachtungszeit_PW*Fahrleistung_PW<AC$18,0,IF(AC$18-(COUNTIF($P40:AB40,\">0\")*$K40)>$K40,$D40,0))","v":0},{"$f":"IF(Betrachtungszeit_PW*Fahrleistung_PW<AD$18,0,IF(AD$18-(COUNTIF($P40:AC40,\">0\")*$K40)>$K40,$D40,0))","v":0},{"$f":"IF(Betrachtungszeit_PW*Fahrleistung_PW<AE$18,0,IF(AE$18-(COUNTIF($P40:AD40,\">0\")*$K40)>$K40,$D40,0))","v":0},{"$f":"IF(Betrachtungszeit_PW*Fahrleistung_PW<AF$18,0,IF(AF$18-(COUNTIF($P40:AE40,\">0\")*$K40)>$K40,$D40,0))","v":0},{"$f":"IF(Betrachtungszeit_PW*Fahrleistung_PW<AG$18,0,IF(AG$18-(COUNTIF($P40:AF40,\">0\")*$K40)>$K40,$D40,0))","v":0},{"$f":"IF(Betrachtungszeit_PW*Fahrleistung_PW<AH$18,0,IF(AH$18-(COUNTIF($P40:AG40,\">0\")*$K40)>$K40,$D40,0))","v":0},{"$f":"IF(Betrachtungszeit_PW*Fahrleistung_PW<AI$18,0,IF(AI$18-(COUNTIF($P40:AH40,\">0\")*$K40)>$K40,$D40,0))","v":0},{"$f":"IF(Betrachtungszeit_PW*Fahrleistung_PW<AJ$18,0,IF(AJ$18-(COUNTIF($P40:AI40,\">0\")*$K40)>$K40,$D40,0))","v":0},{"$f":"IF(Betrachtungszeit_PW*Fahrleistung_PW<AK$18,0,IF(AK$18-(COUNTIF($P40:AJ40,\">0\")*$K40)>$K40,$D40,0))","v":0},{"$f":"IF(Betrachtungszeit_PW*Fahrleistung_PW<AL$18,0,IF(AL$18-(COUNTIF($P40:AK40,\">0\")*$K40)>$K40,$D40,0))","v":0},{"$f":"IF(Betrachtungszeit_PW*Fahrleistung_PW<AM$18,0,IF(AM$18-(COUNTIF($P40:AL40,\">0\")*$K40)>$K40,$D40,0))","v":0},{"$f":"IF(Betrachtungszeit_PW*Fahrleistung_PW<AN$18,0,IF(AN$18-(COUNTIF($P40:AM40,\">0\")*$K40)>$K40,$D40,0))","v":0},{"$f":"IF(Betrachtungszeit_PW*Fahrleistung_PW<AO$18,0,IF(AO$18-(COUNTIF($P40:AN40,\">0\")*$K40)>$K40,$D40,0))","v":0},{"$f":"IF(Betrachtungszeit_PW*Fahrleistung_PW<AP$18,0,IF(AP$18-(COUNTIF($P40:AO40,\">0\")*$K40)>$K40,$D40,0))","v":0},{"$f":"IF(Betrachtungszeit_PW*Fahrleistung_PW<AQ$18,0,IF(AQ$18-(COUNTIF($P40:AP40,\">0\")*$K40)>$K40,$D40,0))","v":0},{"$f":"IF(Betrachtungszeit_PW*Fahrleistung_PW<AR$18,0,IF(AR$18-(COUNTIF($P40:AQ40,\">0\")*$K40)>$K40,$D40,0))","v":0},{"$f":"IF(Betrachtungszeit_PW*Fahrleistung_PW<AS$18,0,IF(AS$18-(COUNTIF($P40:AR40,\">0\")*$K40)>$K40,$D40,0))","v":0},{"$f":"IF(Betrachtungszeit_PW*Fahrleistung_PW<AT$18,0,IF(AT$18-(COUNTIF($P40:AS40,\">0\")*$K40)>$K40,$D40,0))","v":0},0,null,0,{"$f":"IF((AW40+Q40)=0,0,AW40-$M40+Q40)","v":0},0,0,0,0,0,0,0,0,0,0,0,0,0,0,0,0,0,0,0,0,0,0,0,0,0,0,0,0,0]
[null,"Weitere Ersatzteile",null,null,150000,null,null,null,null,null,150000,null,{"$error":"#DIV/0!"},null,"Weitere Ersatzteile: ",0,{"$f":"IF(Betrachtungszeit_PW*Fahrleistung_PW<Q$18,0,IF(Q$18-(COUNTIF($P41:P41,\">0\")*$K41)>$K41,$D41,0))","v":0},{"$f":"IF(Betrachtungszeit_PW*Fahrleistung_PW<R$18,0,IF(R$18-(COUNTIF($P41:Q41,\">0\")*$K41)>$K41,$D41,0))","v":0},{"$f":"IF(Betrachtungszeit_PW*Fahrleistung_PW<S$18,0,IF(S$18-(COUNTIF($P41:R41,\">0\")*$K41)>$K41,$D41,0))","v":0},{"$f":"IF(Betrachtungszeit_PW*Fahrleistung_PW<T$18,0,IF(T$18-(COUNTIF($P41:S41,\">0\")*$K41)>$K41,$D41,0))","v":0},{"$f":"IF(Betrachtungszeit_PW*Fahrleistung_PW<U$18,0,IF(U$18-(COUNTIF($P41:T41,\">0\")*$K41)>$K41,$D41,0))","v":0},{"$f":"IF(Betrachtungszeit_PW*Fahrleistung_PW<V$18,0,IF(V$18-(COUNTIF($P41:U41,\">0\")*$K41)>$K41,$D41,0))","v":0},{"$f":"IF(Betrachtungszeit_PW*Fahrleistung_PW<W$18,0,IF(W$18-(COUNTIF($P41:V41,\">0\")*$K41)>$K41,$D41,0))","v":0},{"$f":"IF(Betrachtungszeit_PW*Fahrleistung_PW<X$18,0,IF(X$18-(COUNTIF($P41:W41,\">0\")*$K41)>$K41,$D41,0))","v":0},{"$f":"IF(Betrachtungszeit_PW*Fahrleistung_PW<Y$18,0,IF(Y$18-(COUNTIF($P41:X41,\">0\")*$K41)>$K41,$D41,0))","v":0},{"$f":"IF(Betrachtungszeit_PW*Fahrleistung_PW<Z$18,0,IF(Z$18-(COUNTIF($P41:Y41,\">0\")*$K41)>$K41,$D41,0))","v":0},{"$f":"IF(Betrachtungszeit_PW*Fahrleistung_PW<AA$18,0,IF(AA$18-(COUNTIF($P41:Z41,\">0\")*$K41)>$K41,$D41,0))","v":0},{"$f":"IF(Betrachtungszeit_PW*Fahrleistung_PW<AB$18,0,IF(AB$18-(COUNTIF($P41:AA41,\">0\")*$K41)>$K41,$D41,0))","v":0},{"$f":"IF(Betrachtungszeit_PW*Fahrleistung_PW<AC$18,0,IF(AC$18-(COUNTIF($P41:AB41,\">0\")*$K41)>$K41,$D41,0))","v":0},{"$f":"IF(Betrachtungszeit_PW*Fahrleistung_PW<AD$18,0,IF(AD$18-(COUNTIF($P41:AC41,\">0\")*$K41)>$K41,$D41,0))","v":0},{"$f":"IF(Betrachtungszeit_PW*Fahrleistung_PW<AE$18,0,IF(AE$18-(COUNTIF($P41:AD41,\">0\")*$K41)>$K41,$D41,0))","v":0},{"$f":"IF(Betrachtungszeit_PW*Fahrleistung_PW<AF$18,0,IF(AF$18-(COUNTIF($P41:AE41,\">0\")*$K41)>$K41,$D41,0))","v":0},{"$f":"IF(Betrachtungszeit_PW*Fahrleistung_PW<AG$18,0,IF(AG$18-(COUNTIF($P41:AF41,\">0\")*$K41)>$K41,$D41,0))","v":0},{"$f":"IF(Betrachtungszeit_PW*Fahrleistung_PW<AH$18,0,IF(AH$18-(COUNTIF($P41:AG41,\">0\")*$K41)>$K41,$D41,0))","v":0},{"$f":"IF(Betrachtungszeit_PW*Fahrleistung_PW<AI$18,0,IF(AI$18-(COUNTIF($P41:AH41,\">0\")*$K41)>$K41,$D41,0))","v":0},{"$f":"IF(Betrachtungszeit_PW*Fahrleistung_PW<AJ$18,0,IF(AJ$18-(COUNTIF($P41:AI41,\">0\")*$K41)>$K41,$D41,0))","v":0},{"$f":"IF(Betrachtungszeit_PW*Fahrleistung_PW<AK$18,0,IF(AK$18-(COUNTIF($P41:AJ41,\">0\")*$K41)>$K41,$D41,0))","v":0},{"$f":"IF(Betrachtungszeit_PW*Fahrleistung_PW<AL$18,0,IF(AL$18-(COUNTIF($P41:AK41,\">0\")*$K41)>$K41,$D41,0))","v":0},{"$f":"IF(Betrachtungszeit_PW*Fahrleistung_PW<AM$18,0,IF(AM$18-(COUNTIF($P41:AL41,\">0\")*$K41)>$K41,$D41,0))","v":0},{"$f":"IF(Betrachtungszeit_PW*Fahrleistung_PW<AN$18,0,IF(AN$18-(COUNTIF($P41:AM41,\">0\")*$K41)>$K41,$D41,0))","v":0},{"$f":"IF(Betrachtungszeit_PW*Fahrleistung_PW<AO$18,0,IF(AO$18-(COUNTIF($P41:AN41,\">0\")*$K41)>$K41,$D41,0))","v":0},{"$f":"IF(Betrachtungszeit_PW*Fahrleistung_PW<AP$18,0,IF(AP$18-(COUNTIF($P41:AO41,\">0\")*$K41)>$K41,$D41,0))","v":0},{"$f":"IF(Betrachtungszeit_PW*Fahrleistung_PW<AQ$18,0,IF(AQ$18-(COUNTIF($P41:AP41,\">0\")*$K41)>$K41,$D41,0))","v":0},{"$f":"IF(Betrachtungszeit_PW*Fahrleistung_PW<AR$18,0,IF(AR$18-(COUNTIF($P41:AQ41,\">0\")*$K41)>$K41,$D41,0))","v":0},{"$f":"IF(Betrachtungszeit_PW*Fahrleistung_PW<AS$18,0,IF(AS$18-(COUNTIF($P41:AR41,\">0\")*$K41)>$K41,$D41,0))","v":0},{"$f":"IF(Betrachtungszeit_PW*Fahrleistung_PW<AT$18,0,IF(AT$18-(COUNTIF($P41:AS41,\">0\")*$K41)>$K41,$D41,0))","v":0},0,null,0,0,0,0,0,0,0,0,0,0,0,0,0,0,0,0,0,0,0,0,0,0,0,0,0,0,0,0,0,0,0]
[null,"Weitere Ersatzteile",null,null,150000,null,null,null,null,null,150000,null,{"$error":"#DIV/0!"},null,"Weitere Ersatzteile: ",0,{"$f":"IF(Betrachtungszeit_PW*Fahrleistung_PW<Q$18,0,IF(Q$18-(COUNTIF($P42:P42,\">0\")*$K42)>$K42,$D42,0))","v":0},{"$f":"IF(Betrachtungszeit_PW*Fahrleistung_PW<R$18,0,IF(R$18-(COUNTIF($P42:Q42,\">0\")*$K42)>$K42,$D42,0))","v":0},{"$f":"IF(Betrachtungszeit_PW*Fahrleistung_PW<S$18,0,IF(S$18-(COUNTIF($P42:R42,\">0\")*$K42)>$K42,$D42,0))","v":0},{"$f":"IF(Betrachtungszeit_PW*Fahrleistung_PW<T$18,0,IF(T$18-(COUNTIF($P42:S42,\">0\")*$K42)>$K42,$D42,0))","v":0},{"$f":"IF(Betrachtungszeit_PW*Fahrleistung_PW<U$18,0,IF(U$18-(COUNTIF($P42:T42,\">0\")*$K42)>$K42,$D42,0))","v":0},{"$f":"IF(Betrachtungszeit_PW*Fahrleistung_PW<V$18,0,IF(V$18-(COUNTIF($P42:U42,\">0\")*$K42)>$K42,$D42,0))","v":0},{"$f":"IF(Betrachtungszeit_PW*Fahrleistung_PW<W$18,0,IF(W$18-(COUNTIF($P42:V42,\">0\")*$K42)>$K42,$D42,0))","v":0},{"$f":"IF(Betrachtungszeit_PW*Fahrleistung_PW<X$18,0,IF(X$18-(COUNTIF($P42:W42,\">0\")*$K42)>$K42,$D42,0))","v":0},{"$f":"IF(Betrachtungszeit_PW*Fahrleistung_PW<Y$18,0,IF(Y$18-(COUNTIF($P42:X42,\">0\")*$K42)>$K42,$D42,0))","v":0},{"$f":"IF(Betrachtungszeit_PW*Fahrleistung_PW<Z$18,0,IF(Z$18-(COUNTIF($P42:Y42,\">0\")*$K42)>$K42,$D42,0))","v":0},{"$f":"IF(Betrachtungszeit_PW*Fahrleistung_PW<AA$18,0,IF(AA$18-(COUNTIF($P42:Z42,\">0\")*$K42)>$K42,$D42,0))","v":0},{"$f":"IF(Betrachtungszeit_PW*Fahrleistung_PW<AB$18,0,IF(AB$18-(COUNTIF($P42:AA42,\">0\")*$K42)>$K42,$D42,0))","v":0},{"$f":"IF(Betrachtungszeit_PW*Fahrleistung_PW<AC$18,0,IF(AC$18-(COUNTIF($P42:AB42,\">0\")*$K42)>$K42,$D42,0))","v":0},{"$f":"IF(Betrachtungszeit_PW*Fahrleistung_PW<AD$18,0,IF(AD$18-(COUNTIF($P42:AC42,\">0\")*$K42)>$K42,$D42,0))","v":0},{"$f":"IF(Betrachtungszeit_PW*Fahrleistung_PW<AE$18,0,IF(AE$18-(COUNTIF($P42:AD42,\">0\")*$K42)>$K42,$D42,0))","v":0},{"$f":"IF(Betrachtungszeit_PW*Fahrleistung_PW<AF$18,0,IF(AF$18-(COUNTIF($P42:AE42,\">0\")*$K42)>$K42,$D42,0))","v":0},{"$f":"IF(Betrachtungszeit_PW*Fahrleistung_PW<AG$18,0,IF(AG$18-(COUNTIF($P42:AF42,\">0\")*$K42)>$K42,$D42,0))","v":0},{"$f":"IF(Betrachtungszeit_PW*Fahrleistung_PW<AH$18,0,IF(AH$18-(COUNTIF($P42:AG42,\">0\")*$K42)>$K42,$D42,0))","v":0},{"$f":"IF(Betrachtungszeit_PW*Fahrleistung_PW<AI$18,0,IF(AI$18-(COUNTIF($P42:AH42,\">0\")*$K42)>$K42,$D42,0))","v":0},{"$f":"IF(Betrachtungszeit_PW*Fahrleistung_PW<AJ$18,0,IF(AJ$18-(COUNTIF($P42:AI42,\">0\")*$K42)>$K42,$D42,0))","v":0},{"$f":"IF(Betrachtungszeit_PW*Fahrleistung_PW<AK$18,0,IF(AK$18-(COUNTIF($P42:AJ42,\">0\")*$K42)>$K42,$D42,0))","v":0},{"$f":"IF(Betrachtungszeit_PW*Fahrleistung_PW<AL$18,0,IF(AL$18-(COUNTIF($P42:AK42,\">0\")*$K42)>$K42,$D42,0))","v":0},{"$f":"IF(Betrachtungszeit_PW*Fahrleistung_PW<AM$18,0,IF(AM$18-(COUNTIF($P42:AL42,\">0\")*$K42)>$K42,$D42,0))","v":0},{"$f":"IF(Betrachtungszeit_PW*Fahrleistung_PW<AN$18,0,IF(AN$18-(COUNTIF($P42:AM42,\">0\")*$K42)>$K42,$D42,0))","v":0},{"$f":"IF(Betrachtungszeit_PW*Fahrleistung_PW<AO$18,0,IF(AO$18-(COUNTIF($P42:AN42,\">0\")*$K42)>$K42,$D42,0))","v":0},{"$f":"IF(Betrachtungszeit_PW*Fahrleistung_PW<AP$18,0,IF(AP$18-(COUNTIF($P42:AO42,\">0\")*$K42)>$K42,$D42,0))","v":0},{"$f":"IF(Betrachtungszeit_PW*Fahrleistung_PW<AQ$18,0,IF(AQ$18-(COUNTIF($P42:AP42,\">0\")*$K42)>$K42,$D42,0))","v":0},{"$f":"IF(Betrachtungszeit_PW*Fahrleistung_PW<AR$18,0,IF(AR$18-(COUNTIF($P42:AQ42,\">0\")*$K42)>$K42,$D42,0))","v":0},{"$f":"IF(Betrachtungszeit_PW*Fahrleistung_PW<AS$18,0,IF(AS$18-(COUNTIF($P42:AR42,\">0\")*$K42)>$K42,$D42,0))","v":0},{"$f":"IF(Betrachtungszeit_PW*Fahrleistung_PW<AT$18,0,IF(AT$18-(COUNTIF($P42:AS42,\">0\")*$K42)>$K42,$D42,0))","v":0},0,null,0,0,0,0,0,0,0,0,0,0,0,0,0,0,0,0,0,0,0,0,0,0,0,0,0,0,0,0,0,0,0]
[null,"Weitere Ersatzteile",null,null,150000,null,null,null,null,null,150000,null,{"$error":"#DIV/0!"},null,"Weitere Ersatzteile: ",0,{"$f":"IF(Betrachtungszeit_PW*Fahrleistung_PW<Q$18,0,IF(Q$18-(COUNTIF($P43:P43,\">0\")*$K43)>$K43,$D43,0))","v":0},{"$f":"IF(Betrachtungszeit_PW*Fahrleistung_PW<R$18,0,IF(R$18-(COUNTIF($P43:Q43,\">0\")*$K43)>$K43,$D43,0))","v":0},{"$f":"IF(Betrachtungszeit_PW*Fahrleistung_PW<S$18,0,IF(S$18-(COUNTIF($P43:R43,\">0\")*$K43)>$K43,$D43,0))","v":0},{"$f":"IF(Betrachtungszeit_PW*Fahrleistung_PW<T$18,0,IF(T$18-(COUNTIF($P43:S43,\">0\")*$K43)>$K43,$D43,0))","v":0},{"$f":"IF(Betrachtungszeit_PW*Fahrleistung_PW<U$18,0,IF(U$18-(COUNTIF($P43:T43,\">0\")*$K43)>$K43,$D43,0))","v":0},{"$f":"IF(Betrachtungszeit_PW*Fahrleistung_PW<V$18,0,IF(V$18-(COUNTIF($P43:U43,\">0\")*$K43)>$K43,$D43,0))","v":0},{"$f":"IF(Betrachtungszeit_PW*Fahrleistung_PW<W$18,0,IF(W$18-(COUNTIF($P43:V43,\">0\")*$K43)>$K43,$D43,0))","v":0},{"$f":"IF(Betrachtungszeit_PW*Fahrleistung_PW<X$18,0,IF(X$18-(COUNTIF($P43:W43,\">0\")*$K43)>$K43,$D43,0))","v":0},{"$f":"IF(Betrachtungszeit_PW*Fahrleistung_PW<Y$18,0,IF(Y$18-(COUNTIF($P43:X43,\">0\")*$K43)>$K43,$D43,0))","v":0},{"$f":"IF(Betrachtungszeit_PW*Fahrleistung_PW<Z$18,0,IF(Z$18-(COUNTIF($P43:Y43,\">0\")*$K43)>$K43,$D43,0))","v":0},{"$f":"IF(Betrachtungszeit_PW*Fahrleistung_PW<AA$18,0,IF(AA$18-(COUNTIF($P43:Z43,\">0\")*$K43)>$K43,$D43,0))","v":0},{"$f":"IF(Betrachtungszeit_PW*Fahrleistung_PW<AB$18,0,IF(AB$18-(COUNTIF($P43:AA43,\">0\")*$K43)>$K43,$D43,0))","v":0},{"$f":"IF(Betrachtungszeit_PW*Fahrleistung_PW<AC$18,0,IF(AC$18-(COUNTIF($P43:AB43,\">0\")*$K43)>$K43,$D43,0))","v":0},{"$f":"IF(Betrachtungszeit_PW*Fahrleistung_PW<AD$18,0,IF(AD$18-(COUNTIF($P43:AC43,\">0\")*$K43)>$K43,$D43,0))","v":0},{"$f":"IF(Betrachtungszeit_PW*Fahrleistung_PW<AE$18,0,IF(AE$18-(COUNTIF($P43:AD43,\">0\")*$K43)>$K43,$D43,0))","v":0},{"$f":"IF(Betrachtungszeit_PW*Fahrleistung_PW<AF$18,0,IF(AF$18-(COUNTIF($P43:AE43,\">0\")*$K43)>$K43,$D43,0))","v":0},{"$f":"IF(Betrachtungszeit_PW*Fahrleistung_PW<AG$18,0,IF(AG$18-(COUNTIF($P43:AF43,\">0\")*$K43)>$K43,$D43,0))","v":0},{"$f":"IF(Betrachtungszeit_PW*Fahrleistung_PW<AH$18,0,IF(AH$18-(COUNTIF($P43:AG43,\">0\")*$K43)>$K43,$D43,0))","v":0},{"$f":"IF(Betrachtungszeit_PW*Fahrleistung_PW<AI$18,0,IF(AI$18-(COUNTIF($P43:AH43,\">0\")*$K43)>$K43,$D43,0))","v":0},{"$f":"IF(Betrachtungszeit_PW*Fahrleistung_PW<AJ$18,0,IF(AJ$18-(COUNTIF($P43:AI43,\">0\")*$K43)>$K43,$D43,0))","v":0},{"$f":"IF(Betrachtungszeit_PW*Fahrleistung_PW<AK$18,0,IF(AK$18-(COUNTIF($P43:AJ43,\">0\")*$K43)>$K43,$D43,0))","v":0},{"$f":"IF(Betrachtungszeit_PW*Fahrleistung_PW<AL$18,0,IF(AL$18-(COUNTIF($P43:AK43,\">0\")*$K43)>$K43,$D43,0))","v":0},{"$f":"IF(Betrachtungszeit_PW*Fahrleistung_PW<AM$18,0,IF(AM$18-(COUNTIF($P43:AL43,\">0\")*$K43)>$K43,$D43,0))","v":0},{"$f":"IF(Betrachtungszeit_PW*Fahrleistung_PW<AN$18,0,IF(AN$18-(COUNTIF($P43:AM43,\">0\")*$K43)>$K43,$D43,0))","v":0},{"$f":"IF(Betrachtungszeit_PW*Fahrleistung_PW<AO$18,0,IF(AO$18-(COUNTIF($P43:AN43,\">0\")*$K43)>$K43,$D43,0))","v":0},{"$f":"IF(Betrachtungszeit_PW*Fahrleistung_PW<AP$18,0,IF(AP$18-(COUNTIF($P43:AO43,\">0\")*$K43)>$K43,$D43,0))","v":0},{"$f":"IF(Betrachtungszeit_PW*Fahrleistung_PW<AQ$18,0,IF(AQ$18-(COUNTIF($P43:AP43,\">0\")*$K43)>$K43,$D43,0))","v":0},{"$f":"IF(Betrachtungszeit_PW*Fahrleistung_PW<AR$18,0,IF(AR$18-(COUNTIF($P43:AQ43,\">0\")*$K43)>$K43,$D43,0))","v":0},{"$f":"IF(Betrachtungszeit_PW*Fahrleistung_PW<AS$18,0,IF(AS$18-(COUNTIF($P43:AR43,\">0\")*$K43)>$K43,$D43,0))","v":0},{"$f":"IF(Betrachtungszeit_PW*Fahrleistung_PW<AT$18,0,IF(AT$18-(COUNTIF($P43:AS43,\">0\")*$K43)>$K43,$D43,0))","v":0},0,null,0,0,0,0,0,0,0,0,0,0,0,0,0,0,0,0,0,0,0,0,0,0,0,0,0,0,0,0,0,0,0]
[null,"Weitere Ersatzteile",null,null,150000,null,null,null,null,null,150000,null,{"$error":"#DIV/0!"},null,"Weitere Ersatzteile: ",0,{"$f":"IF(Betrachtungszeit_PW*Fahrleistung_PW<Q$18,0,IF(Q$18-(COUNTIF($P44:P44,\">0\")*$K44)>$K44,$D44,0))","v":0},{"$f":"IF(Betrachtungszeit_PW*Fahrleistung_PW<R$18,0,IF(R$18-(COUNTIF($P44:Q44,\">0\")*$K44)>$K44,$D44,0))","v":0},{"$f":"IF(Betrachtungszeit_PW*Fahrleistung_PW<S$18,0,IF(S$18-(COUNTIF($P44:R44,\">0\")*$K44)>$K44,$D44,0))","v":0},{"$f":"IF(Betrachtungszeit_PW*Fahrleistung_PW<T$18,0,IF(T$18-(COUNTIF($P44:S44,\">0\")*$K44)>$K44,$D44,0))","v":0},{"$f":"IF(Betrachtungszeit_PW*Fahrleistung_PW<U$18,0,IF(U$18-(COUNTIF($P44:T44,\">0\")*$K44)>$K44,$D44,0))","v":0},{"$f":"IF(Betrachtungszeit_PW*Fahrleistung_PW<V$18,0,IF(V$18-(COUNTIF($P44:U44,\">0\")*$K44)>$K44,$D44,0))","v":0},{"$f":"IF(Betrachtungszeit_PW*Fahrleistung_PW<W$18,0,IF(W$18-(COUNTIF($P44:V44,\">0\")*$K44)>$K44,$D44,0))","v":0},{"$f":"IF(Betrachtungszeit_PW*Fahrleistung_PW<X$18,0,IF(X$18-(COUNTIF($P44:W44,\">0\")*$K44)>$K44,$D44,0))","v":0},{"$f":"IF(Betrachtungszeit_PW*Fahrleistung_PW<Y$18,0,IF(Y$18-(COUNTIF($P44:X44,\">0\")*$K44)>$K44,$D44,0))","v":0},{"$f":"IF(Betrachtungszeit_PW*Fahrleistung_PW<Z$18,0,IF(Z$18-(COUNTIF($P44:Y44,\">0\")*$K44)>$K44,$D44,0))","v":0},{"$f":"IF(Betrachtungszeit_PW*Fahrleistung_PW<AA$18,0,IF(AA$18-(COUNTIF($P44:Z44,\">0\")*$K44)>$K44,$D44,0))","v":0},{"$f":"IF(Betrachtungszeit_PW*Fahrleistung_PW<AB$18,0,IF(AB$18-(COUNTIF($P44:AA44,\">0\")*$K44)>$K44,$D44,0))","v":0},{"$f":"IF(Betrachtungszeit_PW*Fahrleistung_PW<AC$18,0,IF(AC$18-(COUNTIF($P44:AB44,\">0\")*$K44)>$K44,$D44,0))","v":0},{"$f":"IF(Betrachtungszeit_PW*Fahrleistung_PW<AD$18,0,IF(AD$18-(COUNTIF($P44:AC44,\">0\")*$K44)>$K44,$D44,0))","v":0},{"$f":"IF(Betrachtungszeit_PW*Fahrleistung_PW<AE$18,0,IF(AE$18-(COUNTIF($P44:AD44,\">0\")*$K44)>$K44,$D44,0))","v":0},{"$f":"IF(Betrachtungszeit_PW*Fahrleistung_PW<AF$18,0,IF(AF$18-(COUNTIF($P44:AE44,\">0\")*$K44)>$K44,$D44,0))","v":0},{"$f":"IF(Betrachtungszeit_PW*Fahrleistung_PW<AG$18,0,IF(AG$18-(COUNTIF($P44:AF44,\">0\")*$K44)>$K44,$D44,0))","v":0},{"$f":"IF(Betrachtungszeit_PW*Fahrleistung_PW<AH$18,0,IF(AH$18-(COUNTIF($P44:AG44,\">0\")*$K44)>$K44,$D44,0))","v":0},{"$f":"IF(Betrachtungszeit_PW*Fahrleistung_PW<AI$18,0,IF(AI$18-(COUNTIF($P44:AH44,\">0\")*$K44)>$K44,$D44,0))","v":0},{"$f":"IF(Betrachtungszeit_PW*Fahrleistung_PW<AJ$18,0,IF(AJ$18-(COUNTIF($P44:AI44,\">0\")*$K44)>$K44,$D44,0))","v":0},{"$f":"IF(Betrachtungszeit_PW*Fahrleistung_PW<AK$18,0,IF(AK$18-(COUNTIF($P44:AJ44,\">0\")*$K44)>$K44,$D44,0))","v":0},{"$f":"IF(Betrachtungszeit_PW*Fahrleistung_PW<AL$18,0,IF(AL$18-(COUNTIF($P44:AK44,\">0\")*$K44)>$K44,$D44,0))","v":0},{"$f":"IF(Betrachtungszeit_PW*Fahrleistung_PW<AM$18,0,IF(AM$18-(COUNTIF($P44:AL44,\">0\")*$K44)>$K44,$D44,0))","v":0},{"$f":"IF(Betrachtungszeit_PW*Fahrleistung_PW<AN$18,0,IF(AN$18-(COUNTIF($P44:AM44,\">0\")*$K44)>$K44,$D44,0))","v":0},{"$f":"IF(Betrachtungszeit_PW*Fahrleistung_PW<AO$18,0,IF(AO$18-(COUNTIF($P44:AN44,\">0\")*$K44)>$K44,$D44,0))","v":0},{"$f":"IF(Betrachtungszeit_PW*Fahrleistung_PW<AP$18,0,IF(AP$18-(COUNTIF($P44:AO44,\">0\")*$K44)>$K44,$D44,0))","v":0},{"$f":"IF(Betrachtungszeit_PW*Fahrleistung_PW<AQ$18,0,IF(AQ$18-(COUNTIF($P44:AP44,\">0\")*$K44)>$K44,$D44,0))","v":0},{"$f":"IF(Betrachtungszeit_PW*Fahrleistung_PW<AR$18,0,IF(AR$18-(COUNTIF($P44:AQ44,\">0\")*$K44)>$K44,$D44,0))","v":0},{"$f":"IF(Betrachtungszeit_PW*Fahrleistung_PW<AS$18,0,IF(AS$18-(COUNTIF($P44:AR44,\">0\")*$K44)>$K44,$D44,0))","v":0},{"$f":"IF(Betrachtungszeit_PW*Fahrleistung_PW<AT$18,0,IF(AT$18-(COUNTIF($P44:AS44,\">0\")*$K44)>$K44,$D44,0))","v":0},0,null,0,0,0,0,0,0,0,0,0,0,0,0,0,0,0,0,0,0,0,0,0,0,0,0,0,0,0,0,0,0,0]
[null,"Weitere Ersatzteile",null,null,150000,null,null,null,null,null,150000,null,{"$error":"#DIV/0!"},null,"Weitere Ersatzteile: ",0,{"$f":"IF(Betrachtungszeit_PW*Fahrleistung_PW<Q$18,0,IF(Q$18-(COUNTIF($P45:P45,\">0\")*$K45)>$K45,$D45,0))","v":0},{"$f":"IF(Betrachtungszeit_PW*Fahrleistung_PW<R$18,0,IF(R$18-(COUNTIF($P45:Q45,\">0\")*$K45)>$K45,$D45,0))","v":0},{"$f":"IF(Betrachtungszeit_PW*Fahrleistung_PW<S$18,0,IF(S$18-(COUNTIF($P45:R45,\">0\")*$K45)>$K45,$D45,0))","v":0},{"$f":"IF(Betrachtungszeit_PW*Fahrleistung_PW<T$18,0,IF(T$18-(COUNTIF($P45:S45,\">0\")*$K45)>$K45,$D45,0))","v":0},{"$f":"IF(Betrachtungszeit_PW*Fahrleistung_PW<U$18,0,IF(U$18-(COUNTIF($P45:T45,\">0\")*$K45)>$K45,$D45,0))","v":0},{"$f":"IF(Betrachtungszeit_PW*Fahrleistung_PW<V$18,0,IF(V$18-(COUNTIF($P45:U45,\">0\")*$K45)>$K45,$D45,0))","v":0},{"$f":"IF(Betrachtungszeit_PW*Fahrleistung_PW<W$18,0,IF(W$18-(COUNTIF($P45:V45,\">0\")*$K45)>$K45,$D45,0))","v":0},{"$f":"IF(Betrachtungszeit_PW*Fahrleistung_PW<X$18,0,IF(X$18-(COUNTIF($P45:W45,\">0\")*$K45)>$K45,$D45,0))","v":0},{"$f":"IF(Betrachtungszeit_PW*Fahrleistung_PW<Y$18,0,IF(Y$18-(COUNTIF($P45:X45,\">0\")*$K45)>$K45,$D45,0))","v":0},{"$f":"IF(Betrachtungszeit_PW*Fahrleistung_PW<Z$18,0,IF(Z$18-(COUNTIF($P45:Y45,\">0\")*$K45)>$K45,$D45,0))","v":0},{"$f":"IF(Betrachtungszeit_PW*Fahrleistung_PW<AA$18,0,IF(AA$18-(COUNTIF($P45:Z45,\">0\")*$K45)>$K45,$D45,0))","v":0},{"$f":"IF(Betrachtungszeit_PW*Fahrleistung_PW<AB$18,0,IF(AB$18-(COUNTIF($P45:AA45,\">0\")*$K45)>$K45,$D45,0))","v":0},{"$f":"IF(Betrachtungszeit_PW*Fahrleistung_PW<AC$18,0,IF(AC$18-(COUNTIF($P45:AB45,\">0\")*$K45)>$K45,$D45,0))","v":0},{"$f":"IF(Betrachtungszeit_PW*Fahrleistung_PW<AD$18,0,IF(AD$18-(COUNTIF($P45:AC45,\">0\")*$K45)>$K45,$D45,0))","v":0},{"$f":"IF(Betrachtungszeit_PW*Fahrleistung_PW<AE$18,0,IF(AE$18-(COUNTIF($P45:AD45,\">0\")*$K45)>$K45,$D45,0))","v":0},{"$f":"IF(Betrachtungszeit_PW*Fahrleistung_PW<AF$18,0,IF(AF$18-(COUNTIF($P45:AE45,\">0\")*$K45)>$K45,$D45,0))","v":0},{"$f":"IF(Betrachtungszeit_PW*Fahrleistung_PW<AG$18,0,IF(AG$18-(COUNTIF($P45:AF45,\">0\")*$K45)>$K45,$D45,0))","v":0},{"$f":"IF(Betrachtungszeit_PW*Fahrleistung_PW<AH$18,0,IF(AH$18-(COUNTIF($P45:AG45,\">0\")*$K45)>$K45,$D45,0))","v":0},{"$f":"IF(Betrachtungszeit_PW*Fahrleistung_PW<AI$18,0,IF(AI$18-(COUNTIF($P45:AH45,\">0\")*$K45)>$K45,$D45,0))","v":0},{"$f":"IF(Betrachtungszeit_PW*Fahrleistung_PW<AJ$18,0,IF(AJ$18-(COUNTIF($P45:AI45,\">0\")*$K45)>$K45,$D45,0))","v":0},{"$f":"IF(Betrachtungszeit_PW*Fahrleistung_PW<AK$18,0,IF(AK$18-(COUNTIF($P45:AJ45,\">0\")*$K45)>$K45,$D45,0))","v":0},{"$f":"IF(Betrachtungszeit_PW*Fahrleistung_PW<AL$18,0,IF(AL$18-(COUNTIF($P45:AK45,\">0\")*$K45)>$K45,$D45,0))","v":0},{"$f":"IF(Betrachtungszeit_PW*Fahrleistung_PW<AM$18,0,IF(AM$18-(COUNTIF($P45:AL45,\">0\")*$K45)>$K45,$D45,0))","v":0},{"$f":"IF(Betrachtungszeit_PW*Fahrleistung_PW<AN$18,0,IF(AN$18-(COUNTIF($P45:AM45,\">0\")*$K45)>$K45,$D45,0))","v":0},{"$f":"IF(Betrachtungszeit_PW*Fahrleistung_PW<AO$18,0,IF(AO$18-(COUNTIF($P45:AN45,\">0\")*$K45)>$K45,$D45,0))","v":0},{"$f":"IF(Betrachtungszeit_PW*Fahrleistung_PW<AP$18,0,IF(AP$18-(COUNTIF($P45:AO45,\">0\")*$K45)>$K45,$D45,0))","v":0},{"$f":"IF(Betrachtungszeit_PW*Fahrleistung_PW<AQ$18,0,IF(AQ$18-(COUNTIF($P45:AP45,\">0\")*$K45)>$K45,$D45,0))","v":0},{"$f":"IF(Betrachtungszeit_PW*Fahrleistung_PW<AR$18,0,IF(AR$18-(COUNTIF($P45:AQ45,\">0\")*$K45)>$K45,$D45,0))","v":0},{"$f":"IF(Betrachtungszeit_PW*Fahrleistung_PW<AS$18,0,IF(AS$18-(COUNTIF($P45:AR45,\">0\")*$K45)>$K45,$D45,0))","v":0},{"$f":"IF(Betrachtungszeit_PW*Fahrleistung_PW<AT$18,0,IF(AT$18-(COUNTIF($P45:AS45,\">0\")*$K45)>$K45,$D45,0))","v":0},0,null,0,0,0,0,0,0,0,0,0,0,0,0,0,0,0,0,0,0,0,0,0,0,0,0,0,0,0,0,0,0,0]
[null,"Restwert Ersatzteile am Ende der Betrachtungszeit","CHF",{"$f":"SUM(AU33:AU45)","v":0},null,null,null,null,null,null,null,null,null,null,"Kosten Ersatzteile abzüglich Restwert",null,null,null,null,null,null,null,null,null,null,null,null,null,null,null,null,null,null,null,null,null,null,null,null,null,null,null,null,null,null,null,"Nettobarwert"]
[null,null,null,null,null,null,null,null,null,null,null,null,null,null,"Kosten Ersatzteile",{"$f":"SUM(P33:P37,P39:P45)","v":0},{"$f":"SUM(Q33:Q37,Q39:Q45)","v":0},0,0,0,0,0,0,0,0,0,0,0,0,0,0,0,0,0,0,0,0,0,0,0,0,0,0,0,0,0]
[null,null,null,null,null,null,null,null,null,null,null,null,null,null,"Restwert Ersatzteile",{"$f":"IF(Betrachtungszeit_PW=P17,-$D$46,0)","v":0},0,0,0,0,0,0,0,0,0,0,0,0,0,0,0,0,0,0,0,0,0,0,0,0,0,0,0,0,0,0]
[null,"Service- und Reparaturkosten","Beschreibung","Kosten \n(alle Fahrz.) [CHF/a]",null,null,null,null,null,null,null,null,null,null,"Kosten inkl. Preissteigerung",{"$f":"SUM(P47:P48)*(1+Inflationsindex)^P$17","v":0},0,0,0,0,0,0,0,0,0,0,0,0,0,0,0,0,0,0,0,0,0,0,0,0,0,0,0,0,0,0]
[null,"Servicekosten",null,null,null,null,null,null,null,null,null,null,null,null,"Barwert",{"$f":"P49*(1+Kalkulationszinssatz)^-P$17","v":0},0,0,0,0,0,0,0,0,0,0,0,0,0,0,0,0,0,0,0,0,0,0,0,0,0,0,0,0,0,0,{"$f":"SUM(P50:AT50)","v":0}]
[null,"Reperaturkosten"]
[null,"Weitere jährliche Service- und Reparaturkosten"]
[null,"Weitere jährliche Service- und Reparaturkosten"]
[null,"Weitere jährliche Service- und Reparaturkosten"]
[null,"Total",null,{"$f":"SUM(D50:D54)","v":0},null,null,null,null,null,null,null,null,null,null,"Service- und Reparaturkosten",null,null,null,null,null,null,null,null,null,null,null,null,null,null,null,null,null,null,null,null,null,null,null,null,null,null,null,null,null,null,null,"Nettobarwert"]
[null,null,null,null,null,null,null,null,null,null,null,null,null,null,"Kosten inkl. Preissteigerung",0,{"$f":"IF(Q$17<=Betrachtungszeit_PW,D55+D55*Inflationsindex,0)","v":0},{"$f":"IF(R$17<=Betrachtungszeit_PW,Q56+Q56*Inflationsindex,0)","v":0},0,0,0,0,0,0,0,0,0,0,0,0,0,0,0,0,0,0,0,0,0,0,0,0,0,0,0,0]
["K","Betriebskosten",null,null,null,null,null,null,null,null,null,null,null,null,"Barwert",0,{"$f":"Q56*(1+Kalkulationszinssatz)^-Q$17","v":0},0,0,0,0,0,0,0,0,0,0,0,0,0,0,0,0,0,0,0,0,0,0,0,0,0,0,0,0,0,{"$f":"SUM(P57:AT57)","v":0}]
[null,"Verkehrssteuer"]
[null,"Haftpflicht-Versicherung"]
[null,"Kasko-Versicherung"]
[null,"Weitere Versicherungen"]
[null,"Pannenhilfe, Assistance"]
[null,"Garagierungskosten"]
[null,"Autobahnvignette"]
[null,"Strassenbenützungsgebühren"]
[null,"Mitgliedsbeiträge"]
[null,"Nebenauslagen"]
[null,"Fahrzeugpflege"]
[null,"Weitere jährliche Betriebskosten",null,null,null,null,null,null,null,null,null,null,null,null,"Betriebskosten",null,null,null,null,null,null,null,null,null,null,null,null,null,null,null,null,null,null,null,null,null,null,null,null,null,null,null,null,null,null,null,"Nettobarwert"]
[null,"Weitere jährliche Betriebskosten",null,null,null,null,null,null,null,null,null,null,null,null,"Kosten inkl. Preissteigerung",0,{"$f":"IF(Q$17<=Betrachtungszeit_PW,D72+D72*Inflationsindex,0)","v":0},{"$f":"IF(R$17<=Betrachtungszeit_PW,Q70+Q70*Inflationsindex,0)","v":0},0,0,0,0,0,0,0,0,0,0,0,0,0,0,0,0,0,0,0,0,0,0,0,0,0,0,0,0]
[null,"Weitere jährliche Betriebskosten",null,null,null,null,null,null,null,null,null,null,null,null,"Barwert",0,{"$f":"Q70*(1+Kalkulationszinssatz)^-Q$17","v":0},0,0,0,0,0,0,0,0,0,0,0,0,0,0,0,0,0,0,0,0,0,0,0,0,0,0,0,0,0,{"$f":"SUM(P71:AT71)","v":0}]
[null,"Total",null,{"$f":"SUM(D58:D71)","v":0}]
[]
[null,"Energie- und Ladekosten",{"$f":"\"Treibstoff:\n \"&$C$8","v":"Treibstoff:\n BITTE WÄHLEN"},"Total",null,null,null,null,null,null,null,null,null,null,"Energie- und Ladekosten",null,null,null,null,null,null,null,null,null,null,null,null,null,null,null,null,null,null,null,null,null,null,null,null,null,null,null,null,null,null,null,"Nettobarwert"]
["K","Leistungskosten (eigene Ladestation)",{"$f":"IF(C13=13,C11*12,0)*VLOOKUP(C13,Input_Generell!$W$9:$AB$22,2,0)","v":0},{"$f":"SUM(C75:C75)","v":0},"CHF/a",null,null,null,null,null,null,null,null,null,"Leistungskosten (eigene Ladestation) inkl. Energiepreissteigerung",0,{"$f":"IF(Q$17<=Betrachtungszeit_PW,$D$75*(1+Energiepreissteigerung),0)","v":0},{"$f":"IF(R$17<=Betrachtungszeit_PW,Q75*(1+Energiepreissteigerung),0)","v":0},0,0,0,0,0,0,0,0,0,0,0,0,0,0,0,0,0,0,0,0,0,0,0,0,0,0,0,0]
["K","Energiekosten (eigene Ladestation)",{"$f":"IF(C13=13,Anteil_Intern*C10*Stückzahl_PW*1000*(Anteil_HT*StrompreisHT/100+Anteil_NT*StrompreisNT/100),0)","v":0},{"$f":"SUM(C76:C76)","v":0},"CHF/a",null,null,null,null,null,null,null,null,null,"Energiekosten (eigene Ladestation) inkl. Energiepreissteigerung",0,{"$f":"IF(Q$17<=Betrachtungszeit_PW,$D$76*(1+Energiepreissteigerung),0)","v":0},{"$f":"IF(R$17<=Betrachtungszeit_PW,Q76*(1+Energiepreissteigerung),0)","v":0},0,0,0,0,0,0,0,0,0,0,0,0,0,0,0,0,0,0,0,0,0,0,0,0,0,0,0,0]
[null,"Energiekosten (externes Tanken/Laden)",{"$f":"IF(C13=13,Anteil_Extern*Verbrauchsbasiert_Preis/100*C10*Stückzahl_PW*1000,VLOOKUP(C13,Input_Generell!$W$9:$AB$22,3,0)/100*C10*Stückzahl_PW*1000)","v":0},{"$f":"SUM(C77:C77)","v":0},"CHF/a",null,null,null,null,null,null,null,null,null,"Energiekosten (externes Tanken/Laden) inkl. Energiepreissteigerung",0,{"$f":"IF(Q$17<=Betrachtungszeit_PW,$D$77*(1+Energiepreissteigerung),0)","v":0},{"$f":"IF(R$17<=Betrachtungszeit_PW,Q77*(1+Energiepreissteigerung),0)","v":0},0,0,0,0,0,0,0,0,0,0,0,0,0,0,0,0,0,0,0,0,0,0,0,0,0,0,0,0]
["K","Strompreisunabhängige Ladekosten (externes Laden)",{"$f":"IF(C13=13,Input_Generell!D22,0)","v":0},{"$f":"SUM(C78:C78)","v":0},"CHF/a",null,null,null,null,null,null,null,null,null,"Strompreisunabh. Ladekosten (externes Laden) inkl. Preissteigerung",0,{"$f":"IF(Q$17<=Betrachtungszeit_PW,$D$78*(1+Inflationsindex),0)","v":0},{"$f":"IF(R$17<=Betrachtungszeit_PW,Q78*(1+Inflationsindex),0)","v":0},0,0,0,0,0,0,0,0,0,0,0,0,0,0,0,0,0,0,0,0,0,0,0,0,0,0,0,0]
[null,"Total",{"$f":"SUM(C75:C78)","v":0},{"$f":"SUM(D75:D78)","v":0},"CHF/a",null,null,null,null,null,null,null,null,null,"Barwert",0,{"$f":"SUM(Q75:Q78)*(1+Kalkulationszinssatz)^-Q$17","v":0},0,0,0,0,0,0,0,0,0,0,0,0,0,0,0,0,0,0,0,0,0,0,0,0,0,0,0,0,0,{"$f":"SUM(P79:AT79)","v":0}]
[]
[null,"Betrieb: Externe Kosten",{"$f":"\"Treibstoff:\n \"&$C$8","v":"Treibstoff:\n BITTE WÄHLEN"},"Total"]
[null,"Treibhausgasemissionen (THG)",{"$f":"C10*Stückzahl_PW*(1/1000)*IF(C13=13,Anteil_Intern*EF_Strom+Anteil_Extern*EF_Verbrauchsbasiert,VLOOKUP(C13,Input_Generell!$W$9:$AB$22,5,0))","v":0},{"$f":"SUM(C82:C82)","v":0},"tCO2eq/a",null,null,null,null,null,null,null,null,null,"Betrieb: Externe Kosten Treibhausgasemissionen",null,null,null,null,null,null,null,null,null,null,null,null,null,null,null,null,null,null,null,null,null,null,null,null,null,null,null,null,null,null,null,"Nettobarwert"]
[null,"Umweltbelastungspunkte UBP'13",{"$f":"C10*Stückzahl_PW*1000*IF(C13=13,Anteil_Intern*UBP_Strom+Anteil_Extern*UBP_Strom_Extern,VLOOKUP(C13,Input_Generell!$W$9:$AB$22,6,0))","v":0},{"$f":"SUM(C83:C83)","v":0},"UBP/a",null,null,null,null,null,null,null,null,null,"Kosten inkl. Preissteigerung",0,{"$f":"IF(Q$17<=Betrachtungszeit_PW,D84+D84*Inflationsindex,0)","v":0},{"$f":"IF(R$17<=Betrachtungszeit_PW,Q83+Q83*Inflationsindex,0)","v":0},0,0,0,0,0,0,0,0,0,0,0,0,0,0,0,0,0,0,0,0,0,0,0,0,0,0,0,0]
[null,{"$f":"VLOOKUP(Input_Generell!$B$28,Input_Generell!$B$52:$D$55,3,0)","v":"Kosten für THG: nicht gewählt"},{"$f":"C82*Kosten_THG","v":0},{"$f":"SUM(C84:C84)","v":0},"CHF/a",null,null,null,null,null,null,null,null,null,"Barwert",0,{"$f":"Q83*(1+Kalkulationszinssatz)^-Q$17","v":0},0,0,0,0,0,0,0,0,0,0,0,0,0,0,0,0,0,0,0,0,0,0,0,0,0,0,0,0,0,{"$f":"SUM(P84:AT84)","v":0}]
[]
[null,"Entsorgungskosten",null,null,null,null,null,null,null,null,null,null,null,null,"Entsorgung am Ende der Betrachtungszeit der Lebenszyklusrechnung",null,null,null,null,null,null,null,null,null,null,null,null,null,null,null,null,null,null,null,null,null,null,null,null,null,null,null,null,null,null,null,"Nettobarwert"]
["K","Entsorgungskosten",null,null,"CHF",null,null,null,null,null,null,null,null,null,"Kosten inkl. Preissteigerung",0,{"$f":"IF(Q$17=Betrachtungszeit_PW,$D$87*(1+Inflationsindex)^Q$17,0)","v":0},0,0,0,0,0,0,0,0,0,0,0,0,0,0,0,0,0,0,0,0,0,0,0,0,0,0,0,0,0]
[null,null,null,null,null,null,null,null,null,null,null,null,null,null,"Barwert",0,{"$f":"Q87*(1+Kalkulationszinssatz)^-Q$17","v":0},0,0,0,0,0,0,0,0,0,0,0,0,0,0,0,0,0,0,0,0,0,0,0,0,0,0,0,0,0,{"$f":"SUM(P88:AT88)","v":0}]
[]
[null,"Umweltrelevante Angaben Erstellung und Entsorgung der Fahrzeuge"]
[null,"Die Treibhausgas-Emissionen und Umweltbelastungspunkte, die aus der Erstellung und Entsorgung der Fahrzeuge entstehen, können nachfolgend berechnet werden. Mit Hilfe des mobitools (2017) kann die Grössenordnung der Treibhausgas-Emissionen und Umweltbelastungspunkte aus der Herstellung und Entsorgung ermittelt werden. Mobitool gibt diese Emissionen pro Kilometer aus (ausgehend von einer typischen Distanz über die Lebensdauer). Insbesondere wenn die Fahrzeuge über die Lebensdauer besonders wenig oder besonders viele Kilometer zurücklegen und/oder Fahrzeuge mit erneuerbaren Treibstoffen verglichen werden, empfiehlt sich jedoch eine genauere Abklärung. Falls aus der Erstellung und Entsorgung keine Daten einbezogen werden sollen, können die Eingabewerte leer gelassen werden. Die Vorgehensweise für die Ermittlung der Eingabewerte mit Hilfe des mobitools wird nachfolgend beschrieben.\nIm mobitool, in der Zeile des betroffenen Fahrzeugmodells:\n- Auslastung auf 1 setzen (somit werden die Werte pro Kilometer anstelle pro Personen-Kilometer ausgegeben)\n- Das 'Fahrzeuggewicht' sowie bei Elektro-Fahrzeugen das 'Batteriegewicht' und die 'Anzahl Batteriewechsel über Lebensdauer' anpassen\n- Im grauen Bereich oben links den gewünschten Indikator wählen ('Treibhausgaspotenzial' resp. 'UBP13')\n- In der Spalte 'Fahrzeugherstellung / -entsorgung' können die Werte für CO2eq resp. UBP abgelesen werden"]
[]
[null,"Erstellung und Entsorgung Fahrzeug:\nExterne Kosten","Fahrzeugherstellung / -entsorgung",null,"Total"]
[null,"Treibhausgasemissionen (THG)",null,"g CO2eq / km / Fahrz.",{"$f":"Stückzahl_PW*Betrachtungszeit_PW*Fahrleistung_PW*C94/1000000","v":0},"tCO2eq"]
[null,"Umweltbelastungspunkte UBP'13",null,"UBP / km / Fahrz.",{"$f":"Stückzahl_PW*Betrachtungszeit_PW*Fahrleistung_PW*C95","v":0},"UBP",null,null,null,null,null,null,null,null,"Erstellung / Entsorgung: Externe Kosten Treibhausgasemissionen",null,null,null,null,null,null,null,null,null,null,null,null,null,null,null,null,null,null,null,null,null,null,null,null,null,null,null,null,null,null,null,"Nettobarwert"]
["K",{"$f":"VLOOKUP(Input_Generell!$B$28,Input_Generell!$B$52:$D$55,3,0)","v":"Kosten für THG: nicht gewählt"},null,null,{"$f":"E94*Kosten_THG","v":0},"CHF",null,null,null,null,null,null,null,null,"Barwert",{"$f":"E96","v":0},null,null,null,null,null,null,null,null,null,null,null,null,null,null,null,null,null,null,null,null,null,null,null,null,null,null,null,null,null,null,{"$f":"SUM(P96:AT96)","v":0}]
[]
[]
[null,"Lebenszykluskosten"]
[null,"Kosten des Fahrzeugs über den gesamten Lebenszyklus gesehen (in Form des Nettobarwertes = Kapitalwert)."]
[null,null,null,null,null,null,null,null,null,null,null,null,null,null,"Barwerte",null,null,null,null,null,null,null,null,null,null,null,null,null,null,null,null,null,null,null,null,null,null,null,null,null,null,null,null,null,null,null,"Nettobarwert"]
["K","Anschaffungskosten (abzüglich Förderbeitrag, Restwert)",null,null,{"$f":"AU102","v":0},"CHF",null,null,null,null,null,null,null,null,{"$f":"B102","v":"Anschaffungskosten (abzüglich Förderbeitrag, Restwert)"},{"$f":"P29","v":0},0,0,0,0,0,0,0,0,0,0,0,0,0,0,0,0,0,0,0,0,0,0,0,0,0,0,0,0,0,0,0]
[null,"Kosten Ersatzteile (abzüglich Restwert)",null,null,{"$f":"AU103","v":0},"CHF",null,null,null,null,null,null,null,null,"Kosten Ersatzteile (abzüglich Restwert)",{"$f":"P50","v":0},0,0,0,0,0,0,0,0,0,0,0,0,0,0,0,0,0,0,0,0,0,0,0,0,0,0,0,0,0,0,0]
[null,"Service- und Reparaturkosten",null,null,{"$f":"AU104","v":0},"CHF",null,null,null,null,null,null,null,null,"Service- und Reparaturkosten",{"$f":"P57","v":0},0,0,0,0,0,0,0,0,0,0,0,0,0,0,0,0,0,0,0,0,0,0,0,0,0,0,0,0,0,0,0]
[null,"Betriebskosten",null,null,{"$f":"AU105","v":0},"CHF",null,null,null,null,null,null,null,null,"Betriebskosten",{"$f":"P71","v":0},0,0,0,0,0,0,0,0,0,0,0,0,0,0,0,0,0,0,0,0,0,0,0,0,0,0,0,0,0,0,0]
[null,"Energiekosten",null,null,0,"CHF",null,null,null,null,null,null,null,null,"Energiekosten",{"$f":"P79","v":0},0,0,0,0,0,0,0,0,0,0,0,0,0,0,0,0,0,0,0,0,0,0,0,0,0,0,0,0,0,0,0]
["K",{"$f":"VLOOKUP(Input_Generell!$B$28,Input_Generell!$B$52:$D$55,3,0)&\" (Betrieb und Erstellung/Entsorgung)\"","v":"Kosten für THG: nicht gewählt (Betrieb und Erstellung/Entsorgung)"},null,null,0,"CHF",null,null,null,null,null,null,null,null,"Kosten für THG: nicht gewählt (Betrieb und Erstellung/Entsorgung)",{"$f":"P84+P96","v":0},0,0,0,0,0,0,0,0,0,0,0,0,0,0,0,0,0,0,0,0,0,0,0,0,0,0,0,0,0,0,0]
[null,"Entsorgungskosten",null,null,0,"CHF",null,null,null,null,null,null,null,null,"Entsorgungskosten",{"$f":"P88","v":0},0,0,0,0,0,0,0,0,0,0,0,0,0,0,0,0,0,0,0,0,0,0,0,0,0,0,0,0,0,0,0]
[null,"Total",null,null,0,"CHF",null,null,null,null,null,null,null,null,"Total",{"$f":"SUM(P102:P108)","v":0},0,0,0,0,0,0,0,0,0,0,0,0,0,0,0,0,0,0,0,0,0,0,0,0,0,0,0,0,0,0,0]
[null,null,null,null,null,null,null,null,null,null,null,null,null,null,"Total aufsummiert",{"$f":"P109","v":0},{"$f":"P110+Q109","v":0},{"$f":"Q110+R109","v":0},{"$f":"R110+S109","v":0},0,0,0,0,0,0,0,0,0,0,0,0,0,0,0,0,0,0,0,0,0,0,0,0,0,0,{"$f":"AS110+AT109","v":0}]
[null,"Treibhausgasemissionen Erstellung/Entsorgung Fahrzeuge (Scope 3)",null,null,{"$f":"E94","v":0},"tCO2eq",null,null,null,null,null,null,null,null,"Diagramm Anzeige Betrachtungszeit",{"$f":"IF(P17=Betrachtungszeit_PW,MAX(Resultate_PW!$D$14:$H$14),0)","v":0},{"$f":"IF(Q17=Betrachtungszeit_PW,MAX(Resultate_PW!$D$14:$H$14),0)","v":0},{"$f":"IF(R17=Betrachtungszeit_PW,MAX(Resultate_PW!$D$14:$H$14),0)","v":0},{"$f":"IF(S17=Betrachtungszeit_PW,MAX(Resultate_PW!$D$14:$H$14),0)","v":0},{"$f":"IF(T17=Betrachtungszeit_PW,MAX(Resultate_PW!$D$14:$H$14),0)","v":0},{"$f":"IF(U17=Betrachtungszeit_PW,MAX(Resultate_PW!$D$14:$H$14),0)","v":0},{"$f":"IF(V17=Betrachtungszeit_PW,MAX(Resultate_PW!$D$14:$H$14),0)","v":0},{"$f":"IF(W17=Betrachtungszeit_PW,MAX(Resultate_PW!$D$14:$H$14),0)","v":0},{"$f":"IF(X17=Betrachtungszeit_PW,MAX(Resultate_PW!$D$14:$H$14),0)","v":0},{"$f":"IF(Y17=Betrachtungszeit_PW,MAX(Resultate_PW!$D$14:$H$14),0)","v":0},{"$f":"IF(Z17=Betrachtungszeit_PW,MAX(Resultate_PW!$D$14:$H$14),0)","v":0},{"$f":"IF(AA17=Betrachtungszeit_PW,MAX(Resultate_PW!$D$14:$H$14),0)","v":0},{"$f":"IF(AB17=Betrachtungszeit_PW,MAX(Resultate_PW!$D$14:$H$14),0)","v":0},{"$f":"IF(AC17=Betrachtungszeit_PW,MAX(Resultate_PW!$D$14:$H$14),0)","v":0},{"$f":"IF(AD17=Betrachtungszeit_PW,MAX(Resultate_PW!$D$14:$H$14),0)","v":0},{"$f":"IF(AE17=Betrachtungszeit_PW,MAX(Resultate_PW!$D$14:$H$14),0)","v":0},{"$f":"IF(AF17=Betrachtungszeit_PW,MAX(Resultate_PW!$D$14:$H$14),0)","v":0},{"$f":"IF(AG17=Betrachtungszeit_PW,MAX(Resultate_PW!$D$14:$H$14),0)","v":0},{"$f":"IF(AH17=Betrachtungszeit_PW,MAX(Resultate_PW!$D$14:$H$14),0)","v":0},{"$f":"IF(AI17=Betrachtungszeit_PW,MAX(Resultate_PW!$D$14:$H$14),0)","v":0},{"$f":"IF(AJ17=Betrachtungszeit_PW,MAX(Resultate_PW!$D$14:$H$14),0)","v":0},{"$f":"IF(AK17=Betrachtungszeit_PW,MAX(Resultate_PW!$D$14:$H$14),0)","v":0},{"$f":"IF(AL17=Betrachtungszeit_PW,MAX(Resultate_PW!$D$14:$H$14),0)","v":0},{"$f":"IF(AM17=Betrachtungszeit_PW,MAX(Resultate_PW!$D$14:$H$14),0)","v":0},{"$f":"IF(AN17=Betrachtungszeit_PW,MAX(Resultate_PW!$D$14:$H$14),0)","v":0},{"$f":"IF(AO17=Betrachtungszeit_PW,MAX(Resultate_PW!$D$14:$H$14),0)","v":0},{"$f":"IF(AP17=Betrachtungszeit_PW,MAX(Resultate_PW!$D$14:$H$14),0)","v":0},{"$f":"IF(AQ17=Betrachtungszeit_PW,MAX(Resultate_PW!$D$14:$H$14),0)","v":0},{"$f":"IF(AR17=Betrachtungszeit_PW,MAX(Resultate_PW!$D$14:$H$14),0)","v":0},{"$f":"IF(AS17=Betrachtungszeit_PW,MAX(Resultate_PW!$D$14:$H$14),0)","v":0},{"$f":"IF(AT17=Betrachtungszeit_PW,MAX(Resultate_PW!$D$14:$H$14),0)","v":0}]
[null,"Treibhausgasemissionen Betrieb (Scope 1 und 2)",null,null,{"$f":"Betrachtungszeit_PW*D82","v":0},"tCO2eq"]
[null,"Umweltbelastungspunkte UBP'13 Erstellung/Entsorgung Fahrzeuge",null,null,{"$f":"E95","v":0},"UBP"]
[null,"Umweltbelastungspunkte UBP'13 Betrieb",null,null,{"$f":"Betrachtungszeit_PW*D83","v":0},"UBP"]
["K","Gestehungskosten pro km",null,null,{"$f":"IF(C9=0,0,E109*100/(Stückzahl_PW*Fahrleistung_PW*Betrachtungszeit_PW))","v":0},"Rp./km"]
["K","Jahreskosten pro km",null,null,{"$f":"IF(C9=0,0,((1+Kalkulationszinssatz)^Betrachtungszeit_PW*Kalkulationszinssatz)/((1+Kalkulationszinssatz)^Betrachtungszeit_PW-1)*E109*100/(Stückzahl_PW*Fahrleistung_PW))","v":0},"Rp./km"]
[]
[]
[]
[null,"Auswahlfelder und Defaultwerte"]
[]
[null,"Auswahlfeld","Antrieb Nummer","Energieträger-Nummer","Energieträger"]
[null,"BITTE WÄHLEN",0,0,"Energieträger"]
[null,"Elektrizität",1,13,"Strom"]
[null,"CNG",3,1,{"$f":"\"CNG (\"&Input_Generell!X10*100&\"% Biogas)\"","v":"CNG (20% Biogas)"}]
[null,"Benzin",5,3,"Benzin"]
[null,"Diesel",6,4,"Diesel"]
[null,"Weiterer Antrieb",14,11,{"$f":"Input_Generell!B15","v":"Weitere"}]
[]
[]
[null,"Auswahlfeld"]
[null,"BITTE WÄHLEN"]
[null,"ja"]
[null,"nein"]

{"sheet":"Resultate_PW","index":8,"n_rows":26,"n_cols":8,"rows_kept":26,"cut":false,"hidden":false,"merged":[]}
[null,"RESULTATE PERSONENWAGEN"]
[]
[null,"Lebenszykluskosten"]
[null,"Kosten der verschiedenen Varianten über den gesamten Lebenszyklus gesehen (in Form des Nettobarwertes = Kapitalwert)."]
[null,null,null,"V1","V2","V3","V4","V5"]
[null,"Nettobarwert",null,{"$f":"IF(PW_V1!$C$12=0,\"\",PW_V1!$C$6&\" (\"&PW_V1!$C$8 &\")\")","v":""},{"$f":"IF(PW_V2!$C$12=0,\"\",PW_V2!$C$6&\" (\"&PW_V2!$C$8 &\")\")","v":""},{"$f":"IF(PW_V3!$C$12=0,\"\",PW_V3!$C$6&\" (\"&PW_V3!$C$8 &\")\")","v":""},{"$f":"IF(PW_V4!$C$12=0,\"\",PW_V4!$C$6&\" (\"&PW_V4!$C$8 &\")\")","v":""},{"$f":"IF(PW_V5!$C$12=0,\"\",PW_V5!$C$6&\" (\"&PW_V5!$C$8 &\")\")","v":""}]
[null,"Anschaffungskosten (abzüglich Förderbeitrag, Restwert)","CHF",{"$f":"PW_V1!$E102","v":0},{"$f":"PW_V2!$E102","v":0},{"$f":"PW_V3!$E102","v":0},{"$f":"PW_V4!$E102","v":0},{"$f":"PW_V5!$E102","v":0}]
[null,"Kosten Ersatzteile (abzüglich Restwert)","CHF",{"$f":"PW_V1!$E103","v":0},{"$f":"PW_V2!$E103","v":0},{"$f":"PW_V3!$E103","v":0},{"$f":"PW_V4!$E103","v":0},{"$f":"PW_V5!$E103","v":0}]
[null,"Service- und Reparaturkosten","CHF",{"$f":"PW_V1!$E104","v":0},{"$f":"PW_V2!$E104","v":0},{"$f":"PW_V3!$E104","v":0},{"$f":"PW_V4!$E104","v":0},{"$f":"PW_V5!$E104","v":0}]
[null,"Betriebskosten","CHF",{"$f":"PW_V1!$E105","v":0},{"$f":"PW_V2!$E105","v":0},{"$f":"PW_V3!$E105","v":0},{"$f":"PW_V4!$E105","v":0},{"$f":"PW_V5!$E105","v":0}]
[null,"Energiekosten","CHF",{"$f":"PW_V1!$E106","v":0},{"$f":"PW_V2!$E106","v":0},{"$f":"PW_V3!$E106","v":0},{"$f":"PW_V4!$E106","v":0},{"$f":"PW_V5!$E106","v":0}]
["K",{"$f":"PW_V1!B107","v":"Kosten für THG: nicht gewählt (Betrieb und Erstellung/Entsorgung)"},"CHF",{"$f":"PW_V1!$E107","v":0},{"$f":"PW_V2!$E107","v":0},{"$f":"PW_V3!$E107","v":0},{"$f":"PW_V4!$E107","v":0},{"$f":"PW_V5!$E107","v":0}]
[null,"Entsorgungskosten","CHF",{"$f":"PW_V1!$E108","v":0},{"$f":"PW_V2!$E108","v":0},{"$f":"PW_V3!$E108","v":0},{"$f":"PW_V4!$E108","v":0},{"$f":"PW_V5!$E108","v":0}]
[null,"Total","CHF",{"$f":"PW_V1!$E109","v":0},{"$f":"PW_V2!$E109","v":0},{"$f":"PW_V3!$E109","v":0},{"$f":"PW_V4!$E109","v":0},{"$f":"PW_V5!$E109","v":0}]
[]
["K","Treibhausgasemissionen Erstellung/Entsorgung Fahrzeuge (Scope 3)","tCO2eq",{"$f":"PW_V1!$E111","v":0},{"$f":"PW_V2!$E111","v":0},{"$f":"PW_V3!$E111","v":0},{"$f":"PW_V4!$E111","v":0},{"$f":"PW_V5!$E111","v":0}]
[null,"Treibhausgasemissionen Betrieb (Scope 1 und 2)","tCO2eq",{"$f":"PW_V1!$E112","v":0},{"$f":"PW_V2!$E112","v":0},{"$f":"PW_V3!$E112","v":0},{"$f":"PW_V4!$E112","v":0},{"$f":"PW_V5!$E112","v":0}]
["K","UBP'13 Erstellung/Entsorgung Fahrzeuge","UBP",{"$f":"PW_V1!$E113","v":0},{"$f":"PW_V2!$E113","v":0},{"$f":"PW_V3!$E113","v":0},{"$f":"PW_V4!$E113","v":0},{"$f":"PW_V5!$E113","v":0}]
[null,"UBP'13 Betrieb","UBP",{"$f":"PW_V1!$E114","v":0},{"$f":"PW_V2!$E114","v":0},{"$f":"PW_V3!$E114","v":0},{"$f":"PW_V4!$E114","v":0},{"$f":"PW_V5!$E114","v":0}]
["K","Gestehungskosten pro km","Rp./km",{"$f":"PW_V1!$E115","v":0},{"$f":"PW_V2!$E115","v":0},{"$f":"PW_V3!$E115","v":0},{"$f":"PW_V4!$E115","v":0},{"$f":"PW_V5!$E115","v":0}]
["K","Jahreskosten pro km","Rp./km",{"$f":"PW_V1!$E116","v":0},{"$f":"PW_V2!$E116","v":0},{"$f":"PW_V3!$E116","v":0},{"$f":"PW_V4!$E116","v":0},{"$f":"PW_V5!$E116","v":0}]
[]
[null,"Lebenszykluskosten Diagramm"]
[]
[]
[null,"Aufsummierte Kosten (Barwerte) der einzelnen Varianten über die Betrachtungszeit"]

{"sheet":"Anhang","index":9,"n_rows":42,"n_cols":4,"rows_kept":42,"cut":false,"hidden":false,"merged":[[30,1,30,7],[31,1,31,7],[32,1,32,7],[33,1,33,7],[38,3,38,7],[34,1,34,7],[35,1,35,7],[44,3,44,7],[45,3,45,7],[46,3,46,7],[39,3,39,7],[40,3,40,7],[41,3,41,7],[42,3,42,7],[43,3,43,7],[5,1,5,7],[9,1,9,7],[16,1,16,7],[4,1,4,7],[19,1,19,7],[10,1,10,7],[13,1,13,7],[8,1,8,7],[15,1,15,7],[7,1,7,7],[17,1,17,7],[18,1,18,7],[12,1,12,7],[6,1,6,7],[14,1,14,7],[28,1,28,7],[29,1,29,7],[20,1,20,7],[21,1,21,7],[23,1,23,7],[22,1,22,7],[57,3,57,7],[58,3,58,7],[59,3,59,7],[60,3,60,7],[11,1,11,7],[52,3,52,7],[53,3,53,7],[54,3,54,7],[55,3,55,7],[56,3,56,7],[47,3,47,7],[48,3,48,7],[49,3,49,7],[50,3,50,7],[51,3,51,7],[27,1,27,7]]}
[null,"ANHANG"]
[]
[null,"Quellenverzeichnis"]
[]
[null,"ARE (2019): Externe Effekte des Verkehrs 2015, Bundesamt für Raumentwicklung ARE, 2019"]
[null,"BFE (2020): Energieetikette für Personenwagen: Umweltkennwerte 2020 der Strom- und Treibstoffbereitstellung"]
[null,"BFE (2020b): Finanzielle Vorteile für effiziente Fahrzeuge"]
[null,"BFE (2018): Sichere, leise und energieffiziente Reifen"]
[null,"BFE, Astra (2016): Einführung WLTP in der Schweiz"]
[null,"BFS (2019): Konsumentenpreise für Energie, BFS, 2019"]
[null,"BFS (2019): LIK, Totalindex auf allen Indexbasen,  Landesindex der Konsumentenpreise im Juni 2019,  Bundesamt für Statistik BFS, 2019"]
[null,"BFS (2020): LIK, Durchschnittspreise für Energie und Treibstoffe, Monatswerte (ab 1993) und Jahresdurchschnitte (ab 1966), BFS, 2019"]
[null,"cng-mobility (2020a): www.cng-mobility.ch"]
[null,"cng-mobility (2020b): www.cng-mobility.ch"]
[null,"CO2tieferlegen.ch (2020): www.co2tieferlegen.ch"]
[null,"energieschweiz (2020): Autoreifen: Beachten Sie die Reifenetikette"]
[null,"KBOB (2016): Ökobilanzdaten im Baubereich 2009/1:2016, KBOB, 2016"]
[null,"Mobitool (2017): mobitool-Faktoren"]
[null,"Mobitool (2016): mobitool - Grundlagenbericht"]
[null,"myclimate (2019): www.myclimate.org"]
[null,"TCS (2016): Betriebskosten: Was kostet mich mein Auto?"]
[null,"TCS, EnergieSchweiz (2020): www.verbrauchskatalog.ch"]
[null,"TCS (2020): www.autokatalog.tcs.ch"]
[null,"VCS (2020): www.autoumweltliste.ch"]
[]
[null,"Glossar"]
[]
[null,"Barwert: Der auf den Investitionszeitpunkt (Ausgangsjahr) mit dem Kalkulationszinssatz diskontierte Wert der Ausgaben (und Einnahmen)."]
[null,"Externe Kosten: Als externe Kosten bezeichnet man die unkompensierten Auswirkungen ökonomischer Entscheidungen auf Unbeteiligte, also Auswirkungen, für die niemand bezahlt. Ein Beispiel sind die durch die Allgemeinheit zu tragenden Folgen des Klimawandels, die nicht im Ticketpreis einer Flugreise enthalten sind, obwohl Flugreisen durch den CO2-Ausstoss zu einem erheblichen Mass zum Klimawandel beitragen. Die CO2-Bepreisung ist ein Weg der Internalisierung dieser externen Kosten. "]
[null,"Kalkulationszinssatz: Im Rahmen der Wirtschaftlichkeitsanalyse bedeuten die Zinskosten die Verzinsung des gesamten eingesetzten Kapitals, also nicht nur die Verzinsung von Fremdkapital, sondern auch ein Zins auf dem durch Eigenkapital finanzierten Teil der Investitionen. Für das Eigenkapital erwartet der Investor ja ebenfalls eine Verzinsung, wenigstens im Umfang der entgangenen Zinseinnahmen bei einer alternativen Anlage seines Kapitals. Die Wahl des Kalkulationsszinssatzes ist bis zu einem gewissen Grad eine Ermessenssache."]
[null,"Kapitalwert: Summe der Barwerte aller Ausgaben (und Einnahmen) eines Projekts über die Betrachtungsperiode (= Nettobarwert)"]
[null,"Lebenszykluskosten: Unter Lebenszykluskosten im Sinne der ISO Norm 20400 werden nebst den Anschaffungs-, Betriebs- und Unterhaltkosten auch die indirekten Kosten verstanden, welche durch die Produktion, den Betrieb und die Entsorgung an die Umwelt/Gesellschaft entstehen und monetarisiert werden können. Die Monetarisierung der externen Kosten ist komplex und wird vom Bund zurzeit vorangetrieben. In diesem Tool können die bereits monetarisierten externen Kosten von Treibhausgasen eingerechnet werden. Übrige externe Kosten an die Umwelt/Gesellschaft werden einbezogen, sobald entsprechende Daten zur Verfügung stehen.\n\nDie Berechnung der Lebenszykluskosten erfolgt mit Hilfe der Kapitalwertmethode. Die Kapitalwertmethode ist ein dynamisches Verfahren der Investitionsrechnung, d.h. alle Geldflüsse werden dem Zeitpunkt ihres Anfalls zugeordnet, und mit Hilfe eines Zinsfaktors auf einen einheitlichen Zeitpunkt vergleichbar gemacht. \nDamit ermittelt man den gesamten, aktuellen Wert einer Investition (den Kapitalwert). Dies ist vor dem Hintergrund relevant, dass umweltfreundlichere Alternativen oft höhere Anschaffungskosten, dafür aber geringere Betriebskosten haben. Muss aber zu Beginn einer Investition mehr Geld ausgegeben werden, so müssen ggf. auch mehr Zinsen gezahlt werden, oder es kann weniger Geld anderweitig (gewinnbringend) angelegt werden. Diese Umstände werden durch die Abzinsung (auch: Diskontierung) zukünftiger Geldflüsse auf einen einheitlichen Zeitpunkt berücksichtigt."]
[null,"Mehrwertsteuer: Kosten sollen entweder alle mit oder alle ohne MWSt. angegeben werden."]
[null,"Nettobarwert: siehe Kapitalwert."]
[null,"Scope 1, 2 und 3: Das Perimeter-Konzept des Treibhausgas-Protokolls mit Scope 1, 2, und 3 hat sich etabliert und wird im vorliegenden Tool verwendet. Definitionen:\nScope 1: Direkt im Unternehmensperimeter entstandene Treibhausgas-Emissionen, z.B. aus der Verbrennung von fossilen Brenn- und Treibstoffen.\nScope 2: Emissionen, die durch Energielieferungen entstehen, die aber nicht im Unternehmensperimeter ausgestossen werden (z.B. Strom und Fernwärme).\nScope 3: Emissionen aller vor- und nachgelagerten Prozesse. Beschafft ein Unternehmen beispielsweise ein Produkt, so gehören die Emissionen aus der Herstellung und Entsorgung dieses Produktes zu Scope 3."]
[null,"Umweltbelastungspunkte: Die Umweltbelastungspunkte 2013 (UBP'13) quantifizieren die Umweltbelastungen durch die Nutzung von Energie- und stofflichen Ressourcen, von Land und Süsswasser, durch Emissionen in Luft, Gewässer und Boden, durch die Ablagerung von Rückständen aus der Abfallbehandlung sowie durch Verkehrslärm. Die Umweltbelastungspunkte aus dem Energieverbrauch im Betrieb und, wo verfügbar, aus der Herstellung/Entsorgung von Produkten werden ausgewiesen, fliessen jedoch nicht in die Lebenszykluskosten-Berechnung ein."]
[null,"Änderungsjournal"]
[]
[null,"Version, Datum","Tabellenblatt","Änderung"]
[null,"Betaversion, 08.12.2020"]
[null,"Betaversion, 01.02.2021","alle","Übersetzung, Texte, Seitenumbrüche"]
[null,"Betaversion, 03.08.2021","Anleitung","Text"]